Workbook

Sheet MDR
A2: Project/Plant | S2: Mix Design Type | Y2: =$BI$43 -> SP (Gyratory) | AF2: Traffic Level (Millions of ESAL's) | AL2: 1 to < 3 [Level 3] | AY2: "% Passing the # 4 Sieve" | BI2: Asphalt Test Comparison List
A3: Location | T3: Mix Course | Y3: WE (Wear) - 4% Voids | AV3: Source | AW3: Source | AX3: Source | AY3: Source | AZ3: Source | BA3: Source | BB3: Source | BC3: Source | BD3: Source | BE3: Source | BI3: ???? | BW3: AFT | BX3: AFT Tolerance | BY3: Used Tolerance
A4: Design Voids | D4: HWY # | S4: Max. Aggr. Size | Y4: B (3/4 inch) | AF4: AFT Project? | AL4: =$BW$4 -> Yes | AV4: 1 | AW4: 2 | AX4: 3 | AY4: 4 | AZ4: 5 | BA4: 6 | BB4: 7 | BC4: 8 | BD4: 9 | BE4: 10 | BI4: Chemical - vs - Incinerator Oven | BW4: Yes | BX4: 1.2 | BY4: =IF($AL$4="Yes",1.2,2) -> 1.2 | CA4: =IF(AL4="Yes","AFT Project","") -> AFT Project
A5: Design VMA | D5: Design #200 | AV5: -0.04 | AW5: -0.04 | AX5: -0.04 | AY5: -0.04 | AZ5: -0.04 | BA5: -0.04 | BB5: -0.04 | BC5: -0.04 | BD5: -0.04 | BE5: -0.04 | BI5: Incinerator Oven - vs - Incinerator Oven | BW5: No | BX5: 2
A6: Design AFT | D6: Design Total AC | N6: Mix Designation | T6: =BI91 -> SPWEB340 | Z6: Asphalt Test Comparisons
Z7: Incinerator Oven - vs - Incinerator Oven
AV8: "-4 Aggregate Specific Gravity"
A9: Summary | C9: Summary | AU9: Summary | AV9: Source | AW9: Source | AX9: Source | AY9: Source | AZ9: Source | BA9: Source | BB9: Source | BC9: Source | BD9: Source | BE9: Source
A10: Sheet | C10: Sheet | D10: Design | E10: Minimum | F10: 1 inch | I10: 1 inch | J10: 1 inch | L10: 3/4 inch | M10: 3/4 inch | N10: 3/4 inch | O10: 3/4 inch | P10: 3/4 inch | R10: 1/2 inch | S10: 1/2 inch | T10: 1/2 inch | U10: 1/2 inch | V10: 1/2 inch | X10: 3/8 inch | Y10: 3/8 inch | Z10: 3/8 inch | AA10: 3/8 inch | AB10: 3/8 inch | AD10: # 4 | AE10: # 4 | AF10: # 4 | AG10: # 4 | AH10: # 4 | AJ10: # 8 | AK10: # 8 | AL10: # 8 | AM10: # 8 | AN10: # 8 | AP10: # 200 | AQ10: # 200 | AR10: # 200 | AS10: # 200 | AT10: # 200 | AU10: Sheet | AV10: 1 | AW10: 2 | AX10: 3 | AY10: 4 | AZ10: 5 | BA10: 6 | BB10: 7 | BC10: 8 | BD10: 9 | BE10: 10
A11: Test # | B11: MDR # | C11: Number | D11: AC | E11: AC | F11: Composite | I11: 2XLJMFL | J11: 2XUJMFL | L11: Composite | M11: LJMFL | N11: UJMFL | O11: 2XLJMFL | P11: 2XUJMFL | R11: Composite | S11: LJMFL | T11: UJMFL | U11: 2XLJMFL | V11: 2XUJMFL | X11: Composite | Y11: LJMFL | Z11: UJMFL | AA11: 2XLJMFL | AB11: 2XUJMFL | AD11: Composite | AE11: LJMFL | AF11: UJMFL | AG11: 2XLJMFL | AH11: 2XUJMFL | AJ11: Composite | AK11: LJMFL | AL11: UJMFL | AM11: 2XLJMFL | AN11: 2XUJMFL | AP11: Composite | AQ11: LJMFL | AR11: UJMFL | AS11: 2XLJMFL | AT11: 2XUJMFL | AU11: Test # | AV11: Sp. G | AW11: Sp. G | AX11: Sp. G | AY11: Sp. G | AZ11: Sp. G | BA11: Sp. G | BB11: Sp. G | BC11: Sp. G | BD11: Sp. G | BE11: Sp. G
A12: =SUMMARY!D7 -> 301 | C12: 1 | AS12: =AP12-2 -> -2 | AT12: =AP12+2 -> 2 | AU12: =A12 -> 301 | BH12: 2350 HV | BI12: 2350/2360 | BL12: 1 face | BM12: 2 face | BN12: faa we | BO12: initial | BP12: design | BQ12: max
A13: =SUMMARY!F7 -> 302 | B13: =IF(B12="","",B12) ->  | C13: =C12 -> 1 | D13: =IF(D12="","",D12) ->  | F13: =D13-E13 ->  | AO13: =Grad!W12 -> 0 | AU13: =AU12+1 -> 302 | AV13: =IF(AV12="","",AV12) ->  | AW13: =IF(AW12="","",AW12) ->  | BG13: =IF(BG12="","",BG12) ->  | BH13: =IF(BH12="","",BH12) -> 2350 HV | BI13: LVNW2 | BJ13: MARSHALL DESIGN | BK13: 3 | BL13: 30 | BM13: - | BN13: - | BO13: - | BP13: 50 | BQ13: - | BR13: Low Volume
A14: =SUMMARY!H7 -> 303 | C14: 1 | F14: =D14-E14 ->  | I14: =I13 ->  | J14: =J13 ->  | L14: =L13 ->  | N14: =N13 ->  | O14: =L14-14 ->  | P14: =L14+14 ->  | R14: =R13 ->  | S14: =S13 ->  | T14: =T13 ->  | U14: =R14-14 ->  | V14: =R14+14 ->  | X14: =X13 ->  | Y14: =Y13 ->  | Z14: =Z13 ->  | AA14: =X14-14 ->  | AB14: =X14+14 ->  | AD14: =AD13 ->  | AE14: =AE13 ->  | AF14: =AF13 ->  | AG14: =AD14-14 ->  | AH14: =AD14+14 ->  | AJ14: =AJ13 ->  | AK14: =AK13 ->  | AL14: =AL13 ->  | AM14: =AJ14-12 ->  | AN14: =AJ14+12 ->  | AO14: =Grad!W13 -> 0 | AP14: =AP13 ->  | AQ14: =AQ13 ->  | AR14: =AR13 ->  | AU14: 303 | AV14: =AV13 ->  | BI14: LVWE2 | BJ14: MARSHALL DESIGN | BK14: 3 | BL14: 30 | BM14: - | BN14: - | BO14: - | BP14: 50 | BQ14: - | BR14: Low Volume
A15: =SUMMARY!J7 -> 304 | C15: 1 | Q15: =Grad!S14 ->  | R15: =R14 ->  | T15: =T14 ->  | X15: =X14 ->  | Z15: =Z14 ->  | AD15: =AD14 ->  | AE15: =AE14 ->  | AF15: =AF14 ->  | AI15: =Grad!V14 ->  | AJ15: =AJ14 ->  | AK15: =AK14 ->  | AL15: =AL14 ->  | AO15: =Grad!W14 ->  | AP15: =AP14 ->  | AQ15: =AQ14 ->  | AR15: =AR14 ->  | AU15: 304 | BI15: LVNW3 | BJ15: MARSHALL DESIGN | BK15: 3 | BL15: 30 | BM15: - | BN15: - | BO15: - | BP15: 50 | BQ15: - | BR15: Low Volume
A16: =SUMMARY!P7 -> 305 | B16: =B15 ->  | C16: 2 | D16: =D15 ->  | Q16: =Grad!S15 ->  | AI16: =Grad!V15 ->  | AO16: =Grad!W15 ->  | AU16: 305 | AV16: =AV15 ->  | AW16: =AW15 ->  | AX16: =AX15 ->  | AY16: =AY15 ->  | AZ16: =AZ15 ->  | BA16: =BA15 ->  | BI16: LVWE3 | BJ16: MARSHALL DESIGN | BK16: 3 | BL16: 30 | BM16: - | BN16: - | BO16: - | BP16: 50 | BQ16: - | BR16: Low Volume
A17: =SUMMARY!R7 -> 306 | C17: =C16 -> 2 | Q17: =Grad!S16 ->  | AI17: =Grad!V16 ->  | AO17: =Grad!W16 ->  | AU17: 306 | AV17: =AV16 ->  | AW17: =AW16 ->  | AX17: =AX16 ->  | BI17: LVNW4 | BJ17: MARSHALL DESIGN | BK17: 3 | BL17: 30 | BM17: - | BN17: - | BO17: - | BP17: 50 | BQ17: - | BR17: Low Volume
A18: =SUMMARY!T7 -> 307 | C18: =C17 -> 2 | Q18: =Grad!S17 ->  | AI18: =Grad!V17 ->  | AO18: =Grad!W17 ->  | AU18: 307 | BI18: LVWE4 | BJ18: MARSHALL DESIGN | BK18: 3 | BL18: 30 | BM18: - | BN18: - | BO18: - | BP18: 50 | BQ18: - | BR18: Low Volume
A19: =SUMMARY!V7 -> 308 | C19: =C18 -> 2 | Q19: =Grad!S18 ->  | AI19: =Grad!V18 ->  | AO19: =Grad!W18 ->  | AU19: 308 | AV19: =AV18 ->  | BI19: LVNW5 | BJ19: MARSHALL DESIGN | BK19: 3 | BL19: 30 | BM19: - | BN19: - | BO19: - | BP19: 50 | BQ19: - | BR19: Low Volume
A20: =SUMMARY!AB7 -> 309 | C20: 3 | Q20: =Grad!S19 ->  | AI20: =Grad!V19 ->  | AO20: =Grad!W19 ->  | AU20: 309 | BI20: LVWE5 | BJ20: MARSHALL DESIGN | BK20: 3 | BL20: 30 | BM20: - | BN20: - | BO20: - | BP20: 50 | BQ20: - | BR20: Low Volume
A21: =SUMMARY!AD7 -> 310 | C21: =C20 -> 3 | Q21: =Grad!S20 ->  | AI21: =Grad!V20 ->  | AO21: =Grad!W20 ->  | AU21: 310 | BI21: MVNW2 | BJ21: MARSHALL DESIGN | BK21: 3.5 | BL21: 55 | BM21: - | BN21: 40 | BO21: - | BP21: 50 | BQ21: - | BR21: MV n/wear
A22: =SUMMARY!AF7 -> 311 | C22: =C21 -> 3 | Q22: =Grad!S21 ->  | AI22: =Grad!V21 ->  | AO22: =Grad!W21 ->  | AU22: 311 | BI22: MVWE2 | BJ22: MARSHALL DESIGN | BK22: 3.5 | BL22: 55 | BM22: - | BN22: 42 | BO22: - | BP22: 50 | BQ22: - | BR22: MV wear
A23: =SUMMARY!AH7 -> 312 | C23: =C22 -> 3 | Q23: =Grad!S22 ->  | AI23: =Grad!V22 ->  | AO23: =Grad!W22 ->  | AU23: 312 | BE23: =BE22 ->  | BI23: MVNW3 | BJ23: MARSHALL DESIGN | BK23: 3.5 | BL23: 55 | BM23: - | BN23: 40 | BO23: - | BP23: 50 | BQ23: - | BR23: MV n/wear
A24: =SUMMARY!AN7 -> 313 | C24: 4 | Q24: =Grad!S23 ->  | AI24: =Grad!V23 ->  | AO24: =Grad!W23 ->  | AU24: 313 | BI24: MVWE3 | BJ24: MARSHALL DESIGN | BK24: 3.5 | BL24: 55 | BM24: - | BN24: 42 | BO24: - | BP24: 50 | BQ24: - | BR24: MV wear
A25: =SUMMARY!AP7 -> 314 | C25: =C24 -> 4 | Q25: =Grad!S24 ->  | AI25: =Grad!V24 ->  | AO25: =Grad!W24 ->  | AU25: 314 | BI25: MVNW4 | BJ25: MARSHALL DESIGN | BK25: 3.5 | BL25: 55 | BM25: - | BN25: 40 | BO25: - | BP25: 50 | BQ25: - | BR25: MV n/wear
A26: =SUMMARY!AR7 -> 315 | C26: =C25 -> 4 | Q26: =Grad!S25 ->  | AI26: =Grad!V25 ->  | AO26: =Grad!W25 ->  | AU26: 315 | BI26: MVWE4 | BJ26: MARSHALL DESIGN | BK26: 3.5 | BL26: 55 | BM26: - | BN26: 42 | BO26: - | BP26: 50 | BQ26: - | BR26: MV wear
A27: =SUMMARY!AT7 -> 316 | C27: =C26 -> 4 | Q27: =Grad!S26 ->  | AI27: =Grad!V26 ->  | AO27: =Grad!W26 ->  | AU27: 316 | BI27: MVNW5 | BJ27: MARSHALL DESIGN | BK27: 3.5 | BL27: 55 | BM27: - | BN27: 40 | BO27: - | BP27: 50 | BQ27: - | BR27: MV n/wear
A28: =SUMMARY!AZ7 -> 317 | C28: 5 | Q28: =Grad!S27 ->  | AI28: =Grad!V27 ->  | AO28: =Grad!W27 ->  | AU28: 317 | BI28: MVWE5 | BJ28: MARSHALL DESIGN | BK28: 3.5 | BL28: 55 | BM28: - | BN28: 42 | BO28: - | BP28: 50 | BQ28: - | BR28: MV wear
A29: =SUMMARY!BB7 -> 318 | C29: =C28 -> 5 | D29: =D28 ->  | Q29: =Grad!S28 ->  | AI29: =Grad!V28 ->  | AO29: =Grad!W28 ->  | AU29: 318 | BI29: SPNW2 | BJ29: GYRATORY DESIGN | BK29: 3 | BL29: 30 | BM29: - | BN29: 40 | BO29: 6 | BP29: 40 | BQ29: 60 | BR29: Level 2 n/wear
A30: =SUMMARY!BD7 -> 319 | C30: =C29 -> 5 | Q30: =Grad!S29 ->  | AI30: =Grad!V29 ->  | AO30: =Grad!W29 ->  | AU30: 319 | BI30: SPWE2 | BJ30: GYRATORY DESIGN | BK30: 4 | BL30: 30 | BM30: - | BN30: 40 | BO30: 6 | BP30: 40 | BQ30: 60 | BR30: Level 2 wear
A31: =SUMMARY!BF7 -> 320 | C31: =C30 -> 5 | Q31: =Grad!S30 ->  | AI31: =Grad!V30 ->  | AO31: =Grad!W30 ->  | AU31: 320 | BI31: SPNW3 | BJ31: GYRATORY DESIGN | BK31: 3 | BL31: 55 | BM31: - | BN31: 40 | BO31: 7 | BP31: 60 | BQ31: 90 | BR31: Level 3 n/wear
A32: =SUMMARY!BL7 -> 321 | C32: 6 | Q32: =Grad!S31 ->  | AI32: =Grad!V31 ->  | AO32: =Grad!W31 ->  | AU32: 321 | BI32: SPWE3 | BJ32: GYRATORY DESIGN | BK32: 4 | BL32: 55 | BM32: - | BN32: 42 | BO32: 7 | BP32: 60 | BQ32: 90 | BR32: Level 3 wear
A33: =SUMMARY!BN7 -> 322 | C33: =C32 -> 6 | Q33: =Grad!S32 ->  | AI33: =Grad!V32 ->  | AO33: =Grad!W32 ->  | AU33: 322 | BI33: SPNW4 | BJ33: GYRATORY DESIGN | BK33: 3 | BL33: 60 | BM33: - | BN33: 40 | BO33: 8 | BP33: 90 | BQ33: 140 | BR33: Level 4 n/wear
A34: =SUMMARY!BP7 -> 323 | C34: =C33 -> 6 | Q34: =Grad!S33 ->  | AI34: =Grad!V33 ->  | AO34: =Grad!W33 ->  | AU34: 323 | BI34: SPWE4 | BJ34: GYRATORY DESIGN | BK34: 4 | BL34: 85 | BM34: 80 | BN34: 44 | BO34: 8 | BP34: 90 | BQ34: 140 | BR34: Level 4 wear
A35: =SUMMARY!BR7 -> 324 | C35: =C34 -> 6 | Q35: =Grad!S34 ->  | AI35: =Grad!V34 ->  | AO35: =Grad!W34 ->  | AU35: 324 | BI35: SPNW5 | BJ35: GYRATORY DESIGN | BK35: 3 | BL35: 80 | BM35: 75 | BN35: 40 | BO35: 8 | BP35: 100 | BQ35: 160 | BR35: Level 5 n/wear
A36: =SUMMARY!BX7 -> 325 | C36: 7 | Q36: =Grad!S35 ->  | AI36: =Grad!V35 ->  | AO36: =Grad!W35 ->  | AU36: 325 | BI36: SPWE5 | BJ36: GYRATORY DESIGN | BK36: 4 | BL36: 95 | BM36: 90 | BN36: 45 | BO36: 8 | BP36: 100 | BQ36: 160 | BR36: Level 5 wear
A37: =SUMMARY!BZ7 -> 326 | C37: =C36 -> 7 | Q37: =Grad!S36 ->  | AI37: =Grad!V36 ->  | AO37: =Grad!W36 ->  | AU37: 326
A38: =SUMMARY!CB7 -> 327 | C38: =C37 -> 7 | Q38: =Grad!S37 ->  | AI38: =Grad!V37 ->  | AO38: =Grad!W37 ->  | AU38: 327
A39: =SUMMARY!CD7 -> 328 | C39: =C38 -> 7 | Q39: =Grad!S38 ->  | AI39: =Grad!V38 ->  | AO39: =Grad!W38 ->  | AU39: 328
A40: =SUMMARY!CJ7 -> 329 | C40: 8 | AU40: 329 | BI40: Mixture Designation Questions
A41: =SUMMARY!CL7 -> 330 | C41: =C40 -> 8 | AU41: 330 | BP41: Gyratory Aggregate Gradation Broad Bands
A42: =SUMMARY!CN7 -> 331 | C42: =C41 -> 8 | AU42: 331 | BI42: Mixture Design Type | BM42: Chosen Design Type | BN42: Text Design Type | BQ42: Final with RAP conversion | BV42: Overall without RAP conversion
A43: =SUMMARY!CP7 -> 332 | C43: =C42 -> 8 | AU43: 332 | BI43: SP (Gyratory) | BM43: =IF(Y2="SP (Gyratory)","SP",IF(Y2="LV (Marshall)","LV","MV")) -> SP | BN43: =IF(BM43="SP","GYRATORY DESIGN","MARSHALL DESIGN") -> GYRATORY DESIGN | BQ43: Min | BR43: Max | BV43: Min | BW43: Max
A44: =SUMMARY!CV7 -> 333 | C44: 9 | O44: =L44-14 ->  | P44: =L44+14 ->  | U44: =R44-14 ->  | V44: =R44+14 ->  | AA44: =X44-14 ->  | AB44: =X44+14 ->  | AG44: =AD44-14 ->  | AH44: =AD44+14 ->  | AM44: =AJ44-12 ->  | AN44: =AJ44+12 ->  | AS44: =AP44-2 ->  | AT44: =AP44+2 ->  | AU44: 333 | BI44: LV (Marshall) | BP44: 1 inch | BQ44: =BV44 -> 100 | BR44: =BW44 -> 100 | BU44: 1 inch | BV44: =IF($BM$56="A",100,IF($BM$56="B",100,IF($BM$56="C",100,100))) -> 100 | BW44: =IF($BM$56="A",100,IF($BM$56="B",100,IF($BM$56="C",100,100))) -> 100
A45: =SUMMARY!CX7 -> 334 | C45: =C44 -> 9 | AU45: 334 | BI45: MV (Marshall) | BP45: 3/4 inch | BQ45: =IF(AND(($BK$101="yes"), ($BM$56="B")),97,BV45) -> 100 | BR45: =BW45 -> 100 | BU45: 3/4 inch | BV45: =IF($BM$56="A",100,IF($BM$56="B",100,IF($BM$56="C",85,100))) -> 100 | BW45: 100
A46: =SUMMARY!CZ7 -> 335 | C46: =C45 -> 9 | AU46: 335 | BP46: 1/2 inch | BQ46: =IF(AND(($BK$101="yes"), ($BM$56="A")),97,BV46) -> 85 | BR46: 100 | BU46: 1/2 inch | BV46: =IF($BM$56="A",100,IF($BM$56="B",85,IF($BM$56="C",45,100))) -> 85 | BW46: =IF($BM$56="A",100,IF($BM$56="B",100,IF($BM$56="C",90,100))) -> 100
A47: =SUMMARY!DB7 -> 336 | C47: =C46 -> 9 | AU47: 336 | BP47: 3/8 inch | BQ47: =BV47 -> 35 | BR47: 90 | BU47: 3/8 inch | BV47: =IF($BM$56="A",85,IF($BM$56="B",35,IF($BM$56="C","",100))) -> 35 | BW47: =IF($BM$56="A",100,IF($BM$56="B",90,IF($BM$56="C","",100))) -> 90
A48: =SUMMARY!DH7 -> 337 | C48: 10 | D48: =D47 ->  | E48: =E47 ->  | AU48: 337 | BP48: #4 | BQ48: =BV48 -> 30 | BR48: 80 | BU48: #4 | BV48: =IF($BM$56="A",60,IF($BM$56="B",30,IF($BM$56="C",30,65))) -> 30 | BW48: =IF($BM$56="A",90,IF($BM$56="B",80,IF($BM$56="C",75,95))) -> 80
A49: =SUMMARY!DJ7 -> 338 | C49: =C48 -> 10 | AU49: 338 | AV49: =AV48 ->  | BI49: Course | BK49: Chosen Course | BM49: Chosen Designation | BP49: #8 | BQ49: =BV49 -> 25 | BR49: 65 | BU49: #8 | BV49: =IF($BM$56="A",45,IF($BM$56="B",25,IF($BM$56="C",25,45))) -> 25 | BW49: =IF($BM$56="A",70,IF($BM$56="B",65,IF($BM$56="C",60,80))) -> 65
A50: =SUMMARY!DL7 -> 339 | C50: 10 | AU50: 339 | BI50: WE (Wear) - 4% Voids | BK50: =$Y$3 -> WE (Wear) - 4% Voids | BM50: =IF(Y3="WE (Wear) - 4% Voids","WE",IF(Y3="NW (Non-Wearing)","NW","WE")) -> WE | BP50: #200 | BQ50: =BV50 -> 2 | BR50: 7 | BU50: #200 | BV50: =IF($BM$56="A",2,IF($BM$56="B",2,IF($BM$56="C",2,3))) -> 2 | BW50: =IF($BM$56="A",7,IF($BM$56="B",7,IF($BM$56="C",7,8))) -> 7
A51: =SUMMARY!DN7 -> 340 | C51: 10 | AU51: 340 | BI51: NW (Non-Wearing)
A52: =SUMMARY!DT7 -> 341 | B52: =B51 ->  | C52: 11 | D52: =D51 ->  | E52: =E51 ->  | I52: =I51 ->  | J52: =J51 ->  | L52: =L51 ->  | M52: =M51 ->  | N52: =N51 ->  | R52: =R51 ->  | S52: =S51 ->  | T52: =T51 ->  | X52: =X51 ->  | Y52: =Y51 ->  | Z52: =Z51 ->  | AD52: =AD51 ->  | AE52: =AE51 ->  | AF52: =AF51 ->  | AJ52: =AJ51 ->  | AK52: =AK51 ->  | AL52: =AL51 ->  | AP52: =AP51 ->  | AQ52: =AQ51 ->  | AR52: =AR51 ->  | AU52: 341 | BI52: SHLDR-WE (Shoulder) | BP52: Marshall Aggregate Gradation
A53: =SUMMARY!DV7 -> 342 | B53: =B52 ->  | C53: 11 | D53: =D52 ->  | I53: =I52 ->  | J53: =J52 ->  | L53: =L52 ->  | N53: =N52 ->  | R53: =R52 ->  | S53: =S52 ->  | T53: =T52 ->  | X53: =X52 ->  | Z53: =Z52 ->  | AD53: =AD52 ->  | AE53: =AE52 ->  | AF53: =AF52 ->  | AJ53: =AJ52 ->  | AK53: =AK52 ->  | AL53: =AL52 ->  | AP53: =AP52 ->  | AQ53: =AQ52 ->  | AR53: =AR52 ->  | AU53: 342 | BI53: WE (Wear) - 3% Voids | BQ53: Min | BR53: Max
A54: =SUMMARY!DX7 -> 343 | C54: 11 | R54: =R53 ->  | S54: =S53 ->  | AU54: 343 | BP54: 1 inch | BQ54: 100 | BR54: 100
A55: =SUMMARY!DZ7 -> 344 | C55: 11 | R55: =R54 ->  | AU55: 344 | BI55: Maximum Aggregate Size | BM55: Chosen Aggr. Size | BP55: 3/4 inch | BQ55: =IF(BM66="C",85,100) -> 100 | BR55: 100
A56: =SUMMARY!EF7 -> 345 | C56: 12 | AU56: 345 | BI56: A (1/2 inch) | BM56: =IF(Y4="A (1/2 inch)","A",IF(Y4="B (3/4 inch)","B",IF(Y4="C (1 inch)","C","D"))) -> B | BP56: 1/2 inch | BQ56: =IF(BM66="C",45,IF(BM66="B",85,100)) -> 100 | BR56: =IF(BM66="C",90,100) -> 100
A57: =SUMMARY!EH7 -> 346 | C57: =C56 -> 12 | AU57: 346 | BI57: B (3/4 inch) | BP57: 3/8 inch | BQ57: =IF(BM66="A",85,IF(BM66="B",35,"")) ->  | BR57: =IF(BM66="A",100,IF(BM66="B",90,"")) -> 
A58: =SUMMARY!EJ7 -> 347 | C58: =C57 -> 12 | AU58: 347 | BI58: C (1 inch) | BP58: #4 | BQ58: =IF(BM66="A",25,IF(BM66="B",30,30)) -> 30 | BR58: =IF(BM66="A",90,IF(BM66="B",80,75)) -> 75
A59: =SUMMARY!EL7 -> 348 | C59: =C58 -> 12 | AU59: 348 | BI59: D (3/8 inch) | BP59: #8 | BQ59: =IF(BM66="A",20,IF(BM66="B",25,25)) -> 25 | BR59: =IF(BM66="A",70,IF(BM66="B",65,60)) -> 60
A60: =SUMMARY!ER7 -> 349 | C60: 13 | AU60: 349 | BP60: #200 | BQ60: 2 | BR60: 7
A61: =SUMMARY!ET7 -> 350 | C61: =C60 -> 13 | AU61: 350
A62: =SUMMARY!EV7 -> 351 | C62: =C61 -> 13 | AU62: 351 | BI62: Traffic Level (Gyratory) | BM62: Chosen Traffic Level | BN62: Traffic Level | BO62: Gyrations for Ndesign
A63: =SUMMARY!EX7 -> 352 | C63: =C62 -> 13 | AU63: 352 | BI63: < 1 [Level 2] | BK63: =AL2 -> 1 to < 3 [Level 3] | BM63: =IF(BK63="< 1 [Level 2]",2,IF(BK63="1 to < 3 [Level 3]",3,IF(BK63="3 to < 10 [Level 4]",4,5))) -> 3 | BN63: 2 | BO63: 40
A64: =SUMMARY!FD7 -> 353 | C64: 14 | AU64: 353 | BI64: 1 to < 3 [Level 3] | BN64: 3 | BO64: 60
A65: =SUMMARY!FF7 -> 354 | C65: =C64 -> 14 | AU65: 354 | BI65: 3 to < 10 [Level 4] | BN65: 4 | BO65: 90
A66: =SUMMARY!FH7 -> 355 | C66: =C65 -> 14 | AU66: 355 | BI66: 10 to <= 30 [Level 5] | BN66: 5 | BO66: 100
A67: =SUMMARY!FJ7 -> 356 | C67: =C66 -> 14 | AU67: 356
A68: =SUMMARY!FP7 -> 357 | C68: 15 | AU68: 357 | BN68: Design Gyrations ==> | BO68: =VLOOKUP($BM$63,$BN$63:$BO$66,2) -> 60
A69: =SUMMARY!FR7 -> 358 | C69: =C68 -> 15 | AU69: 358 | BI69: Design Blows (Marshall Design)
A70: =SUMMARY!FT7 -> 359 | C70: =C69 -> 15 | AU70: 359 | BI70: 50 | BK70: 50
A71: =SUMMARY!FV7 -> 360 | C71: =C70 -> 15 | AU71: 360
A72: =SUMMARY!GB7 -> 361 | B72: =B71 ->  | C72: 16 | F72: =D72-E72 ->  | O72: =L72-14 ->  | P72: =L72+14 ->  | U72: =R72-14 ->  | V72: =R72+14 ->  | AA72: =X72-14 ->  | AB72: =X72+14 ->  | AG72: =AD72-14 ->  | AH72: =AD72+14 ->  | AM72: =AJ72-12 ->  | AN72: =AJ72+12 ->  | AU72: 361
A73: =SUMMARY!GD7 -> 362 | C73: =C72 -> 16 | D73: =D72 ->  | L73: =L72 ->  | R73: =R72 ->  | X73: =X72 ->  | AU73: 362 | BI73: Air Voids | BJ73: Mix Type | BK73: Air Voids | BL73: Chosen Air Voids
A74: =SUMMARY!GF7 -> 363 | C74: =C73 -> 16 | AU74: 363 | BI74: 0.04 | BJ74: SP | BK74: 40 | BL74: =IF(AND(BM43="SP",BK50="WE (Wear) - 4% voids"),40,IF(AND(BM43="SP",BK50="NW (Non-Wearing)"),30,IF(AND(BM43="SP",BK50="SHLDR-WE (Shoulder Wear)"),30,IF(AND(BM43="SP",BK50="WE(Wear) - 3% Voids"),30,IF(BM43="MV",35,30))))) -> 40 | BM74: =BL74*0.1 -> 4
A75: =SUMMARY!GH7 -> 364 | C75: =C74 -> 16 | AU75: 364 | BI75: 0.035 | BJ75: MV | BK75: 35
A76: =SUMMARY!GN7 -> 365 | C76: 17 | AS76: =AP76-2 ->  | AT76: =AP76+2 ->  | AU76: 365 | BI76: 0.03 | BJ76: LV & SP NW | BK76: 30 | BO76: Column | BP76: Column | BQ76: Column | BR76: Column | BS76: Column | BT76: Column
A77: =SUMMARY!GP7 -> 366 | C77: =C76 -> 17 | AU77: =AU76+1 -> 366 | BI77: 0.03 | BJ77: SP SHLDR WE | BK77: 30 | BN77: RAS/RAP/No Recycle | BO77: 1 | BP77: 2 | BQ77: 3 | BR77: 4 | BS77: 5 | BT77: 6
A78: =SUMMARY!GR7 -> 367 | C78: =C77 -> 17 | AU78: 367 | AZ78: =AZ77 ->  | BI78: 0.03 | BJ78: SP WE - 3% | BK78: 30 | BN78: Column Determination | BP78: RAS/RAS+RAP | BQ78: RAS/RAS+RAP | BR78: RAP | BS78: RAP | BT78: No
A79: =SUMMARY!GT7 -> 368 | C79: =C78 -> 17 | AU79: 368 | BI79: Asphalt Binder Grades | BK79: Chosen Binder | BN79: for BO77:BT77 | BP79: Wear | BQ79: Non-Wear | BR79: Wear | BS79: Non-Wear | BT79: Recyle
A80: =SUMMARY!GZ7 -> 369 | C80: 18 | AU80: 369 | AY80: =AY79 ->  | BI80: A = PG 52-34 | BK80: =IF(AL3="A = PG 52-34","A",IF(AL3="B = PG 58-28","B",IF(AL3="C = PG 58-34","C",IF(AL3="E = PG 64-28","E",IF(AL3="F = PG 64-34","F",IF(AL3="H = PG 70-28","H","L")))))) -> L | BN80: =IF(AND($BK$105="Yes",$BM$50="WE"),2,IF(AND($BK$105="Yes",$BM$50="NW"),3,IF(AND($BK$101="Yes",$BM$50="WE"),4,(IF(AND($BK$101="Yes",$BM$50="NW"),5,6))))) -> 6 | BO80: A | BP80: 70 | BQ80: 70 | BR80: 70 | BS80: 65 | BT80: 100
A81: =SUMMARY!HB7 -> 370 | C81: =C80 -> 18 | AU81: 370 | AW81: =AW80 ->  | AX81: =AX80 ->  | AY81: =AY80 ->  | BI81: B = PG 58-28 | BO81: B | BP81: 70 | BQ81: 70 | BR81: 70 | BS81: 65 | BT81: 100
A82: =SUMMARY!HD7 -> 371 | C82: =C81 -> 18 | AU82: 371 | AV82: =AV81 ->  | BI82: C = PG 58-34 | BO82: C | BP82: 80 | BQ82: 80 | BR82: 80 | BS82: 80 | BT82: 100
A83: =SUMMARY!HF7 -> 372 | C83: =C82 -> 18 | AU83: 372 | BI83: E = PG 64-28 | BO83: E | BP83: 70 | BQ83: 70 | BR83: 70 | BS83: 65 | BT83: 100
A84: =SUMMARY!HL7 -> 373 | C84: 19 | AU84: 373 | BI84: F = PG 64-34 | BO84: F | BP84: 80 | BQ84: 80 | BR84: 80 | BS84: 80 | BT84: 100
A85: =SUMMARY!HN7 -> 374 | C85: =C84 -> 19 | AU85: 374 | BI85: H = PG 70-28 | BN85: =VLOOKUP($BK$80,$BO$80:$BT$88,$BN$80) -> 100 | BO85: H | BP85: 70 | BQ85: 70 | BR85: 70 | BS85: 65 | BT85: 100
A86: =SUMMARY!HP7 -> 375 | C86: =C85 -> 19 | AU86: 375 | BI86: I = PG 70-34 | BO86: I | BP86: 80 | BQ86: 80 | BR86: 80 | BS86: 80 | BT86: 100
A87: =SUMMARY!HR7 -> 376 | C87: =C86 -> 19 | AU87: 376 | BI87: L = PG 64-22 | BO87: L | BP87: 70 | BQ87: 70 | BR87: 70 | BS87: 65 | BT87: 100
A88: =SUMMARY!HX7 -> 377 | C88: 20 | AU88: 377 | BI88: M = PG 49-34 | BO88: M | BP88: 70 | BQ88: 70 | BR88: 70 | BS88: 65 | BT88: 100
A89: =SUMMARY!HZ7 -> 378 | C89: =C88 -> 20 | AU89: 378 | BI89: Mix Design Abbreviation
A90: =SUMMARY!IB7 -> 379 | C90: =C89 -> 20 | AU90: 379
A91: =SUMMARY!ID7 -> 380 | C91: =C90 -> 20 | AU91: 380 | BI91: =IF(BM43="SP",CONCATENATE(BM43,BM50,BM56,BM63,BL74),CONCATENATE(BM43,BM50,BM56,BK70,BL74)) -> SPWEB340
A92: =SUMMARY!IJ7 -> 381 | C92: 21 | AU92: 381
A93: =SUMMARY!IL7 -> 382 | C93: =C92 -> 21 | AU93: 382
A94: =SUMMARY!IN7 -> 383 | C94: =C93 -> 21 | AU94: 383 | BI94: Mixture Properties Designation to determine CAA & FAA
A95: =SUMMARY!IP7 -> 384 | C95: =C94 -> 21 | AU95: 384 | AV95: =AV94 ->  | BI95: =IF(BM43="LV","LV",IF(BM43="MV","MV","SP")) -> SP | BJ95: <== Mix Type
BI96: =BM50 -> WE | BJ96: <== Course
BI97: =BM63 -> 3 | BJ97: <== Traffic Level
BI98: =CONCATENATE(BI95,BI96,BI97) -> SPWE3 | BJ98: <== Composite Designation to be used in table below
BI101: RAP? | BJ101: Yes | BK101: =IF(Y5="Yes","Yes","No") -> No
BJ102: No
BI105: RAS? | BJ105: Yes | BK105: =IF(AL5="Yes","Yes","No") -> No
BJ106: No
BI124: CAA- 1 FACE | BJ124: =VLOOKUP($BI$98,$BI$130:$BN$153,4) -> 55
BI125: CAA -2 FACE | BJ125: =VLOOKUP($BI$98,$BI$130:$BN$153,5) -> -
BI126: FAA | BJ126: =VLOOKUP($BI$98,$BI$130:$BN$153,6) -> 42
BI129: 2350/2360 | BK129: Voids | BL129: 1 face | BM129: 2 face | BN129: faa we | BO129: initial | BP129: design | BQ129: max
BI130: LVNW2 | BJ130: MARSHALL DESIGN | BK130: 1 | BL130: 30 | BM130: - | BN130: - | BO130: - | BP130: 50 | BQ130: - | BR130: Low Volume
BI131: LVNW3 | BJ131: MARSHALL DESIGN | BK131: 2 | BL131: 30 | BM131: - | BN131: - | BO131: - | BP131: 50 | BQ131: - | BR131: Low Volume
BI132: LVNW4 | BJ132: MARSHALL DESIGN | BK132: 3 | BL132: 30 | BM132: - | BN132: - | BO132: - | BP132: 50 | BQ132: - | BR132: Low Volume
BI133: LVNW5 | BJ133: MARSHALL DESIGN | BK133: 4 | BL133: 30 | BM133: - | BN133: - | BO133: - | BP133: 50 | BQ133: - | BR133: Low Volume
BI134: LVWE2 | BJ134: MARSHALL DESIGN | BK134: 5 | BL134: 30 | BM134: - | BN134: - | BO134: - | BP134: 50 | BQ134: - | BR134: Low Volume
BI135: LVWE3 | BJ135: MARSHALL DESIGN | BK135: 6 | BL135: 30 | BM135: - | BN135: - | BO135: - | BP135: 50 | BQ135: - | BR135: Low Volume
BI136: LVWE4 | BJ136: MARSHALL DESIGN | BK136: 7 | BL136: 30 | BM136: - | BN136: - | BO136: - | BP136: 50 | BQ136: - | BR136: Low Volume
BI137: LVWE5 | BJ137: MARSHALL DESIGN | BK137: 8 | BL137: 30 | BM137: - | BN137: - | BO137: - | BP137: 50 | BQ137: - | BR137: Low Volume
BI138: MVNW2 | BJ138: MARSHALL DESIGN | BK138: 9 | BL138: 55 | BM138: - | BN138: 40 | BO138: - | BP138: 50 | BQ138: - | BR138: MV n/wear
BI139: MVNW3 | BJ139: MARSHALL DESIGN | BK139: 10 | BL139: 55 | BM139: - | BN139: 40 | BO139: - | BP139: 50 | BQ139: - | BR139: MV n/wear
BI140: MVNW4 | BJ140: MARSHALL DESIGN | BK140: 11 | BL140: 55 | BM140: - | BN140: 40 | BO140: - | BP140: 50 | BQ140: - | BR140: MV n/wear
BI141: MVNW5 | BJ141: MARSHALL DESIGN | BK141: 12 | BL141: 55 | BM141: - | BN141: 40 | BO141: - | BP141: 50 | BQ141: - | BR141: MV n/wear
BI142: MVWE2 | BJ142: MARSHALL DESIGN | BK142: 13 | BL142: 55 | BM142: - | BN142: 42 | BO142: - | BP142: 50 | BQ142: - | BR142: MV wear
BI143: MVWE3 | BJ143: MARSHALL DESIGN | BK143: 14 | BL143: 55 | BM143: - | BN143: 42 | BO143: - | BP143: 50 | BQ143: - | BR143: MV wear
BI144: MVWE4 | BJ144: MARSHALL DESIGN | BK144: 15 | BL144: 55 | BM144: - | BN144: 42 | BO144: - | BP144: 50 | BQ144: - | BR144: MV wear
BI145: MVWE5 | BJ145: MARSHALL DESIGN | BK145: 16 | BL145: 55 | BM145: - | BN145: 42 | BO145: - | BP145: 50 | BQ145: - | BR145: MV wear
BI146: SPNW2 | BJ146: GYRATORY DESIGN | BK146: 17 | BL146: 30 | BM146: - | BN146: 40 | BO146: 6 | BP146: 40 | BQ146: 60 | BR146: Level 2 n/wear
BI147: SPNW3 | BJ147: GYRATORY DESIGN | BK147: 18 | BL147: 55 | BM147: - | BN147: 40 | BO147: 7 | BP147: 60 | BQ147: 90 | BR147: Level 3 n/wear
BI148: SPNW4 | BJ148: GYRATORY DESIGN | BK148: 19 | BL148: 60 | BM148: - | BN148: 40 | BO148: 8 | BP148: 90 | BQ148: 140 | BR148: Level 4 n/wear
BI149: SPNW5 | BJ149: GYRATORY DESIGN | BK149: 20 | BL149: 80 | BM149: 75 | BN149: 40 | BO149: 8 | BP149: 100 | BQ149: 160 | BR149: Level 5 n/wear
BI150: SPWE2 | BJ150: GYRATORY DESIGN | BK150: 21 | BL150: 30 | BM150: - | BN150: 40 | BO150: 6 | BP150: 40 | BQ150: 60 | BR150: Level 2 wear
BI151: SPWE3 | BJ151: GYRATORY DESIGN | BK151: 22 | BL151: 55 | BM151: - | BN151: 42 | BO151: 7 | BP151: 60 | BQ151: 90 | BR151: Level 3 wear
BI152: SPWE4 | BJ152: GYRATORY DESIGN | BK152: 23 | BL152: 85 | BM152: 80 | BN152: 44 | BO152: 8 | BP152: 90 | BQ152: 140 | BR152: Level 4 wear
BI153: SPWE5 | BJ153: GYRATORY DESIGN | BK153: 24 | BL153: 95 | BM153: 90 | BN153: 45 | BO153: 8 | BP153: 100 | BQ153: 160 | BR153: Level 5 wear
BG200: =AV12 -> 0 | BI200: =AV13 ->  | BK200: =AV14 ->  | BM200: =AV15 ->  | BS200: =AV16 ->  | BU200: =AV17 ->  | BW200: =AV18 ->  | BY200: =AV19 ->  | CE200: =AV20 ->  | CG200: =AV21 ->  | CI200: =AV22 ->  | CK200: =AV23 ->  | CQ200: =AV24 ->  | CS200: =AV25 ->  | CU200: =AV26 ->  | CW200: =AV27 ->  | DC200: =AV28 ->  | DE200: =AV29 ->  | DG200: =AV30 ->  | DI200: =AV31 ->  | DO200: =AV32 ->  | DQ200: =AV33 ->  | DS200: =AV34 ->  | DU200: =AV35 ->  | EA200: =AV36 ->  | EC200: =AV37 ->  | EE200: =AV38 ->  | EG200: =AV39 ->  | EM200: =AV40 ->  | EO200: =AV41 ->  | EQ200: =AV42 ->  | ES200: =AV43 ->  | EY200: =AV44 ->  | FA200: =AV45 ->  | FC200: =AV46 ->  | FE200: =AV47 ->  | FK200: =AV48 ->  | FM200: =AV49 ->  | FO200: =AV50 ->  | FQ200: =AV51 ->  | FW200: =AV52 ->  | FY200: =AV53 ->  | GA200: =AV54 ->  | GC200: =AV55 -> 
BG201: =AW12 -> 0 | BI201: =AW13 ->  | BK201: =AW14 ->  | BM201: =AW15 ->  | BS201: =AW16 ->  | BU201: =AW17 ->  | BW201: =AW18 ->  | BY201: =AW19 ->  | CE201: =AW20 ->  | CG201: =AW21 ->  | CI201: =AW22 ->  | CK201: =AW23 ->  | CQ201: =AW24 ->  | CS201: =AW25 ->  | CU201: =AW26 ->  | CW201: =AW27 ->  | DC201: =AW28 ->  | DE201: =AW29 ->  | DG201: =AW30 ->  | DI201: =AW31 ->  | DO201: =AW32 ->  | DQ201: =AW33 ->  | DS201: =AW34 ->  | DU201: =AW35 ->  | EA201: =AW36 ->  | EC201: =AW37 ->  | EE201: =AW38 ->  | EG201: =AW39 ->  | EM201: =AW40 ->  | EO201: =AW41 ->  | EQ201: =AW42 ->  | ES201: =AW43 ->  | EY201: =AW44 ->  | FA201: =AW45 ->  | FC201: =AW46 ->  | FE201: =AW47 ->  | FK201: =AW48 ->  | FM201: =AW49 ->  | FO201: =AW50 ->  | FQ201: =AW51 ->  | FW201: =AW52 ->  | FY201: =AW53 ->  | GA201: =AW54 ->  | GC201: =AW55 -> 
BG202: =AX12 -> 0 | BI202: =AX13 ->  | BK202: =AX14 ->  | BM202: =AX15 ->  | BS202: =AX16 ->  | BU202: =AX17 ->  | BW202: =AX18 ->  | BY202: =AX19 ->  | CE202: =AX20 ->  | CG202: =AX21 ->  | CI202: =AX22 ->  | CK202: =AX23 ->  | CQ202: =AX24 ->  | CS202: =AX25 ->  | CU202: =AX26 ->  | CW202: =AX27 ->  | DC202: =AX28 ->  | DE202: =AX29 ->  | DG202: =AX30 ->  | DI202: =AX31 ->  | DO202: =AX32 ->  | DQ202: =AX33 ->  | DS202: =AX34 ->  | DU202: =AX35 ->  | EA202: =AX36 ->  | EC202: =AX37 ->  | EE202: =AX38 ->  | EG202: =AX39 ->  | EM202: =AX40 ->  | EO202: =AX41 ->  | EQ202: =AX42 ->  | ES202: =AX43 ->  | EY202: =AX44 ->  | FA202: =AX45 ->  | FC202: =AX46 ->  | FE202: =AX47 ->  | FK202: =AX48 ->  | FM202: =AX49 ->  | FO202: =AX50 ->  | FQ202: =AX51 ->  | FW202: =AX52 ->  | FY202: =AX53 ->  | GA202: =AX54 ->  | GC202: =AX55 -> 
BG203: =AY12 -> 0 | BI203: =AY13 ->  | BK203: =AY14 ->  | BM203: =AY15 ->  | BS203: =AY16 ->  | BU203: =AY17 ->  | BW203: =AY18 ->  | BY203: =AY19 ->  | CE203: =AY20 ->  | CG203: =AY21 ->  | CI203: =AY22 ->  | CK203: =AY23 ->  | CQ203: =AY24 ->  | CS203: =AY25 ->  | CU203: =AY26 ->  | CW203: =AY27 ->  | DC203: =AY28 ->  | DE203: =AY29 ->  | DG203: =AY30 ->  | DI203: =AY31 ->  | DO203: =AY32 ->  | DQ203: =AY33 ->  | DS203: =AY34 ->  | DU203: =AY35 ->  | EA203: =AY36 ->  | EC203: =AY37 ->  | EE203: =AY38 ->  | EG203: =AY39 ->  | EM203: =AY40 ->  | EO203: =AY41 ->  | EQ203: =AY42 ->  | ES203: =AY43 ->  | EY203: =AY44 ->  | FA203: =AY45 ->  | FC203: =AY46 ->  | FE203: =AY47 ->  | FK203: =AY48 ->  | FM203: =AY49 ->  | FO203: =AY50 ->  | FQ203: =AY51 ->  | FW203: =AY52 ->  | FY203: =AY53 ->  | GA203: =AY54 ->  | GC203: =AY55 -> 
BG204: =AZ12 -> 0 | BI204: =AZ13 ->  | BK204: =AZ14 ->  | BM204: =AZ15 ->  | BS204: =AZ16 ->  | BU204: =AZ17 ->  | BW204: =AZ18 ->  | BY204: =AZ19 ->  | CE204: =AZ20 ->  | CG204: =AZ21 ->  | CI204: =AZ22 ->  | CK204: =AZ23 ->  | CQ204: =AZ24 ->  | CS204: =AZ25 ->  | CU204: =AZ26 ->  | CW204: =AZ27 ->  | DC204: =AZ28 ->  | DE204: =AZ29 ->  | DG204: =AZ30 ->  | DI204: =AZ31 ->  | DO204: =AZ32 ->  | DQ204: =AZ33 ->  | DS204: =AZ34 ->  | DU204: =AZ35 ->  | EA204: =AZ36 ->  | EC204: =AZ37 ->  | EE204: =AZ38 ->  | EG204: =AZ39 ->  | EM204: =AZ40 ->  | EO204: =AZ41 ->  | EQ204: =AZ42 ->  | ES204: =AZ43 ->  | EY204: =AZ44 ->  | FA204: =AZ45 ->  | FC204: =AZ46 ->  | FE204: =AZ47 ->  | FK204: =AZ48 ->  | FM204: =AZ49 ->  | FO204: =AZ50 ->  | FQ204: =AZ51 ->  | FW204: =AZ52 ->  | FY204: =AZ53 ->  | GA204: =AZ54 ->  | GC204: =AZ55 -> 
BG205: =BA12 -> 0 | BI205: =BA13 ->  | BK205: =BA14 ->  | BM205: =BA15 ->  | BS205: =BA16 ->  | BU205: =BA17 ->  | BW205: =BA18 ->  | BY205: =BA19 ->  | CE205: =BA20 ->  | CG205: =BA21 ->  | CI205: =BA22 ->  | CK205: =BA23 ->  | CQ205: =BA24 ->  | CS205: =BA25 ->  | CU205: =BA26 ->  | CW205: =BA27 ->  | DC205: =BA28 ->  | DE205: =BA29 ->  | DG205: =BA30 ->  | DI205: =BA31 ->  | DO205: =BA32 ->  | DQ205: =BA33 ->  | DS205: =BA34 ->  | DU205: =BA35 ->  | EA205: =BA36 ->  | EC205: =BA37 ->  | EE205: =BA38 ->  | EG205: =BA39 ->  | EM205: =BA40 ->  | EO205: =BA41 ->  | EQ205: =BA42 ->  | ES205: =BA43 ->  | EY205: =BA44 ->  | FA205: =BA45 ->  | FC205: =BA46 ->  | FE205: =BA47 ->  | FK205: =BA48 ->  | FM205: =BA49 ->  | FO205: =BA50 ->  | FQ205: =BA51 ->  | FW205: =BA52 ->  | FY205: =BA53 ->  | GA205: =BA54 ->  | GC205: =BA55 -> 
BG206: =BB12 -> 0 | BI206: =BB13 ->  | BK206: =BB14 ->  | BM206: =BB15 ->  | BS206: =BB16 ->  | BU206: =BB17 ->  | BW206: =BB18 ->  | BY206: =BB19 ->  | CE206: =BB20 ->  | CG206: =BB21 ->  | CI206: =BB22 ->  | CK206: =BB23 ->  | CQ206: =BB24 ->  | CS206: =BB25 ->  | CU206: =BB26 ->  | CW206: =BB27 ->  | DC206: =BB28 ->  | DE206: =BB29 ->  | DG206: =BB30 ->  | DI206: =BB31 ->  | DO206: =BB32 ->  | DQ206: =BB33 ->  | DS206: =BB34 ->  | DU206: =BB35 ->  | EA206: =BB36 ->  | EC206: =BB37 ->  | EE206: =BB38 ->  | EG206: =BB39 ->  | EM206: =BB40 ->  | EO206: =BB41 ->  | EQ206: =BB42 ->  | ES206: =BB43 ->  | EY206: =BB44 ->  | FA206: =BB45 ->  | FC206: =BB46 ->  | FE206: =BB47 ->  | FK206: =BB48 ->  | FM206: =BB49 ->  | FO206: =BB50 ->  | FQ206: =BB51 ->  | FW206: =BB52 ->  | FY206: =BB53 ->  | GA206: =BB54 ->  | GC206: =BB55 -> 
BG207: =BC12 -> 0 | BI207: =BC13 ->  | BK207: =BC14 ->  | BM207: =BC15 ->  | BS207: =BC16 ->  | BU207: =BC17 ->  | BW207: =BC18 ->  | BY207: =BC19 ->  | CE207: =BC20 ->  | CG207: =BC21 ->  | CI207: =BC22 ->  | CK207: =BC23 ->  | CQ207: =BC24 ->  | CS207: =BC25 ->  | CU207: =BC26 ->  | CW207: =BC27 ->  | DC207: =BC28 ->  | DE207: =BC29 ->  | DG207: =BC30 ->  | DI207: =BC31 ->  | DO207: =BC32 ->  | DQ207: =BC33 ->  | DS207: =BC34 ->  | DU207: =BC35 ->  | EA207: =BC36 ->  | EC207: =BC37 ->  | EE207: =BC38 ->  | EG207: =BC39 ->  | EM207: =BC40 ->  | EO207: =BC41 ->  | EQ207: =BC42 ->  | ES207: =BC43 ->  | EY207: =BC44 ->  | FA207: =BC45 ->  | FC207: =BC46 ->  | FE207: =BC47 ->  | FK207: =BC48 ->  | FM207: =BC49 ->  | FO207: =BC50 ->  | FQ207: =BC51 ->  | FW207: =BC52 ->  | FY207: =BC53 ->  | GA207: =BC54 ->  | GC207: =BC55 -> 
BG208: =BD12 -> 0 | BI208: =BD13 ->  | BK208: =BD14 ->  | BM208: =BD15 ->  | BS208: =BD16 ->  | BU208: =BD17 ->  | BW208: =BD18 ->  | BY208: =BD19 ->  | CE208: =BD20 ->  | CG208: =BD21 ->  | CI208: =BD22 ->  | CK208: =BD23 ->  | CQ208: =BD24 ->  | CS208: =BD25 ->  | CU208: =BD26 ->  | CW208: =BD27 ->  | DC208: =BD28 ->  | DE208: =BD29 ->  | DG208: =BD30 ->  | DI208: =BD31 ->  | DO208: =BD32 ->  | DQ208: =BD33 ->  | DS208: =BD34 ->  | DU208: =BD35 ->  | EA208: =BD36 ->  | EC208: =BD37 ->  | EE208: =BD38 ->  | EG208: =BD39 ->  | EM208: =BD40 ->  | EO208: =BD41 ->  | EQ208: =BD42 ->  | ES208: =BD43 ->  | EY208: =BD44 ->  | FA208: =BD45 ->  | FC208: =BD46 ->  | FE208: =BD47 ->  | FK208: =BD48 ->  | FM208: =BD49 ->  | FO208: =BD50 ->  | FQ208: =BD51 ->  | FW208: =BD52 ->  | FY208: =BD53 ->  | GA208: =BD54 ->  | GC208: =BD55 -> 
BG209: =BE12 -> 0 | BI209: =BE13 ->  | BK209: =BE14 ->  | BM209: =BE15 ->  | BS209: =BE16 ->  | BU209: =BE17 ->  | BW209: =BE18 ->  | BY209: =BE19 ->  | CE209: =BE20 ->  | CG209: =BE21 ->  | CI209: =BE22 ->  | CK209: =BE23 ->  | CQ209: =BE24 ->  | CS209: =BE25 ->  | CU209: =BE26 ->  | CW209: =BE27 ->  | DC209: =BE28 ->  | DE209: =BE29 ->  | DG209: =BE30 ->  | DI209: =BE31 ->  | DO209: =BE32 ->  | DQ209: =BE33 ->  | DS209: =BE34 ->  | DU209: =BE35 ->  | EA209: =BE36 ->  | EC209: =BE37 ->  | EE209: =BE38 ->  | EG209: =BE39 ->  | EM209: =BE40 ->  | EO209: =BE41 ->  | EQ209: =BE42 ->  | ES209: =BE43 ->  | EY209: =BE44 ->  | FA209: =BE45 ->  | FC209: =BE46 ->  | FE209: =BE47 ->  | FK209: =BE48 ->  | FM209: =BE49 ->  | FO209: =BE50 ->  | FQ209: =BE51 ->  | FW209: =BE52 ->  | FY209: =BE53 ->  | GA209: =BE54 ->  | GC209: =BE55 -> 
BG220: =AV56 ->  | BI220: =AV57 ->  | BK220: =AV58 ->  | BM220: =AV59 ->  | BS220: =AV60 ->  | BU220: =AV61 ->  | BW220: =AV62 ->  | BY220: =AV63 ->  | CE220: =AV64 ->  | CG220: =AV65 ->  | CI220: =AV66 ->  | CK220: =AV67 ->  | CQ220: =AV68 ->  | CS220: =AV69 ->  | CU220: =AV70 ->  | CW220: =AV71 ->  | DC220: =AV72 ->  | DE220: =AV73 ->  | DG220: =AV74 ->  | DI220: =AV75 ->  | DO220: =AV76 ->  | DQ220: =AV77 ->  | DS220: =AV78 ->  | DU220: =AV79 ->  | EA220: =AV80 ->  | EC220: =AV81 ->  | EE220: =AV82 ->  | EG220: =AV83 ->  | EM220: =AV84 ->  | EO220: =AV85 ->  | EQ220: =AV86 ->  | ES220: =AV87 ->  | EY220: =AV88 ->  | FA220: =AV89 ->  | FC220: =AV90 ->  | FE220: =AV91 ->  | FK220: =AV92 ->  | FM220: =AV93 ->  | FO220: =AV94 ->  | FQ220: =AV95 -> 
BG221: =AW56 ->  | BI221: =AW57 ->  | BK221: =AW58 ->  | BM221: =AW59 ->  | BS221: =AW60 ->  | BU221: =AW61 ->  | BW221: =AW62 ->  | BY221: =AW63 ->  | CE221: =AW64 ->  | CG221: =AW65 ->  | CI221: =AW66 ->  | CK221: =AW67 ->  | CQ221: =AW68 ->  | CS221: =AW69 ->  | CU221: =AW70 ->  | CW221: =AW71 ->  | DC221: =AW72 ->  | DE221: =AW73 ->  | DG221: =AW74 ->  | DI221: =AW75 ->  | DO221: =AW76 ->  | DQ221: =AW77 ->  | DS221: =AW78 ->  | DU221: =AW79 ->  | EA221: =AW80 ->  | EC221: =AW81 ->  | EE221: =AW82 ->  | EG221: =AW83 ->  | EM221: =AW84 ->  | EO221: =AW85 ->  | EQ221: =AW86 ->  | ES221: =AW87 ->  | EY221: =AW88 ->  | FA221: =AW89 ->  | FC221: =AW90 ->  | FE221: =AW91 ->  | FK221: =AW92 ->  | FM221: =AW93 ->  | FO221: =AW94 ->  | FQ221: =AW95 -> 
BG222: =AX56 ->  | BI222: =AX57 ->  | BK222: =AX58 ->  | BM222: =AX59 ->  | BS222: =AX60 ->  | BU222: =AX61 ->  | BW222: =AX62 ->  | BY222: =AX63 ->  | CE222: =AX64 ->  | CG222: =AX65 ->  | CI222: =AX66 ->  | CK222: =AX67 ->  | CQ222: =AX68 ->  | CS222: =AX69 ->  | CU222: =AX70 ->  | CW222: =AX71 ->  | DC222: =AX72 ->  | DE222: =AX73 ->  | DG222: =AX74 ->  | DI222: =AX75 ->  | DO222: =AX76 ->  | DQ222: =AX77 ->  | DS222: =AX78 ->  | DU222: =AX79 ->  | EA222: =AX80 ->  | EC222: =AX81 ->  | EE222: =AX82 ->  | EG222: =AX83 ->  | EM222: =AX84 ->  | EO222: =AX85 ->  | EQ222: =AX86 ->  | ES222: =AX87 ->  | EY222: =AX88 ->  | FA222: =AX89 ->  | FC222: =AX90 ->  | FE222: =AX91 ->  | FK222: =AX92 ->  | FM222: =AX93 ->  | FO222: =AX94 ->  | FQ222: =AX95 -> 
BG223: =AY56 ->  | BI223: =AY57 ->  | BK223: =AY58 ->  | BM223: =AY59 ->  | BS223: =AY60 ->  | BU223: =AY61 ->  | BW223: =AY62 ->  | BY223: =AY63 ->  | CE223: =AY64 ->  | CG223: =AY65 ->  | CI223: =AY66 ->  | CK223: =AY67 ->  | CQ223: =AY68 ->  | CS223: =AY69 ->  | CU223: =AY70 ->  | CW223: =AY71 ->  | DC223: =AY72 ->  | DE223: =AY73 ->  | DG223: =AY74 ->  | DI223: =AY75 ->  | DO223: =AY76 ->  | DQ223: =AY77 ->  | DS223: =AY78 ->  | DU223: =AY79 ->  | EA223: =AY80 ->  | EC223: =AY81 ->  | EE223: =AY82 ->  | EG223: =AY83 ->  | EM223: =AY84 ->  | EO223: =AY85 ->  | EQ223: =AY86 ->  | ES223: =AY87 ->  | EY223: =AY88 ->  | FA223: =AY89 ->  | FC223: =AY90 ->  | FE223: =AY91 ->  | FK223: =AY92 ->  | FM223: =AY93 ->  | FO223: =AY94 ->  | FQ223: =AY95 -> 
BG224: =AZ56 ->  | BI224: =AZ57 ->  | BK224: =AZ58 ->  | BM224: =AZ59 ->  | BS224: =AZ60 ->  | BU224: =AZ61 ->  | BW224: =AZ62 ->  | BY224: =AZ63 ->  | CE224: =AZ64 ->  | CG224: =AZ65 ->  | CI224: =AZ66 ->  | CK224: =AZ67 ->  | CQ224: =AZ68 ->  | CS224: =AZ69 ->  | CU224: =AZ70 ->  | CW224: =AZ71 ->  | DC224: =AZ72 ->  | DE224: =AZ73 ->  | DG224: =AZ74 ->  | DI224: =AZ75 ->  | DO224: =AZ76 ->  | DQ224: =AZ77 ->  | DS224: =AZ78 ->  | DU224: =AZ79 ->  | EA224: =AZ80 ->  | EC224: =AZ81 ->  | EE224: =AZ82 ->  | EG224: =AZ83 ->  | EM224: =AZ84 ->  | EO224: =AZ85 ->  | EQ224: =AZ86 ->  | ES224: =AZ87 ->  | EY224: =AZ88 ->  | FA224: =AZ89 ->  | FC224: =AZ90 ->  | FE224: =AZ91 ->  | FK224: =AZ92 ->  | FM224: =AZ93 ->  | FO224: =AZ94 ->  | FQ224: =AZ95 -> 
BG225: =BA56 ->  | BI225: =BA57 ->  | BK225: =BA58 ->  | BM225: =BA59 ->  | BS225: =BA60 ->  | BU225: =BA61 ->  | BW225: =BA62 ->  | BY225: =BA63 ->  | CE225: =BA64 ->  | CG225: =BA65 ->  | CI225: =BA66 ->  | CK225: =BA67 ->  | CQ225: =BA68 ->  | CS225: =BA69 ->  | CU225: =BA70 ->  | CW225: =BA71 ->  | DC225: =BA72 ->  | DE225: =BA73 ->  | DG225: =BA74 ->  | DI225: =BA75 ->  | DO225: =BA76 ->  | DQ225: =BA77 ->  | DS225: =BA78 ->  | DU225: =BA79 ->  | EA225: =BA80 ->  | EC225: =BA81 ->  | EE225: =BA82 ->  | EG225: =BA83 ->  | EM225: =BA84 ->  | EO225: =BA85 ->  | EQ225: =BA86 ->  | ES225: =BA87 ->  | EY225: =BA88 ->  | FA225: =BA89 ->  | FC225: =BA90 ->  | FE225: =BA91 ->  | FK225: =BA92 ->  | FM225: =BA93 ->  | FO225: =BA94 ->  | FQ225: =BA95 -> 
BG226: =BB56 ->  | BI226: =BB57 ->  | BK226: =BB58 ->  | BM226: =BB59 ->  | BS226: =BB60 ->  | BU226: =BB61 ->  | BW226: =BB62 ->  | BY226: =BB63 ->  | CE226: =BB64 ->  | CG226: =BB65 ->  | CI226: =BB66 ->  | CK226: =BB67 ->  | CQ226: =BB68 ->  | CS226: =BB69 ->  | CU226: =BB70 ->  | CW226: =BB71 ->  | DC226: =BB72 ->  | DE226: =BB73 ->  | DG226: =BB74 ->  | DI226: =BB75 ->  | DO226: =BB76 ->  | DQ226: =BB77 ->  | DS226: =BB78 ->  | DU226: =BB79 ->  | EA226: =BB80 ->  | EC226: =BB81 ->  | EE226: =BB82 ->  | EG226: =BB83 ->  | EM226: =BB84 ->  | EO226: =BB85 ->  | EQ226: =BB86 ->  | ES226: =BB87 ->  | EY226: =BB88 ->  | FA226: =BB89 ->  | FC226: =BB90 ->  | FE226: =BB91 ->  | FK226: =BB92 ->  | FM226: =BB93 ->  | FO226: =BB94 ->  | FQ226: =BB95 -> 
BG227: =BC56 ->  | BI227: =BC57 ->  | BK227: =BC58 ->  | BM227: =BC59 ->  | BS227: =BC60 ->  | BU227: =BC61 ->  | BW227: =BC62 ->  | BY227: =BC63 ->  | CE227: =BC64 ->  | CG227: =BC65 ->  | CI227: =BC66 ->  | CK227: =BC67 ->  | CQ227: =BC68 ->  | CS227: =BC69 ->  | CU227: =BC70 ->  | CW227: =BC71 ->  | DC227: =BC72 ->  | DE227: =BC73 ->  | DG227: =BC74 ->  | DI227: =BC75 ->  | DO227: =BC76 ->  | DQ227: =BC77 ->  | DS227: =BC78 ->  | DU227: =BC79 ->  | EA227: =BC80 ->  | EC227: =BC81 ->  | EE227: =BC82 ->  | EG227: =BC83 ->  | EM227: =BC84 ->  | EO227: =BC85 ->  | EQ227: =BC86 ->  | ES227: =BC87 ->  | EY227: =BC88 ->  | FA227: =BC89 ->  | FC227: =BC90 ->  | FE227: =BC91 ->  | FK227: =BC92 ->  | FM227: =BC93 ->  | FO227: =BC94 ->  | FQ227: =BC95 -> 
BG228: =BD56 ->  | BI228: =BD57 ->  | BK228: =BD58 ->  | BM228: =BD59 ->  | BS228: =BD60 ->  | BU228: =BD61 ->  | BW228: =BD62 ->  | BY228: =BD63 ->  | CE228: =BD64 ->  | CG228: =BD65 ->  | CI228: =BD66 ->  | CK228: =BD67 ->  | CQ228: =BD68 ->  | CS228: =BD69 ->  | CU228: =BD70 ->  | CW228: =BD71 ->  | DC228: =BD72 ->  | DE228: =BD73 ->  | DG228: =BD74 ->  | DI228: =BD75 ->  | DO228: =BD76 ->  | DQ228: =BD77 ->  | DS228: =BD78 ->  | DU228: =BD79 ->  | EA228: =BD80 ->  | EC228: =BD81 ->  | EE228: =BD82 ->  | EG228: =BD83 ->  | EM228: =BD84 ->  | EO228: =BD85 ->  | EQ228: =BD86 ->  | ES228: =BD87 ->  | EY228: =BD88 ->  | FA228: =BD89 ->  | FC228: =BD90 ->  | FE228: =BD91 ->  | FK228: =BD92 ->  | FM228: =BD93 ->  | FO228: =BD94 ->  | FQ228: =BD95 -> 
BG229: =BE56 ->  | BI229: =BE57 ->  | BK229: =BE58 ->  | BM229: =BE59 ->  | BS229: =BE60 ->  | BU229: =BE61 ->  | BW229: =BE62 ->  | BY229: =BE63 ->  | CE229: =BE64 ->  | CG229: =BE65 ->  | CI229: =BE66 ->  | CK229: =BE67 ->  | CQ229: =BE68 ->  | CS229: =BE69 ->  | CU229: =BE70 ->  | CW229: =BE71 ->  | DC229: =BE72 ->  | DE229: =BE73 ->  | DG229: =BE74 ->  | DI229: =BE75 ->  | DO229: =BE76 ->  | DQ229: =BE77 ->  | DS229: =BE78 ->  | DU229: =BE79 ->  | EA229: =BE80 ->  | EC229: =BE81 ->  | EE229: =BE82 ->  | EG229: =BE83 ->  | EM229: =BE84 ->  | EO229: =BE85 ->  | EQ229: =BE86 ->  | ES229: =BE87 ->  | EY229: =BE88 ->  | FA229: =BE89 ->  | FC229: =BE90 ->  | FE229: =BE91 ->  | FK229: =BE92 ->  | FM229: =BE93 ->  | FO229: =BE94 ->  | FQ229: =BE95 -> 

Sheet SUMMARY
A1: Rev.24Aug2015 | E1: =MDR!$CA$4 -> AFT Project | K1: 1 | M1: =+A1 -> Rev.24Aug2015 | Q1: =MDR!$CA$4 -> AFT Project | W1: 2 | Y1: =+M1 -> Rev.24Aug2015 | AC1: =MDR!$CA$4 -> AFT Project | AI1: 3 | AK1: =+Y1 -> Rev.24Aug2015 | AO1: =MDR!$CA$4 -> AFT Project | AU1: 4 | AW1: =+AK1 -> Rev.24Aug2015 | BA1: =MDR!$CA$4 -> AFT Project | BG1: 5 | BI1: =+AW1 -> Rev.24Aug2015 | BM1: =MDR!$CA$4 -> AFT Project | BS1: 6 | BU1: =+BI1 -> Rev.24Aug2015 | BY1: =MDR!$CA$4 -> AFT Project | CE1: 7 | CG1: =+BU1 -> Rev.24Aug2015 | CK1: =MDR!$CA$4 -> AFT Project | CQ1: 8 | CS1: =+CG1 -> Rev.24Aug2015 | CW1: =MDR!$CA$4 -> AFT Project | DC1: 9 | DE1: =+CS1 -> Rev.24Aug2015 | DI1: =MDR!$CA$4 -> AFT Project | DO1: 10 | DQ1: =+DE1 -> Rev.24Aug2015 | DU1: =MDR!$CA$4 -> AFT Project | EA1: 11 | EC1: =+DQ1 -> Rev.24Aug2015 | EG1: =MDR!$CA$4 -> AFT Project | EM1: 12 | EO1: =+EC1 -> Rev.24Aug2015 | ES1: =MDR!$CA$4 -> AFT Project | EY1: 13 | FA1: =+EO1 -> Rev.24Aug2015 | FE1: =MDR!$CA$4 -> AFT Project | FK1: 14 | FM1: =+FA1 -> Rev.24Aug2015 | FQ1: =MDR!$CA$4 -> AFT Project | FW1: 15 | FY1: =+FM1 -> Rev.24Aug2015 | GC1: =MDR!$CA$4 -> AFT Project | GI1: 16 | GK1: =+FY1 -> Rev.24Aug2015 | GO1: =MDR!$CA$4 -> AFT Project | GU1: 17 | GW1: =+GK1 -> Rev.24Aug2015 | HA1: =MDR!$CA$4 -> AFT Project | HG1: 18 | HI1: =+GW1 -> Rev.24Aug2015 | HM1: =MDR!$CA$4 -> AFT Project | HS1: 19 | HU1: =+HI1 -> Rev.24Aug2015 | HY1: =MDR!$CA$4 -> AFT Project | IE1: 20 | IG1: =+HU1 -> Rev.24Aug2015 | IK1: =MDR!$CA$4 -> AFT Project | IQ1: 21
B2: TEST SUMMARY SHEET - | G2: =MDR!BN43 -> GYRATORY DESIGN | N2: TEST SUMMARY SHEET - | S2: =G2 -> GYRATORY DESIGN | Z2: TEST SUMMARY SHEET - | AE2: =S2 -> GYRATORY DESIGN | AL2: TEST SUMMARY SHEET - | AQ2: =AE2 -> GYRATORY DESIGN | AX2: TEST SUMMARY SHEET - | BC2: =AQ2 -> GYRATORY DESIGN | BJ2: TEST SUMMARY SHEET - | BO2: =BC2 -> GYRATORY DESIGN | BV2: TEST SUMMARY SHEET - | CA2: =BO2 -> GYRATORY DESIGN | CH2: TEST SUMMARY SHEET - | CM2: =CA2 -> GYRATORY DESIGN | CT2: TEST SUMMARY SHEET - | CY2: =CM2 -> GYRATORY DESIGN | DF2: TEST SUMMARY SHEET - | DK2: =CY2 -> GYRATORY DESIGN | DR2: TEST SUMMARY SHEET - | DW2: =DK2 -> GYRATORY DESIGN | ED2: TEST SUMMARY SHEET - | EI2: =DW2 -> GYRATORY DESIGN | EP2: TEST SUMMARY SHEET - | EU2: =EI2 -> GYRATORY DESIGN | FB2: TEST SUMMARY SHEET - | FG2: =EU2 -> GYRATORY DESIGN | FN2: TEST SUMMARY SHEET - | FS2: =FG2 -> GYRATORY DESIGN | FZ2: TEST SUMMARY SHEET - | GE2: =FS2 -> GYRATORY DESIGN | GL2: TEST SUMMARY SHEET - | GQ2: =GE2 -> GYRATORY DESIGN | GX2: TEST SUMMARY SHEET - | HC2: =GQ2 -> GYRATORY DESIGN | HJ2: TEST SUMMARY SHEET - | HO2: =HC2 -> GYRATORY DESIGN | HV2: TEST SUMMARY SHEET - | IA2: =HO2 -> GYRATORY DESIGN | IH2: TEST SUMMARY SHEET - | IM2: =IA2 -> GYRATORY DESIGN
A3: Project/Plant | B3: =IF(MDR!B2="","",MDR!B2) ->  | H3: Mix Designation | J3: =IF(MDR!$T$6="","",MDR!$T$6) -> SPWEB340 | M3: Project/Plant | N3: =B3 ->  | T3: Mix Designation | V3: =IF(MDR!$T$6="","",MDR!$T$6) -> SPWEB340 | Y3: Project/Plant | Z3: =N3 ->  | AF3: Mix Designation | AH3: =IF(MDR!$T$6="","",MDR!$T$6) -> SPWEB340 | AK3: Project/Plant | AL3: =Z3 ->  | AR3: Mix Designation | AT3: =IF(MDR!$T$6="","",MDR!$T$6) -> SPWEB340 | AW3: Project/Plant | AX3: =AL3 ->  | BD3: Mix Designation | BF3: =IF(MDR!$T$6="","",MDR!$T$6) -> SPWEB340 | BI3: Project/Plant | BJ3: =AX3 ->  | BP3: Mix Designation | BR3: =IF(MDR!$T$6="","",MDR!$T$6) -> SPWEB340 | BU3: Project/Plant | BV3: =BJ3 ->  | CB3: Mix Designation | CD3: =IF(MDR!$T$6="","",MDR!$T$6) -> SPWEB340 | CG3: Project/Plant | CH3: =BV3 ->  | CN3: Mix Designation | CP3: =IF(MDR!$T$6="","",MDR!$T$6) -> SPWEB340 | CS3: Project/Plant | CT3: =CH3 ->  | CZ3: Mix Designation | DB3: =IF(MDR!$T$6="","",MDR!$T$6) -> SPWEB340 | DE3: Project/Plant | DF3: =CT3 ->  | DL3: Mix Designation | DN3: =IF(MDR!$T$6="","",MDR!$T$6) -> SPWEB340 | DQ3: Project/Plant | DR3: =DF3 ->  | DX3: Mix Designation | DZ3: =IF(MDR!$T$6="","",MDR!$T$6) -> SPWEB340 | EC3: Project/Plant | ED3: =DR3 ->  | EJ3: Mix Designation | EL3: =IF(MDR!$T$6="","",MDR!$T$6) -> SPWEB340 | EO3: Project/Plant | EP3: =ED3 ->  | EV3: Mix Designation | EX3: =IF(MDR!$T$6="","",MDR!$T$6) -> SPWEB340 | FA3: Project/Plant | FB3: =EP3 ->  | FH3: Mix Designation | FJ3: =IF(MDR!$T$6="","",MDR!$T$6) -> SPWEB340 | FM3: Project/Plant | FN3: =FB3 ->  | FT3: Mix Designation | FV3: =IF(MDR!$T$6="","",MDR!$T$6) -> SPWEB340 | FY3: Project/Plant | FZ3: =FN3 ->  | GF3: Mix Designation | GH3: =IF(MDR!$T$6="","",MDR!$T$6) -> SPWEB340 | GK3: Project/Plant | GL3: =FZ3 ->  | GR3: Mix Designation | GT3: =IF(MDR!$T$6="","",MDR!$T$6) -> SPWEB340 | GW3: Project/Plant | GX3: =GL3 ->  | HD3: Mix Designation | HF3: =IF(MDR!$T$6="","",MDR!$T$6) -> SPWEB340 | HI3: Project/Plant | HJ3: =GX3 ->  | HP3: Mix Designation | HR3: =IF(MDR!$T$6="","",MDR!$T$6) -> SPWEB340 | HU3: Project/Plant | HV3: =HJ3 ->  | IB3: Mix Designation | ID3: =IF(MDR!$T$6="","",MDR!$T$6) -> SPWEB340 | IG3: Project/Plant | IH3: =HV3 ->  | IN3: Mix Designation | IP3: =IF(MDR!$T$6="","",MDR!$T$6) -> SPWEB340
A4: Location | B4: =IF(MDR!B3="","",MDR!B3) ->  | H4: Course | J4: =IF(MDR!$Y$3="","",MDR!$Y$3) -> WE (Wear) - 4% Voids | M4: Location | N4: =B4 ->  | T4: Course | V4: =IF(MDR!$Y$3="","",MDR!$Y$3) -> WE (Wear) - 4% Voids | Y4: Location | Z4: =N4 ->  | AF4: Course | AH4: =IF(MDR!$Y$3="","",MDR!$Y$3) -> WE (Wear) - 4% Voids | AK4: Location | AL4: =Z4 ->  | AR4: Course | AT4: =IF(MDR!$Y$3="","",MDR!$Y$3) -> WE (Wear) - 4% Voids | AW4: Location | AX4: =AL4 ->  | BD4: Course | BF4: =IF(MDR!$Y$3="","",MDR!$Y$3) -> WE (Wear) - 4% Voids | BI4: Location | BJ4: =AX4 ->  | BP4: Course | BR4: =IF(MDR!$Y$3="","",MDR!$Y$3) -> WE (Wear) - 4% Voids | BU4: Location | BV4: =BJ4 ->  | CB4: Course | CD4: =IF(MDR!$Y$3="","",MDR!$Y$3) -> WE (Wear) - 4% Voids | CG4: Location | CH4: =BV4 ->  | CN4: Course | CP4: =IF(MDR!$Y$3="","",MDR!$Y$3) -> WE (Wear) - 4% Voids | CS4: Location | CT4: =CH4 ->  | CZ4: Course | DB4: =IF(MDR!$Y$3="","",MDR!$Y$3) -> WE (Wear) - 4% Voids | DE4: Location | DF4: =CT4 ->  | DL4: Course | DN4: =IF(MDR!$Y$3="","",MDR!$Y$3) -> WE (Wear) - 4% Voids | DQ4: Location | DR4: =DF4 ->  | DX4: Course | DZ4: =IF(MDR!$Y$3="","",MDR!$Y$3) -> WE (Wear) - 4% Voids | EC4: Location | ED4: =DR4 ->  | EJ4: Course | EL4: =IF(MDR!$Y$3="","",MDR!$Y$3) -> WE (Wear) - 4% Voids | EO4: Location | EP4: =ED4 ->  | EV4: Course | EX4: =IF(MDR!$Y$3="","",MDR!$Y$3) -> WE (Wear) - 4% Voids | FA4: Location | FB4: =EP4 ->  | FH4: Course | FJ4: =IF(MDR!$Y$3="","",MDR!$Y$3) -> WE (Wear) - 4% Voids | FM4: Location | FN4: =FB4 ->  | FT4: Course | FV4: =IF(MDR!$Y$3="","",MDR!$Y$3) -> WE (Wear) - 4% Voids | FY4: Location | FZ4: =FN4 ->  | GF4: Course | GH4: =IF(MDR!$Y$3="","",MDR!$Y$3) -> WE (Wear) - 4% Voids | GK4: Location | GL4: =FZ4 ->  | GR4: Course | GT4: =IF(MDR!$Y$3="","",MDR!$Y$3) -> WE (Wear) - 4% Voids | GW4: Location | GX4: =GL4 ->  | HD4: Course | HF4: =IF(MDR!$Y$3="","",MDR!$Y$3) -> WE (Wear) - 4% Voids | HI4: Location | HJ4: =GX4 ->  | HP4: Course | HR4: =IF(MDR!$Y$3="","",MDR!$Y$3) -> WE (Wear) - 4% Voids | HU4: Location | HV4: =HJ4 ->  | IB4: Course | ID4: =IF(MDR!$Y$3="","",MDR!$Y$3) -> WE (Wear) - 4% Voids | IG4: Location | IH4: =HV4 ->  | IN4: Course | IP4: =IF(MDR!$Y$3="","",MDR!$Y$3) -> WE (Wear) - 4% Voids
B6: SPEC. YEAR "2013-2015" | D6: Cont'r | E6: Agency | F6: Cont'r | G6: Agency | H6: Cont'r | I6: Agency | J6: Cont'r | K6: Agency | N6: =$B$6 -> SPEC. YEAR "2013-2015" | P6: Cont'r | Q6: Agency | R6: Cont'r | S6: Agency | T6: Cont'r | U6: Agency | V6: Cont'r | W6: Agency | Z6: =$B$6 -> SPEC. YEAR "2013-2015" | AB6: Cont'r | AC6: Agency | AD6: Cont'r | AE6: Agency | AF6: Cont'r | AG6: Agency | AH6: Cont'r | AI6: Agency | AL6: =$B$6 -> SPEC. YEAR "2013-2015" | AN6: Cont'r | AO6: Agency | AP6: Cont'r | AQ6: Agency | AR6: Cont'r | AS6: Agency | AT6: Cont'r | AU6: Agency | AX6: =$B$6 -> SPEC. YEAR "2013-2015" | AZ6: Cont'r | BA6: Agency | BB6: Cont'r | BC6: Agency | BD6: Cont'r | BE6: Agency | BF6: Cont'r | BG6: Agency | BJ6: =$B$6 -> SPEC. YEAR "2013-2015" | BL6: Cont'r | BM6: Agency | BN6: Cont'r | BO6: Agency | BP6: Cont'r | BQ6: Agency | BR6: Cont'r | BS6: Agency | BV6: =$B$6 -> SPEC. YEAR "2013-2015" | BX6: Cont'r | BY6: Agency | BZ6: Cont'r | CA6: Agency | CB6: Cont'r | CC6: Agency | CD6: Cont'r | CE6: Agency | CH6: =$B$6 -> SPEC. YEAR "2013-2015" | CJ6: Cont'r | CK6: Agency | CL6: Cont'r | CM6: Agency | CN6: Cont'r | CO6: Agency | CP6: Cont'r | CQ6: Agency | CT6: =$B$6 -> SPEC. YEAR "2013-2015" | CV6: Cont'r | CW6: Agency | CX6: Cont'r | CY6: Agency | CZ6: Cont'r | DA6: Agency | DB6: Cont'r | DC6: Agency | DF6: =$B$6 -> SPEC. YEAR "2013-2015" | DH6: Cont'r | DI6: Agency | DJ6: Cont'r | DK6: Agency | DL6: Cont'r | DM6: Agency | DN6: Cont'r | DO6: Agency | DR6: =$B$6 -> SPEC. YEAR "2013-2015" | DT6: Cont'r | DU6: Agency | DV6: Cont'r | DW6: Agency | DX6: Cont'r | DY6: Agency | DZ6: Cont'r | EA6: Agency | ED6: =$B$6 -> SPEC. YEAR "2013-2015" | EF6: Cont'r | EG6: Agency | EH6: Cont'r | EI6: Agency | EJ6: Cont'r | EK6: Agency | EL6: Cont'r | EM6: Agency | EP6: =$B$6 -> SPEC. YEAR "2013-2015" | ER6: Cont'r | ES6: Agency | ET6: Cont'r | EU6: Agency | EV6: Cont'r | EW6: Agency | EX6: Cont'r | EY6: Agency | FB6: =$B$6 -> SPEC. YEAR "2013-2015" | FD6: Cont'r | FE6: Agency | FF6: Cont'r | FG6: Agency | FH6: Cont'r | FI6: Agency | FJ6: Cont'r | FK6: Agency | FN6: =$B$6 -> SPEC. YEAR "2013-2015" | FP6: Cont'r | FQ6: Agency | FR6: Cont'r | FS6: Agency | FT6: Cont'r | FU6: Agency | FV6: Cont'r | FW6: Agency | FZ6: =$B$6 -> SPEC. YEAR "2013-2015" | GB6: Cont'r | GC6: Agency | GD6: Cont'r | GE6: Agency | GF6: Cont'r | GG6: Agency | GH6: Cont'r | GI6: Agency | GL6: =$B$6 -> SPEC. YEAR "2013-2015" | GN6: Cont'r | GO6: Agency | GP6: Cont'r | GQ6: Agency | GR6: Cont'r | GS6: Agency | GT6: Cont'r | GU6: Agency | GX6: =$B$6 -> SPEC. YEAR "2013-2015" | GZ6: Cont'r | HA6: Agency | HB6: Cont'r | HC6: Agency | HD6: Cont'r | HE6: Agency | HF6: Cont'r | HG6: Agency | HJ6: =$B$6 -> SPEC. YEAR "2013-2015" | HL6: Cont'r | HM6: Agency | HN6: Cont'r | HO6: Agency | HP6: Cont'r | HQ6: Agency | HR6: Cont'r | HS6: Agency | HV6: =$B$6 -> SPEC. YEAR "2013-2015" | HX6: Cont'r | HY6: Agency | HZ6: Cont'r | IA6: Agency | IB6: Cont'r | IC6: Agency | ID6: Cont'r | IE6: Agency | IH6: =$B$6 -> SPEC. YEAR "2013-2015" | IJ6: Cont'r | IK6: Agency | IL6: Cont'r | IM6: Agency | IN6: Cont'r | IO6: Agency | IP6: Cont'r | IQ6: Agency
C7: Test# | D7: 301 | F7: =D7+1 -> 302 | H7: =F7+1 -> 303 | J7: =H7+1 -> 304 | O7: Test# | P7: =J7+1 -> 305 | R7: =P7+1 -> 306 | T7: =R7+1 -> 307 | V7: =T7+1 -> 308 | AA7: Test# | AB7: =V7+1 -> 309 | AD7: =AB7+1 -> 310 | AF7: =AD7+1 -> 311 | AH7: =AF7+1 -> 312 | AM7: Test# | AN7: =AH7+1 -> 313 | AP7: =AN7+1 -> 314 | AR7: =AP7+1 -> 315 | AT7: =AR7+1 -> 316 | AY7: Test# | AZ7: =AT7+1 -> 317 | BB7: =AZ7+1 -> 318 | BD7: =BB7+1 -> 319 | BF7: =BD7+1 -> 320 | BK7: Test# | BL7: =BF7+1 -> 321 | BN7: =BL7+1 -> 322 | BP7: =BN7+1 -> 323 | BR7: =BP7+1 -> 324 | BW7: Test# | BX7: =BR7+1 -> 325 | BZ7: =BX7+1 -> 326 | CB7: =BZ7+1 -> 327 | CD7: =CB7+1 -> 328 | CI7: Test# | CJ7: =CD7+1 -> 329 | CL7: =CJ7+1 -> 330 | CN7: =CL7+1 -> 331 | CP7: =CN7+1 -> 332 | CU7: Test# | CV7: =CP7+1 -> 333 | CX7: =CV7+1 -> 334 | CZ7: =CX7+1 -> 335 | DB7: =CZ7+1 -> 336 | DG7: Test# | DH7: =DB7+1 -> 337 | DJ7: =DH7+1 -> 338 | DL7: =DJ7+1 -> 339 | DN7: =DL7+1 -> 340 | DS7: Test# | DT7: =DN7+1 -> 341 | DV7: =DT7+1 -> 342 | DX7: =DV7+1 -> 343 | DZ7: =DX7+1 -> 344 | EE7: Test# | EF7: =DZ7+1 -> 345 | EH7: =EF7+1 -> 346 | EJ7: =EH7+1 -> 347 | EL7: =EJ7+1 -> 348 | EQ7: Test# | ER7: =EL7+1 -> 349 | ET7: =ER7+1 -> 350 | EV7: =ET7+1 -> 351 | EX7: =EV7+1 -> 352 | FC7: Test# | FD7: =EX7+1 -> 353 | FF7: =FD7+1 -> 354 | FH7: =FF7+1 -> 355 | FJ7: =FH7+1 -> 356 | FO7: Test# | FP7: =FJ7+1 -> 357 | FR7: =FP7+1 -> 358 | FT7: =FR7+1 -> 359 | FV7: =FT7+1 -> 360 | GA7: Test# | GB7: =FV7+1 -> 361 | GD7: =GB7+1 -> 362 | GF7: =GD7+1 -> 363 | GH7: =GF7+1 -> 364 | GM7: Test# | GN7: =GH7+1 -> 365 | GP7: =GN7+1 -> 366 | GR7: =GP7+1 -> 367 | GT7: =GR7+1 -> 368 | GY7: Test# | GZ7: =GT7+1 -> 369 | HB7: =GZ7+1 -> 370 | HD7: =HB7+1 -> 371 | HF7: =HD7+1 -> 372 | HK7: Test# | HL7: =HF7+1 -> 373 | HN7: =HL7+1 -> 374 | HP7: =HN7+1 -> 375 | HR7: =HP7+1 -> 376 | HW7: Test# | HX7: =HR7+1 -> 377 | HZ7: =HX7+1 -> 378 | IB7: =HZ7+1 -> 379 | ID7: =IB7+1 -> 380 | II7: Test# | IJ7: =ID7+1 -> 381 | IL7: =IJ7+1 -> 382 | IN7: =IL7+1 -> 383 | IP7: =IN7+1 -> 384 | IV7: Verif.
C8: Date/Day: | F8: =D8 -> 0 | H8: =F8 -> 0 | J8: =IF(H8="","",H8) -> 0 | O8: Date/Day: | P8: =J8 -> 0 | R8: =P8 -> 0 | T8: =R8 -> 0 | V8: =T8 -> 0 | AA8: Date/Day: | AB8: =V8 -> 0 | AD8: =AB8 -> 0 | AF8: =AD8 -> 0 | AH8: =AF8 -> 0 | AM8: Date/Day: | AN8: =AH8 -> 0 | AP8: =AN8 -> 0 | AR8: =AP8 -> 0 | AT8: =AR8 -> 0 | AY8: Date/Day: | AZ8: =AT8 -> 0 | BB8: =AZ8 -> 0 | BD8: =BB8 -> 0 | BF8: =BD8 -> 0 | BK8: Date/Day: | BL8: =BF8 -> 0 | BN8: =BL8 -> 0 | BP8: =BN8 -> 0 | BR8: =BP8 -> 0 | BW8: Date/Day: | BX8: =BR8 -> 0 | BZ8: =BX8 -> 0 | CB8: =BZ8 -> 0 | CD8: =CB8 -> 0 | CI8: Date/Day: | CJ8: =CD8 -> 0 | CL8: =CJ8 -> 0 | CN8: =CL8 -> 0 | CP8: =CN8 -> 0 | CU8: Date/Day: | CV8: =CP8 -> 0 | CX8: =CV8 -> 0 | CZ8: =CX8 -> 0 | DB8: =CZ8 -> 0 | DG8: Date/Day: | DH8: =DB8 -> 0 | DJ8: =DH8 -> 0 | DL8: =DJ8 -> 0 | DN8: =DL8 -> 0 | DS8: Date/Day: | DT8: =DN8 -> 0 | DV8: =DT8 -> 0 | DX8: =DV8 -> 0 | DZ8: =DX8 -> 0 | EE8: Date/Day: | EF8: =DZ8 -> 0 | EH8: =EF8 -> 0 | EJ8: =EH8 -> 0 | EL8: =EJ8 -> 0 | EQ8: Date/Day: | ER8: =EL8 -> 0 | ET8: =ER8 -> 0 | EV8: =ET8 -> 0 | EX8: =EV8 -> 0 | FC8: Date/Day: | FD8: =EX8 -> 0 | FF8: =FD8 -> 0 | FH8: =FF8 -> 0 | FJ8: =FH8 -> 0 | FO8: Date/Day: | FP8: =FJ8 -> 0 | FR8: =FP8 -> 0 | FT8: =FR8 -> 0 | FV8: =FT8 -> 0 | GA8: Date/Day: | GB8: =FV8 -> 0 | GD8: =GB8 -> 0 | GF8: =GD8 -> 0 | GH8: =GF8 -> 0 | GM8: Date/Day: | GN8: =GH8 -> 0 | GP8: =GN8 -> 0 | GR8: =GP8 -> 0 | GT8: =GR8 -> 0 | GY8: Date/Day: | GZ8: =GX8 -> 0 | HB8: =GZ8 -> 0 | HD8: =HB8 -> 0 | HF8: =HD8 -> 0 | HK8: Date/Day: | HL8: =HF8 -> 0 | HN8: =HL8 -> 0 | HP8: =HN8 -> 0 | HR8: =HP8 -> 0 | HW8: Date/Day: | HX8: =HR8 -> 0 | HZ8: =HX8 -> 0 | IB8: =HZ8 -> 0 | ID8: =IB8 -> 0 | II8: Date/Day: | IJ8: =ID8 -> 0 | IL8: =IJ8 -> 0 | IN8: =IL8 -> 0 | IP8: =IN8 -> 0 | IW8: RAP in Mixture | IX8: RAS in Mixture
C9: MDR # | D9: =MDR!B12 -> 0 | F9: =MDR!B13 ->  | H9: =MDR!B14 ->  | J9: =MDR!B15 ->  | O9: MDR # | P9: =MDR!B16 ->  | R9: =MDR!B17 ->  | T9: =MDR!B18 ->  | V9: =MDR!B19 ->  | AA9: MDR # | AB9: =MDR!B20 ->  | AD9: =MDR!B21 ->  | AF9: =MDR!B22 ->  | AH9: =MDR!B23 ->  | AM9: MDR # | AN9: =MDR!B24 ->  | AP9: =MDR!B25 ->  | AR9: =MDR!B26 ->  | AT9: =MDR!B27 ->  | AY9: MDR # | AZ9: =MDR!B28 ->  | BB9: =MDR!B29 ->  | BD9: =MDR!B30 ->  | BF9: =MDR!B31 ->  | BK9: MDR # | BL9: =MDR!B32 ->  | BN9: =MDR!B33 ->  | BP9: =MDR!B34 ->  | BR9: =MDR!B35 ->  | BW9: MDR # | BX9: =MDR!B36 ->  | BZ9: =MDR!B37 ->  | CB9: =MDR!B38 ->  | CD9: =MDR!B39 ->  | CI9: MDR # | CJ9: =MDR!B40 ->  | CL9: =MDR!B41 ->  | CN9: =MDR!B42 ->  | CP9: =MDR!B43 ->  | CU9: MDR # | CV9: =MDR!B44 ->  | CX9: =MDR!B45 ->  | CZ9: =MDR!B46 ->  | DB9: =MDR!B47 ->  | DG9: MDR # | DH9: =MDR!B48 ->  | DJ9: =MDR!B49 ->  | DL9: =MDR!B50 ->  | DN9: =MDR!B51 ->  | DS9: MDR # | DT9: =MDR!B52 ->  | DV9: =MDR!B53 ->  | DX9: =MDR!B54 ->  | DZ9: =MDR!B55 ->  | EE9: MDR # | EF9: =MDR!B56 ->  | EH9: =MDR!B57 ->  | EJ9: =MDR!B58 ->  | EL9: =MDR!B59 ->  | EQ9: MDR # | ER9: =MDR!B60 ->  | ET9: =MDR!B61 ->  | EV9: =MDR!B62 ->  | EX9: =MDR!B63 ->  | FC9: MDR # | FD9: =MDR!B64 ->  | FF9: =MDR!B65 ->  | FH9: =MDR!B66 ->  | FJ9: =MDR!B67 ->  | FO9: MDR # | FP9: =MDR!B68 ->  | FR9: =MDR!B69 ->  | FT9: =MDR!B70 ->  | FV9: =MDR!B71 ->  | GA9: MDR # | GB9: =MDR!B72 ->  | GD9: =MDR!B73 ->  | GF9: =MDR!B74 ->  | GH9: =MDR!B75 ->  | GM9: MDR # | GN9: =MDR!B76 ->  | GP9: =MDR!B77 ->  | GR9: =MDR!B78 ->  | GT9: =MDR!B79 ->  | GY9: MDR # | GZ9: =MDR!B80 ->  | HB9: =MDR!B81 ->  | HD9: =MDR!B82 ->  | HF9: =MDR!B83 ->  | HK9: MDR # | HL9: =MDR!B84 ->  | HN9: =MDR!B85 ->  | HP9: =MDR!B86 ->  | HR9: =MDR!B87 ->  | HW9: MDR # | HX9: =MDR!B88 ->  | HZ9: =MDR!B89 ->  | IB9: =MDR!B90 ->  | ID9: =MDR!B91 ->  | II9: MDR # | IJ9: =MDR!B92 ->  | IL9: =MDR!B93 ->  | IN9: =MDR!B94 ->  | IP9: =MDR!B95 ->  | IW9: Choices | IX9: Choices
A10: - 4 Aggregate Bulk SpG.(Gsb) = | D10: =E144 ->  | F10: =G144 ->  | H10: =I144 ->  | J10: =K144 ->  | M10: - 4 Aggregate Bulk SpG.( Gsb ) = | P10: =Q144 ->  | R10: =S144 ->  | T10: =U144 ->  | V10: =W144 ->  | Y10: - 4 Aggregate Bulk SpG.( Gsb ) = | AB10: =AC144 ->  | AD10: =AE144 ->  | AF10: =AG144 ->  | AH10: =AI144 ->  | AK10: - 4 Aggregate Bulk SpG.( Gsb ) = | AN10: =AO144 ->  | AP10: =AQ144 ->  | AR10: =AS144 ->  | AT10: =AU144 ->  | AW10: - 4 Aggregate Bulk SpG.( Gsb ) = | AZ10: =BA144 ->  | BB10: =BC144 ->  | BD10: =BE144 ->  | BF10: =BG144 ->  | BI10: - 4 Aggregate Bulk SpG.( Gsb ) = | BL10: =BM144 ->  | BN10: =BO144 ->  | BP10: =BQ144 ->  | BR10: =BS144 ->  | BU10: - 4 Aggregate Bulk SpG.( Gsb ) = | BX10: =BY144 ->  | BZ10: =CA144 ->  | CB10: =CC144 ->  | CD10: =CE144 ->  | CG10: - 4 Aggregate Bulk SpG.( Gsb ) = | CJ10: =CK144 ->  | CL10: =CM144 ->  | CN10: =CO144 ->  | CP10: =CQ144 ->  | CS10: - 4 Aggregate Bulk SpG.( Gsb ) = | CV10: =CW144 ->  | CX10: =CY144 ->  | CZ10: =DA144 ->  | DB10: =DC144 ->  | DE10: - 4 Aggregate Bulk SpG.( Gsb ) = | DH10: =DI144 ->  | DJ10: =DK144 ->  | DL10: =DM144 ->  | DN10: =DO144 ->  | DQ10: - 4 Aggregate Bulk SpG.( Gsb ) = | DT10: =DU144 ->  | DV10: =DW144 ->  | DX10: =DY144 ->  | DZ10: =EA144 ->  | EC10: - 4 Aggregate Bulk SpG.( Gsb ) = | EF10: =EG144 ->  | EH10: =EI144 ->  | EJ10: =EK144 ->  | EL10: =EM144 ->  | EO10: - 4 Aggregate Bulk SpG.( Gsb ) = | ER10: =ES144 ->  | ET10: =EU144 ->  | EV10: =EW144 ->  | EX10: =EY144 ->  | FA10: - 4 Aggregate Bulk SpG.( Gsb ) = | FD10: =FE144 ->  | FF10: =FG144 ->  | FH10: =FI144 ->  | FJ10: =FK144 ->  | FM10: - 4 Aggregate Bulk SpG.( Gsb ) = | FP10: =FQ144 ->  | FR10: =FS144 ->  | FT10: =FU144 ->  | FV10: =FW144 ->  | FY10: - 4 Aggregate Bulk SpG.( Gsb ) = | GB10: =GC144 ->  | GD10: =GE144 ->  | GF10: =GG144 ->  | GH10: =GI144 ->  | GK10: - 4 Aggregate Bulk SpG.( Gsb ) = | GN10: =GO144 ->  | GP10: =GQ144 ->  | GR10: =GS144 ->  | GT10: =GU144 ->  | GW10: - 4 Aggregate Bulk SpG.( Gsb ) = | GZ10: =HA144 ->  | HB10: =HC144 ->  | HD10: =HE144 ->  | HF10: =HG144 ->  | HI10: - 4 Aggregate Bulk SpG.( Gsb ) = | HL10: =HM144 ->  | HN10: =HO144 ->  | HP10: =HQ144 ->  | HR10: =HS144 ->  | HU10: - 4 Aggregate Bulk SpG.( Gsb ) = | HX10: =HY144 ->  | HZ10: =IA144 ->  | IB10: =IC144 ->  | ID10: =IE144 ->  | IG10: - 4 Aggregate Bulk SpG.( Gsb ) = | IJ10: =IK144 ->  | IL10: =IM144 ->  | IN10: =IO144 ->  | IP10: =IQ144 -> 
A11: Mix Aggregate Bulk SpG.( Gsb ) = | D11: =E147 ->  | F11: =G147 ->  | H11: =I147 ->  | J11: =K147 ->  | N11: Mix Aggregate Bulk SpG.( Gsb ) = | P11: =Q147 ->  | R11: =S147 ->  | T11: =U147 ->  | V11: =W147 ->  | Z11: Mix Aggregate Bulk SpG.( Gsb ) = | AB11: =AC147 ->  | AD11: =AE147 ->  | AF11: =AG147 ->  | AH11: =AI147 ->  | AL11: Mix Aggregate Bulk SpG.( Gsb ) = | AN11: =AO147 ->  | AP11: =AQ147 ->  | AR11: =AS147 ->  | AT11: =AU147 ->  | AX11: Mix Aggregate Bulk SpG.( Gsb ) = | AZ11: =BA147 ->  | BB11: =BC147 ->  | BD11: =BE147 ->  | BF11: =BG147 ->  | BJ11: Mix Aggregate Bulk SpG.( Gsb ) = | BL11: =BM147 ->  | BN11: =BO147 ->  | BP11: =BQ147 ->  | BR11: =BS147 ->  | BV11: Mix Aggregate Bulk SpG.( Gsb ) = | BX11: =BY147 ->  | BZ11: =CA147 ->  | CB11: =CC147 ->  | CD11: =CE147 ->  | CH11: Mix Aggregate Bulk SpG.( Gsb ) = | CJ11: =CK147 ->  | CL11: =CM147 ->  | CN11: =CO147 ->  | CP11: =CQ147 ->  | CT11: Mix Aggregate Bulk SpG.( Gsb ) = | CV11: =CW147 ->  | CX11: =CY147 ->  | CZ11: =DA147 ->  | DB11: =DC147 ->  | DF11: Mix Aggregate Bulk SpG.( Gsb ) = | DH11: =DI147 ->  | DJ11: =DK147 ->  | DL11: =DM147 ->  | DN11: =DO147 ->  | DR11: Mix Aggregate Bulk SpG.( Gsb ) = | DT11: =DU147 ->  | DV11: =DW147 ->  | DX11: =DY147 ->  | DZ11: =EA147 ->  | ED11: Mix Aggregate Bulk SpG.( Gsb ) = | EF11: =EG147 ->  | EH11: =EI147 ->  | EJ11: =EK147 ->  | EL11: =EM147 ->  | EP11: Mix Aggregate Bulk SpG.( Gsb ) = | ER11: =ES147 ->  | ET11: =EU147 ->  | EV11: =EW147 ->  | EX11: =EY147 ->  | FB11: Mix Aggregate Bulk SpG.( Gsb ) = | FD11: =FE147 ->  | FF11: =FG147 ->  | FH11: =FI147 ->  | FJ11: =FK147 ->  | FN11: Mix Aggregate Bulk SpG.( Gsb ) = | FP11: =FQ147 ->  | FR11: =FS147 ->  | FT11: =FU147 ->  | FV11: =FW147 ->  | FZ11: Mix Aggregate Bulk SpG.( Gsb ) = | GB11: =GC147 ->  | GD11: =GE147 ->  | GF11: =GG147 ->  | GH11: =GI147 ->  | GL11: Mix Aggregate Bulk SpG.( Gsb ) = | GN11: =GO147 ->  | GP11: =GQ147 ->  | GR11: =GS147 ->  | GT11: =GU147 ->  | GX11: Mix Aggregate Bulk SpG.( Gsb ) = | GZ11: =HA147 ->  | HB11: =HC147 ->  | HD11: =HE147 ->  | HF11: =HG147 ->  | HJ11: Mix Aggregate Bulk SpG.( Gsb ) = | HL11: =HM147 ->  | HN11: =HO147 ->  | HP11: =HQ147 ->  | HR11: =HS147 ->  | HV11: Mix Aggregate Bulk SpG.( Gsb ) = | HX11: =HY147 ->  | HZ11: =IA147 ->  | IB11: =IC147 ->  | ID11: =IE147 ->  | IH11: Mix Aggregate Bulk SpG.( Gsb ) = | IJ11: =IK147 ->  | IL11: =IM147 ->  | IN11: =IO147 ->  | IP11: =IQ147 ->  | IT11: 0 | IU11: Agency AFT Substituted | IW11: Yes | IX11: No
A12: Project Number = | F12: =D12 -> 0 | H12: =F12 -> 0 | J12: =H12 -> 0 | M12: Project Number = | P12: =J12 -> 0 | R12: =P12 -> 0 | T12: =R12 -> 0 | V12: =T12 -> 0 | Y12: Project Number = | AB12: =V12 -> 0 | AD12: =AB12 -> 0 | AF12: =AD12 -> 0 | AH12: =AF12 -> 0 | AK12: Project Number = | AN12: =AH12 -> 0 | AP12: =AN12 -> 0 | AR12: =AP12 -> 0 | AT12: =AR12 -> 0 | AW12: Project Number = | AZ12: =AT12 -> 0 | BB12: =AZ12 -> 0 | BD12: =BB12 -> 0 | BF12: =BD12 -> 0 | BI12: Project Number = | BL12: =BF12 -> 0 | BN12: =BL12 -> 0 | BP12: =BN12 -> 0 | BR12: =BP12 -> 0 | BU12: Project Number = | BX12: =BR12 -> 0 | BZ12: =BX12 -> 0 | CB12: =BZ12 -> 0 | CD12: =CB12 -> 0 | CG12: Project Number = | CJ12: =CD12 -> 0 | CL12: =CJ12 -> 0 | CN12: =CL12 -> 0 | CP12: =CN12 -> 0 | CS12: Project Number = | CV12: =CP12 -> 0 | CX12: =CV12 -> 0 | CZ12: =CX12 -> 0 | DB12: =CZ12 -> 0 | DE12: Project Number = | DH12: =DB12 -> 0 | DJ12: =DH12 -> 0 | DL12: =DJ12 -> 0 | DN12: =DL12 -> 0 | DQ12: Project Number = | DT12: =DN12 -> 0 | DV12: =DT12 -> 0 | DX12: =DV12 -> 0 | DZ12: =DX12 -> 0 | EC12: Project Number = | EF12: =DZ12 -> 0 | EH12: =EF12 -> 0 | EJ12: =EH12 -> 0 | EL12: =EJ12 -> 0 | EO12: Project Number = | ER12: =EL12 -> 0 | ET12: =ER12 -> 0 | EV12: =ET12 -> 0 | EX12: =EV12 -> 0 | FA12: Project Number = | FD12: =EX12 -> 0 | FF12: =FD12 -> 0 | FH12: =FF12 -> 0 | FJ12: =FH12 -> 0 | FM12: Project Number = | FP12: =FJ12 -> 0 | FR12: =FP12 -> 0 | FT12: =FR12 -> 0 | FV12: =FT12 -> 0 | FY12: Project Number = | GB12: =FV12 -> 0 | GD12: =GB12 -> 0 | GF12: =GD12 -> 0 | GH12: =GF12 -> 0 | GK12: Project Number = | GN12: =GH12 -> 0 | GP12: =GN12 -> 0 | GR12: =GP12 -> 0 | GT12: =GR12 -> 0 | GW12: Project Number = | GZ12: =GT12 -> 0 | HB12: =GZ12 -> 0 | HD12: =HB12 -> 0 | HF12: =HD12 -> 0 | HI12: Project Number = | HL12: =HF12 -> 0 | HN12: =HL12 -> 0 | HP12: =HN12 -> 0 | HR12: =HP12 -> 0 | HU12: Project Number = | HX12: =HR12 -> 0 | HZ12: =HX12 -> 0 | IB12: =HZ12 -> 0 | ID12: =IB12 -> 0 | IG12: Project Number = | IJ12: =ID12 -> 0 | IL12: =IJ12 -> 0 | IN12: =IL12 -> 0 | IP12: =IN12 -> 0
A13: Ignition Oven Calibration Factor = | F13: 0 | H13: 0 | J13: 0 | M13: Ignition Oven Calibration Factor = | P13: 0 | R13: 0 | T13: 0 | V13: 0 | Y13: Ignition Oven Calibration Factor = | AB13: 0 | AD13: 0 | AF13: 0 | AH13: 0 | AK13: Ignition Oven Calibration Factor = | AN13: 0 | AP13: 0 | AR13: 0 | AT13: 0 | AW13: Ignition Oven Calibration Factor = | AZ13: 0 | BB13: 0 | BD13: 0 | BF13: 0 | BI13: Ignition Oven Calibration Factor = | BL13: 0 | BN13: 0 | BP13: 0 | BR13: 0 | BU13: Ignition Oven Calibration Factor = | BX13: 0 | BZ13: 0 | CB13: 0 | CD13: 0 | CG13: Ignition Oven Calibration Factor = | CJ13: 0 | CL13: 0 | CN13: 0 | CP13: 0 | CS13: Ignition Oven Calibration Factor = | CV13: 0 | CX13: 0 | CZ13: 0 | DB13: 0 | DE13: Ignition Oven Calibration Factor = | DH13: 0 | DJ13: 0 | DL13: 0 | DN13: 0 | DQ13: Ignition Oven Calibration Factor = | DT13: 0 | DV13: 0 | DX13: 0 | DZ13: 0 | EC13: Ignition Oven Calibration Factor = | EF13: 0 | EH13: 0 | EJ13: 0 | EL13: 0 | EO13: Ignition Oven Calibration Factor = | ER13: 0 | ET13: 0 | EV13: 0 | EX13: 0 | FA13: Ignition Oven Calibration Factor = | FD13: 0 | FF13: 0 | FH13: 0 | FJ13: 0 | FM13: Ignition Oven Calibration Factor = | FP13: 0 | FR13: 0 | FT13: 0 | FV13: 0 | FY13: Ignition Oven Calibration Factor = | GB13: 0 | GD13: 0 | GF13: 0 | GH13: 0 | GK13: Ignition Oven Calibration Factor = | GN13: 0 | GP13: 0 | GR13: 0 | GT13: 0 | GW13: Ignition Oven Calibration Factor = | GZ13: 0 | HB13: 0 | HD13: 0 | HF13: 0 | HI13: Ignition Oven Calibration Factor = | HL13: 0 | HN13: 0 | HP13: 0 | HR13: 0 | HU13: Ignition Oven Calibration Factor = | HX13: 0 | HZ13: 0 | IB13: 0 | ID13: 0 | IG13: Ignition Oven Calibration Factor = | IJ13: 0 | IL13: 0 | IN13: 0 | IP13: 0 | IT13: 0 | IU13: Agency AFT Substituted | IW13: No | IX13: Yes
A14: Asphalt Binder Grade | D14: B= PG 58-28 | F14: B= PG 58-28 | H14: B= PG 58-28 | J14: B= PG 58-28 | M14: Asphalt Binder Grade | P14: B= PG 58-28 | R14: B= PG 58-28 | T14: B= PG 58-28 | V14: B= PG 58-28 | Y14: Asphalt Binder Grade | AB14: B= PG 58-28 | AD14: B= PG 58-28 | AF14: B= PG 58-28 | AH14: B= PG 58-28 | AK14: Asphalt Binder Grade | AN14: B= PG 58-28 | AP14: B= PG 58-28 | AR14: B= PG 58-28 | AT14: B= PG 58-28 | AW14: Asphalt Binder Grade | AZ14: B= PG 58-28 | BB14: B= PG 58-28 | BD14: B= PG 58-28 | BF14: B= PG 58-28 | BI14: Asphalt Binder Grade | BL14: B= PG 58-28 | BN14: B= PG 58-28 | BP14: B= PG 58-28 | BR14: B= PG 58-28 | BU14: Asphalt Binder Grade | BX14: B= PG 58-28 | BZ14: B= PG 58-28 | CB14: B= PG 58-28 | CD14: B= PG 58-28 | CG14: Asphalt Binder Grade | CJ14: B= PG 58-28 | CL14: B= PG 58-28 | CN14: B= PG 58-28 | CP14: B= PG 58-28 | CR14: Asphalt Binder Grade | CS14: Asphalt Binder Grade | CV14: B= PG 58-28 | CX14: B= PG 58-28 | CZ14: B= PG 58-28 | DB14: B= PG 58-28 | DD14: Asphalt Binder Grade | DE14: Asphalt Binder Grade | DH14: B= PG 58-28 | DJ14: B= PG 58-28 | DL14: B= PG 58-28 | DN14: B= PG 58-28 | DP14: Asphalt Binder Grade | DQ14: Asphalt Binder Grade | DT14: B= PG 58-28 | DV14: B= PG 58-28 | DX14: B= PG 58-28 | DZ14: B= PG 58-28 | EC14: Asphalt Binder Grade | EF14: B= PG 58-28 | EH14: B= PG 58-28 | EJ14: B= PG 58-28 | EL14: B= PG 58-28 | EO14: Asphalt Binder Grade | ER14: B= PG 58-28 | ET14: B= PG 58-28 | EV14: B= PG 58-28 | EX14: B= PG 58-28 | FA14: Asphalt Binder Grade | FD14: B= PG 58-28 | FF14: B= PG 58-28 | FH14: B= PG 58-28 | FJ14: B= PG 58-28 | FM14: Asphalt Binder Grade | FP14: B= PG 58-28 | FR14: B= PG 58-28 | FT14: B= PG 58-28 | FV14: B= PG 58-28 | FY14: Asphalt Binder Grade | GB14: B= PG 58-28 | GD14: B= PG 58-28 | GF14: B= PG 58-28 | GH14: B= PG 58-28 | GK14: Asphalt Binder Grade | GN14: B= PG 58-28 | GP14: B= PG 58-28 | GR14: B= PG 58-28 | GT14: B= PG 58-28 | GW14: Asphalt Binder Grade | GZ14: B= PG 58-28 | HB14: B= PG 58-28 | HD14: B= PG 58-28 | HF14: B= PG 58-28 | HI14: Asphalt Binder Grade | HL14: B= PG 58-28 | HN14: B= PG 58-28 | HP14: B= PG 58-28 | HR14: B= PG 58-28 | HU14: Asphalt Binder Grade | HX14: B= PG 58-28 | HZ14: B= PG 58-28 | IB14: B= PG 58-28 | ID14: B= PG 58-28 | IG14: Asphalt Binder Grade | IJ14: B= PG 58-28 | IL14: A = PG 52-34 | IN14: B= PG 58-28 | IP14: B= PG 58-28
A15: RAP in Mixture? | D15: Yes | F15: Yes | H15: Yes | J15: Yes | M15: RAP in Mixture? | P15: Yes | R15: Yes | T15: Yes | V15: Yes | Y15: RAP in Mixture? | AB15: Yes | AD15: Yes | AF15: Yes | AH15: Yes | AK15: RAP in Mixture? | AN15: Yes | AP15: Yes | AR15: Yes | AT15: Yes | AW15: RAP in Mixture? | AZ15: Yes | BB15: Yes | BD15: Yes | BF15: Yes | BI15: RAP in Mixture? | BL15: Yes | BN15: Yes | BP15: Yes | BR15: Yes | BU15: RAP in Mixture? | BX15: Yes | BZ15: Yes | CB15: Yes | CD15: Yes | CG15: RAP in Mixture? | CJ15: Yes | CL15: Yes | CN15: Yes | CP15: Yes | CS15: RAP in Mixture? | CV15: Yes | CX15: Yes | CZ15: Yes | DB15: Yes | DE15: RAP in Mixture? | DH15: Yes | DJ15: Yes | DL15: Yes | DN15: Yes | DQ15: RAP in Mixture? | DT15: Yes | DV15: Yes | DX15: Yes | DZ15: Yes | EC15: RAP in Mixture? | EF15: Yes | EH15: Yes | EJ15: Yes | EL15: Yes | EO15: RAP in Mixture? | ER15: Yes | ET15: Yes | EV15: Yes | EX15: Yes | FA15: RAP in Mixture? | FD15: Yes | FF15: Yes | FH15: Yes | FJ15: Yes | FM15: RAP in Mixture? | FP15: Yes | FR15: Yes | FT15: Yes | FV15: Yes | FY15: RAP in Mixture? | GB15: Yes | GD15: Yes | GF15: Yes | GH15: Yes | GK15: RAP in Mixture? | GN15: Yes | GP15: Yes | GR15: Yes | GT15: Yes | GW15: RAP in Mixture? | GZ15: Yes | HB15: Yes | HD15: Yes | HF15: Yes | HI15: RAP in Mixture? | HL15: Yes | HN15: Yes | HP15: Yes | HR15: Yes | HU15: RAP in Mixture? | HX15: Yes | HZ15: Yes | IB15: Yes | ID15: Yes | IG15: RAP in Mixture? | IJ15: Yes | IL15: Yes | IN15: Yes | IP15: Yes
A16: Shingles (RAS) in Mixture? | D16: No | F16: No | H16: No | J16: No | M16: Shingles (RAS) in Mixture? | P16: No | R16: No | T16: No | V16: No | Y16: Shingles (RAS) in Mixture? | AB16: No | AD16: No | AF16: No | AH16: No | AK16: Shingles (RAS) in Mixture? | AN16: No | AP16: No | AR16: No | AT16: No | AW16: Shingles (RAS) in Mixture? | AZ16: No | BB16: No | BD16: No | BF16: No | BI16: Shingles (RAS) in Mixture? | BL16: No | BN16: No | BP16: No | BR16: No | BU16: Shingles (RAS) in Mixture? | BX16: No | BZ16: No | CB16: No | CD16: No | CG16: Shingles (RAS) in Mixture? | CJ16: No | CL16: No | CN16: No | CP16: No | CS16: Shingles (RAS) in Mixture? | CV16: No | CX16: No | CZ16: No | DB16: No | DE16: Shingles (RAS) in Mixture? | DH16: No | DJ16: No | DL16: No | DN16: No | DQ16: Shingles (RAS) in Mixture? | DT16: No | DV16: No | DX16: No | DZ16: No | EC16: Shingles (RAS) in Mixture? | EF16: No | EH16: No | EJ16: No | EL16: No | EO16: Shingles (RAS) in Mixture? | ER16: No | ET16: No | EV16: No | EX16: No | FA16: Shingles (RAS) in Mixture? | FD16: No | FF16: No | FH16: No | FJ16: No | FM16: Shingles (RAS) in Mixture? | FP16: No | FR16: No | FT16: No | FV16: No | FY16: Shingles (RAS) in Mixture? | GB16: No | GD16: No | GF16: No | GH16: No | GK16: Shingles (RAS) in Mixture? | GN16: No | GP16: No | GR16: No | GT16: No | GW16: Shingles (RAS) in Mixture? | GZ16: No | HB16: No | HD16: No | HF16: No | HI16: Shingles (RAS) in Mixture? | HL16: No | HN16: No | HP16: No | HR16: No | HU16: Shingles (RAS) in Mixture? | HX16: No | HZ16: No | IB16: No | ID16: No | IG16: Shingles (RAS) in Mixture? | IJ16: No | IL16: No | IN16: No | IP16: No
A17: ACsg (Asphalt Spec. Grav.) | F17: 0 | H17: 0 | J17: 0 | M17: ACsg (Asphalt Spec. Grav.) | P17: 0 | R17: 0 | T17: 0 | V17: 0 | Y17: ACsg (Asphalt Spec. Grav.) | AB17: 0 | AD17: 0 | AF17: 0 | AH17: 0 | AK17: ACsg (Asphalt Spec. Grav.) | AN17: 0 | AP17: 0 | AR17: 0 | AT17: 0 | AW17: ACsg (Asphalt Spec. Grav.) | AZ17: 0 | BB17: 0 | BD17: 0 | BF17: 0 | BI17: ACsg (Asphalt Spec. Grav.) | BL17: 0 | BN17: 0 | BP17: 0 | BR17: 0 | BU17: ACsg (Asphalt Spec. Grav.) | BX17: 0 | BZ17: 0 | CB17: 0 | CD17: 0 | CG17: ACsg (Asphalt Spec. Grav.) | CJ17: 0 | CL17: 0 | CN17: 0 | CP17: 0 | CS17: ACsg (Asphalt Spec. Grav.) | CV17: 0 | CX17: 0 | CZ17: 0 | DB17: 0 | DE17: ACsg (Asphalt Spec. Grav.) | DH17: 0 | DJ17: 0 | DL17: 0 | DN17: 0 | DQ17: ACsg (Asphalt Spec. Grav.) | DT17: 0 | DV17: 0 | DX17: 0 | DZ17: 0 | EC17: ACsg (Asphalt Spec. Grav.) | EF17: 0 | EH17: 0 | EJ17: 0 | EL17: 0 | EO17: ACsg (Asphalt Spec. Grav.) | ER17: 0 | ET17: 0 | EV17: 0 | EX17: 0 | FA17: ACsg (Asphalt Spec. Grav.) | FD17: 0 | FF17: 0 | FH17: 0 | FJ17: 0 | FM17: ACsg (Asphalt Spec. Grav.) | FP17: 0 | FR17: 0 | FT17: 0 | FV17: 0 | FY17: ACsg (Asphalt Spec. Grav.) | GB17: 0 | GD17: 0 | GF17: 0 | GH17: 0 | GK17: ACsg (Asphalt Spec. Grav.) | GN17: 0 | GP17: 0 | GR17: 0 | GT17: 0 | GW17: ACsg (Asphalt Spec. Grav.) | GZ17: 0 | HB17: 0 | HD17: 0 | HF17: 0 | HI17: ACsg (Asphalt Spec. Grav.) | HL17: 0 | HN17: 0 | HP17: 0 | HR17: 0 | HU17: ACsg (Asphalt Spec. Grav.) | HX17: 0 | HZ17: 0 | IB17: 0 | ID17: 0 | IG17: ACsg (Asphalt Spec. Grav.) | IJ17: 0 | IL17: 0 | IN17: 0 | IP17: 0
A18: 1" | B18: min. | C18: max. | M18: 1" | N18: min. | O18: max. | Y18: 1" | Z18: min. | AA18: max. | AK18: 1" | AL18: min. | AM18: max. | AW18: 1" | AX18: min. | AY18: max. | BI18: 1" | BJ18: min. | BK18: max. | BU18: 1" | BV18: min. | BW18: max. | CG18: 1" | CH18: min. | CI18: max. | CS18: 1" | CT18: min. | CU18: max. | DE18: 1" | DF18: min. | DG18: max. | DQ18: 1" | DR18: min. | DS18: max. | EC18: 1" | ED18: min. | EE18: max. | EO18: 1" | EP18: min. | EQ18: max. | FA18: 1" | FB18: min. | FC18: max. | FM18: 1" | FN18: min. | FO18: max. | FY18: 1" | FZ18: min. | GA18: max. | GK18: 1" | GL18: min. | GM18: max. | GW18: 1" | GX18: min. | GY18: max. | HI18: 1" | HJ18: min. | HK18: max. | HU18: 1" | HV18: min. | HW18: max. | IG18: 1" | IH18: min. | II18: max. | IT18: 0 | IU18: Agency AFT Substituted
A19: Mov Avg. | B19: 100 | C19: 100 | E19: =IF(E18="","",IF(OR(E18>(D18+6),E18<(D18-6)),"Tolerance","")) ->  | G19: =IF(G18="","",IF(OR(G18>(F18+6),G18<(F18-6)),"Tolerance","")) ->  | I19: =IF(I18="","",IF(OR(I18>(H18+6),I18<(H18-6)),"Tolerance","")) ->  | J19: =mndot_rounding_0(IF(D18="","",IF(F18="","",IF(H18="","",IF(J18="","",Grad!R14))))) ->  | K19: =IF(K18="","",IF(OR(K18>(J18+6),K18<(J18-6)),"Tolerance","")) ->  | M19: Mov Avg. | N19: 100 | O19: 100 | P19: =mndot_rounding_0(Grad!R15) ->  | Q19: =IF(Q18="","",IF(OR(Q18>(P18+6),Q18<(P18-6)),"Tolerance","")) ->  | R19: =mndot_rounding_0(Grad!R16) ->  | S19: =IF(S18="","",IF(OR(S18>(R18+6),S18<(R18-6)),"Tolerance","")) ->  | T19: =mndot_rounding_0(Grad!R17) ->  | U19: =IF(U18="","",IF(OR(U18>(T18+6),U18<(T18-6)),"Tolerance","")) ->  | V19: =mndot_rounding_0(Grad!R18) ->  | W19: =IF(W18="","",IF(OR(W18>(V18+6),W18<(V18-6)),"Tolerance","")) ->  | Y19: Mov Avg. | Z19: 100 | AA19: 100 | AB19: =mndot_rounding_0(Grad!$R19) ->  | AC19: =IF(AC18="","",IF(OR(AC18>(AB18+6),AC18<(AB18-6)),"Tolerance","")) ->  | AD19: =mndot_rounding_0(Grad!$R20) ->  | AE19: =IF(AE18="","",IF(OR(AE18>(AD18+6),AE18<(AD18-6)),"Tolerance","")) ->  | AF19: =mndot_rounding_0(Grad!$R21) ->  | AG19: =IF(AG18="","",IF(OR(AG18>(AF18+6),AG18<(AF18-6)),"Tolerance","")) ->  | AH19: =mndot_rounding_0(Grad!$R22) ->  | AI19: =IF(AI18="","",IF(OR(AI18>(AH18+6),AI18<(AH18-6)),"Tolerance","")) ->  | AK19: Mov Avg. | AL19: 100 | AM19: 100 | AN19: =mndot_rounding_0(Grad!$R23) ->  | AO19: =IF(AO18="","",IF(OR(AO18>(AN18+6),AO18<(AN18-6)),"Tolerance","")) ->  | AP19: =mndot_rounding_0(Grad!$R24) ->  | AQ19: =IF(AQ18="","",IF(OR(AQ18>(AP18+6),AQ18<(AP18-6)),"Tolerance","")) ->  | AR19: =mndot_rounding_0(Grad!$R25) ->  | AS19: =IF(AS18="","",IF(OR(AS18>(AR18+6),AS18<(AR18-6)),"Tolerance","")) ->  | AT19: =mndot_rounding_0(Grad!$R26) ->  | AU19: =IF(AU18="","",IF(OR(AU18>(AT18+6),AU18<(AT18-6)),"Tolerance","")) ->  | AW19: Mov Avg. | AX19: 100 | AY19: 100 | AZ19: =mndot_rounding_0(Grad!$R27) ->  | BA19: =IF(BA18="","",IF(OR(BA18>(AZ18+6),BA18<(AZ18-6)),"Tolerance","")) ->  | BB19: =mndot_rounding_0(Grad!$R28) ->  | BC19: =IF(BC18="","",IF(OR(BC18>(BB18+6),BC18<(BB18-6)),"Tolerance","")) ->  | BD19: =mndot_rounding_0(Grad!$R29) ->  | BE19: =IF(BE18="","",IF(OR(BE18>(BD18+6),BE18<(BD18-6)),"Tolerance","")) ->  | BF19: =mndot_rounding_0(Grad!$R30) ->  | BG19: =IF(BG18="","",IF(OR(BG18>(BF18+6),BG18<(BF18-6)),"Tolerance","")) ->  | BI19: Mov Avg. | BJ19: 100 | BK19: 100 | BL19: =mndot_rounding_0(Grad!$R31) ->  | BM19: =IF(BM18="","",IF(OR(BM18>(BL18+6),BM18<(BL18-6)),"Tolerance","")) ->  | BN19: =mndot_rounding_0(Grad!$R32) ->  | BO19: =IF(BO18="","",IF(OR(BO18>(BN18+6),BO18<(BN18-6)),"Tolerance","")) ->  | BP19: =mndot_rounding_0(Grad!$R33) ->  | BQ19: =IF(BQ18="","",IF(OR(BQ18>(BP18+6),BQ18<(BP18-6)),"Tolerance","")) ->  | BR19: =mndot_rounding_0(Grad!$R34) ->  | BS19: =IF(BS18="","",IF(OR(BS18>(BR18+6),BS18<(BR18-6)),"Tolerance","")) ->  | BU19: Mov Avg. | BV19: 100 | BW19: 100 | BX19: =mndot_rounding_0(Grad!$R35) ->  | BY19: =IF(BY18="","",IF(OR(BY18>(BX18+5),BY18<(BX18-5)),"Tolerance","")) ->  | BZ19: =mndot_rounding_0(Grad!$R36) ->  | CA19: =IF(CA18="","",IF(OR(CA18>(BZ18+5),CA18<(BZ18-5)),"Tolerance","")) ->  | CB19: =mndot_rounding_0(Grad!$R37) ->  | CC19: =IF(CC18="","",IF(OR(CC18>(CB18+5),CC18<(CB18-5)),"Tolerance","")) ->  | CD19: =mndot_rounding_0(Grad!$R38) ->  | CE19: =IF(CE18="","",IF(OR(CE18>(CD18+5),CE18<(CD18-5)),"Tolerance","")) ->  | CG19: Mov Avg. | CH19: 100 | CI19: 100 | CJ19: =mndot_rounding_0(Grad!$R39) ->  | CK19: =IF(CK18="","",IF(OR(CK18>(CJ18+5),CK18<(CJ18-5)),"Tolerance","")) ->  | CL19: =mndot_rounding_0(Grad!$R40) ->  | CM19: =IF(CM18="","",IF(OR(CM18>(CL18+5),CM18<(CL18-5)),"Tolerance","")) ->  | CN19: =mndot_rounding_0(Grad!$R41) ->  | CO19: =IF(CO18="","",IF(OR(CO18>(CN18+5),CO18<(CN18-5)),"Tolerance","")) ->  | CP19: =mndot_rounding_0(Grad!$R42) ->  | CQ19: =IF(CQ18="","",IF(OR(CQ18>(CP18+5),CQ18<(CP18-5)),"Tolerance","")) ->  | CS19: Mov Avg. | CT19: 100 | CU19: 100 | CV19: =mndot_rounding_0(Grad!$R43) ->  | CW19: =IF(CW18="","",IF(OR(CW18>(CV18+5),CW18<(CV18-5)),"Tolerance","")) ->  | CX19: =mndot_rounding_0(Grad!$R44) ->  | CY19: =IF(CY18="","",IF(OR(CY18>(CX18+5),CY18<(CX18-5)),"Tolerance","")) ->  | CZ19: =mndot_rounding_0(Grad!$R45) ->  | DA19: =IF(DA18="","",IF(OR(DA18>(CZ18+5),DA18<(CZ18-5)),"Tolerance","")) ->  | DB19: =mndot_rounding_0(Grad!$R46) ->  | DC19: =IF(DC18="","",IF(OR(DC18>(DB18+5),DC18<(DB18-5)),"Tolerance","")) ->  | DE19: Mov Avg. | DF19: 100 | DG19: 100 | DH19: =mndot_rounding_0(Grad!$R47) ->  | DI19: =IF(DI18="","",IF(OR(DI18>(DH18+5),DI18<(DH18-5)),"Tolerance","")) ->  | DJ19: =mndot_rounding_0(Grad!$R48) ->  | DK19: =IF(DK18="","",IF(OR(DK18>(DJ18+5),DK18<(DJ18-5)),"Tolerance","")) ->  | DL19: =mndot_rounding_0(Grad!$R49) ->  | DM19: =IF(DM18="","",IF(OR(DM18>(DL18+5),DM18<(DL18-5)),"Tolerance","")) ->  | DN19: =mndot_rounding_0(Grad!$R50) ->  | DO19: =IF(DO18="","",IF(OR(DO18>(DN18+5),DO18<(DN18-5)),"Tolerance","")) ->  | DQ19: Mov Avg. | DR19: 100 | DS19: 100 | DT19: =mndot_rounding_0(Grad!$R51) ->  | DU19: =IF(DU18="","",IF(OR(DU18>(DT18+5),DU18<(DT18-5)),"Tolerance","")) ->  | DV19: =mndot_rounding_0(Grad!$R52) ->  | DW19: =IF(DW18="","",IF(OR(DW18>(DV18+5),DW18<(DV18-5)),"Tolerance","")) ->  | DX19: =mndot_rounding_0(Grad!$R53) ->  | DY19: =IF(DY18="","",IF(OR(DY18>(DX18+5),DY18<(DX18-5)),"Tolerance","")) ->  | DZ19: =mndot_rounding_0(Grad!$R54) ->  | EA19: =IF(EA18="","",IF(OR(EA18>(DZ18+5),EA18<(DZ18-5)),"Tolerance","")) ->  | EC19: Mov Avg. | ED19: 100 | EE19: 100 | EF19: =mndot_rounding_0(Grad!$R55) ->  | EG19: =IF(EG18="","",IF(OR(EG18>(EF18+5),EG18<(EF18-5)),"Tolerance","")) ->  | EH19: =mndot_rounding_0(Grad!$R56) ->  | EI19: =IF(EI18="","",IF(OR(EI18>(EH18+5),EI18<(EH18-5)),"Tolerance","")) ->  | EJ19: =mndot_rounding_0(Grad!$R57) ->  | EK19: =IF(EK18="","",IF(OR(EK18>(EJ18+5),EK18<(EJ18-5)),"Tolerance","")) ->  | EL19: =mndot_rounding_0(Grad!$R58) ->  | EM19: =IF(EM18="","",IF(OR(EM18>(EL18+5),EM18<(EL18-5)),"Tolerance","")) ->  | EO19: Mov Avg. | EP19: 100 | EQ19: 100 | ER19: =mndot_rounding_0(Grad!$R59) ->  | ES19: =IF(ES18="","",IF(OR(ES18>(ER18+5),ES18<(ER18-5)),"Tolerance","")) ->  | ET19: =mndot_rounding_0(Grad!$R60) ->  | EU19: =IF(EU18="","",IF(OR(EU18>(ET18+5),EU18<(ET18-5)),"Tolerance","")) ->  | EV19: =mndot_rounding_0(Grad!$R61) ->  | EW19: =IF(EW18="","",IF(OR(EW18>(EV18+5),EW18<(EV18-5)),"Tolerance","")) ->  | EX19: =mndot_rounding_0(Grad!$R62) ->  | EY19: =IF(EY18="","",IF(OR(EY18>(EX18+5),EY18<(EX18-5)),"Tolerance","")) ->  | FA19: Mov Avg. | FB19: 100 | FC19: 100 | FD19: =mndot_rounding_0(Grad!$R63) ->  | FE19: =IF(FE18="","",IF(OR(FE18>(FD18+5),FE18<(FD18-5)),"Tolerance","")) ->  | FF19: =mndot_rounding_0(Grad!$R64) ->  | FG19: =IF(FG18="","",IF(OR(FG18>(FF18+5),FG18<(FF18-5)),"Tolerance","")) ->  | FH19: =mndot_rounding_0(Grad!$R65) ->  | FI19: =IF(FI18="","",IF(OR(FI18>(FH18+5),FI18<(FH18-5)),"Tolerance","")) ->  | FJ19: =mndot_rounding_0(Grad!$R66) ->  | FK19: =IF(FK18="","",IF(OR(FK18>(FJ18+5),FK18<(FJ18-5)),"Tolerance","")) ->  | FM19: Mov Avg. | FN19: 100 | FO19: 100 | FP19: =mndot_rounding_0(Grad!$R67) ->  | FQ19: =IF(FQ18="","",IF(OR(FQ18>(FP18+5),FQ18<(FP18-5)),"Tolerance","")) ->  | FR19: =mndot_rounding_0(Grad!$R68) ->  | FS19: =IF(FS18="","",IF(OR(FS18>(FR18+5),FS18<(FR18-5)),"Tolerance","")) ->  | FT19: =mndot_rounding_0(Grad!$R69) ->  | FU19: =IF(FU18="","",IF(OR(FU18>(FT18+5),FU18<(FT18-5)),"Tolerance","")) ->  | FV19: =mndot_rounding_0(Grad!$R70) ->  | FW19: =IF(FW18="","",IF(OR(FW18>(FV18+5),FW18<(FV18-5)),"Tolerance","")) ->  | FY19: Mov Avg. | FZ19: 100 | GA19: 100 | GB19: =mndot_rounding_0(Grad!$R71) ->  | GC19: =IF(GC18="","",IF(OR(GC18>(GB18+5),GC18<(GB18-5)),"Tolerance","")) ->  | GD19: =mndot_rounding_0(Grad!$R72) ->  | GE19: =IF(GE18="","",IF(OR(GE18>(GD18+5),GE18<(GD18-5)),"Tolerance","")) ->  | GF19: =mndot_rounding_0(Grad!$R73) ->  | GG19: =IF(GG18="","",IF(OR(GG18>(GF18+5),GG18<(GF18-5)),"Tolerance","")) ->  | GH19: =mndot_rounding_0(Grad!$R74) ->  | GI19: =IF(GI18="","",IF(OR(GI18>(GH18+5),GI18<(GH18-5)),"Tolerance","")) ->  | GK19: Mov Avg. | GL19: 100 | GM19: 100 | GN19: =mndot_rounding_0(Grad!$R75) ->  | GO19: =IF(GO18="","",IF(OR(GO18>(GN18+5),GO18<(GN18-5)),"Tolerance","")) ->  | GP19: =mndot_rounding_0(Grad!$R76) ->  | GQ19: =IF(GQ18="","",IF(OR(GQ18>(GP18+5),GQ18<(GP18-5)),"Tolerance","")) ->  | GR19: =mndot_rounding_0(Grad!$R77) ->  | GS19: =IF(GS18="","",IF(OR(GS18>(GR18+5),GS18<(GR18-5)),"Tolerance","")) ->  | GT19: =mndot_rounding_0(Grad!$R78) ->  | GU19: =IF(GU18="","",IF(OR(GU18>(GT18+5),GU18<(GT18-5)),"Tolerance","")) ->  | GW19: Mov Avg. | GX19: 100 | GY19: 100 | GZ19: =mndot_rounding_0(Grad!$R79) ->  | HA19: =IF(HA18="","",IF(OR(HA18>(GZ18+5),HA18<(GZ18-5)),"Tolerance","")) ->  | HB19: =mndot_rounding_0(Grad!$R80) ->  | HC19: =IF(HC18="","",IF(OR(HC18>(HB18+5),HC18<(HB18-5)),"Tolerance","")) ->  | HD19: =mndot_rounding_0(Grad!$R81) ->  | HE19: =IF(HE18="","",IF(OR(HE18>(HD18+5),HE18<(HD18-5)),"Tolerance","")) ->  | HF19: =mndot_rounding_0(Grad!$R82) ->  | HG19: =IF(HG18="","",IF(OR(HG18>(HF18+5),HG18<(HF18-5)),"Tolerance","")) ->  | HI19: Mov Avg. | HJ19: 100 | HK19: 100 | HL19: =mndot_rounding_0(Grad!$R83) ->  | HM19: =IF(HM18="","",IF(OR(HM18>(HL18+5),HM18<(HL18-5)),"Tolerance","")) ->  | HN19: =mndot_rounding_0(Grad!$R84) ->  | HO19: =IF(HO18="","",IF(OR(HO18>(HN18+5),HO18<(HN18-5)),"Tolerance","")) ->  | HP19: =mndot_rounding_0(Grad!$R85) ->  | HQ19: =IF(HQ18="","",IF(OR(HQ18>(HP18+5),HQ18<(HP18-5)),"Tolerance","")) ->  | HR19: =mndot_rounding_0(Grad!$R86) ->  | HS19: =IF(HS18="","",IF(OR(HS18>(HR18+5),HS18<(HR18-5)),"Tolerance","")) ->  | HU19: Mov Avg. | HV19: 100 | HW19: 100 | HX19: =mndot_rounding_0(Grad!$R87) ->  | HY19: =IF(HY18="","",IF(OR(HY18>(HX18+5),HY18<(HX18-5)),"Tolerance","")) ->  | HZ19: =mndot_rounding_0(Grad!$R88) ->  | IA19: =IF(IA18="","",IF(OR(IA18>(HZ18+5),IA18<(HZ18-5)),"Tolerance","")) ->  | IB19: =mndot_rounding_0(Grad!$R89) ->  | IC19: =IF(IC18="","",IF(OR(IC18>(IB18+5),IC18<(IB18-5)),"Tolerance","")) ->  | ID19: =mndot_rounding_0(Grad!$R90) ->  | IE19: =IF(IE18="","",IF(OR(IE18>(ID18+5),IE18<(ID18-5)),"Tolerance","")) ->  | IG19: Mov Avg. | IH19: 100 | II19: 100 | IJ19: =mndot_rounding_0(Grad!$R91) ->  | IK19: =IF(IK18="","",IF(OR(IK18>(IJ18+5),IK18<(IJ18-5)),"Tolerance","")) ->  | IL19: =mndot_rounding_0(Grad!$R92) ->  | IM19: =IF(IM18="","",IF(OR(IM18>(IL18+5),IM18<(IL18-5)),"Tolerance","")) ->  | IN19: =mndot_rounding_0(Grad!$R93) ->  | IO19: =IF(IO18="","",IF(OR(IO18>(IN18+5),IO18<(IN18-5)),"Tolerance","")) ->  | IP19: =mndot_rounding_0(Grad!$R94) ->  | IQ19: =IF(IQ18="","",IF(OR(IQ18>(IP18+5),IQ18<(IP18-5)),"Tolerance","")) ->  | IT19: 0 | IU19: Agency AFT Substituted | IW19: Asphalt Binder Grade
A20: 1" Calc. % | D20: =IF(D18="","",IF(E18="",D18,IF(OR(E18>(D18+6),E18<(D18-6)),E18,D18))) ->  | E20: =IF(E18="","",IF(OR(E18>(D18+6),E18<(D18-6)),"Agncy Repl.","")) ->  | F20: =IF(F18="","",IF(G18="",F18,IF(OR(G18>(F18+6),G18<(F18-6)),G18,F18))) ->  | G20: =IF(G18="","",IF(OR(G18>(F18+6),G18<(F18-6)),"Agncy Repl.","")) ->  | H20: =IF(H18="","",IF(I18="",H18,IF(OR(I18>(H18+6),I18<(H18-6)),I18,H18))) ->  | I20: =IF(I18="","",IF(OR(I18>(H18+6),I18<(H18-6)),"Agncy Repl.","")) ->  | J20: =IF(J18="","",IF(K18="",J18,IF(OR(K18>(J18+6),K18<(J18-6)),K18,J18))) ->  | K20: =IF(K18="","",IF(OR(K18>(J18+6),K18<(J18-6)),"Agncy Repl.","")) ->  | M20: Calc. % | P20: =IF(P18="","",IF(Q18="",P18,IF(OR(Q18>(P18+6),Q18<(P18-6)),Q18,P18))) ->  | Q20: =IF(Q18="","",IF(OR(Q18>(P18+6),Q18<(P18-6)),"Agncy Repl.","")) ->  | R20: =IF(R18="","",IF(S18="",R18,IF(OR(S18>(R18+6),S18<(R18-6)),S18,R18))) ->  | S20: =IF(S18="","",IF(OR(S18>(R18+6),S18<(R18-6)),"Agncy Repl.","")) ->  | T20: =IF(T18="","",IF(U18="",T18,IF(OR(U18>(T18+6),U18<(T18-6)),U18,T18))) ->  | U20: =IF(U18="","",IF(OR(U18>(T18+6),U18<(T18-6)),"Agncy Repl.","")) ->  | V20: =IF(V18="","",IF(W18="",V18,IF(OR(W18>(V18+6),W18<(V18-6)),W18,V18))) ->  | W20: =IF(W18="","",IF(OR(W18>(V18+6),W18<(V18-6)),"Agncy Repl.","")) ->  | Y20: Calc. % | AB20: =IF(AB18="","",IF(AC18="",AB18,IF(OR(AC18>(AB18+6),AC18<(AB18-6)),AC18,AB18))) ->  | AC20: =IF(AC18="","",IF(OR(AC18>(AB18+6),AC18<(AB18-6)),"Agncy Repl.","")) ->  | AD20: =IF(AD18="","",IF(AE18="",AD18,IF(OR(AE18>(AD18+6),AE18<(AD18-6)),AE18,AD18))) ->  | AE20: =IF(AE18="","",IF(OR(AE18>(AD18+6),AE18<(AD18-6)),"Agncy Repl.","")) ->  | AF20: =IF(AF18="","",IF(AG18="",AF18,IF(OR(AG18>(AF18+6),AG18<(AF18-6)),AG18,AF18))) ->  | AG20: =IF(AG18="","",IF(OR(AG18>(AF18+6),AG18<(AF18-6)),"Agncy Repl.","")) ->  | AH20: =IF(AH18="","",IF(AI18="",AH18,IF(OR(AI18>(AH18+6),AI18<(AH18-6)),AI18,AH18))) ->  | AI20: =IF(AI18="","",IF(OR(AI18>(AH18+6),AI18<(AH18-6)),"Agncy Repl.","")) ->  | AK20: Calc. % | AN20: =IF(AN18="","",IF(AO18="",AN18,IF(OR(AO18>(AN18+6),AO18<(AN18-6)),AO18,AN18))) ->  | AO20: =IF(AO18="","",IF(OR(AO18>(AN18+6),AO18<(AN18-6)),"Agncy Repl.","")) ->  | AP20: =IF(AP18="","",IF(AQ18="",AP18,IF(OR(AQ18>(AP18+6),AQ18<(AP18-6)),AQ18,AP18))) ->  | AQ20: =IF(AQ18="","",IF(OR(AQ18>(AP18+6),AQ18<(AP18-6)),"Agncy Repl.","")) ->  | AR20: =IF(AR18="","",IF(AS18="",AR18,IF(OR(AS18>(AR18+6),AS18<(AR18-6)),AS18,AR18))) ->  | AS20: =IF(AS18="","",IF(OR(AS18>(AR18+6),AS18<(AR18-6)),"Agncy Repl.","")) ->  | AT20: =IF(AT18="","",IF(AU18="",AT18,IF(OR(AU18>(AT18+6),AU18<(AT18-6)),AU18,AT18))) ->  | AU20: =IF(AU18="","",IF(OR(AU18>(AT18+6),AU18<(AT18-6)),"Agncy Repl.","")) ->  | AW20: Calc. % | AZ20: =IF(AZ18="","",IF(BA18="",AZ18,IF(OR(BA18>(AZ18+6),BA18<(AZ18-6)),BA18,AZ18))) ->  | BA20: =IF(BA18="","",IF(OR(BA18>(AZ18+6),BA18<(AZ18-6)),"Agncy Repl.","")) ->  | BB20: =IF(BB18="","",IF(BC18="",BB18,IF(OR(BC18>(BB18+6),BC18<(BB18-6)),BC18,BB18))) ->  | BC20: =IF(BC18="","",IF(OR(BC18>(BB18+6),BC18<(BB18-6)),"Agncy Repl.","")) ->  | BD20: =IF(BD18="","",IF(BE18="",BD18,IF(OR(BE18>(BD18+6),BE18<(BD18-6)),BE18,BD18))) ->  | BE20: =IF(BE18="","",IF(OR(BE18>(BD18+6),BE18<(BD18-6)),"Agncy Repl.","")) ->  | BF20: =IF(BF18="","",IF(BG18="",BF18,IF(OR(BG18>(BF18+6),BG18<(BF18-6)),BG18,BF18))) ->  | BG20: =IF(BG18="","",IF(OR(BG18>(BF18+6),BG18<(BF18-6)),"Agncy Repl.","")) ->  | BI20: Calc. % | BL20: =IF(BL18="","",IF(BM18="",BL18,IF(OR(BM18>(BL18+6),BM18<(BL18-6)),BM18,BL18))) ->  | BM20: =IF(BM18="","",IF(OR(BM18>(BL18+6),BM18<(BL18-6)),"Agncy Repl.","")) ->  | BN20: =IF(BN18="","",IF(BO18="",BN18,IF(OR(BO18>(BN18+6),BO18<(BN18-6)),BO18,BN18))) ->  | BO20: =IF(BO18="","",IF(OR(BO18>(BN18+6),BO18<(BN18-6)),"Agncy Repl.","")) ->  | BP20: =IF(BP18="","",IF(BQ18="",BP18,IF(OR(BQ18>(BP18+6),BQ18<(BP18-6)),BQ18,BP18))) ->  | BQ20: =IF(BQ18="","",IF(OR(BQ18>(BP18+6),BQ18<(BP18-6)),"Agncy Repl.","")) ->  | BR20: =IF(BR18="","",IF(BS18="",BR18,IF(OR(BS18>(BR18+6),BS18<(BR18-6)),BS18,BR18))) ->  | BS20: =IF(BS18="","",IF(OR(BS18>(BR18+6),BS18<(BR18-6)),"Agncy Repl.","")) ->  | BU20: Calc. % | BX20: =IF(BX18="","",IF(BY18="",BX18,IF(OR(BY18>(BX18+6),BY18<(BX18-6)),BY18,BX18))) ->  | BY20: =IF(BY18="","",IF(OR(BY18>(BX18+6),BY18<(BX18-6)),"Agncy Repl.","")) ->  | BZ20: =IF(BZ18="","",IF(CA18="",BZ18,IF(OR(CA18>(BZ18+6),CA18<(BZ18-6)),CA18,BZ18))) ->  | CA20: =IF(CA18="","",IF(OR(CA18>(BZ18+6),CA18<(BZ18-6)),"Agncy Repl.","")) ->  | CB20: =IF(CB18="","",IF(CC18="",CB18,IF(OR(CC18>(CB18+6),CC18<(CB18-6)),CC18,CB18))) ->  | CC20: =IF(CC18="","",IF(OR(CC18>(CB18+6),CC18<(CB18-6)),"Agncy Repl.","")) ->  | CD20: =IF(CD18="","",IF(CE18="",CD18,IF(OR(CE18>(CD18+6),CE18<(CD18-6)),CE18,CD18))) ->  | CE20: =IF(CE18="","",IF(OR(CE18>(CD18+6),CE18<(CD18-6)),"Agncy Repl.","")) ->  | CG20: Calc. % | CJ20: =IF(CJ18="","",IF(CK18="",CJ18,IF(OR(CK18>(CJ18+6),CK18<(CJ18-6)),CK18,CJ18))) ->  | CK20: =IF(CK18="","",IF(OR(CK18>(CJ18+6),CK18<(CJ18-6)),"Agncy Repl.","")) ->  | CL20: =IF(CL18="","",IF(CM18="",CL18,IF(OR(CM18>(CL18+6),CM18<(CL18-6)),CM18,CL18))) ->  | CM20: =IF(CM18="","",IF(OR(CM18>(CL18+6),CM18<(CL18-6)),"Agncy Repl.","")) ->  | CN20: =IF(CN18="","",IF(CO18="",CN18,IF(OR(CO18>(CN18+6),CO18<(CN18-6)),CO18,CN18))) ->  | CO20: =IF(CO18="","",IF(OR(CO18>(CN18+6),CO18<(CN18-6)),"Agncy Repl.","")) ->  | CP20: =IF(CP18="","",IF(CQ18="",CP18,IF(OR(CQ18>(CP18+6),CQ18<(CP18-6)),CQ18,CP18))) ->  | CQ20: =IF(CQ18="","",IF(OR(CQ18>(CP18+6),CQ18<(CP18-6)),"Agncy Repl.","")) ->  | CS20: Calc. % | CV20: =IF(CV18="","",IF(CW18="",CV18,IF(OR(CW18>(CV18+6),CW18<(CV18-6)),CW18,CV18))) ->  | CW20: =IF(CW18="","",IF(OR(CW18>(CV18+6),CW18<(CV18-6)),"Agncy Repl.","")) ->  | CX20: =IF(CX18="","",IF(CY18="",CX18,IF(OR(CY18>(CX18+6),CY18<(CX18-6)),CY18,CX18))) ->  | CY20: =IF(CY18="","",IF(OR(CY18>(CX18+6),CY18<(CX18-6)),"Agncy Repl.","")) ->  | CZ20: =IF(CZ18="","",IF(DA18="",CZ18,IF(OR(DA18>(CZ18+6),DA18<(CZ18-6)),DA18,CZ18))) ->  | DA20: =IF(DA18="","",IF(OR(DA18>(CZ18+6),DA18<(CZ18-6)),"Agncy Repl.","")) ->  | DB20: =IF(DB18="","",IF(DC18="",DB18,IF(OR(DC18>(DB18+6),DC18<(DB18-6)),DC18,DB18))) ->  | DC20: =IF(DC18="","",IF(OR(DC18>(DB18+6),DC18<(DB18-6)),"Agncy Repl.","")) ->  | DE20: Calc. % | DH20: =IF(DH18="","",IF(DI18="",DH18,IF(OR(DI18>(DH18+6),DI18<(DH18-6)),DI18,DH18))) ->  | DI20: =IF(DI18="","",IF(OR(DI18>(DH18+6),DI18<(DH18-6)),"Agncy Repl.","")) ->  | DJ20: =IF(DJ18="","",IF(DK18="",DJ18,IF(OR(DK18>(DJ18+6),DK18<(DJ18-6)),DK18,DJ18))) ->  | DK20: =IF(DK18="","",IF(OR(DK18>(DJ18+6),DK18<(DJ18-6)),"Agncy Repl.","")) ->  | DL20: =IF(DL18="","",IF(DM18="",DL18,IF(OR(DM18>(DL18+6),DM18<(DL18-6)),DM18,DL18))) ->  | DM20: =IF(DM18="","",IF(OR(DM18>(DL18+6),DM18<(DL18-6)),"Agncy Repl.","")) ->  | DN20: =IF(DN18="","",IF(DO18="",DN18,IF(OR(DO18>(DN18+6),DO18<(DN18-6)),DO18,DN18))) ->  | DO20: =IF(DO18="","",IF(OR(DO18>(DN18+6),DO18<(DN18-6)),"Agncy Repl.","")) ->  | DQ20: Calc. % | DT20: =IF(DT18="","",IF(DU18="",DT18,IF(OR(DU18>(DT18+6),DU18<(DT18-6)),DU18,DT18))) ->  | DU20: =IF(DU18="","",IF(OR(DU18>(DT18+6),DU18<(DT18-6)),"Agncy Repl.","")) ->  | DV20: =IF(DV18="","",IF(DW18="",DV18,IF(OR(DW18>(DV18+6),DW18<(DV18-6)),DW18,DV18))) ->  | DW20: =IF(DW18="","",IF(OR(DW18>(DV18+6),DW18<(DV18-6)),"Agncy Repl.","")) ->  | DX20: =IF(DX18="","",IF(DY18="",DX18,IF(OR(DY18>(DX18+6),DY18<(DX18-6)),DY18,DX18))) ->  | DY20: =IF(DY18="","",IF(OR(DY18>(DX18+6),DY18<(DX18-6)),"Agncy Repl.","")) ->  | DZ20: =IF(DZ18="","",IF(EA18="",DZ18,IF(OR(EA18>(DZ18+6),EA18<(DZ18-6)),EA18,DZ18))) ->  | EA20: =IF(EA18="","",IF(OR(EA18>(DZ18+6),EA18<(DZ18-6)),"Agncy Repl.","")) ->  | EC20: Calc. % | EF20: =IF(EF18="","",IF(EG18="",EF18,IF(OR(EG18>(EF18+6),EG18<(EF18-6)),EG18,EF18))) ->  | EG20: =IF(EG18="","",IF(OR(EG18>(EF18+6),EG18<(EF18-6)),"Agncy Repl.","")) ->  | EH20: =IF(EH18="","",IF(EI18="",EH18,IF(OR(EI18>(EH18+6),EI18<(EH18-6)),EI18,EH18))) ->  | EI20: =IF(EI18="","",IF(OR(EI18>(EH18+6),EI18<(EH18-6)),"Agncy Repl.","")) ->  | EJ20: =IF(EJ18="","",IF(EK18="",EJ18,IF(OR(EK18>(EJ18+6),EK18<(EJ18-6)),EK18,EJ18))) ->  | EK20: =IF(EK18="","",IF(OR(EK18>(EJ18+6),EK18<(EJ18-6)),"Agncy Repl.","")) ->  | EL20: =IF(EL18="","",IF(EM18="",EL18,IF(OR(EM18>(EL18+6),EM18<(EL18-6)),EM18,EL18))) ->  | EM20: =IF(EM18="","",IF(OR(EM18>(EL18+6),EM18<(EL18-6)),"Agncy Repl.","")) ->  | EO20: Calc. % | ER20: =IF(ER18="","",IF(ES18="",ER18,IF(OR(ES18>(ER18+6),ES18<(ER18-6)),ES18,ER18))) ->  | ES20: =IF(ES18="","",IF(OR(ES18>(ER18+6),ES18<(ER18-6)),"Agncy Repl.","")) ->  | ET20: =IF(ET18="","",IF(EU18="",ET18,IF(OR(EU18>(ET18+6),EU18<(ET18-6)),EU18,ET18))) ->  | EU20: =IF(EU18="","",IF(OR(EU18>(ET18+6),EU18<(ET18-6)),"Agncy Repl.","")) ->  | EV20: =IF(EV18="","",IF(EW18="",EV18,IF(OR(EW18>(EV18+6),EW18<(EV18-6)),EW18,EV18))) ->  | EW20: =IF(EW18="","",IF(OR(EW18>(EV18+6),EW18<(EV18-6)),"Agncy Repl.","")) ->  | EX20: =IF(EX18="","",IF(EY18="",EX18,IF(OR(EY18>(EX18+6),EY18<(EX18-6)),EY18,EX18))) ->  | EY20: =IF(EY18="","",IF(OR(EY18>(EX18+6),EY18<(EX18-6)),"Agncy Repl.","")) ->  | FA20: Calc. % | FD20: =IF(FD18="","",IF(FE18="",FD18,IF(OR(FE18>(FD18+6),FE18<(FD18-6)),FE18,FD18))) ->  | FE20: =IF(FE18="","",IF(OR(FE18>(FD18+6),FE18<(FD18-6)),"Agncy Repl.","")) ->  | FF20: =IF(FF18="","",IF(FG18="",FF18,IF(OR(FG18>(FF18+6),FG18<(FF18-6)),FG18,FF18))) ->  | FG20: =IF(FG18="","",IF(OR(FG18>(FF18+6),FG18<(FF18-6)),"Agncy Repl.","")) ->  | FH20: =IF(FH18="","",IF(FI18="",FH18,IF(OR(FI18>(FH18+6),FI18<(FH18-6)),FI18,FH18))) ->  | FI20: =IF(FI18="","",IF(OR(FI18>(FH18+6),FI18<(FH18-6)),"Agncy Repl.","")) ->  | FJ20: =IF(FJ18="","",IF(FK18="",FJ18,IF(OR(FK18>(FJ18+6),FK18<(FJ18-6)),FK18,FJ18))) ->  | FK20: =IF(FK18="","",IF(OR(FK18>(FJ18+6),FK18<(FJ18-6)),"Agncy Repl.","")) ->  | FM20: Calc. % | FP20: =IF(FP18="","",IF(FQ18="",FP18,IF(OR(FQ18>(FP18+6),FQ18<(FP18-6)),FQ18,FP18))) ->  | FQ20: =IF(FQ18="","",IF(OR(FQ18>(FP18+6),FQ18<(FP18-6)),"Agncy Repl.","")) ->  | FR20: =IF(FR18="","",IF(FS18="",FR18,IF(OR(FS18>(FR18+6),FS18<(FR18-6)),FS18,FR18))) ->  | FS20: =IF(FS18="","",IF(OR(FS18>(FR18+6),FS18<(FR18-6)),"Agncy Repl.","")) ->  | FT20: =IF(FT18="","",IF(FU18="",FT18,IF(OR(FU18>(FT18+6),FU18<(FT18-6)),FU18,FT18))) ->  | FU20: =IF(FU18="","",IF(OR(FU18>(FT18+6),FU18<(FT18-6)),"Agncy Repl.","")) ->  | FV20: =IF(FV18="","",IF(FW18="",FV18,IF(OR(FW18>(FV18+6),FW18<(FV18-6)),FW18,FV18))) ->  | FW20: =IF(FW18="","",IF(OR(FW18>(FV18+6),FW18<(FV18-6)),"Agncy Repl.","")) ->  | FY20: Calc. % | GB20: =IF(GB18="","",IF(GC18="",GB18,IF(OR(GC18>(GB18+6),GC18<(GB18-6)),GC18,GB18))) ->  | GC20: =IF(GC18="","",IF(OR(GC18>(GB18+6),GC18<(GB18-6)),"Agncy Repl.","")) ->  | GD20: =IF(GD18="","",IF(GE18="",GD18,IF(OR(GE18>(GD18+6),GE18<(GD18-6)),GE18,GD18))) ->  | GE20: =IF(GE18="","",IF(OR(GE18>(GD18+6),GE18<(GD18-6)),"Agncy Repl.","")) ->  | GF20: =IF(GF18="","",IF(GG18="",GF18,IF(OR(GG18>(GF18+6),GG18<(GF18-6)),GG18,GF18))) ->  | GG20: =IF(GG18="","",IF(OR(GG18>(GF18+6),GG18<(GF18-6)),"Agncy Repl.","")) ->  | GH20: =IF(GH18="","",IF(GI18="",GH18,IF(OR(GI18>(GH18+6),GI18<(GH18-6)),GI18,GH18))) ->  | GI20: =IF(GI18="","",IF(OR(GI18>(GH18+6),GI18<(GH18-6)),"Agncy Repl.","")) ->  | GK20: Calc. % | GN20: =IF(GN18="","",IF(GO18="",GN18,IF(OR(GO18>(GN18+6),GO18<(GN18-6)),GO18,GN18))) ->  | GO20: =IF(GO18="","",IF(OR(GO18>(GN18+6),GO18<(GN18-6)),"Agncy Repl.","")) ->  | GP20: =IF(GP18="","",IF(GQ18="",GP18,IF(OR(GQ18>(GP18+6),GQ18<(GP18-6)),GQ18,GP18))) ->  | GQ20: =IF(GQ18="","",IF(OR(GQ18>(GP18+6),GQ18<(GP18-6)),"Agncy Repl.","")) ->  | GR20: =IF(GR18="","",IF(GS18="",GR18,IF(OR(GS18>(GR18+6),GS18<(GR18-6)),GS18,GR18))) ->  | GS20: =IF(GS18="","",IF(OR(GS18>(GR18+6),GS18<(GR18-6)),"Agncy Repl.","")) ->  | GT20: =IF(GT18="","",IF(GU18="",GT18,IF(OR(GU18>(GT18+6),GU18<(GT18-6)),GU18,GT18))) ->  | GU20: =IF(GU18="","",IF(OR(GU18>(GT18+6),GU18<(GT18-6)),"Agncy Repl.","")) ->  | GW20: Calc. % | GZ20: =IF(GZ18="","",IF(HA18="",GZ18,IF(OR(HA18>(GZ18+6),HA18<(GZ18-6)),HA18,GZ18))) ->  | HA20: =IF(HA18="","",IF(OR(HA18>(GZ18+6),HA18<(GZ18-6)),"Agncy Repl.","")) ->  | HB20: =IF(HB18="","",IF(HC18="",HB18,IF(OR(HC18>(HB18+6),HC18<(HB18-6)),HC18,HB18))) ->  | HC20: =IF(HC18="","",IF(OR(HC18>(HB18+6),HC18<(HB18-6)),"Agncy Repl.","")) ->  | HD20: =IF(HD18="","",IF(HE18="",HD18,IF(OR(HE18>(HD18+6),HE18<(HD18-6)),HE18,HD18))) ->  | HE20: =IF(HE18="","",IF(OR(HE18>(HD18+6),HE18<(HD18-6)),"Agncy Repl.","")) ->  | HF20: =IF(HF18="","",IF(HG18="",HF18,IF(OR(HG18>(HF18+6),HG18<(HF18-6)),HG18,HF18))) ->  | HG20: =IF(HG18="","",IF(OR(HG18>(HF18+6),HG18<(HF18-6)),"Agncy Repl.","")) ->  | HI20: Calc. % | HL20: =IF(HL18="","",IF(HM18="",HL18,IF(OR(HM18>(HL18+6),HM18<(HL18-6)),HM18,HL18))) ->  | HM20: =IF(HM18="","",IF(OR(HM18>(HL18+6),HM18<(HL18-6)),"Agncy Repl.","")) ->  | HN20: =IF(HN18="","",IF(HO18="",HN18,IF(OR(HO18>(HN18+6),HO18<(HN18-6)),HO18,HN18))) ->  | HO20: =IF(HO18="","",IF(OR(HO18>(HN18+6),HO18<(HN18-6)),"Agncy Repl.","")) ->  | HP20: =IF(HP18="","",IF(HQ18="",HP18,IF(OR(HQ18>(HP18+6),HQ18<(HP18-6)),HQ18,HP18))) ->  | HQ20: =IF(HQ18="","",IF(OR(HQ18>(HP18+6),HQ18<(HP18-6)),"Agncy Repl.","")) ->  | HR20: =IF(HR18="","",IF(HS18="",HR18,IF(OR(HS18>(HR18+6),HS18<(HR18-6)),HS18,HR18))) ->  | HS20: =IF(HS18="","",IF(OR(HS18>(HR18+6),HS18<(HR18-6)),"Agncy Repl.","")) ->  | HU20: Calc. % | HX20: =IF(HX18="","",IF(HY18="",HX18,IF(OR(HY18>(HX18+6),HY18<(HX18-6)),HY18,HX18))) ->  | HY20: =IF(HY18="","",IF(OR(HY18>(HX18+6),HY18<(HX18-6)),"Agncy Repl.","")) ->  | HZ20: =IF(HZ18="","",IF(IA18="",HZ18,IF(OR(IA18>(HZ18+6),IA18<(HZ18-6)),IA18,HZ18))) ->  | IA20: =IF(IA18="","",IF(OR(IA18>(HZ18+6),IA18<(HZ18-6)),"Agncy Repl.","")) ->  | IB20: =IF(IB18="","",IF(IC18="",IB18,IF(OR(IC18>(IB18+6),IC18<(IB18-6)),IC18,IB18))) ->  | IC20: =IF(IC18="","",IF(OR(IC18>(IB18+6),IC18<(IB18-6)),"Agncy Repl.","")) ->  | ID20: =IF(ID18="","",IF(IE18="",ID18,IF(OR(IE18>(ID18+6),IE18<(ID18-6)),IE18,ID18))) ->  | IE20: =IF(IE18="","",IF(OR(IE18>(ID18+6),IE18<(ID18-6)),"Agncy Repl.","")) ->  | IG20: Calc. % | IJ20: =IF(IJ18="","",IF(IK18="",IJ18,IF(OR(IK18>(IJ18+6),IK18<(IJ18-6)),IK18,IJ18))) ->  | IK20: =IF(IK18="","",IF(OR(IK18>(IJ18+6),IK18<(IJ18-6)),"Agncy Repl.","")) ->  | IL20: =IF(IL18="","",IF(IM18="",IL18,IF(OR(IM18>(IL18+6),IM18<(IL18-6)),IM18,IL18))) ->  | IM20: =IF(IM18="","",IF(OR(IM18>(IL18+6),IM18<(IL18-6)),"Agncy Repl.","")) ->  | IN20: =IF(IN18="","",IF(IO18="",IN18,IF(OR(IO18>(IN18+6),IO18<(IN18-6)),IO18,IN18))) ->  | IO20: =IF(IO18="","",IF(OR(IO18>(IN18+6),IO18<(IN18-6)),"Agncy Repl.","")) ->  | IP20: =IF(IP18="","",IF(IQ18="",IP18,IF(OR(IQ18>(IP18+6),IQ18<(IP18-6)),IQ18,IP18))) ->  | IQ20: =IF(IQ18="","",IF(OR(IQ18>(IP18+6),IQ18<(IP18-6)),"Agncy Repl.","")) ->  | IR20: =IF(IR18="","",IF(OR(IR18>(IQ18+6),IR18<(IQ18-6)),"Agncy Repl.","")) ->  | IW20: Choices
A21: 3/4 in. | M21: 3/4 in. | Y21: 3/4 in. | AK21: 3/4 in. | AW21: 3/4 in. | BI21: 3/4 in. | BU21: 3/4 in. | CG21: 3/4 in. | CS21: 3/4 in. | DE21: 3/4 in. | DQ21: 3/4 in. | EC21: 3/4 in. | EO21: 3/4 in. | FA21: 3/4 in. | FM21: 3/4 in. | FY21: 3/4 in. | GK21: 3/4 in. | GW21: 3/4 in. | HI21: 3/4 in. | HU21: 3/4 in. | IG21: 3/4 in. | IT21: 0 | IU21: Agency AFT Substituted
A22: Mov Avg. | B22: =IF(MDR!$Y$5="YES",MDR!$BQ$45,MDR!$BV$45) -> 100 | C22: =IF(MDR!$Y$5="YES",MDR!$BR$45,MDR!$BW$45) -> 100 | E22: =IF(E21="","",IF(OR(E21>(D21+6),E21<(D21-6)),"Tolerance","")) ->  | G22: =IF(G21="","",IF(OR(G21>(F21+6),G21<(F21-6)),"Tolerance","")) ->  | I22: =IF(I21="","",IF(OR(I21>(H21+6),I21<(H21-6)),"Tolerance","")) ->  | J22: =mndot_rounding_0(IF(D21="","",IF(F21="","",IF(H21="","",IF(J21="","",Grad!E14))))) ->  | K22: =IF(K21="","",IF(OR(K21>(J21+6),K21<(J21-6)),"Tolerance","")) ->  | M22: Mov Avg. | N22: =IF(MDR!$AL$4="YES",MDR!$BQ$45,MDR!$M16) -> 100 | O22: =IF(MDR!$AL$4="YES",MDR!$BR$45,MDR!$N16) -> 100 | P22: =mndot_rounding_0(Grad!S15) ->  | Q22: =IF(Q21="","",IF(OR(Q21>(P21+6),Q21<(P21-6)),"Tolerance","")) ->  | R22: =mndot_rounding_0(Grad!S16) ->  | S22: =IF(S21="","",IF(OR(S21>(R21+6),S21<(R21-6)),"Tolerance","")) ->  | T22: =mndot_rounding_0(Grad!S17) ->  | U22: =IF(U21="","",IF(OR(U21>(T21+6),U21<(T21-6)),"Tolerance","")) ->  | V22: =mndot_rounding_0(Grad!S18) ->  | W22: =IF(W21="","",IF(OR(W21>(V21+6),W21<(V21-6)),"Tolerance","")) ->  | Y22: Mov Avg. | Z22: =IF(MDR!$AL$4="YES",MDR!$BQ$45,MDR!$M20) -> 100 | AA22: =IF(MDR!$AL$4="YES",MDR!$BR$45,MDR!$N20) -> 100 | AB22: =mndot_rounding_0(Grad!$S19) ->  | AC22: =IF(AC21="","",IF(OR(AC21>(AB21+6),AC21<(AB21-6)),"Tolerance","")) ->  | AD22: =mndot_rounding_0(Grad!$S20) ->  | AE22: =IF(AE21="","",IF(OR(AE21>(AD21+6),AE21<(AD21-6)),"Tolerance","")) ->  | AF22: =mndot_rounding_0(Grad!$S21) ->  | AG22: =IF(AG21="","",IF(OR(AG21>(AF21+6),AG21<(AF21-6)),"Tolerance","")) ->  | AH22: =mndot_rounding_0(Grad!$S22) ->  | AI22: =IF(AI21="","",IF(OR(AI21>(AH21+6),AI21<(AH21-6)),"Tolerance","")) ->  | AK22: Mov Avg. | AL22: =IF(MDR!$AL$4="YES",MDR!$BQ$45,MDR!$M24) -> 100 | AM22: =IF(MDR!$AL$4="YES",MDR!$BR$45,MDR!$N24) -> 100 | AN22: =mndot_rounding_0(Grad!$S23) ->  | AO22: =IF(AO21="","",IF(OR(AO21>(AN21+6),AO21<(AN21-6)),"Tolerance","")) ->  | AP22: =mndot_rounding_0(Grad!$S24) ->  | AQ22: =IF(AQ21="","",IF(OR(AQ21>(AP21+6),AQ21<(AP21-6)),"Tolerance","")) ->  | AR22: =mndot_rounding_0(Grad!$S25) ->  | AS22: =IF(AS21="","",IF(OR(AS21>(AR21+6),AS21<(AR21-6)),"Tolerance","")) ->  | AT22: =mndot_rounding_0(Grad!$S26) ->  | AU22: =IF(AU21="","",IF(OR(AU21>(AT21+6),AU21<(AT21-6)),"Tolerance","")) ->  | AW22: Mov Avg. | AX22: =IF(MDR!$AL$4="YES",MDR!$BQ$45,MDR!$M28) -> 100 | AY22: =IF(MDR!$AL$4="YES",MDR!$BR$45,MDR!$N28) -> 100 | AZ22: =mndot_rounding_0(Grad!$S27) ->  | BA22: =IF(BA21="","",IF(OR(BA21>(AZ21+6),BA21<(AZ21-6)),"Tolerance","")) ->  | BB22: =mndot_rounding_0(Grad!$S28) ->  | BC22: =IF(BC21="","",IF(OR(BC21>(BB21+6),BC21<(BB21-6)),"Tolerance","")) ->  | BD22: =mndot_rounding_0(Grad!$S29) ->  | BE22: =IF(BE21="","",IF(OR(BE21>(BD21+6),BE21<(BD21-6)),"Tolerance","")) ->  | BF22: =mndot_rounding_0(Grad!$S30) ->  | BG22: =IF(BG21="","",IF(OR(BG21>(BF21+6),BG21<(BF21-6)),"Tolerance","")) ->  | BI22: Mov Avg. | BJ22: =IF(MDR!$AL$4="YES",MDR!$BQ$45,MDR!$M32) -> 100 | BK22: =IF(MDR!$AL$4="YES",MDR!$BR$45,MDR!$N32) -> 100 | BL22: =mndot_rounding_0(Grad!$S31) ->  | BM22: =IF(BM21="","",IF(OR(BM21>(BL21+6),BM21<(BL21-6)),"Tolerance","")) ->  | BN22: =mndot_rounding_0(Grad!$S32) ->  | BO22: =IF(BO21="","",IF(OR(BO21>(BN21+6),BO21<(BN21-6)),"Tolerance","")) ->  | BP22: =mndot_rounding_0(Grad!$S33) ->  | BQ22: =IF(BQ21="","",IF(OR(BQ21>(BP21+6),BQ21<(BP21-6)),"Tolerance","")) ->  | BR22: =mndot_rounding_0(Grad!$S34) ->  | BS22: =IF(BS21="","",IF(OR(BS21>(BR21+6),BS21<(BR21-6)),"Tolerance","")) ->  | BU22: Mov Avg. | BV22: =IF(MDR!$AL$4="YES",MDR!$BQ$45,MDR!$M36) -> 100 | BW22: =IF(MDR!$AL$4="YES",MDR!$BR$45,MDR!$N36) -> 100 | BX22: =mndot_rounding_0(Grad!$S35) ->  | BY22: =IF(BY21="","",IF(OR(BY21>(BX21+6),BY21<(BX21-6)),"Tolerance","")) ->  | BZ22: =mndot_rounding_0(Grad!$S36) ->  | CA22: =IF(CA21="","",IF(OR(CA21>(BZ21+6),CA21<(BZ21-6)),"Tolerance","")) ->  | CB22: =mndot_rounding_0(Grad!$S37) ->  | CC22: =IF(CC21="","",IF(OR(CC21>(CB21+6),CC21<(CB21-6)),"Tolerance","")) ->  | CD22: =mndot_rounding_0(Grad!$S38) ->  | CE22: =IF(CE21="","",IF(OR(CE21>(CD21+6),CE21<(CD21-6)),"Tolerance","")) ->  | CG22: Mov Avg. | CH22: =IF(MDR!$AL$4="YES",MDR!$BQ$45,MDR!$M40) -> 100 | CI22: =IF(MDR!$AL$4="YES",MDR!$BR$45,MDR!$N40) -> 100 | CJ22: =mndot_rounding_0(Grad!$S39) ->  | CK22: =IF(CK21="","",IF(OR(CK21>(CJ21+6),CK21<(CJ21-6)),"Tolerance","")) ->  | CL22: =mndot_rounding_0(Grad!$S40) ->  | CM22: =IF(CM21="","",IF(OR(CM21>(CL21+6),CM21<(CL21-6)),"Tolerance","")) ->  | CN22: =mndot_rounding_0(Grad!$S41) ->  | CO22: =IF(CO21="","",IF(OR(CO21>(CN21+6),CO21<(CN21-6)),"Tolerance","")) ->  | CP22: =mndot_rounding_0(Grad!$S42) ->  | CQ22: =IF(CQ21="","",IF(OR(CQ21>(CP21+6),CQ21<(CP21-6)),"Tolerance","")) ->  | CS22: Mov Avg. | CT22: =IF(MDR!$AL$4="YES",MDR!$BQ$45,MDR!$M44) -> 100 | CU22: =IF(MDR!$AL$4="YES",MDR!$BR$45,MDR!$N44) -> 100 | CV22: =mndot_rounding_0(Grad!$S43) ->  | CW22: =IF(CW21="","",IF(OR(CW21>(CV21+6),CW21<(CV21-6)),"Tolerance","")) ->  | CX22: =mndot_rounding_0(Grad!$S44) ->  | CY22: =IF(CY21="","",IF(OR(CY21>(CX21+6),CY21<(CX21-6)),"Tolerance","")) ->  | CZ22: =mndot_rounding_0(Grad!$S45) ->  | DA22: =IF(DA21="","",IF(OR(DA21>(CZ21+6),DA21<(CZ21-6)),"Tolerance","")) ->  | DB22: =mndot_rounding_0(Grad!$S46) ->  | DC22: =IF(DC21="","",IF(OR(DC21>(DB21+6),DC21<(DB21-6)),"Tolerance","")) ->  | DE22: Mov Avg. | DF22: =IF(MDR!$AL$4="YES",MDR!$BQ$45,MDR!$M48) -> 100 | DG22: =IF(MDR!$AL$4="YES",MDR!$BR$45,MDR!$N48) -> 100 | DH22: =mndot_rounding_0(Grad!$S47) ->  | DI22: =IF(DI21="","",IF(OR(DI21>(DH21+6),DI21<(DH21-6)),"Tolerance","")) ->  | DJ22: =mndot_rounding_0(Grad!$S48) ->  | DK22: =IF(DK21="","",IF(OR(DK21>(DJ21+6),DK21<(DJ21-6)),"Tolerance","")) ->  | DL22: =mndot_rounding_0(Grad!$S49) ->  | DM22: =IF(DM21="","",IF(OR(DM21>(DL21+6),DM21<(DL21-6)),"Tolerance","")) ->  | DN22: =mndot_rounding_0(Grad!$S50) ->  | DO22: =IF(DO21="","",IF(OR(DO21>(DN21+6),DO21<(DN21-6)),"Tolerance","")) ->  | DQ22: Mov Avg. | DR22: =IF(MDR!$AL$4="YES",MDR!$BQ$45,MDR!$M52) -> 100 | DS22: =IF(MDR!$AL$4="YES",MDR!$BR$45,MDR!$N52) -> 100 | DT22: =mndot_rounding_0(Grad!$S51) ->  | DU22: =IF(DU21="","",IF(OR(DU21>(DT21+6),DU21<(DT21-6)),"Tolerance","")) ->  | DV22: =mndot_rounding_0(Grad!$S52) ->  | DW22: =IF(DW21="","",IF(OR(DW21>(DV21+6),DW21<(DV21-6)),"Tolerance","")) ->  | DX22: =mndot_rounding_0(Grad!$S53) ->  | DY22: =IF(DY21="","",IF(OR(DY21>(DX21+6),DY21<(DX21-6)),"Tolerance","")) ->  | DZ22: =mndot_rounding_0(Grad!$S54) ->  | EA22: =IF(EA21="","",IF(OR(EA21>(DZ21+6),EA21<(DZ21-6)),"Tolerance","")) ->  | EC22: Mov Avg. | ED22: =IF(MDR!$AL$4="YES",MDR!$BQ$45,MDR!$M56) -> 100 | EE22: =IF(MDR!$AL$4="YES",MDR!$BR$45,MDR!$N56) -> 100 | EF22: =mndot_rounding_0(Grad!$S55) ->  | EG22: =IF(EG21="","",IF(OR(EG21>(EF21+6),EG21<(EF21-6)),"Tolerance","")) ->  | EH22: =mndot_rounding_0(Grad!$S56) ->  | EI22: =IF(EI21="","",IF(OR(EI21>(EH21+6),EI21<(EH21-6)),"Tolerance","")) ->  | EJ22: =mndot_rounding_0(Grad!$S57) ->  | EK22: =IF(EK21="","",IF(OR(EK21>(EJ21+6),EK21<(EJ21-6)),"Tolerance","")) ->  | EL22: =mndot_rounding_0(Grad!$S58) ->  | EM22: =IF(EM21="","",IF(OR(EM21>(EL21+6),EM21<(EL21-6)),"Tolerance","")) ->  | EO22: Mov Avg. | EP22: =IF(MDR!$AL$4="YES",MDR!$BQ$45,MDR!$M60) -> 100 | EQ22: =IF(MDR!$AL$4="YES",MDR!$BR$45,MDR!$N60) -> 100 | ER22: =mndot_rounding_0(Grad!$S59) ->  | ES22: =IF(ES21="","",IF(OR(ES21>(ER21+6),ES21<(ER21-6)),"Tolerance","")) ->  | ET22: =mndot_rounding_0(Grad!$S60) ->  | EU22: =IF(EU21="","",IF(OR(EU21>(ET21+6),EU21<(ET21-6)),"Tolerance","")) ->  | EV22: =mndot_rounding_0(Grad!$S61) ->  | EW22: =IF(EW21="","",IF(OR(EW21>(EV21+6),EW21<(EV21-6)),"Tolerance","")) ->  | EX22: =mndot_rounding_0(Grad!$S62) ->  | EY22: =IF(EY21="","",IF(OR(EY21>(EX21+6),EY21<(EX21-6)),"Tolerance","")) ->  | FA22: Mov Avg. | FB22: =IF(MDR!$AL$4="YES",MDR!$BQ$45,MDR!$M64) -> 100 | FC22: =IF(MDR!$AL$4="YES",MDR!$BR$45,MDR!$N64) -> 100 | FD22: =mndot_rounding_0(Grad!$S63) ->  | FE22: =IF(FE21="","",IF(OR(FE21>(FD21+6),FE21<(FD21-6)),"Tolerance","")) ->  | FF22: =mndot_rounding_0(Grad!$S64) ->  | FG22: =IF(FG21="","",IF(OR(FG21>(FF21+6),FG21<(FF21-6)),"Tolerance","")) ->  | FH22: =mndot_rounding_0(Grad!$S65) ->  | FI22: =IF(FI21="","",IF(OR(FI21>(FH21+6),FI21<(FH21-6)),"Tolerance","")) ->  | FJ22: =mndot_rounding_0(Grad!$S66) ->  | FK22: =IF(FK21="","",IF(OR(FK21>(FJ21+6),FK21<(FJ21-6)),"Tolerance","")) ->  | FM22: Mov Avg. | FN22: =IF(MDR!$AL$4="YES",MDR!$BQ$45,MDR!$M68) -> 100 | FO22: =IF(MDR!$AL$4="YES",MDR!$BR$45,MDR!$N68) -> 100 | FP22: =mndot_rounding_0(Grad!$S67) ->  | FQ22: =IF(FQ21="","",IF(OR(FQ21>(FP21+6),FQ21<(FP21-6)),"Tolerance","")) ->  | FR22: =mndot_rounding_0(Grad!$S68) ->  | FS22: =IF(FS21="","",IF(OR(FS21>(FR21+6),FS21<(FR21-6)),"Tolerance","")) ->  | FT22: =mndot_rounding_0(Grad!$S69) ->  | FU22: =IF(FU21="","",IF(OR(FU21>(FT21+6),FU21<(FT21-6)),"Tolerance","")) ->  | FV22: =mndot_rounding_0(Grad!$S70) ->  | FW22: =IF(FW21="","",IF(OR(FW21>(FV21+6),FW21<(FV21-6)),"Tolerance","")) ->  | FY22: Mov Avg. | FZ22: =IF(MDR!$AL$4="YES",MDR!$BQ$45,MDR!$M72) -> 100 | GA22: =IF(MDR!$AL$4="YES",MDR!$BR$45,MDR!$N72) -> 100 | GB22: =mndot_rounding_0(Grad!$S71) ->  | GC22: =IF(GC21="","",IF(OR(GC21>(GB21+6),GC21<(GB21-6)),"Tolerance","")) ->  | GD22: =mndot_rounding_0(Grad!$S72) ->  | GE22: =IF(GE21="","",IF(OR(GE21>(GD21+6),GE21<(GD21-6)),"Tolerance","")) ->  | GF22: =mndot_rounding_0(Grad!$S73) ->  | GG22: =IF(GG21="","",IF(OR(GG21>(GF21+6),GG21<(GF21-6)),"Tolerance","")) ->  | GH22: =mndot_rounding_0(Grad!$S74) ->  | GI22: =IF(GI21="","",IF(OR(GI21>(GH21+6),GI21<(GH21-6)),"Tolerance","")) ->  | GK22: Mov Avg. | GL22: =IF(MDR!$AL$4="YES",MDR!$BQ$45,MDR!$M76) -> 100 | GM22: =IF(MDR!$AL$4="YES",MDR!$BR$45,MDR!$N76) -> 100 | GN22: =mndot_rounding_0(Grad!$S75) ->  | GO22: =IF(GO21="","",IF(OR(GO21>(GN21+6),GO21<(GN21-6)),"Tolerance","")) ->  | GP22: =mndot_rounding_0(Grad!$S76) ->  | GQ22: =IF(GQ21="","",IF(OR(GQ21>(GP21+6),GQ21<(GP21-6)),"Tolerance","")) ->  | GR22: =mndot_rounding_0(Grad!$S77) ->  | GS22: =IF(GS21="","",IF(OR(GS21>(GR21+6),GS21<(GR21-6)),"Tolerance","")) ->  | GT22: =mndot_rounding_0(Grad!$S78) ->  | GU22: =IF(GU21="","",IF(OR(GU21>(GT21+6),GU21<(GT21-6)),"Tolerance","")) ->  | GW22: Mov Avg. | GX22: =IF(MDR!$AL$4="YES",MDR!$BQ$45,MDR!$M80) -> 100 | GY22: =IF(MDR!$AL$4="YES",MDR!$BR$45,MDR!$N80) -> 100 | GZ22: =mndot_rounding_0(Grad!$S79) ->  | HA22: =IF(HA21="","",IF(OR(HA21>(GZ21+6),HA21<(GZ21-6)),"Tolerance","")) ->  | HB22: =mndot_rounding_0(Grad!$S80) ->  | HC22: =IF(HC21="","",IF(OR(HC21>(HB21+6),HC21<(HB21-6)),"Tolerance","")) ->  | HD22: =mndot_rounding_0(Grad!$S81) ->  | HE22: =IF(HE21="","",IF(OR(HE21>(HD21+6),HE21<(HD21-6)),"Tolerance","")) ->  | HF22: =mndot_rounding_0(Grad!$S82) ->  | HG22: =IF(HG21="","",IF(OR(HG21>(HF21+6),HG21<(HF21-6)),"Tolerance","")) ->  | HI22: Mov Avg. | HJ22: =IF(MDR!$AL$4="YES",MDR!$BQ$45,MDR!$M84) -> 100 | HK22: =IF(MDR!$AL$4="YES",MDR!$BR$45,MDR!$N84) -> 100 | HL22: =mndot_rounding_0(Grad!$S83) ->  | HM22: =IF(HM21="","",IF(OR(HM21>(HL21+6),HM21<(HL21-6)),"Tolerance","")) ->  | HN22: =mndot_rounding_0(Grad!$S84) ->  | HO22: =IF(HO21="","",IF(OR(HO21>(HN21+6),HO21<(HN21-6)),"Tolerance","")) ->  | HP22: =mndot_rounding_0(Grad!$S85) ->  | HQ22: =IF(HQ21="","",IF(OR(HQ21>(HP21+6),HQ21<(HP21-6)),"Tolerance","")) ->  | HR22: =mndot_rounding_0(Grad!$S86) ->  | HS22: =IF(HS21="","",IF(OR(HS21>(HR21+6),HS21<(HR21-6)),"Tolerance","")) ->  | HU22: Mov Avg. | HV22: =IF(MDR!$AL$4="YES",MDR!$BQ$45,MDR!$M88) -> 100 | HW22: =IF(MDR!$AL$4="YES",MDR!$BR$45,MDR!$N88) -> 100 | HX22: =mndot_rounding_0(Grad!$S87) ->  | HY22: =IF(HY21="","",IF(OR(HY21>(HX21+6),HY21<(HX21-6)),"Tolerance","")) ->  | HZ22: =mndot_rounding_0(Grad!$S88) ->  | IA22: =IF(IA21="","",IF(OR(IA21>(HZ21+6),IA21<(HZ21-6)),"Tolerance","")) ->  | IB22: =mndot_rounding_0(Grad!$S89) ->  | IC22: =IF(IC21="","",IF(OR(IC21>(IB21+6),IC21<(IB21-6)),"Tolerance","")) ->  | ID22: =mndot_rounding_0(Grad!$S90) ->  | IE22: =IF(IE21="","",IF(OR(IE21>(ID21+6),IE21<(ID21-6)),"Tolerance","")) ->  | IG22: Mov Avg. | IH22: =IF(MDR!$AL$4="YES",MDR!$BQ$45,MDR!$M92) -> 100 | II22: =IF(MDR!$AL$4="YES",MDR!$BR$45,MDR!$N92) -> 100 | IJ22: =mndot_rounding_0(Grad!$S91) ->  | IK22: =IF(IK21="","",IF(OR(IK21>(IJ21+6),IK21<(IJ21-6)),"Tolerance","")) ->  | IL22: =mndot_rounding_0(Grad!$S92) ->  | IM22: =IF(IM21="","",IF(OR(IM21>(IL21+6),IM21<(IL21-6)),"Tolerance","")) ->  | IN22: =mndot_rounding_0(Grad!$S93) ->  | IO22: =IF(IO21="","",IF(OR(IO21>(IN21+6),IO21<(IN21-6)),"Tolerance","")) ->  | IP22: =mndot_rounding_0(Grad!$S94) ->  | IQ22: =IF(IQ21="","",IF(OR(IQ21>(IP21+6),IQ21<(IP21-6)),"Tolerance","")) ->  | IT22: 0 | IU22: Agency AFT Substituted | IW22: A = PG 52-34
A23: 3/4" Calc. % | D23: =IF(D21="","",IF(E21="",D21,IF(OR(E21>(D21+6),E21<(D21-6)),E21,D21))) ->  | E23: =IF(E21="","",IF(OR(E21>(D21+6),E21<(D21-6)),"Agncy Repl.","")) ->  | F23: =IF(F21="","",IF(G21="",F21,IF(OR(G21>(F21+6),G21<(F21-6)),G21,F21))) ->  | G23: =IF(G21="","",IF(OR(G21>(F21+6),G21<(F21-6)),"Agncy Repl.","")) ->  | H23: =IF(H21="","",IF(I21="",H21,IF(OR(I21>(H21+6),I21<(H21-6)),I21,H21))) ->  | I23: =IF(I21="","",IF(OR(I21>(H21+6),I21<(H21-6)),"Agncy Repl.","")) ->  | J23: =IF(J21="","",IF(K21="",J21,IF(OR(K21>(J21+6),K21<(J21-6)),K21,J21))) ->  | K23: =IF(K21="","",IF(OR(K21>(J21+6),K21<(J21-6)),"Agncy Repl.","")) ->  | M23: Calc. % | P23: =IF(P21="","",IF(Q21="",P21,IF(OR(Q21>(P21+6),Q21<(P21-6)),Q21,P21))) ->  | Q23: =IF(Q21="","",IF(OR(Q21>(P21+6),Q21<(P21-6)),"Agncy Repl.","")) ->  | R23: =IF(R21="","",IF(S21="",R21,IF(OR(S21>(R21+6),S21<(R21-6)),S21,R21))) ->  | S23: =IF(S21="","",IF(OR(S21>(R21+6),S21<(R21-6)),"Agncy Repl.","")) ->  | T23: =IF(T21="","",IF(U21="",T21,IF(OR(U21>(T21+6),U21<(T21-6)),U21,T21))) ->  | U23: =IF(U21="","",IF(OR(U21>(T21+6),U21<(T21-6)),"Agncy Repl.","")) ->  | V23: =IF(V21="","",IF(W21="",V21,IF(OR(W21>(V21+6),W21<(V21-6)),W21,V21))) ->  | W23: =IF(W21="","",IF(OR(W21>(V21+6),W21<(V21-6)),"Agncy Repl.","")) ->  | Y23: Calc. % | AB23: =IF(AB21="","",IF(AC21="",AB21,IF(OR(AC21>(AB21+6),AC21<(AB21-6)),AC21,AB21))) ->  | AC23: =IF(AC21="","",IF(OR(AC21>(AB21+6),AC21<(AB21-6)),"Agncy Repl.","")) ->  | AD23: =IF(AD21="","",IF(AE21="",AD21,IF(OR(AE21>(AD21+6),AE21<(AD21-6)),AE21,AD21))) ->  | AE23: =IF(AE21="","",IF(OR(AE21>(AD21+6),AE21<(AD21-6)),"Agncy Repl.","")) ->  | AF23: =IF(AF21="","",IF(AG21="",AF21,IF(OR(AG21>(AF21+6),AG21<(AF21-6)),AG21,AF21))) ->  | AG23: =IF(AG21="","",IF(OR(AG21>(AF21+6),AG21<(AF21-6)),"Agncy Repl.","")) ->  | AH23: =IF(AH21="","",IF(AI21="",AH21,IF(OR(AI21>(AH21+6),AI21<(AH21-6)),AI21,AH21))) ->  | AI23: =IF(AI21="","",IF(OR(AI21>(AH21+6),AI21<(AH21-6)),"Agncy Repl.","")) ->  | AK23: Calc. % | AN23: =IF(AN21="","",IF(AO21="",AN21,IF(OR(AO21>(AN21+6),AO21<(AN21-6)),AO21,AN21))) ->  | AO23: =IF(AO21="","",IF(OR(AO21>(AN21+6),AO21<(AN21-6)),"Agncy Repl.","")) ->  | AP23: =IF(AP21="","",IF(AQ21="",AP21,IF(OR(AQ21>(AP21+6),AQ21<(AP21-6)),AQ21,AP21))) ->  | AQ23: =IF(AQ21="","",IF(OR(AQ21>(AP21+6),AQ21<(AP21-6)),"Agncy Repl.","")) ->  | AR23: =IF(AR21="","",IF(AS21="",AR21,IF(OR(AS21>(AR21+6),AS21<(AR21-6)),AS21,AR21))) ->  | AS23: =IF(AS21="","",IF(OR(AS21>(AR21+6),AS21<(AR21-6)),"Agncy Repl.","")) ->  | AT23: =IF(AT21="","",IF(AU21="",AT21,IF(OR(AU21>(AT21+6),AU21<(AT21-6)),AU21,AT21))) ->  | AU23: =IF(AU21="","",IF(OR(AU21>(AT21+6),AU21<(AT21-6)),"Agncy Repl.","")) ->  | AW23: Calc. % | AZ23: =IF(AZ21="","",IF(BA21="",AZ21,IF(OR(BA21>(AZ21+6),BA21<(AZ21-6)),BA21,AZ21))) ->  | BA23: =IF(BA21="","",IF(OR(BA21>(AZ21+6),BA21<(AZ21-6)),"Agncy Repl.","")) ->  | BB23: =IF(BB21="","",IF(BC21="",BB21,IF(OR(BC21>(BB21+6),BC21<(BB21-6)),BC21,BB21))) ->  | BC23: =IF(BC21="","",IF(OR(BC21>(BB21+6),BC21<(BB21-6)),"Agncy Repl.","")) ->  | BD23: =IF(BD21="","",IF(BE21="",BD21,IF(OR(BE21>(BD21+6),BE21<(BD21-6)),BE21,BD21))) ->  | BE23: =IF(BE21="","",IF(OR(BE21>(BD21+6),BE21<(BD21-6)),"Agncy Repl.","")) ->  | BF23: =IF(BF21="","",IF(BG21="",BF21,IF(OR(BG21>(BF21+6),BG21<(BF21-6)),BG21,BF21))) ->  | BG23: =IF(BG21="","",IF(OR(BG21>(BF21+6),BG21<(BF21-6)),"Agncy Repl.","")) ->  | BI23: Calc. % | BL23: =IF(BL21="","",IF(BM21="",BL21,IF(OR(BM21>(BL21+6),BM21<(BL21-6)),BM21,BL21))) ->  | BM23: =IF(BM21="","",IF(OR(BM21>(BL21+6),BM21<(BL21-6)),"Agncy Repl.","")) ->  | BN23: =IF(BN21="","",IF(BO21="",BN21,IF(OR(BO21>(BN21+6),BO21<(BN21-6)),BO21,BN21))) ->  | BO23: =IF(BO21="","",IF(OR(BO21>(BN21+6),BO21<(BN21-6)),"Agncy Repl.","")) ->  | BP23: =IF(BP21="","",IF(BQ21="",BP21,IF(OR(BQ21>(BP21+6),BQ21<(BP21-6)),BQ21,BP21))) ->  | BQ23: =IF(BQ21="","",IF(OR(BQ21>(BP21+6),BQ21<(BP21-6)),"Agncy Repl.","")) ->  | BR23: =IF(BR21="","",IF(BS21="",BR21,IF(OR(BS21>(BR21+6),BS21<(BR21-6)),BS21,BR21))) ->  | BS23: =IF(BS21="","",IF(OR(BS21>(BR21+6),BS21<(BR21-6)),"Agncy Repl.","")) ->  | BU23: Calc. % | BX23: =IF(BX21="","",IF(BY21="",BX21,IF(OR(BY21>(BX21+6),BY21<(BX21-6)),BY21,BX21))) ->  | BY23: =IF(BY21="","",IF(OR(BY21>(BX21+6),BY21<(BX21-6)),"Agncy Repl.","")) ->  | BZ23: =IF(BZ21="","",IF(CA21="",BZ21,IF(OR(CA21>(BZ21+6),CA21<(BZ21-6)),CA21,BZ21))) ->  | CA23: =IF(CA21="","",IF(OR(CA21>(BZ21+6),CA21<(BZ21-6)),"Agncy Repl.","")) ->  | CB23: =IF(CB21="","",IF(CC21="",CB21,IF(OR(CC21>(CB21+6),CC21<(CB21-6)),CC21,CB21))) ->  | CC23: =IF(CC21="","",IF(OR(CC21>(CB21+6),CC21<(CB21-6)),"Agncy Repl.","")) ->  | CD23: =IF(CD21="","",IF(CE21="",CD21,IF(OR(CE21>(CD21+6),CE21<(CD21-6)),CE21,CD21))) ->  | CE23: =IF(CE21="","",IF(OR(CE21>(CD21+6),CE21<(CD21-6)),"Agncy Repl.","")) ->  | CG23: Calc. % | CJ23: =IF(CJ21="","",IF(CK21="",CJ21,IF(OR(CK21>(CJ21+6),CK21<(CJ21-6)),CK21,CJ21))) ->  | CK23: =IF(CK21="","",IF(OR(CK21>(CJ21+6),CK21<(CJ21-6)),"Agncy Repl.","")) ->  | CL23: =IF(CL21="","",IF(CM21="",CL21,IF(OR(CM21>(CL21+6),CM21<(CL21-6)),CM21,CL21))) ->  | CM23: =IF(CM21="","",IF(OR(CM21>(CL21+6),CM21<(CL21-6)),"Agncy Repl.","")) ->  | CN23: =IF(CN21="","",IF(CO21="",CN21,IF(OR(CO21>(CN21+6),CO21<(CN21-6)),CO21,CN21))) ->  | CO23: =IF(CO21="","",IF(OR(CO21>(CN21+6),CO21<(CN21-6)),"Agncy Repl.","")) ->  | CP23: =IF(CP21="","",IF(CQ21="",CP21,IF(OR(CQ21>(CP21+6),CQ21<(CP21-6)),CQ21,CP21))) ->  | CQ23: =IF(CQ21="","",IF(OR(CQ21>(CP21+6),CQ21<(CP21-6)),"Agncy Repl.","")) ->  | CS23: Calc. % | CV23: =IF(CV21="","",IF(CW21="",CV21,IF(OR(CW21>(CV21+6),CW21<(CV21-6)),CW21,CV21))) ->  | CW23: =IF(CW21="","",IF(OR(CW21>(CV21+6),CW21<(CV21-6)),"Agncy Repl.","")) ->  | CX23: =IF(CX21="","",IF(CY21="",CX21,IF(OR(CY21>(CX21+6),CY21<(CX21-6)),CY21,CX21))) ->  | CY23: =IF(CY21="","",IF(OR(CY21>(CX21+6),CY21<(CX21-6)),"Agncy Repl.","")) ->  | CZ23: =IF(CZ21="","",IF(DA21="",CZ21,IF(OR(DA21>(CZ21+6),DA21<(CZ21-6)),DA21,CZ21))) ->  | DA23: =IF(DA21="","",IF(OR(DA21>(CZ21+6),DA21<(CZ21-6)),"Agncy Repl.","")) ->  | DB23: =IF(DB21="","",IF(DC21="",DB21,IF(OR(DC21>(DB21+6),DC21<(DB21-6)),DC21,DB21))) ->  | DC23: =IF(DC21="","",IF(OR(DC21>(DB21+6),DC21<(DB21-6)),"Agncy Repl.","")) ->  | DD23: =IF(DD21="","",IF(OR(DD21>(DC21+6),DD21<(DC21-6)),"Agncy Repl.","")) ->  | DE23: Calc. % | DH23: =IF(DH21="","",IF(DI21="",DH21,IF(OR(DI21>(DH21+6),DI21<(DH21-6)),DI21,DH21))) ->  | DI23: =IF(DI21="","",IF(OR(DI21>(DH21+6),DI21<(DH21-6)),"Agncy Repl.","")) ->  | DJ23: =IF(DJ21="","",IF(DK21="",DJ21,IF(OR(DK21>(DJ21+6),DK21<(DJ21-6)),DK21,DJ21))) ->  | DK23: =IF(DK21="","",IF(OR(DK21>(DJ21+6),DK21<(DJ21-6)),"Agncy Repl.","")) ->  | DL23: =IF(DL21="","",IF(DM21="",DL21,IF(OR(DM21>(DL21+6),DM21<(DL21-6)),DM21,DL21))) ->  | DM23: =IF(DM21="","",IF(OR(DM21>(DL21+6),DM21<(DL21-6)),"Agncy Repl.","")) ->  | DN23: =IF(DN21="","",IF(DO21="",DN21,IF(OR(DO21>(DN21+6),DO21<(DN21-6)),DO21,DN21))) ->  | DO23: =IF(DO21="","",IF(OR(DO21>(DN21+6),DO21<(DN21-6)),"Agncy Repl.","")) ->  | DQ23: Calc. % | DT23: =IF(DT21="","",IF(DU21="",DT21,IF(OR(DU21>(DT21+6),DU21<(DT21-6)),DU21,DT21))) ->  | DU23: =IF(DU21="","",IF(OR(DU21>(DT21+6),DU21<(DT21-6)),"Agncy Repl.","")) ->  | DV23: =IF(DV21="","",IF(DW21="",DV21,IF(OR(DW21>(DV21+6),DW21<(DV21-6)),DW21,DV21))) ->  | DW23: =IF(DW21="","",IF(OR(DW21>(DV21+6),DW21<(DV21-6)),"Agncy Repl.","")) ->  | DX23: =IF(DX21="","",IF(DY21="",DX21,IF(OR(DY21>(DX21+6),DY21<(DX21-6)),DY21,DX21))) ->  | DY23: =IF(DY21="","",IF(OR(DY21>(DX21+6),DY21<(DX21-6)),"Agncy Repl.","")) ->  | DZ23: =IF(DZ21="","",IF(EA21="",DZ21,IF(OR(EA21>(DZ21+6),EA21<(DZ21-6)),EA21,DZ21))) ->  | EA23: =IF(EA21="","",IF(OR(EA21>(DZ21+6),EA21<(DZ21-6)),"Agncy Repl.","")) ->  | EC23: Calc. % | EF23: =IF(EF21="","",IF(EG21="",EF21,IF(OR(EG21>(EF21+6),EG21<(EF21-6)),EG21,EF21))) ->  | EG23: =IF(EG21="","",IF(OR(EG21>(EF21+6),EG21<(EF21-6)),"Agncy Repl.","")) ->  | EH23: =IF(EH21="","",IF(EI21="",EH21,IF(OR(EI21>(EH21+6),EI21<(EH21-6)),EI21,EH21))) ->  | EI23: =IF(EI21="","",IF(OR(EI21>(EH21+6),EI21<(EH21-6)),"Agncy Repl.","")) ->  | EJ23: =IF(EJ21="","",IF(EK21="",EJ21,IF(OR(EK21>(EJ21+6),EK21<(EJ21-6)),EK21,EJ21))) ->  | EK23: =IF(EK21="","",IF(OR(EK21>(EJ21+6),EK21<(EJ21-6)),"Agncy Repl.","")) ->  | EL23: =IF(EL21="","",IF(EM21="",EL21,IF(OR(EM21>(EL21+6),EM21<(EL21-6)),EM21,EL21))) ->  | EM23: =IF(EM21="","",IF(OR(EM21>(EL21+6),EM21<(EL21-6)),"Agncy Repl.","")) ->  | EO23: Calc. % | ER23: =IF(ER21="","",IF(ES21="",ER21,IF(OR(ES21>(ER21+6),ES21<(ER21-6)),ES21,ER21))) ->  | ES23: =IF(ES21="","",IF(OR(ES21>(ER21+6),ES21<(ER21-6)),"Agncy Repl.","")) ->  | ET23: =IF(ET21="","",IF(EU21="",ET21,IF(OR(EU21>(ET21+6),EU21<(ET21-6)),EU21,ET21))) ->  | EU23: =IF(EU21="","",IF(OR(EU21>(ET21+6),EU21<(ET21-6)),"Agncy Repl.","")) ->  | EV23: =IF(EV21="","",IF(EW21="",EV21,IF(OR(EW21>(EV21+6),EW21<(EV21-6)),EW21,EV21))) ->  | EW23: =IF(EW21="","",IF(OR(EW21>(EV21+6),EW21<(EV21-6)),"Agncy Repl.","")) ->  | EX23: =IF(EX21="","",IF(EY21="",EX21,IF(OR(EY21>(EX21+6),EY21<(EX21-6)),EY21,EX21))) ->  | EY23: =IF(EY21="","",IF(OR(EY21>(EX21+6),EY21<(EX21-6)),"Agncy Repl.","")) ->  | FA23: Calc. % | FD23: =IF(FD21="","",IF(FE21="",FD21,IF(OR(FE21>(FD21+6),FE21<(FD21-6)),FE21,FD21))) ->  | FE23: =IF(FE21="","",IF(OR(FE21>(FD21+6),FE21<(FD21-6)),"Agncy Repl.","")) ->  | FF23: =IF(FF21="","",IF(FG21="",FF21,IF(OR(FG21>(FF21+6),FG21<(FF21-6)),FG21,FF21))) ->  | FG23: =IF(FG21="","",IF(OR(FG21>(FF21+6),FG21<(FF21-6)),"Agncy Repl.","")) ->  | FH23: =IF(FH21="","",IF(FI21="",FH21,IF(OR(FI21>(FH21+6),FI21<(FH21-6)),FI21,FH21))) ->  | FI23: =IF(FI21="","",IF(OR(FI21>(FH21+6),FI21<(FH21-6)),"Agncy Repl.","")) ->  | FJ23: =IF(FJ21="","",IF(FK21="",FJ21,IF(OR(FK21>(FJ21+6),FK21<(FJ21-6)),FK21,FJ21))) ->  | FK23: =IF(FK21="","",IF(OR(FK21>(FJ21+6),FK21<(FJ21-6)),"Agncy Repl.","")) ->  | FM23: Calc. % | FP23: =IF(FP21="","",IF(FQ21="",FP21,IF(OR(FQ21>(FP21+6),FQ21<(FP21-6)),FQ21,FP21))) ->  | FQ23: =IF(FQ21="","",IF(OR(FQ21>(FP21+6),FQ21<(FP21-6)),"Agncy Repl.","")) ->  | FR23: =IF(FR21="","",IF(FS21="",FR21,IF(OR(FS21>(FR21+6),FS21<(FR21-6)),FS21,FR21))) ->  | FS23: =IF(FS21="","",IF(OR(FS21>(FR21+6),FS21<(FR21-6)),"Agncy Repl.","")) ->  | FT23: =IF(FT21="","",IF(FU21="",FT21,IF(OR(FU21>(FT21+6),FU21<(FT21-6)),FU21,FT21))) ->  | FU23: =IF(FU21="","",IF(OR(FU21>(FT21+6),FU21<(FT21-6)),"Agncy Repl.","")) ->  | FV23: =IF(FV21="","",IF(FW21="",FV21,IF(OR(FW21>(FV21+6),FW21<(FV21-6)),FW21,FV21))) ->  | FW23: =IF(FW21="","",IF(OR(FW21>(FV21+6),FW21<(FV21-6)),"Agncy Repl.","")) ->  | FY23: Calc. % | GB23: =IF(GB21="","",IF(GC21="",GB21,IF(OR(GC21>(GB21+6),GC21<(GB21-6)),GC21,GB21))) ->  | GC23: =IF(GC21="","",IF(OR(GC21>(GB21+6),GC21<(GB21-6)),"Agncy Repl.","")) ->  | GD23: =IF(GD21="","",IF(GE21="",GD21,IF(OR(GE21>(GD21+6),GE21<(GD21-6)),GE21,GD21))) ->  | GE23: =IF(GE21="","",IF(OR(GE21>(GD21+6),GE21<(GD21-6)),"Agncy Repl.","")) ->  | GF23: =IF(GF21="","",IF(GG21="",GF21,IF(OR(GG21>(GF21+6),GG21<(GF21-6)),GG21,GF21))) ->  | GG23: =IF(GG21="","",IF(OR(GG21>(GF21+6),GG21<(GF21-6)),"Agncy Repl.","")) ->  | GH23: =IF(GH21="","",IF(GI21="",GH21,IF(OR(GI21>(GH21+6),GI21<(GH21-6)),GI21,GH21))) ->  | GI23: =IF(GI21="","",IF(OR(GI21>(GH21+6),GI21<(GH21-6)),"Agncy Repl.","")) ->  | GK23: Calc. % | GN23: =IF(GN21="","",IF(GO21="",GN21,IF(OR(GO21>(GN21+6),GO21<(GN21-6)),GO21,GN21))) ->  | GO23: =IF(GO21="","",IF(OR(GO21>(GN21+6),GO21<(GN21-6)),"Agncy Repl.","")) ->  | GP23: =IF(GP21="","",IF(GQ21="",GP21,IF(OR(GQ21>(GP21+6),GQ21<(GP21-6)),GQ21,GP21))) ->  | GQ23: =IF(GQ21="","",IF(OR(GQ21>(GP21+6),GQ21<(GP21-6)),"Agncy Repl.","")) ->  | GR23: =IF(GR21="","",IF(GS21="",GR21,IF(OR(GS21>(GR21+6),GS21<(GR21-6)),GS21,GR21))) ->  | GS23: =IF(GS21="","",IF(OR(GS21>(GR21+6),GS21<(GR21-6)),"Agncy Repl.","")) ->  | GT23: =IF(GT21="","",IF(GU21="",GT21,IF(OR(GU21>(GT21+6),GU21<(GT21-6)),GU21,GT21))) ->  | GU23: =IF(GU21="","",IF(OR(GU21>(GT21+6),GU21<(GT21-6)),"Agncy Repl.","")) ->  | GV23: =IF(GV21="","",IF(OR(GV21>(GU21+6),GV21<(GU21-6)),"Agncy Repl.","")) ->  | GW23: Calc. % | GZ23: =IF(GZ21="","",IF(HA21="",GZ21,IF(OR(HA21>(GZ21+6),HA21<(GZ21-6)),HA21,GZ21))) ->  | HA23: =IF(HA21="","",IF(OR(HA21>(GZ21+6),HA21<(GZ21-6)),"Agncy Repl.","")) ->  | HB23: =IF(HB21="","",IF(HC21="",HB21,IF(OR(HC21>(HB21+6),HC21<(HB21-6)),HC21,HB21))) ->  | HC23: =IF(HC21="","",IF(OR(HC21>(HB21+6),HC21<(HB21-6)),"Agncy Repl.","")) ->  | HD23: =IF(HD21="","",IF(HE21="",HD21,IF(OR(HE21>(HD21+6),HE21<(HD21-6)),HE21,HD21))) ->  | HE23: =IF(HE21="","",IF(OR(HE21>(HD21+6),HE21<(HD21-6)),"Agncy Repl.","")) ->  | HF23: =IF(HF21="","",IF(HG21="",HF21,IF(OR(HG21>(HF21+6),HG21<(HF21-6)),HG21,HF21))) ->  | HG23: =IF(HG21="","",IF(OR(HG21>(HF21+6),HG21<(HF21-6)),"Agncy Repl.","")) ->  | HH23: =IF(HH21="","",IF(OR(HH21>(HG21+6),HH21<(HG21-6)),"Agncy Repl.","")) ->  | HI23: Calc. % | HL23: =IF(HL21="","",IF(HM21="",HL21,IF(OR(HM21>(HL21+6),HM21<(HL21-6)),HM21,HL21))) ->  | HM23: =IF(HM21="","",IF(OR(HM21>(HL21+6),HM21<(HL21-6)),"Agncy Repl.","")) ->  | HN23: =IF(HN21="","",IF(HO21="",HN21,IF(OR(HO21>(HN21+6),HO21<(HN21-6)),HO21,HN21))) ->  | HO23: =IF(HO21="","",IF(OR(HO21>(HN21+6),HO21<(HN21-6)),"Agncy Repl.","")) ->  | HP23: =IF(HP21="","",IF(HQ21="",HP21,IF(OR(HQ21>(HP21+6),HQ21<(HP21-6)),HQ21,HP21))) ->  | HQ23: =IF(HQ21="","",IF(OR(HQ21>(HP21+6),HQ21<(HP21-6)),"Agncy Repl.","")) ->  | HR23: =IF(HR21="","",IF(HS21="",HR21,IF(OR(HS21>(HR21+6),HS21<(HR21-6)),HS21,HR21))) ->  | HS23: =IF(HS21="","",IF(OR(HS21>(HR21+6),HS21<(HR21-6)),"Agncy Repl.","")) ->  | HU23: Calc. % | HX23: =IF(HX21="","",IF(HY21="",HX21,IF(OR(HY21>(HX21+6),HY21<(HX21-6)),HY21,HX21))) ->  | HY23: =IF(HY21="","",IF(OR(HY21>(HX21+6),HY21<(HX21-6)),"Agncy Repl.","")) ->  | HZ23: =IF(HZ21="","",IF(IA21="",HZ21,IF(OR(IA21>(HZ21+6),IA21<(HZ21-6)),IA21,HZ21))) ->  | IA23: =IF(IA21="","",IF(OR(IA21>(HZ21+6),IA21<(HZ21-6)),"Agncy Repl.","")) ->  | IB23: =IF(IB21="","",IF(IC21="",IB21,IF(OR(IC21>(IB21+6),IC21<(IB21-6)),IC21,IB21))) ->  | IC23: =IF(IC21="","",IF(OR(IC21>(IB21+6),IC21<(IB21-6)),"Agncy Repl.","")) ->  | ID23: =IF(ID21="","",IF(IE21="",ID21,IF(OR(IE21>(ID21+6),IE21<(ID21-6)),IE21,ID21))) ->  | IE23: =IF(IE21="","",IF(OR(IE21>(ID21+6),IE21<(ID21-6)),"Agncy Repl.","")) ->  | IG23: Calc. % | IJ23: =IF(IJ21="","",IF(IK21="",IJ21,IF(OR(IK21>(IJ21+6),IK21<(IJ21-6)),IK21,IJ21))) ->  | IK23: =IF(IK21="","",IF(OR(IK21>(IJ21+6),IK21<(IJ21-6)),"Agncy Repl.","")) ->  | IL23: =IF(IL21="","",IF(IM21="",IL21,IF(OR(IM21>(IL21+6),IM21<(IL21-6)),IM21,IL21))) ->  | IM23: =IF(IM21="","",IF(OR(IM21>(IL21+6),IM21<(IL21-6)),"Agncy Repl.","")) ->  | IN23: =IF(IN21="","",IF(IO21="",IN21,IF(OR(IO21>(IN21+6),IO21<(IN21-6)),IO21,IN21))) ->  | IO23: =IF(IO21="","",IF(OR(IO21>(IN21+6),IO21<(IN21-6)),"Agncy Repl.","")) ->  | IP23: =IF(IP21="","",IF(IQ21="",IP21,IF(OR(IQ21>(IP21+6),IQ21<(IP21-6)),IQ21,IP21))) ->  | IQ23: =IF(IQ21="","",IF(OR(IQ21>(IP21+6),IQ21<(IP21-6)),"Agncy Repl.","")) ->  | IW23: B= PG 58-28
A24: 1/2 in. | M24: 1/2 in. | Y24: 1/2 in. | AK24: 1/2 in. | AW24: 1/2 in. | BI24: 1/2 in. | BU24: 1/2 in. | CG24: 1/2 in. | CS24: 1/2 in. | DE24: 1/2 in. | DQ24: 1/2 in. | EC24: 1/2 in. | EO24: 1/2 in. | FA24: 1/2 in. | FM24: 1/2 in. | FY24: 1/2 in. | GK24: 1/2 in. | GW24: 1/2 in. | HI24: 1/2 in. | HU24: 1/2 in. | IG24: 1/2 in. | IT24: 0 | IU24: Agency AFT Substituted | IW24: C = PG 58-34
A25: Mov Avg. | B25: =IF(MDR!$Y$5="YES",MDR!$BQ$46,MDR!$BV$46) -> 85 | C25: =IF(MDR!$Y$5="YES",MDR!$BR$46,MDR!$BW$46) -> 100 | E25: =IF(E24="","",IF(OR(E24>(D24+6),E24<(D24-6)),"Tolerance","")) ->  | G25: =IF(G24="","",IF(OR(G24>(F24+6),G24<(F24-6)),"Tolerance","")) ->  | I25: =IF(I24="","",IF(OR(I24>(H24+6),I24<(H24-6)),"Tolerance","")) ->  | J25: =mndot_rounding_0(IF(D24="","",IF(F24="","",IF(H24="","",IF(J24="","",Grad!G14))))) ->  | K25: =IF(K24="","",IF(OR(K24>(J24+6),K24<(J24-6)),"Tolerance","")) ->  | M25: Mov Avg. | N25: =IF(MDR!$AL$4="YES",MDR!$BQ$46,MDR!$S16) -> 85 | O25: =IF(MDR!$AL$4="YES",MDR!$BR$46,MDR!$T16) -> 100 | P25: =mndot_rounding_0(Grad!T15) ->  | Q25: =IF(Q24="","",IF(OR(Q24>(P24+6),Q24<(P24-6)),"Tolerance","")) ->  | R25: =mndot_rounding_0(Grad!T16) ->  | S25: =IF(S24="","",IF(OR(S24>(R24+6),S24<(R24-6)),"Tolerance","")) ->  | T25: =mndot_rounding_0(Grad!T17) ->  | U25: =IF(U24="","",IF(OR(U24>(T24+6),U24<(T24-6)),"Tolerance","")) ->  | V25: =mndot_rounding_0(Grad!T18) ->  | W25: =IF(W24="","",IF(OR(W24>(V24+6),W24<(V24-6)),"Tolerance","")) ->  | Y25: Mov Avg. | Z25: =IF(MDR!$AL$4="YES",MDR!$BQ$46,MDR!$S20) -> 85 | AA25: =IF(MDR!$AL$4="YES",MDR!$BR$46,MDR!$T20) -> 100 | AB25: =mndot_rounding_0(Grad!$T19) ->  | AC25: =IF(AC24="","",IF(OR(AC24>(AB24+6),AC24<(AB24-6)),"Tolerance","")) ->  | AD25: =mndot_rounding_0(Grad!$T20) ->  | AE25: =IF(AE24="","",IF(OR(AE24>(AD24+6),AE24<(AD24-6)),"Tolerance","")) ->  | AF25: =mndot_rounding_0(Grad!$T21) ->  | AG25: =IF(AG24="","",IF(OR(AG24>(AF24+6),AG24<(AF24-6)),"Tolerance","")) ->  | AH25: =mndot_rounding_0(Grad!$T22) ->  | AI25: =IF(AI24="","",IF(OR(AI24>(AH24+6),AI24<(AH24-6)),"Tolerance","")) ->  | AK25: Mov Avg. | AL25: =IF(MDR!$AL$4="YES",MDR!$BQ$46,MDR!$S24) -> 85 | AM25: =IF(MDR!$AL$4="YES",MDR!$BR$46,MDR!$T24) -> 100 | AN25: =mndot_rounding_0(Grad!$T23) ->  | AO25: =IF(AO24="","",IF(OR(AO24>(AN24+6),AO24<(AN24-6)),"Tolerance","")) ->  | AP25: =mndot_rounding_0(Grad!$T24) ->  | AQ25: =IF(AQ24="","",IF(OR(AQ24>(AP24+6),AQ24<(AP24-6)),"Tolerance","")) ->  | AR25: =mndot_rounding_0(Grad!$T25) ->  | AS25: =IF(AS24="","",IF(OR(AS24>(AR24+6),AS24<(AR24-6)),"Tolerance","")) ->  | AT25: =mndot_rounding_0(Grad!$T26) ->  | AU25: =IF(AU24="","",IF(OR(AU24>(AT24+6),AU24<(AT24-6)),"Tolerance","")) ->  | AW25: Mov Avg. | AX25: =IF(MDR!$AL$4="YES",MDR!$BQ$46,MDR!$S28) -> 85 | AY25: =IF(MDR!$AL$4="YES",MDR!$BR$46,MDR!$T28) -> 100 | AZ25: =mndot_rounding_0(Grad!$T27) ->  | BA25: =IF(BA24="","",IF(OR(BA24>(AZ24+6),BA24<(AZ24-6)),"Tolerance","")) ->  | BB25: =mndot_rounding_0(Grad!$T28) ->  | BC25: =IF(BC24="","",IF(OR(BC24>(BB24+6),BC24<(BB24-6)),"Tolerance","")) ->  | BD25: =mndot_rounding_0(Grad!$T29) ->  | BE25: =IF(BE24="","",IF(OR(BE24>(BD24+6),BE24<(BD24-6)),"Tolerance","")) ->  | BF25: =mndot_rounding_0(Grad!$T30) ->  | BG25: =IF(BG24="","",IF(OR(BG24>(BF24+6),BG24<(BF24-6)),"Tolerance","")) ->  | BI25: Mov Avg. | BJ25: =IF(MDR!$AL$4="YES",MDR!$BQ$46,MDR!$S32) -> 85 | BK25: =IF(MDR!$AL$4="YES",MDR!$BR$46,MDR!$T32) -> 100 | BL25: =mndot_rounding_0(Grad!$T31) ->  | BM25: =IF(BM24="","",IF(OR(BM24>(BL24+6),BM24<(BL24-6)),"Tolerance","")) ->  | BN25: =mndot_rounding_0(Grad!$T32) ->  | BO25: =IF(BO24="","",IF(OR(BO24>(BN24+6),BO24<(BN24-6)),"Tolerance","")) ->  | BP25: =mndot_rounding_0(Grad!$T33) ->  | BQ25: =IF(BQ24="","",IF(OR(BQ24>(BP24+6),BQ24<(BP24-6)),"Tolerance","")) ->  | BR25: =mndot_rounding_0(Grad!$T34) ->  | BS25: =IF(BS24="","",IF(OR(BS24>(BR24+6),BS24<(BR24-6)),"Tolerance","")) ->  | BU25: Mov Avg. | BV25: =IF(MDR!$AL$4="YES",MDR!$BQ$46,MDR!$S36) -> 85 | BW25: =IF(MDR!$AL$4="YES",MDR!$BR$46,MDR!$T36) -> 100 | BX25: =mndot_rounding_0(Grad!$T35) ->  | BY25: =IF(BY24="","",IF(OR(BY24>(BX24+6),BY24<(BX24-6)),"Tolerance","")) ->  | BZ25: =mndot_rounding_0(Grad!$T36) ->  | CA25: =IF(CA24="","",IF(OR(CA24>(BZ24+6),CA24<(BZ24-6)),"Tolerance","")) ->  | CB25: =mndot_rounding_0(Grad!$T37) ->  | CC25: =IF(CC24="","",IF(OR(CC24>(CB24+6),CC24<(CB24-6)),"Tolerance","")) ->  | CD25: =mndot_rounding_0(Grad!$T38) ->  | CE25: =IF(CE24="","",IF(OR(CE24>(CD24+6),CE24<(CD24-6)),"Tolerance","")) ->  | CG25: Mov Avg. | CH25: =IF(MDR!$AL$4="YES",MDR!$BQ$46,MDR!$S40) -> 85 | CI25: =IF(MDR!$AL$4="YES",MDR!$BR$46,MDR!$T40) -> 100 | CJ25: =mndot_rounding_0(Grad!$T39) ->  | CK25: =IF(CK24="","",IF(OR(CK24>(CJ24+6),CK24<(CJ24-6)),"Tolerance","")) ->  | CL25: =mndot_rounding_0(Grad!$T40) ->  | CM25: =IF(CM24="","",IF(OR(CM24>(CL24+6),CM24<(CL24-6)),"Tolerance","")) ->  | CN25: =mndot_rounding_0(Grad!$T41) ->  | CO25: =IF(CO24="","",IF(OR(CO24>(CN24+6),CO24<(CN24-6)),"Tolerance","")) ->  | CP25: =mndot_rounding_0(Grad!$T42) ->  | CQ25: =IF(CQ24="","",IF(OR(CQ24>(CP24+6),CQ24<(CP24-6)),"Tolerance","")) ->  | CS25: Mov Avg. | CT25: =IF(MDR!$AL$4="YES",MDR!$BQ$46,MDR!$S44) -> 85 | CU25: =IF(MDR!$AL$4="YES",MDR!$BR$46,MDR!$T44) -> 100 | CV25: =mndot_rounding_0(Grad!$T43) ->  | CW25: =IF(CW24="","",IF(OR(CW24>(CV24+6),CW24<(CV24-6)),"Tolerance","")) ->  | CX25: =mndot_rounding_0(Grad!$T44) ->  | CY25: =IF(CY24="","",IF(OR(CY24>(CX24+6),CY24<(CX24-6)),"Tolerance","")) ->  | CZ25: =mndot_rounding_0(Grad!$T45) ->  | DA25: =IF(DA24="","",IF(OR(DA24>(CZ24+6),DA24<(CZ24-6)),"Tolerance","")) ->  | DB25: =mndot_rounding_0(Grad!$T46) ->  | DC25: =IF(DC24="","",IF(OR(DC24>(DB24+6),DC24<(DB24-6)),"Tolerance","")) ->  | DE25: Mov Avg. | DF25: =IF(MDR!$AL$4="YES",MDR!$BQ$46,MDR!$S48) -> 85 | DG25: =IF(MDR!$AL$4="YES",MDR!$BR$46,MDR!$T48) -> 100 | DH25: =mndot_rounding_0(Grad!$T47) ->  | DI25: =IF(DI24="","",IF(OR(DI24>(DH24+6),DI24<(DH24-6)),"Tolerance","")) ->  | DJ25: =mndot_rounding_0(Grad!$T48) ->  | DK25: =IF(DK24="","",IF(OR(DK24>(DJ24+6),DK24<(DJ24-6)),"Tolerance","")) ->  | DL25: =mndot_rounding_0(Grad!$T49) ->  | DM25: =IF(DM24="","",IF(OR(DM24>(DL24+6),DM24<(DL24-6)),"Tolerance","")) ->  | DN25: =mndot_rounding_0(Grad!$T50) ->  | DO25: =IF(DO24="","",IF(OR(DO24>(DN24+6),DO24<(DN24-6)),"Tolerance","")) ->  | DQ25: Mov Avg. | DR25: =IF(MDR!$AL$4="YES",MDR!$BQ$46,MDR!$S52) -> 85 | DS25: =IF(MDR!$AL$4="YES",MDR!$BR$46,MDR!$T52) -> 100 | DT25: =mndot_rounding_0(Grad!$T51) ->  | DU25: =IF(DU24="","",IF(OR(DU24>(DT24+6),DU24<(DT24-6)),"Tolerance","")) ->  | DV25: =mndot_rounding_0(Grad!$T52) ->  | DW25: =IF(DW24="","",IF(OR(DW24>(DV24+6),DW24<(DV24-6)),"Tolerance","")) ->  | DX25: =mndot_rounding_0(Grad!$T53) ->  | DY25: =IF(DY24="","",IF(OR(DY24>(DX24+6),DY24<(DX24-6)),"Tolerance","")) ->  | DZ25: =mndot_rounding_0(Grad!$T54) ->  | EA25: =IF(EA24="","",IF(OR(EA24>(DZ24+6),EA24<(DZ24-6)),"Tolerance","")) ->  | EC25: Mov Avg. | ED25: =IF(MDR!$AL$4="YES",MDR!$BQ$46,MDR!$S56) -> 85 | EE25: =IF(MDR!$AL$4="YES",MDR!$BR$46,MDR!$T56) -> 100 | EF25: =mndot_rounding_0(Grad!$T55) ->  | EG25: =IF(EG24="","",IF(OR(EG24>(EF24+6),EG24<(EF24-6)),"Tolerance","")) ->  | EH25: =mndot_rounding_0(Grad!$T56) ->  | EI25: =IF(EI24="","",IF(OR(EI24>(EH24+6),EI24<(EH24-6)),"Tolerance","")) ->  | EJ25: =mndot_rounding_0(Grad!$T57) ->  | EK25: =IF(EK24="","",IF(OR(EK24>(EJ24+6),EK24<(EJ24-6)),"Tolerance","")) ->  | EL25: =mndot_rounding_0(Grad!$T58) ->  | EM25: =IF(EM24="","",IF(OR(EM24>(EL24+6),EM24<(EL24-6)),"Tolerance","")) ->  | EO25: Mov Avg. | EP25: =IF(MDR!$AL$4="YES",MDR!$BQ$46,MDR!$S60) -> 85 | EQ25: =IF(MDR!$AL$4="YES",MDR!$BR$46,MDR!$T60) -> 100 | ER25: =mndot_rounding_0(Grad!$T59) ->  | ES25: =IF(ES24="","",IF(OR(ES24>(ER24+6),ES24<(ER24-6)),"Tolerance","")) ->  | ET25: =mndot_rounding_0(Grad!$T60) ->  | EU25: =IF(EU24="","",IF(OR(EU24>(ET24+6),EU24<(ET24-6)),"Tolerance","")) ->  | EV25: =mndot_rounding_0(Grad!$T61) ->  | EW25: =IF(EW24="","",IF(OR(EW24>(EV24+6),EW24<(EV24-6)),"Tolerance","")) ->  | EX25: =mndot_rounding_0(Grad!$T62) ->  | EY25: =IF(EY24="","",IF(OR(EY24>(EX24+6),EY24<(EX24-6)),"Tolerance","")) ->  | FA25: Mov Avg. | FB25: =IF(MDR!$AL$4="YES",MDR!$BQ$46,MDR!$S64) -> 85 | FC25: =IF(MDR!$AL$4="YES",MDR!$BR$46,MDR!$T64) -> 100 | FD25: =mndot_rounding_0(Grad!$T63) ->  | FE25: =IF(FE24="","",IF(OR(FE24>(FD24+6),FE24<(FD24-6)),"Tolerance","")) ->  | FF25: =mndot_rounding_0(Grad!$T64) ->  | FG25: =IF(FG24="","",IF(OR(FG24>(FF24+6),FG24<(FF24-6)),"Tolerance","")) ->  | FH25: =mndot_rounding_0(Grad!$T65) ->  | FI25: =IF(FI24="","",IF(OR(FI24>(FH24+6),FI24<(FH24-6)),"Tolerance","")) ->  | FJ25: =mndot_rounding_0(Grad!$T66) ->  | FK25: =IF(FK24="","",IF(OR(FK24>(FJ24+6),FK24<(FJ24-6)),"Tolerance","")) ->  | FM25: Mov Avg. | FN25: =IF(MDR!$AL$4="YES",MDR!$BQ$46,MDR!$S68) -> 85 | FO25: =IF(MDR!$AL$4="YES",MDR!$BR$46,MDR!$T68) -> 100 | FP25: =mndot_rounding_0(Grad!$T67) ->  | FQ25: =IF(FQ24="","",IF(OR(FQ24>(FP24+6),FQ24<(FP24-6)),"Tolerance","")) ->  | FR25: =mndot_rounding_0(Grad!$T68) ->  | FS25: =IF(FS24="","",IF(OR(FS24>(FR24+6),FS24<(FR24-6)),"Tolerance","")) ->  | FT25: =mndot_rounding_0(Grad!$T69) ->  | FU25: =IF(FU24="","",IF(OR(FU24>(FT24+6),FU24<(FT24-6)),"Tolerance","")) ->  | FV25: =mndot_rounding_0(Grad!$T70) ->  | FW25: =IF(FW24="","",IF(OR(FW24>(FV24+6),FW24<(FV24-6)),"Tolerance","")) ->  | FY25: Mov Avg. | FZ25: =IF(MDR!$AL$4="YES",MDR!$BQ$46,MDR!$S72) -> 85 | GA25: =IF(MDR!$AL$4="YES",MDR!$BR$46,MDR!$T72) -> 100 | GB25: =mndot_rounding_0(Grad!$T71) ->  | GC25: =IF(GC24="","",IF(OR(GC24>(GB24+6),GC24<(GB24-6)),"Tolerance","")) ->  | GD25: =mndot_rounding_0(Grad!$T72) ->  | GE25: =IF(GE24="","",IF(OR(GE24>(GD24+6),GE24<(GD24-6)),"Tolerance","")) ->  | GF25: =mndot_rounding_0(Grad!$T73) ->  | GG25: =IF(GG24="","",IF(OR(GG24>(GF24+6),GG24<(GF24-6)),"Tolerance","")) ->  | GH25: =mndot_rounding_0(Grad!$T74) ->  | GI25: =IF(GI24="","",IF(OR(GI24>(GH24+6),GI24<(GH24-6)),"Tolerance","")) ->  | GK25: Mov Avg. | GL25: =IF(MDR!$AL$4="YES",MDR!$BQ$46,MDR!$S76) -> 85 | GM25: =IF(MDR!$AL$4="YES",MDR!$BR$46,MDR!$T76) -> 100 | GN25: =mndot_rounding_0(Grad!$T75) ->  | GO25: =IF(GO24="","",IF(OR(GO24>(GN24+6),GO24<(GN24-6)),"Tolerance","")) ->  | GP25: =mndot_rounding_0(Grad!$T76) ->  | GQ25: =IF(GQ24="","",IF(OR(GQ24>(GP24+6),GQ24<(GP24-6)),"Tolerance","")) ->  | GR25: =mndot_rounding_0(Grad!$T77) ->  | GS25: =IF(GS24="","",IF(OR(GS24>(GR24+6),GS24<(GR24-6)),"Tolerance","")) ->  | GT25: =mndot_rounding_0(Grad!$T78) ->  | GU25: =IF(GU24="","",IF(OR(GU24>(GT24+6),GU24<(GT24-6)),"Tolerance","")) ->  | GW25: Mov Avg. | GX25: =IF(MDR!$AL$4="YES",MDR!$BQ$46,MDR!$S80) -> 85 | GY25: =IF(MDR!$AL$4="YES",MDR!$BR$46,MDR!$T80) -> 100 | GZ25: =mndot_rounding_0(Grad!$T79) ->  | HA25: =IF(HA24="","",IF(OR(HA24>(GZ24+6),HA24<(GZ24-6)),"Tolerance","")) ->  | HB25: =mndot_rounding_0(Grad!$T80) ->  | HC25: =IF(HC24="","",IF(OR(HC24>(HB24+6),HC24<(HB24-6)),"Tolerance","")) ->  | HD25: =mndot_rounding_0(Grad!$T81) ->  | HE25: =IF(HE24="","",IF(OR(HE24>(HD24+6),HE24<(HD24-6)),"Tolerance","")) ->  | HF25: =mndot_rounding_0(Grad!$T82) ->  | HG25: =IF(HG24="","",IF(OR(HG24>(HF24+6),HG24<(HF24-6)),"Tolerance","")) ->  | HI25: Mov Avg. | HJ25: =IF(MDR!$AL$4="YES",MDR!$BQ$46,MDR!$S84) -> 85 | HK25: =IF(MDR!$AL$4="YES",MDR!$BR$46,MDR!$T84) -> 100 | HL25: =mndot_rounding_0(Grad!$T83) ->  | HM25: =IF(HM24="","",IF(OR(HM24>(HL24+6),HM24<(HL24-6)),"Tolerance","")) ->  | HN25: =mndot_rounding_0(Grad!$T84) ->  | HO25: =IF(HO24="","",IF(OR(HO24>(HN24+6),HO24<(HN24-6)),"Tolerance","")) ->  | HP25: =mndot_rounding_0(Grad!$T85) ->  | HQ25: =IF(HQ24="","",IF(OR(HQ24>(HP24+6),HQ24<(HP24-6)),"Tolerance","")) ->  | HR25: =mndot_rounding_0(Grad!$T86) ->  | HS25: =IF(HS24="","",IF(OR(HS24>(HR24+6),HS24<(HR24-6)),"Tolerance","")) ->  | HU25: Mov Avg. | HV25: =IF(MDR!$AL$4="YES",MDR!$BQ$46,MDR!$S88) -> 85 | HW25: =IF(MDR!$AL$4="YES",MDR!$BR$46,MDR!$T88) -> 100 | HX25: =mndot_rounding_0(Grad!$T87) ->  | HY25: =IF(HY24="","",IF(OR(HY24>(HX24+6),HY24<(HX24-6)),"Tolerance","")) ->  | HZ25: =mndot_rounding_0(Grad!$T88) ->  | IA25: =IF(IA24="","",IF(OR(IA24>(HZ24+6),IA24<(HZ24-6)),"Tolerance","")) ->  | IB25: =mndot_rounding_0(Grad!$T89) ->  | IC25: =IF(IC24="","",IF(OR(IC24>(IB24+6),IC24<(IB24-6)),"Tolerance","")) ->  | ID25: =mndot_rounding_0(Grad!$T90) ->  | IE25: =IF(IE24="","",IF(OR(IE24>(ID24+6),IE24<(ID24-6)),"Tolerance","")) ->  | IG25: Mov Avg. | IH25: =IF(MDR!$AL$4="YES",MDR!$BQ$46,MDR!$S92) -> 85 | II25: =IF(MDR!$AL$4="YES",MDR!$BR$46,MDR!$T92) -> 100 | IJ25: =mndot_rounding_0(Grad!$T91) ->  | IK25: =IF(IK24="","",IF(OR(IK24>(IJ24+6),IK24<(IJ24-6)),"Tolerance","")) ->  | IL25: =mndot_rounding_0(Grad!$T92) ->  | IM25: =IF(IM24="","",IF(OR(IM24>(IL24+6),IM24<(IL24-6)),"Tolerance","")) ->  | IN25: =mndot_rounding_0(Grad!$T93) ->  | IO25: =IF(IO24="","",IF(OR(IO24>(IN24+6),IO24<(IN24-6)),"Tolerance","")) ->  | IP25: =mndot_rounding_0(Grad!$T94) ->  | IQ25: =IF(IQ24="","",IF(OR(IQ24>(IP24+6),IQ24<(IP24-6)),"Tolerance","")) ->  | IT25: 0 | IU25: Agency AFT Substituted | IW25: C = PG 58-34 (PMB)
A26: 1/2" Calc. % | D26: =IF(D24="","",IF(E24="",D24,IF(OR(E24>(D24+6),E24<(D24-6)),E24,D24))) ->  | E26: =IF(E24="","",IF(OR(E24>(D24+6),E24<(D24-6)),"Agncy Repl.","")) ->  | F26: =IF(F24="","",IF(G24="",F24,IF(OR(G24>(F24+6),G24<(F24-6)),G24,F24))) ->  | G26: =IF(G24="","",IF(OR(G24>(F24+6),G24<(F24-6)),"Agncy Repl.","")) ->  | H26: =IF(H24="","",IF(I24="",H24,IF(OR(I24>(H24+6),I24<(H24-6)),I24,H24))) ->  | I26: =IF(I24="","",IF(OR(I24>(H24+6),I24<(H24-6)),"Agncy Repl.","")) ->  | J26: =IF(J24="","",IF(K24="",J24,IF(OR(K24>(J24+6),K24<(J24-6)),K24,J24))) ->  | K26: =IF(K24="","",IF(OR(K24>(J24+6),K24<(J24-6)),"Agncy Repl.","")) ->  | M26: Calc. % | P26: =IF(P24="","",IF(Q24="",P24,IF(OR(Q24>(P24+6),Q24<(P24-6)),Q24,P24))) ->  | Q26: =IF(Q24="","",IF(OR(Q24>(P24+6),Q24<(P24-6)),"Agncy Repl.","")) ->  | R26: =IF(R24="","",IF(S24="",R24,IF(OR(S24>(R24+6),S24<(R24-6)),S24,R24))) ->  | S26: =IF(S24="","",IF(OR(S24>(R24+6),S24<(R24-6)),"Agncy Repl.","")) ->  | T26: =IF(T24="","",IF(U24="",T24,IF(OR(U24>(T24+6),U24<(T24-6)),U24,T24))) ->  | U26: =IF(U24="","",IF(OR(U24>(T24+6),U24<(T24-6)),"Agncy Repl.","")) ->  | V26: =IF(V24="","",IF(W24="",V24,IF(OR(W24>(V24+6),W24<(V24-6)),W24,V24))) ->  | W26: =IF(W24="","",IF(OR(W24>(V24+6),W24<(V24-6)),"Agncy Repl.","")) ->  | Y26: Calc. % | AB26: =IF(AB24="","",IF(AC24="",AB24,IF(OR(AC24>(AB24+6),AC24<(AB24-6)),AC24,AB24))) ->  | AC26: =IF(AC24="","",IF(OR(AC24>(AB24+6),AC24<(AB24-6)),"Agncy Repl.","")) ->  | AD26: =IF(AD24="","",IF(AE24="",AD24,IF(OR(AE24>(AD24+6),AE24<(AD24-6)),AE24,AD24))) ->  | AE26: =IF(AE24="","",IF(OR(AE24>(AD24+6),AE24<(AD24-6)),"Agncy Repl.","")) ->  | AF26: =IF(AF24="","",IF(AG24="",AF24,IF(OR(AG24>(AF24+6),AG24<(AF24-6)),AG24,AF24))) ->  | AG26: =IF(AG24="","",IF(OR(AG24>(AF24+6),AG24<(AF24-6)),"Agncy Repl.","")) ->  | AH26: =IF(AH24="","",IF(AI24="",AH24,IF(OR(AI24>(AH24+6),AI24<(AH24-6)),AI24,AH24))) ->  | AI26: =IF(AI24="","",IF(OR(AI24>(AH24+6),AI24<(AH24-6)),"Agncy Repl.","")) ->  | AK26: Calc. % | AN26: =IF(AN24="","",IF(AO24="",AN24,IF(OR(AO24>(AN24+6),AO24<(AN24-6)),AO24,AN24))) ->  | AO26: =IF(AO24="","",IF(OR(AO24>(AN24+6),AO24<(AN24-6)),"Agncy Repl.","")) ->  | AP26: =IF(AP24="","",IF(AQ24="",AP24,IF(OR(AQ24>(AP24+6),AQ24<(AP24-6)),AQ24,AP24))) ->  | AQ26: =IF(AQ24="","",IF(OR(AQ24>(AP24+6),AQ24<(AP24-6)),"Agncy Repl.","")) ->  | AR26: =IF(AR24="","",IF(AS24="",AR24,IF(OR(AS24>(AR24+6),AS24<(AR24-6)),AS24,AR24))) ->  | AS26: =IF(AS24="","",IF(OR(AS24>(AR24+6),AS24<(AR24-6)),"Agncy Repl.","")) ->  | AT26: =IF(AT24="","",IF(AU24="",AT24,IF(OR(AU24>(AT24+6),AU24<(AT24-6)),AU24,AT24))) ->  | AU26: =IF(AU24="","",IF(OR(AU24>(AT24+6),AU24<(AT24-6)),"Agncy Repl.","")) ->  | AW26: Calc. % | AZ26: =IF(AZ24="","",IF(BA24="",AZ24,IF(OR(BA24>(AZ24+6),BA24<(AZ24-6)),BA24,AZ24))) ->  | BA26: =IF(BA24="","",IF(OR(BA24>(AZ24+6),BA24<(AZ24-6)),"Agncy Repl.","")) ->  | BB26: =IF(BB24="","",IF(BC24="",BB24,IF(OR(BC24>(BB24+6),BC24<(BB24-6)),BC24,BB24))) ->  | BC26: =IF(BC24="","",IF(OR(BC24>(BB24+6),BC24<(BB24-6)),"Agncy Repl.","")) ->  | BD26: =IF(BD24="","",IF(BE24="",BD24,IF(OR(BE24>(BD24+6),BE24<(BD24-6)),BE24,BD24))) ->  | BE26: =IF(BE24="","",IF(OR(BE24>(BD24+6),BE24<(BD24-6)),"Agncy Repl.","")) ->  | BF26: =IF(BF24="","",IF(BG24="",BF24,IF(OR(BG24>(BF24+6),BG24<(BF24-6)),BG24,BF24))) ->  | BG26: =IF(BG24="","",IF(OR(BG24>(BF24+6),BG24<(BF24-6)),"Agncy Repl.","")) ->  | BI26: Calc. % | BL26: =IF(BL24="","",IF(BM24="",BL24,IF(OR(BM24>(BL24+6),BM24<(BL24-6)),BM24,BL24))) ->  | BM26: =IF(BM24="","",IF(OR(BM24>(BL24+6),BM24<(BL24-6)),"Agncy Repl.","")) ->  | BN26: =IF(BN24="","",IF(BO24="",BN24,IF(OR(BO24>(BN24+6),BO24<(BN24-6)),BO24,BN24))) ->  | BO26: =IF(BO24="","",IF(OR(BO24>(BN24+6),BO24<(BN24-6)),"Agncy Repl.","")) ->  | BP26: =IF(BP24="","",IF(BQ24="",BP24,IF(OR(BQ24>(BP24+6),BQ24<(BP24-6)),BQ24,BP24))) ->  | BQ26: =IF(BQ24="","",IF(OR(BQ24>(BP24+6),BQ24<(BP24-6)),"Agncy Repl.","")) ->  | BR26: =IF(BR24="","",IF(BS24="",BR24,IF(OR(BS24>(BR24+6),BS24<(BR24-6)),BS24,BR24))) ->  | BS26: =IF(BS24="","",IF(OR(BS24>(BR24+6),BS24<(BR24-6)),"Agncy Repl.","")) ->  | BU26: Calc. % | BX26: =IF(BX24="","",IF(BY24="",BX24,IF(OR(BY24>(BX24+6),BY24<(BX24-6)),BY24,BX24))) ->  | BY26: =IF(BY24="","",IF(OR(BY24>(BX24+6),BY24<(BX24-6)),"Agncy Repl.","")) ->  | BZ26: =IF(BZ24="","",IF(CA24="",BZ24,IF(OR(CA24>(BZ24+6),CA24<(BZ24-6)),CA24,BZ24))) ->  | CA26: =IF(CA24="","",IF(OR(CA24>(BZ24+6),CA24<(BZ24-6)),"Agncy Repl.","")) ->  | CB26: =IF(CB24="","",IF(CC24="",CB24,IF(OR(CC24>(CB24+6),CC24<(CB24-6)),CC24,CB24))) ->  | CC26: =IF(CC24="","",IF(OR(CC24>(CB24+6),CC24<(CB24-6)),"Agncy Repl.","")) ->  | CD26: =IF(CD24="","",IF(CE24="",CD24,IF(OR(CE24>(CD24+6),CE24<(CD24-6)),CE24,CD24))) ->  | CE26: =IF(CE24="","",IF(OR(CE24>(CD24+6),CE24<(CD24-6)),"Agncy Repl.","")) ->  | CG26: Calc. % | CJ26: =IF(CJ24="","",IF(CK24="",CJ24,IF(OR(CK24>(CJ24+6),CK24<(CJ24-6)),CK24,CJ24))) ->  | CK26: =IF(CK24="","",IF(OR(CK24>(CJ24+6),CK24<(CJ24-6)),"Agncy Repl.","")) ->  | CL26: =IF(CL24="","",IF(CM24="",CL24,IF(OR(CM24>(CL24+6),CM24<(CL24-6)),CM24,CL24))) ->  | CM26: =IF(CM24="","",IF(OR(CM24>(CL24+6),CM24<(CL24-6)),"Agncy Repl.","")) ->  | CN26: =IF(CN24="","",IF(CO24="",CN24,IF(OR(CO24>(CN24+6),CO24<(CN24-6)),CO24,CN24))) ->  | CO26: =IF(CO24="","",IF(OR(CO24>(CN24+6),CO24<(CN24-6)),"Agncy Repl.","")) ->  | CP26: =IF(CP24="","",IF(CQ24="",CP24,IF(OR(CQ24>(CP24+6),CQ24<(CP24-6)),CQ24,CP24))) ->  | CQ26: =IF(CQ24="","",IF(OR(CQ24>(CP24+6),CQ24<(CP24-6)),"Agncy Repl.","")) ->  | CS26: Calc. % | CV26: =IF(CV24="","",IF(CW24="",CV24,IF(OR(CW24>(CV24+6),CW24<(CV24-6)),CW24,CV24))) ->  | CW26: =IF(CW24="","",IF(OR(CW24>(CV24+6),CW24<(CV24-6)),"Agncy Repl.","")) ->  | CX26: =IF(CX24="","",IF(CY24="",CX24,IF(OR(CY24>(CX24+6),CY24<(CX24-6)),CY24,CX24))) ->  | CY26: =IF(CY24="","",IF(OR(CY24>(CX24+6),CY24<(CX24-6)),"Agncy Repl.","")) ->  | CZ26: =IF(CZ24="","",IF(DA24="",CZ24,IF(OR(DA24>(CZ24+6),DA24<(CZ24-6)),DA24,CZ24))) ->  | DA26: =IF(DA24="","",IF(OR(DA24>(CZ24+6),DA24<(CZ24-6)),"Agncy Repl.","")) ->  | DB26: =IF(DB24="","",IF(DC24="",DB24,IF(OR(DC24>(DB24+6),DC24<(DB24-6)),DC24,DB24))) ->  | DC26: =IF(DC24="","",IF(OR(DC24>(DB24+6),DC24<(DB24-6)),"Agncy Repl.","")) ->  | DE26: Calc. % | DH26: =IF(DH24="","",IF(DI24="",DH24,IF(OR(DI24>(DH24+6),DI24<(DH24-6)),DI24,DH24))) ->  | DI26: =IF(DI24="","",IF(OR(DI24>(DH24+6),DI24<(DH24-6)),"Agncy Repl.","")) ->  | DJ26: =IF(DJ24="","",IF(DK24="",DJ24,IF(OR(DK24>(DJ24+6),DK24<(DJ24-6)),DK24,DJ24))) ->  | DK26: =IF(DK24="","",IF(OR(DK24>(DJ24+6),DK24<(DJ24-6)),"Agncy Repl.","")) ->  | DL26: =IF(DL24="","",IF(DM24="",DL24,IF(OR(DM24>(DL24+6),DM24<(DL24-6)),DM24,DL24))) ->  | DM26: =IF(DM24="","",IF(OR(DM24>(DL24+6),DM24<(DL24-6)),"Agncy Repl.","")) ->  | DN26: =IF(DN24="","",IF(DO24="",DN24,IF(OR(DO24>(DN24+6),DO24<(DN24-6)),DO24,DN24))) ->  | DO26: =IF(DO24="","",IF(OR(DO24>(DN24+6),DO24<(DN24-6)),"Agncy Repl.","")) ->  | DP26: =IF(DP24="","",IF(OR(DP24>(DO24+6),DP24<(DO24-6)),"Agncy Repl.","")) ->  | DQ26: Calc. % | DT26: =IF(DT24="","",IF(DU24="",DT24,IF(OR(DU24>(DT24+6),DU24<(DT24-6)),DU24,DT24))) ->  | DU26: =IF(DU24="","",IF(OR(DU24>(DT24+6),DU24<(DT24-6)),"Agncy Repl.","")) ->  | DV26: =IF(DV24="","",IF(DW24="",DV24,IF(OR(DW24>(DV24+6),DW24<(DV24-6)),DW24,DV24))) ->  | DW26: =IF(DW24="","",IF(OR(DW24>(DV24+6),DW24<(DV24-6)),"Agncy Repl.","")) ->  | DX26: =IF(DX24="","",IF(DY24="",DX24,IF(OR(DY24>(DX24+6),DY24<(DX24-6)),DY24,DX24))) ->  | DY26: =IF(DY24="","",IF(OR(DY24>(DX24+6),DY24<(DX24-6)),"Agncy Repl.","")) ->  | DZ26: =IF(DZ24="","",IF(EA24="",DZ24,IF(OR(EA24>(DZ24+6),EA24<(DZ24-6)),EA24,DZ24))) ->  | EA26: =IF(EA24="","",IF(OR(EA24>(DZ24+6),EA24<(DZ24-6)),"Agncy Repl.","")) ->  | EC26: Calc. % | EF26: =IF(EF24="","",IF(EG24="",EF24,IF(OR(EG24>(EF24+6),EG24<(EF24-6)),EG24,EF24))) ->  | EG26: =IF(EG24="","",IF(OR(EG24>(EF24+6),EG24<(EF24-6)),"Agncy Repl.","")) ->  | EH26: =IF(EH24="","",IF(EI24="",EH24,IF(OR(EI24>(EH24+6),EI24<(EH24-6)),EI24,EH24))) ->  | EI26: =IF(EI24="","",IF(OR(EI24>(EH24+6),EI24<(EH24-6)),"Agncy Repl.","")) ->  | EJ26: =IF(EJ24="","",IF(EK24="",EJ24,IF(OR(EK24>(EJ24+6),EK24<(EJ24-6)),EK24,EJ24))) ->  | EK26: =IF(EK24="","",IF(OR(EK24>(EJ24+6),EK24<(EJ24-6)),"Agncy Repl.","")) ->  | EL26: =IF(EL24="","",IF(EM24="",EL24,IF(OR(EM24>(EL24+6),EM24<(EL24-6)),EM24,EL24))) ->  | EM26: =IF(EM24="","",IF(OR(EM24>(EL24+6),EM24<(EL24-6)),"Agncy Repl.","")) ->  | EO26: Calc. % | ER26: =IF(ER24="","",IF(ES24="",ER24,IF(OR(ES24>(ER24+6),ES24<(ER24-6)),ES24,ER24))) ->  | ES26: =IF(ES24="","",IF(OR(ES24>(ER24+6),ES24<(ER24-6)),"Agncy Repl.","")) ->  | ET26: =IF(ET24="","",IF(EU24="",ET24,IF(OR(EU24>(ET24+6),EU24<(ET24-6)),EU24,ET24))) ->  | EU26: =IF(EU24="","",IF(OR(EU24>(ET24+6),EU24<(ET24-6)),"Agncy Repl.","")) ->  | EV26: =IF(EV24="","",IF(EW24="",EV24,IF(OR(EW24>(EV24+6),EW24<(EV24-6)),EW24,EV24))) ->  | EW26: =IF(EW24="","",IF(OR(EW24>(EV24+6),EW24<(EV24-6)),"Agncy Repl.","")) ->  | EX26: =IF(EX24="","",IF(EY24="",EX24,IF(OR(EY24>(EX24+6),EY24<(EX24-6)),EY24,EX24))) ->  | EY26: =IF(EY24="","",IF(OR(EY24>(EX24+6),EY24<(EX24-6)),"Agncy Repl.","")) ->  | FA26: Calc. % | FD26: =IF(FD24="","",IF(FE24="",FD24,IF(OR(FE24>(FD24+6),FE24<(FD24-6)),FE24,FD24))) ->  | FE26: =IF(FE24="","",IF(OR(FE24>(FD24+6),FE24<(FD24-6)),"Agncy Repl.","")) ->  | FF26: =IF(FF24="","",IF(FG24="",FF24,IF(OR(FG24>(FF24+6),FG24<(FF24-6)),FG24,FF24))) ->  | FG26: =IF(FG24="","",IF(OR(FG24>(FF24+6),FG24<(FF24-6)),"Agncy Repl.","")) ->  | FH26: =IF(FH24="","",IF(FI24="",FH24,IF(OR(FI24>(FH24+6),FI24<(FH24-6)),FI24,FH24))) ->  | FI26: =IF(FI24="","",IF(OR(FI24>(FH24+6),FI24<(FH24-6)),"Agncy Repl.","")) ->  | FJ26: =IF(FJ24="","",IF(FK24="",FJ24,IF(OR(FK24>(FJ24+6),FK24<(FJ24-6)),FK24,FJ24))) ->  | FK26: =IF(FK24="","",IF(OR(FK24>(FJ24+6),FK24<(FJ24-6)),"Agncy Repl.","")) ->  | FM26: Calc. % | FP26: =IF(FP24="","",IF(FQ24="",FP24,IF(OR(FQ24>(FP24+6),FQ24<(FP24-6)),FQ24,FP24))) ->  | FQ26: =IF(FQ24="","",IF(OR(FQ24>(FP24+6),FQ24<(FP24-6)),"Agncy Repl.","")) ->  | FR26: =IF(FR24="","",IF(FS24="",FR24,IF(OR(FS24>(FR24+6),FS24<(FR24-6)),FS24,FR24))) ->  | FS26: =IF(FS24="","",IF(OR(FS24>(FR24+6),FS24<(FR24-6)),"Agncy Repl.","")) ->  | FT26: =IF(FT24="","",IF(FU24="",FT24,IF(OR(FU24>(FT24+6),FU24<(FT24-6)),FU24,FT24))) ->  | FU26: =IF(FU24="","",IF(OR(FU24>(FT24+6),FU24<(FT24-6)),"Agncy Repl.","")) ->  | FV26: =IF(FV24="","",IF(FW24="",FV24,IF(OR(FW24>(FV24+6),FW24<(FV24-6)),FW24,FV24))) ->  | FW26: =IF(FW24="","",IF(OR(FW24>(FV24+6),FW24<(FV24-6)),"Agncy Repl.","")) ->  | FY26: Calc. % | GB26: =IF(GB24="","",IF(GC24="",GB24,IF(OR(GC24>(GB24+6),GC24<(GB24-6)),GC24,GB24))) ->  | GC26: =IF(GC24="","",IF(OR(GC24>(GB24+6),GC24<(GB24-6)),"Agncy Repl.","")) ->  | GD26: =IF(GD24="","",IF(GE24="",GD24,IF(OR(GE24>(GD24+6),GE24<(GD24-6)),GE24,GD24))) ->  | GE26: =IF(GE24="","",IF(OR(GE24>(GD24+6),GE24<(GD24-6)),"Agncy Repl.","")) ->  | GF26: =IF(GF24="","",IF(GG24="",GF24,IF(OR(GG24>(GF24+6),GG24<(GF24-6)),GG24,GF24))) ->  | GG26: =IF(GG24="","",IF(OR(GG24>(GF24+6),GG24<(GF24-6)),"Agncy Repl.","")) ->  | GH26: =IF(GH24="","",IF(GI24="",GH24,IF(OR(GI24>(GH24+6),GI24<(GH24-6)),GI24,GH24))) ->  | GI26: =IF(GI24="","",IF(OR(GI24>(GH24+6),GI24<(GH24-6)),"Agncy Repl.","")) ->  | GK26: Calc. % | GN26: =IF(GN24="","",IF(GO24="",GN24,IF(OR(GO24>(GN24+6),GO24<(GN24-6)),GO24,GN24))) ->  | GO26: =IF(GO24="","",IF(OR(GO24>(GN24+6),GO24<(GN24-6)),"Agncy Repl.","")) ->  | GP26: =IF(GP24="","",IF(GQ24="",GP24,IF(OR(GQ24>(GP24+6),GQ24<(GP24-6)),GQ24,GP24))) ->  | GQ26: =IF(GQ24="","",IF(OR(GQ24>(GP24+6),GQ24<(GP24-6)),"Agncy Repl.","")) ->  | GR26: =IF(GR24="","",IF(GS24="",GR24,IF(OR(GS24>(GR24+6),GS24<(GR24-6)),GS24,GR24))) ->  | GS26: =IF(GS24="","",IF(OR(GS24>(GR24+6),GS24<(GR24-6)),"Agncy Repl.","")) ->  | GT26: =IF(GT24="","",IF(GU24="",GT24,IF(OR(GU24>(GT24+6),GU24<(GT24-6)),GU24,GT24))) ->  | GU26: =IF(GU24="","",IF(OR(GU24>(GT24+6),GU24<(GT24-6)),"Agncy Repl.","")) ->  | GW26: Calc. % | GZ26: =IF(GZ24="","",IF(HA24="",GZ24,IF(OR(HA24>(GZ24+6),HA24<(GZ24-6)),HA24,GZ24))) ->  | HA26: =IF(HA24="","",IF(OR(HA24>(GZ24+6),HA24<(GZ24-6)),"Agncy Repl.","")) ->  | HB26: =IF(HB24="","",IF(HC24="",HB24,IF(OR(HC24>(HB24+6),HC24<(HB24-6)),HC24,HB24))) ->  | HC26: =IF(HC24="","",IF(OR(HC24>(HB24+6),HC24<(HB24-6)),"Agncy Repl.","")) ->  | HD26: =IF(HD24="","",IF(HE24="",HD24,IF(OR(HE24>(HD24+6),HE24<(HD24-6)),HE24,HD24))) ->  | HE26: =IF(HE24="","",IF(OR(HE24>(HD24+6),HE24<(HD24-6)),"Agncy Repl.","")) ->  | HF26: =IF(HF24="","",IF(HG24="",HF24,IF(OR(HG24>(HF24+6),HG24<(HF24-6)),HG24,HF24))) ->  | HG26: =IF(HG24="","",IF(OR(HG24>(HF24+6),HG24<(HF24-6)),"Agncy Repl.","")) ->  | HI26: Calc. % | HL26: =IF(HL24="","",IF(HM24="",HL24,IF(OR(HM24>(HL24+6),HM24<(HL24-6)),HM24,HL24))) ->  | HM26: =IF(HM24="","",IF(OR(HM24>(HL24+6),HM24<(HL24-6)),"Agncy Repl.","")) ->  | HN26: =IF(HN24="","",IF(HO24="",HN24,IF(OR(HO24>(HN24+6),HO24<(HN24-6)),HO24,HN24))) ->  | HO26: =IF(HO24="","",IF(OR(HO24>(HN24+6),HO24<(HN24-6)),"Agncy Repl.","")) ->  | HP26: =IF(HP24="","",IF(HQ24="",HP24,IF(OR(HQ24>(HP24+6),HQ24<(HP24-6)),HQ24,HP24))) ->  | HQ26: =IF(HQ24="","",IF(OR(HQ24>(HP24+6),HQ24<(HP24-6)),"Agncy Repl.","")) ->  | HR26: =IF(HR24="","",IF(HS24="",HR24,IF(OR(HS24>(HR24+6),HS24<(HR24-6)),HS24,HR24))) ->  | HS26: =IF(HS24="","",IF(OR(HS24>(HR24+6),HS24<(HR24-6)),"Agncy Repl.","")) ->  | HU26: Calc. % | HX26: =IF(HX24="","",IF(HY24="",HX24,IF(OR(HY24>(HX24+6),HY24<(HX24-6)),HY24,HX24))) ->  | HY26: =IF(HY24="","",IF(OR(HY24>(HX24+6),HY24<(HX24-6)),"Agncy Repl.","")) ->  | HZ26: =IF(HZ24="","",IF(IA24="",HZ24,IF(OR(IA24>(HZ24+6),IA24<(HZ24-6)),IA24,HZ24))) ->  | IA26: =IF(IA24="","",IF(OR(IA24>(HZ24+6),IA24<(HZ24-6)),"Agncy Repl.","")) ->  | IB26: =IF(IB24="","",IF(IC24="",IB24,IF(OR(IC24>(IB24+6),IC24<(IB24-6)),IC24,IB24))) ->  | IC26: =IF(IC24="","",IF(OR(IC24>(IB24+6),IC24<(IB24-6)),"Agncy Repl.","")) ->  | ID26: =IF(ID24="","",IF(IE24="",ID24,IF(OR(IE24>(ID24+6),IE24<(ID24-6)),IE24,ID24))) ->  | IE26: =IF(IE24="","",IF(OR(IE24>(ID24+6),IE24<(ID24-6)),"Agncy Repl.","")) ->  | IG26: Calc. % | IJ26: =IF(IJ24="","",IF(IK24="",IJ24,IF(OR(IK24>(IJ24+6),IK24<(IJ24-6)),IK24,IJ24))) ->  | IK26: =IF(IK24="","",IF(OR(IK24>(IJ24+6),IK24<(IJ24-6)),"Agncy Repl.","")) ->  | IL26: =IF(IL24="","",IF(IM24="",IL24,IF(OR(IM24>(IL24+6),IM24<(IL24-6)),IM24,IL24))) ->  | IM26: =IF(IM24="","",IF(OR(IM24>(IL24+6),IM24<(IL24-6)),"Agncy Repl.","")) ->  | IN26: =IF(IN24="","",IF(IO24="",IN24,IF(OR(IO24>(IN24+6),IO24<(IN24-6)),IO24,IN24))) ->  | IO26: =IF(IO24="","",IF(OR(IO24>(IN24+6),IO24<(IN24-6)),"Agncy Repl.","")) ->  | IP26: =IF(IP24="","",IF(IQ24="",IP24,IF(OR(IQ24>(IP24+6),IQ24<(IP24-6)),IQ24,IP24))) ->  | IQ26: =IF(IQ24="","",IF(OR(IQ24>(IP24+6),IQ24<(IP24-6)),"Agncy Repl.","")) ->  | IW26: E = PG 64-28
A27: 3/8 in. | M27: 3/8 in. | Y27: 3/8 in. | AK27: 3/8 in. | AW27: 3/8 in. | BI27: 3/8 in. | BU27: 3/8 in. | CG27: 3/8 in. | CS27: 3/8 in. | DE27: 3/8 in. | DQ27: 3/8 in. | EC27: 3/8 in. | EO27: 3/8 in. | FA27: 3/8 in. | FM27: 3/8 in. | FY27: 3/8 in. | GK27: 3/8 in. | GW27: 3/8 in. | HI27: 3/8 in. | HU27: 3/8 in. | IG27: 3/8 in. | IT27: 0 | IU27: Agency AFT Substituted | IW27: E = PG 64-28 (PMB)
A28: Mov Avg. | B28: =IF(MDR!$Y$5="YES",MDR!$BQ$47,MDR!$BV$47) -> 35 | C28: =IF(MDR!$AL$4="YES",MDR!$BR$47,MDR!$Z12) -> 90 | E28: =IF(E27="","",IF(OR(E27>(D27+6),E27<(D27-6)),"Tolerance","")) ->  | G28: =IF(G27="","",IF(OR(G27>(F27+6),G27<(F27-6)),"Tolerance","")) ->  | I28: =IF(I27="","",IF(OR(I27>(H27+6),I27<(H27-6)),"Tolerance","")) ->  | J28: =mndot_rounding_0(IF(D27="","",IF(F27="","",IF(H27="","",IF(J27="","",Grad!I14))))) ->  | K28: =IF(K27="","",IF(OR(K27>(J27+6),K27<(J27-6)),"Tolerance","")) ->  | M28: Mov Avg. | N28: =IF(MDR!$AL$4="YES",MDR!$BQ$47,MDR!$Y16) -> 35 | O28: =IF(MDR!$AL$4="YES",MDR!$BR$47,MDR!$Z16) -> 90 | P28: =mndot_rounding_0(Grad!U15) ->  | Q28: =IF(Q27="","",IF(OR(Q27>(P27+6),Q27<(P27-6)),"Tolerance","")) ->  | R28: =mndot_rounding_0(Grad!$U16) ->  | S28: =IF(S27="","",IF(OR(S27>(R27+6),S27<(R27-6)),"Tolerance","")) ->  | T28: =mndot_rounding_0(Grad!$U17) ->  | U28: =IF(U27="","",IF(OR(U27>(T27+6),U27<(T27-6)),"Tolerance","")) ->  | V28: =mndot_rounding_0(Grad!$U18) ->  | W28: =IF(W27="","",IF(OR(W27>(V27+6),W27<(V27-6)),"Tolerance","")) ->  | Y28: Mov Avg. | Z28: =IF(MDR!$AL$4="YES",MDR!$BQ$47,MDR!$Y20) -> 35 | AA28: =IF(MDR!$AL$4="YES",MDR!$BR$47,MDR!$Z20) -> 90 | AB28: =mndot_rounding_0(Grad!$U19) ->  | AC28: =IF(AC27="","",IF(OR(AC27>(AB27+6),AC27<(AB27-6)),"Tolerance","")) ->  | AD28: =mndot_rounding_0(Grad!$U20) ->  | AE28: =IF(AE27="","",IF(OR(AE27>(AD27+6),AE27<(AD27-6)),"Tolerance","")) ->  | AF28: =mndot_rounding_0(Grad!$U21) ->  | AG28: =IF(AG27="","",IF(OR(AG27>(AF27+6),AG27<(AF27-6)),"Tolerance","")) ->  | AH28: =mndot_rounding_0(Grad!$U22) ->  | AI28: =IF(AI27="","",IF(OR(AI27>(AH27+6),AI27<(AH27-6)),"Tolerance","")) ->  | AK28: Mov Avg. | AL28: =IF(MDR!$AL$4="YES",MDR!$BQ$47,MDR!$Y24) -> 35 | AM28: =IF(MDR!$AL$4="YES",MDR!$BR$47,MDR!$Z24) -> 90 | AN28: =mndot_rounding_0(Grad!$U23) ->  | AO28: =IF(AO27="","",IF(OR(AO27>(AN27+6),AO27<(AN27-6)),"Tolerance","")) ->  | AP28: =mndot_rounding_0(Grad!$U24) ->  | AQ28: =IF(AQ27="","",IF(OR(AQ27>(AP27+6),AQ27<(AP27-6)),"Tolerance","")) ->  | AR28: =mndot_rounding_0(Grad!$U25) ->  | AS28: =IF(AS27="","",IF(OR(AS27>(AR27+6),AS27<(AR27-6)),"Tolerance","")) ->  | AT28: =mndot_rounding_0(Grad!$U26) ->  | AU28: =IF(AU27="","",IF(OR(AU27>(AT27+6),AU27<(AT27-6)),"Tolerance","")) ->  | AW28: Mov Avg. | AX28: =IF(MDR!$AL$4="YES",MDR!$BQ$47,MDR!$Y28) -> 35 | AY28: =IF(MDR!$AL$4="YES",MDR!$BR$47,MDR!$Z28) -> 90 | AZ28: =mndot_rounding_0(Grad!$U27) ->  | BA28: =IF(BA27="","",IF(OR(BA27>(AZ27+6),BA27<(AZ27-6)),"Tolerance","")) ->  | BB28: =mndot_rounding_0(Grad!$U28) ->  | BC28: =IF(BC27="","",IF(OR(BC27>(BB27+6),BC27<(BB27-6)),"Tolerance","")) ->  | BD28: =mndot_rounding_0(Grad!$U29) ->  | BE28: =IF(BE27="","",IF(OR(BE27>(BD27+6),BE27<(BD27-6)),"Tolerance","")) ->  | BF28: =mndot_rounding_0(Grad!$U30) ->  | BG28: =IF(BG27="","",IF(OR(BG27>(BF27+6),BG27<(BF27-6)),"Tolerance","")) ->  | BI28: Mov Avg. | BJ28: =IF(MDR!$AL$4="YES",MDR!$BQ$47,MDR!$Y32) -> 35 | BK28: =IF(MDR!$AL$4="YES",MDR!$BR$47,MDR!$Z32) -> 90 | BL28: =mndot_rounding_0(Grad!$U31) ->  | BM28: =IF(BM27="","",IF(OR(BM27>(BL27+6),BM27<(BL27-6)),"Tolerance","")) ->  | BN28: =mndot_rounding_0(Grad!$U32) ->  | BO28: =IF(BO27="","",IF(OR(BO27>(BN27+6),BO27<(BN27-6)),"Tolerance","")) ->  | BP28: =mndot_rounding_0(Grad!$U33) ->  | BQ28: =IF(BQ27="","",IF(OR(BQ27>(BP27+6),BQ27<(BP27-6)),"Tolerance","")) ->  | BR28: =mndot_rounding_0(Grad!$U34) ->  | BS28: =IF(BS27="","",IF(OR(BS27>(BR27+6),BS27<(BR27-6)),"Tolerance","")) ->  | BU28: Mov Avg. | BV28: =IF(MDR!$AL$4="YES",MDR!$BQ$47,MDR!$Y36) -> 35 | BW28: =IF(MDR!$AL$4="YES",MDR!$BR$47,MDR!$Z36) -> 90 | BX28: =mndot_rounding_0(Grad!$U35) ->  | BY28: =IF(BY27="","",IF(OR(BY27>(BX27+6),BY27<(BX27-6)),"Tolerance","")) ->  | BZ28: =mndot_rounding_0(Grad!$U36) ->  | CA28: =IF(CA27="","",IF(OR(CA27>(BZ27+6),CA27<(BZ27-6)),"Tolerance","")) ->  | CB28: =mndot_rounding_0(Grad!$U37) ->  | CC28: =IF(CC27="","",IF(OR(CC27>(CB27+6),CC27<(CB27-6)),"Tolerance","")) ->  | CD28: =mndot_rounding_0(Grad!$U38) ->  | CE28: =IF(CE27="","",IF(OR(CE27>(CD27+6),CE27<(CD27-6)),"Tolerance","")) ->  | CG28: Mov Avg. | CH28: =IF(MDR!$AL$4="YES",MDR!$BQ$47,MDR!$Y40) -> 35 | CI28: =IF(MDR!$AL$4="YES",MDR!$BR$47,MDR!$Z40) -> 90 | CJ28: =mndot_rounding_0(Grad!$U39) ->  | CK28: =IF(CK27="","",IF(OR(CK27>(CJ27+6),CK27<(CJ27-6)),"Tolerance","")) ->  | CL28: =mndot_rounding_0(Grad!$U40) ->  | CM28: =IF(CM27="","",IF(OR(CM27>(CL27+6),CM27<(CL27-6)),"Tolerance","")) ->  | CN28: =mndot_rounding_0(Grad!$U41) ->  | CO28: =IF(CO27="","",IF(OR(CO27>(CN27+6),CO27<(CN27-6)),"Tolerance","")) ->  | CP28: =mndot_rounding_0(Grad!$U42) ->  | CQ28: =IF(CQ27="","",IF(OR(CQ27>(CP27+6),CQ27<(CP27-6)),"Tolerance","")) ->  | CS28: Mov Avg. | CT28: =IF(MDR!$AL$4="YES",MDR!$BQ$47,MDR!$Y44) -> 35 | CU28: =IF(MDR!$AL$4="YES",MDR!$BR$47,MDR!$Z44) -> 90 | CV28: =mndot_rounding_0(Grad!$U43) ->  | CW28: =IF(CW27="","",IF(OR(CW27>(CV27+6),CW27<(CV27-6)),"Tolerance","")) ->  | CX28: =mndot_rounding_0(Grad!$U44) ->  | CY28: =IF(CY27="","",IF(OR(CY27>(CX27+6),CY27<(CX27-6)),"Tolerance","")) ->  | CZ28: =mndot_rounding_0(Grad!$U45) ->  | DA28: =IF(DA27="","",IF(OR(DA27>(CZ27+6),DA27<(CZ27-6)),"Tolerance","")) ->  | DB28: =mndot_rounding_0(Grad!$U46) ->  | DC28: =IF(DC27="","",IF(OR(DC27>(DB27+6),DC27<(DB27-6)),"Tolerance","")) ->  | DE28: Mov Avg. | DF28: =IF(MDR!$AL$4="YES",MDR!$BQ$47,MDR!$Y48) -> 35 | DG28: =IF(MDR!$AL$4="YES",MDR!$BR$47,MDR!$Z48) -> 90 | DH28: =mndot_rounding_0(Grad!$U47) ->  | DI28: =IF(DI27="","",IF(OR(DI27>(DH27+6),DI27<(DH27-6)),"Tolerance","")) ->  | DJ28: =mndot_rounding_0(Grad!$U48) ->  | DK28: =IF(DK27="","",IF(OR(DK27>(DJ27+6),DK27<(DJ27-6)),"Tolerance","")) ->  | DL28: =mndot_rounding_0(Grad!$U49) ->  | DM28: =IF(DM27="","",IF(OR(DM27>(DL27+6),DM27<(DL27-6)),"Tolerance","")) ->  | DN28: =mndot_rounding_0(Grad!$U50) ->  | DO28: =IF(DO27="","",IF(OR(DO27>(DN27+6),DO27<(DN27-6)),"Tolerance","")) ->  | DQ28: Mov Avg. | DR28: =IF(MDR!$AL$4="YES",MDR!$BQ$47,MDR!$Y52) -> 35 | DS28: =IF(MDR!$AL$4="YES",MDR!$BR$47,MDR!$Z52) -> 90 | DT28: =mndot_rounding_0(Grad!$U51) ->  | DU28: =IF(DU27="","",IF(OR(DU27>(DT27+6),DU27<(DT27-6)),"Tolerance","")) ->  | DV28: =mndot_rounding_0(Grad!$U52) ->  | DW28: =IF(DW27="","",IF(OR(DW27>(DV27+6),DW27<(DV27-6)),"Tolerance","")) ->  | DX28: =mndot_rounding_0(Grad!$U53) ->  | DY28: =IF(DY27="","",IF(OR(DY27>(DX27+6),DY27<(DX27-6)),"Tolerance","")) ->  | DZ28: =mndot_rounding_0(Grad!$U54) ->  | EA28: =IF(EA27="","",IF(OR(EA27>(DZ27+6),EA27<(DZ27-6)),"Tolerance","")) ->  | EC28: Mov Avg. | ED28: =IF(MDR!$AL$4="YES",MDR!$BQ$47,MDR!$Y56) -> 35 | EE28: =IF(MDR!$AL$4="YES",MDR!$BR$47,MDR!$Z56) -> 90 | EF28: =mndot_rounding_0(Grad!$U55) ->  | EG28: =IF(EG27="","",IF(OR(EG27>(EF27+6),EG27<(EF27-6)),"Tolerance","")) ->  | EH28: =mndot_rounding_0(Grad!$U56) ->  | EI28: =IF(EI27="","",IF(OR(EI27>(EH27+6),EI27<(EH27-6)),"Tolerance","")) ->  | EJ28: =mndot_rounding_0(Grad!$U57) ->  | EK28: =IF(EK27="","",IF(OR(EK27>(EJ27+6),EK27<(EJ27-6)),"Tolerance","")) ->  | EL28: =mndot_rounding_0(Grad!$U58) ->  | EM28: =IF(EM27="","",IF(OR(EM27>(EL27+6),EM27<(EL27-6)),"Tolerance","")) ->  | EO28: Mov Avg. | EP28: =IF(MDR!$AL$4="YES",MDR!$BQ$47,MDR!$Y60) -> 35 | EQ28: =IF(MDR!$AL$4="YES",MDR!$BR$47,MDR!$Z60) -> 90 | ER28: =mndot_rounding_0(Grad!$U59) ->  | ES28: =IF(ES27="","",IF(OR(ES27>(ER27+6),ES27<(ER27-6)),"Tolerance","")) ->  | ET28: =mndot_rounding_0(Grad!$U60) ->  | EU28: =IF(EU27="","",IF(OR(EU27>(ET27+6),EU27<(ET27-6)),"Tolerance","")) ->  | EV28: =mndot_rounding_0(Grad!$U61) ->  | EW28: =IF(EW27="","",IF(OR(EW27>(EV27+6),EW27<(EV27-6)),"Tolerance","")) ->  | EX28: =mndot_rounding_0(Grad!$U62) ->  | EY28: =IF(EY27="","",IF(OR(EY27>(EX27+6),EY27<(EX27-6)),"Tolerance","")) ->  | FA28: Mov Avg. | FB28: =IF(MDR!$AL$4="YES",MDR!$BQ$47,MDR!$Y64) -> 35 | FC28: =IF(MDR!$AL$4="YES",MDR!$BR$47,MDR!$Z64) -> 90 | FD28: =mndot_rounding_0(Grad!$U63) ->  | FE28: =IF(FE27="","",IF(OR(FE27>(FD27+6),FE27<(FD27-6)),"Tolerance","")) ->  | FF28: =mndot_rounding_0(Grad!$U64) ->  | FG28: =IF(FG27="","",IF(OR(FG27>(FF27+6),FG27<(FF27-6)),"Tolerance","")) ->  | FH28: =mndot_rounding_0(Grad!$U65) ->  | FI28: =IF(FI27="","",IF(OR(FI27>(FH27+6),FI27<(FH27-6)),"Tolerance","")) ->  | FJ28: =mndot_rounding_0(Grad!$U66) ->  | FK28: =IF(FK27="","",IF(OR(FK27>(FJ27+6),FK27<(FJ27-6)),"Tolerance","")) ->  | FM28: Mov Avg. | FN28: =IF(MDR!$AL$4="YES",MDR!$BQ$47,MDR!$Y68) -> 35 | FO28: =IF(MDR!$AL$4="YES",MDR!$BR$47,MDR!$Z68) -> 90 | FP28: =mndot_rounding_0(Grad!$U67) ->  | FQ28: =IF(FQ27="","",IF(OR(FQ27>(FP27+6),FQ27<(FP27-6)),"Tolerance","")) ->  | FR28: =mndot_rounding_0(Grad!$U68) ->  | FS28: =IF(FS27="","",IF(OR(FS27>(FR27+6),FS27<(FR27-6)),"Tolerance","")) ->  | FT28: =mndot_rounding_0(Grad!$U69) ->  | FU28: =IF(FU27="","",IF(OR(FU27>(FT27+6),FU27<(FT27-6)),"Tolerance","")) ->  | FV28: =mndot_rounding_0(Grad!$U70) ->  | FW28: =IF(FW27="","",IF(OR(FW27>(FV27+6),FW27<(FV27-6)),"Tolerance","")) ->  | FY28: Mov Avg. | FZ28: =IF(MDR!$AL$4="YES",MDR!$BQ$47,MDR!$Y72) -> 35 | GA28: =IF(MDR!$AL$4="YES",MDR!$BR$47,MDR!$Z72) -> 90 | GB28: =mndot_rounding_0(Grad!$U71) ->  | GC28: =IF(GC27="","",IF(OR(GC27>(GB27+6),GC27<(GB27-6)),"Tolerance","")) ->  | GD28: =mndot_rounding_0(Grad!$U72) ->  | GE28: =IF(GE27="","",IF(OR(GE27>(GD27+6),GE27<(GD27-6)),"Tolerance","")) ->  | GF28: =mndot_rounding_0(Grad!$U73) ->  | GG28: =IF(GG27="","",IF(OR(GG27>(GF27+6),GG27<(GF27-6)),"Tolerance","")) ->  | GH28: =mndot_rounding_0(Grad!$U74) ->  | GI28: =IF(GI27="","",IF(OR(GI27>(GH27+6),GI27<(GH27-6)),"Tolerance","")) ->  | GK28: Mov Avg. | GL28: =IF(MDR!$AL$4="YES",MDR!$BQ$47,MDR!$Y76) -> 35 | GM28: =IF(MDR!$AL$4="YES",MDR!$BR$47,MDR!$Z76) -> 90 | GN28: =mndot_rounding_0(Grad!$U75) ->  | GO28: =IF(GO27="","",IF(OR(GO27>(GN27+6),GO27<(GN27-6)),"Tolerance","")) ->  | GP28: =mndot_rounding_0(Grad!$U76) ->  | GQ28: =IF(GQ27="","",IF(OR(GQ27>(GP27+6),GQ27<(GP27-6)),"Tolerance","")) ->  | GR28: =mndot_rounding_0(Grad!$U77) ->  | GS28: =IF(GS27="","",IF(OR(GS27>(GR27+6),GS27<(GR27-6)),"Tolerance","")) ->  | GT28: =mndot_rounding_0(Grad!$U78) ->  | GU28: =IF(GU27="","",IF(OR(GU27>(GT27+6),GU27<(GT27-6)),"Tolerance","")) ->  | GW28: Mov Avg. | GX28: =IF(MDR!$AL$4="YES",MDR!$BQ$47,MDR!$Y80) -> 35 | GY28: =IF(MDR!$AL$4="YES",MDR!$BR$47,MDR!$Z80) -> 90 | GZ28: =mndot_rounding_0(Grad!$U79) ->  | HA28: =IF(HA27="","",IF(OR(HA27>(GZ27+6),HA27<(GZ27-6)),"Tolerance","")) ->  | HB28: =mndot_rounding_0(Grad!$U80) ->  | HC28: =IF(HC27="","",IF(OR(HC27>(HB27+6),HC27<(HB27-6)),"Tolerance","")) ->  | HD28: =mndot_rounding_0(Grad!$U81) ->  | HE28: =IF(HE27="","",IF(OR(HE27>(HD27+6),HE27<(HD27-6)),"Tolerance","")) ->  | HF28: =mndot_rounding_0(Grad!$U82) ->  | HG28: =IF(HG27="","",IF(OR(HG27>(HF27+6),HG27<(HF27-6)),"Tolerance","")) ->  | HI28: Mov Avg. | HJ28: =IF(MDR!$AL$4="YES",MDR!$BQ$47,MDR!$Y84) -> 35 | HK28: =IF(MDR!$AL$4="YES",MDR!$BR$47,MDR!$Z84) -> 90 | HL28: =mndot_rounding_0(Grad!$U83) ->  | HM28: =IF(HM27="","",IF(OR(HM27>(HL27+6),HM27<(HL27-6)),"Tolerance","")) ->  | HN28: =mndot_rounding_0(Grad!$U84) ->  | HO28: =IF(HO27="","",IF(OR(HO27>(HN27+6),HO27<(HN27-6)),"Tolerance","")) ->  | HP28: =mndot_rounding_0(Grad!$U85) ->  | HQ28: =IF(HQ27="","",IF(OR(HQ27>(HP27+6),HQ27<(HP27-6)),"Tolerance","")) ->  | HR28: =mndot_rounding_0(Grad!$U86) ->  | HS28: =IF(HS27="","",IF(OR(HS27>(HR27+6),HS27<(HR27-6)),"Tolerance","")) ->  | HU28: Mov Avg. | HV28: =IF(MDR!$AL$4="YES",MDR!$BQ$47,MDR!$Y88) -> 35 | HW28: =IF(MDR!$AL$4="YES",MDR!$BR$47,MDR!$Z88) -> 90 | HX28: =mndot_rounding_0(Grad!$U87) ->  | HY28: =IF(HY27="","",IF(OR(HY27>(HX27+6),HY27<(HX27-6)),"Tolerance","")) ->  | HZ28: =mndot_rounding_0(Grad!$U88) ->  | IA28: =IF(IA27="","",IF(OR(IA27>(HZ27+6),IA27<(HZ27-6)),"Tolerance","")) ->  | IB28: =mndot_rounding_0(Grad!$U89) ->  | IC28: =IF(IC27="","",IF(OR(IC27>(IB27+6),IC27<(IB27-6)),"Tolerance","")) ->  | ID28: =mndot_rounding_0(Grad!$U90) ->  | IE28: =IF(IE27="","",IF(OR(IE27>(ID27+6),IE27<(ID27-6)),"Tolerance","")) ->  | IG28: Mov Avg. | IH28: =IF(MDR!$AL$4="YES",MDR!$BQ$47,MDR!$Y92) -> 35 | II28: =IF(MDR!$AL$4="YES",MDR!$BR$47,MDR!$Z92) -> 90 | IJ28: =mndot_rounding_0(Grad!$U91) ->  | IK28: =IF(IK27="","",IF(OR(IK27>(IJ27+6),IK27<(IJ27-6)),"Tolerance","")) ->  | IL28: =mndot_rounding_0(Grad!$U92) ->  | IM28: =IF(IM27="","",IF(OR(IM27>(IL27+6),IM27<(IL27-6)),"Tolerance","")) ->  | IN28: =mndot_rounding_0(Grad!$U93) ->  | IO28: =IF(IO27="","",IF(OR(IO27>(IN27+6),IO27<(IN27-6)),"Tolerance","")) ->  | IP28: =mndot_rounding_0(Grad!$U94) ->  | IQ28: =IF(IQ27="","",IF(OR(IQ27>(IP27+6),IQ27<(IP27-6)),"Tolerance","")) ->  | IT28: 0 | IU28: Agency AFT Substituted | IW28: F = PG 64-34
A29: 3/8" Calc. % | D29: =IF(D27="","",IF(E27="",D27,IF(OR(E27>(D27+6),E27<(D27-6)),E27,D27))) ->  | E29: =IF(E27="","",IF(OR(E27>(D27+6),E27<(D27-6)),"Agncy Repl.","")) ->  | F29: =IF(F27="","",IF(G27="",F27,IF(OR(G27>(F27+6),G27<(F27-6)),G27,F27))) ->  | G29: =IF(G27="","",IF(OR(G27>(F27+6),G27<(F27-6)),"Agncy Repl.","")) ->  | H29: =IF(H27="","",IF(I27="",H27,IF(OR(I27>(H27+6),I27<(H27-6)),I27,H27))) ->  | I29: =IF(I27="","",IF(OR(I27>(H27+6),I27<(H27-6)),"Agncy Repl.","")) ->  | J29: =IF(J27="","",IF(K27="",J27,IF(OR(K27>(J27+6),K27<(J27-6)),K27,J27))) ->  | K29: =IF(K27="","",IF(OR(K27>(J27+6),K27<(J27-6)),"Agncy Repl.","")) ->  | M29: Calc. % | P29: =IF(P27="","",IF(Q27="",P27,IF(OR(Q27>(P27+6),Q27<(P27-6)),Q27,P27))) ->  | Q29: =IF(Q27="","",IF(OR(Q27>(P27+6),Q27<(P27-6)),"Agncy Repl.","")) ->  | R29: =IF(R27="","",IF(S27="",R27,IF(OR(S27>(R27+6),S27<(R27-6)),S27,R27))) ->  | S29: =IF(S27="","",IF(OR(S27>(R27+6),S27<(R27-6)),"Agncy Repl.","")) ->  | T29: =IF(T27="","",IF(U27="",T27,IF(OR(U27>(T27+6),U27<(T27-6)),U27,T27))) ->  | U29: =IF(U27="","",IF(OR(U27>(T27+6),U27<(T27-6)),"Agncy Repl.","")) ->  | V29: =IF(V27="","",IF(W27="",V27,IF(OR(W27>(V27+6),W27<(V27-6)),W27,V27))) ->  | W29: =IF(W27="","",IF(OR(W27>(V27+6),W27<(V27-6)),"Agncy Repl.","")) ->  | Y29: Calc. % | AB29: =IF(AB27="","",IF(AC27="",AB27,IF(OR(AC27>(AB27+6),AC27<(AB27-6)),AC27,AB27))) ->  | AC29: =IF(AC27="","",IF(OR(AC27>(AB27+6),AC27<(AB27-6)),"Agncy Repl.","")) ->  | AD29: =IF(AD27="","",IF(AE27="",AD27,IF(OR(AE27>(AD27+6),AE27<(AD27-6)),AE27,AD27))) ->  | AE29: =IF(AE27="","",IF(OR(AE27>(AD27+6),AE27<(AD27-6)),"Agncy Repl.","")) ->  | AF29: =IF(AF27="","",IF(AG27="",AF27,IF(OR(AG27>(AF27+6),AG27<(AF27-6)),AG27,AF27))) ->  | AG29: =IF(AG27="","",IF(OR(AG27>(AF27+6),AG27<(AF27-6)),"Agncy Repl.","")) ->  | AH29: =IF(AH27="","",IF(AI27="",AH27,IF(OR(AI27>(AH27+6),AI27<(AH27-6)),AI27,AH27))) ->  | AI29: =IF(AI27="","",IF(OR(AI27>(AH27+6),AI27<(AH27-6)),"Agncy Repl.","")) ->  | AK29: Calc. % | AN29: =IF(AN27="","",IF(AO27="",AN27,IF(OR(AO27>(AN27+6),AO27<(AN27-6)),AO27,AN27))) ->  | AO29: =IF(AO27="","",IF(OR(AO27>(AN27+6),AO27<(AN27-6)),"Agncy Repl.","")) ->  | AP29: =IF(AP27="","",IF(AQ27="",AP27,IF(OR(AQ27>(AP27+6),AQ27<(AP27-6)),AQ27,AP27))) ->  | AQ29: =IF(AQ27="","",IF(OR(AQ27>(AP27+6),AQ27<(AP27-6)),"Agncy Repl.","")) ->  | AR29: =IF(AR27="","",IF(AS27="",AR27,IF(OR(AS27>(AR27+6),AS27<(AR27-6)),AS27,AR27))) ->  | AS29: =IF(AS27="","",IF(OR(AS27>(AR27+6),AS27<(AR27-6)),"Agncy Repl.","")) ->  | AT29: =IF(AT27="","",IF(AU27="",AT27,IF(OR(AU27>(AT27+6),AU27<(AT27-6)),AU27,AT27))) ->  | AU29: =IF(AU27="","",IF(OR(AU27>(AT27+6),AU27<(AT27-6)),"Agncy Repl.","")) ->  | AW29: Calc. % | AZ29: =IF(AZ27="","",IF(BA27="",AZ27,IF(OR(BA27>(AZ27+6),BA27<(AZ27-6)),BA27,AZ27))) ->  | BA29: =IF(BA27="","",IF(OR(BA27>(AZ27+6),BA27<(AZ27-6)),"Agncy Repl.","")) ->  | BB29: =IF(BB27="","",IF(BC27="",BB27,IF(OR(BC27>(BB27+6),BC27<(BB27-6)),BC27,BB27))) ->  | BC29: =IF(BC27="","",IF(OR(BC27>(BB27+6),BC27<(BB27-6)),"Agncy Repl.","")) ->  | BD29: =IF(BD27="","",IF(BE27="",BD27,IF(OR(BE27>(BD27+6),BE27<(BD27-6)),BE27,BD27))) ->  | BE29: =IF(BE27="","",IF(OR(BE27>(BD27+6),BE27<(BD27-6)),"Agncy Repl.","")) ->  | BF29: =IF(BF27="","",IF(BG27="",BF27,IF(OR(BG27>(BF27+6),BG27<(BF27-6)),BG27,BF27))) ->  | BG29: =IF(BG27="","",IF(OR(BG27>(BF27+6),BG27<(BF27-6)),"Agncy Repl.","")) ->  | BI29: Calc. % | BL29: =IF(BL27="","",IF(BM27="",BL27,IF(OR(BM27>(BL27+6),BM27<(BL27-6)),BM27,BL27))) ->  | BM29: =IF(BM27="","",IF(OR(BM27>(BL27+6),BM27<(BL27-6)),"Agncy Repl.","")) ->  | BN29: =IF(BN27="","",IF(BO27="",BN27,IF(OR(BO27>(BN27+6),BO27<(BN27-6)),BO27,BN27))) ->  | BO29: =IF(BO27="","",IF(OR(BO27>(BN27+6),BO27<(BN27-6)),"Agncy Repl.","")) ->  | BP29: =IF(BP27="","",IF(BQ27="",BP27,IF(OR(BQ27>(BP27+6),BQ27<(BP27-6)),BQ27,BP27))) ->  | BQ29: =IF(BQ27="","",IF(OR(BQ27>(BP27+6),BQ27<(BP27-6)),"Agncy Repl.","")) ->  | BR29: =IF(BR27="","",IF(BS27="",BR27,IF(OR(BS27>(BR27+6),BS27<(BR27-6)),BS27,BR27))) ->  | BS29: =IF(BS27="","",IF(OR(BS27>(BR27+6),BS27<(BR27-6)),"Agncy Repl.","")) ->  | BU29: Calc. % | BX29: =IF(BX27="","",IF(BY27="",BX27,IF(OR(BY27>(BX27+6),BY27<(BX27-6)),BY27,BX27))) ->  | BY29: =IF(BY27="","",IF(OR(BY27>(BX27+6),BY27<(BX27-6)),"Agncy Repl.","")) ->  | BZ29: =IF(BZ27="","",IF(CA27="",BZ27,IF(OR(CA27>(BZ27+6),CA27<(BZ27-6)),CA27,BZ27))) ->  | CA29: =IF(CA27="","",IF(OR(CA27>(BZ27+6),CA27<(BZ27-6)),"Agncy Repl.","")) ->  | CB29: =IF(CB27="","",IF(CC27="",CB27,IF(OR(CC27>(CB27+6),CC27<(CB27-6)),CC27,CB27))) ->  | CC29: =IF(CC27="","",IF(OR(CC27>(CB27+6),CC27<(CB27-6)),"Agncy Repl.","")) ->  | CD29: =IF(CD27="","",IF(CE27="",CD27,IF(OR(CE27>(CD27+6),CE27<(CD27-6)),CE27,CD27))) ->  | CE29: =IF(CE27="","",IF(OR(CE27>(CD27+6),CE27<(CD27-6)),"Agncy Repl.","")) ->  | CG29: Calc. % | CJ29: =IF(CJ27="","",IF(CK27="",CJ27,IF(OR(CK27>(CJ27+6),CK27<(CJ27-6)),CK27,CJ27))) ->  | CK29: =IF(CK27="","",IF(OR(CK27>(CJ27+6),CK27<(CJ27-6)),"Agncy Repl.","")) ->  | CL29: =IF(CL27="","",IF(CM27="",CL27,IF(OR(CM27>(CL27+6),CM27<(CL27-6)),CM27,CL27))) ->  | CM29: =IF(CM27="","",IF(OR(CM27>(CL27+6),CM27<(CL27-6)),"Agncy Repl.","")) ->  | CN29: =IF(CN27="","",IF(CO27="",CN27,IF(OR(CO27>(CN27+6),CO27<(CN27-6)),CO27,CN27))) ->  | CO29: =IF(CO27="","",IF(OR(CO27>(CN27+6),CO27<(CN27-6)),"Agncy Repl.","")) ->  | CP29: =IF(CP27="","",IF(CQ27="",CP27,IF(OR(CQ27>(CP27+6),CQ27<(CP27-6)),CQ27,CP27))) ->  | CQ29: =IF(CQ27="","",IF(OR(CQ27>(CP27+6),CQ27<(CP27-6)),"Agncy Repl.","")) ->  | CS29: Calc. % | CV29: =IF(CV27="","",IF(CW27="",CV27,IF(OR(CW27>(CV27+6),CW27<(CV27-6)),CW27,CV27))) ->  | CW29: =IF(CW27="","",IF(OR(CW27>(CV27+6),CW27<(CV27-6)),"Agncy Repl.","")) ->  | CX29: =IF(CX27="","",IF(CY27="",CX27,IF(OR(CY27>(CX27+6),CY27<(CX27-6)),CY27,CX27))) ->  | CY29: =IF(CY27="","",IF(OR(CY27>(CX27+6),CY27<(CX27-6)),"Agncy Repl.","")) ->  | CZ29: =IF(CZ27="","",IF(DA27="",CZ27,IF(OR(DA27>(CZ27+6),DA27<(CZ27-6)),DA27,CZ27))) ->  | DA29: =IF(DA27="","",IF(OR(DA27>(CZ27+6),DA27<(CZ27-6)),"Agncy Repl.","")) ->  | DB29: =IF(DB27="","",IF(DC27="",DB27,IF(OR(DC27>(DB27+6),DC27<(DB27-6)),DC27,DB27))) ->  | DC29: =IF(DC27="","",IF(OR(DC27>(DB27+6),DC27<(DB27-6)),"Agncy Repl.","")) ->  | DE29: Calc. % | DH29: =IF(DH27="","",IF(DI27="",DH27,IF(OR(DI27>(DH27+6),DI27<(DH27-6)),DI27,DH27))) ->  | DI29: =IF(DI27="","",IF(OR(DI27>(DH27+6),DI27<(DH27-6)),"Agncy Repl.","")) ->  | DJ29: =IF(DJ27="","",IF(DK27="",DJ27,IF(OR(DK27>(DJ27+6),DK27<(DJ27-6)),DK27,DJ27))) ->  | DK29: =IF(DK27="","",IF(OR(DK27>(DJ27+6),DK27<(DJ27-6)),"Agncy Repl.","")) ->  | DL29: =IF(DL27="","",IF(DM27="",DL27,IF(OR(DM27>(DL27+6),DM27<(DL27-6)),DM27,DL27))) ->  | DM29: =IF(DM27="","",IF(OR(DM27>(DL27+6),DM27<(DL27-6)),"Agncy Repl.","")) ->  | DN29: =IF(DN27="","",IF(DO27="",DN27,IF(OR(DO27>(DN27+6),DO27<(DN27-6)),DO27,DN27))) ->  | DO29: =IF(DO27="","",IF(OR(DO27>(DN27+6),DO27<(DN27-6)),"Agncy Repl.","")) ->  | DQ29: Calc. % | DT29: =IF(DT27="","",IF(DU27="",DT27,IF(OR(DU27>(DT27+6),DU27<(DT27-6)),DU27,DT27))) ->  | DU29: =IF(DU27="","",IF(OR(DU27>(DT27+6),DU27<(DT27-6)),"Agncy Repl.","")) ->  | DV29: =IF(DV27="","",IF(DW27="",DV27,IF(OR(DW27>(DV27+6),DW27<(DV27-6)),DW27,DV27))) ->  | DW29: =IF(DW27="","",IF(OR(DW27>(DV27+6),DW27<(DV27-6)),"Agncy Repl.","")) ->  | DX29: =IF(DX27="","",IF(DY27="",DX27,IF(OR(DY27>(DX27+6),DY27<(DX27-6)),DY27,DX27))) ->  | DY29: =IF(DY27="","",IF(OR(DY27>(DX27+6),DY27<(DX27-6)),"Agncy Repl.","")) ->  | DZ29: =IF(DZ27="","",IF(EA27="",DZ27,IF(OR(EA27>(DZ27+6),EA27<(DZ27-6)),EA27,DZ27))) ->  | EA29: =IF(EA27="","",IF(OR(EA27>(DZ27+6),EA27<(DZ27-6)),"Agncy Repl.","")) ->  | EC29: Calc. % | EF29: =IF(EF27="","",IF(EG27="",EF27,IF(OR(EG27>(EF27+6),EG27<(EF27-6)),EG27,EF27))) ->  | EG29: =IF(EG27="","",IF(OR(EG27>(EF27+6),EG27<(EF27-6)),"Agncy Repl.","")) ->  | EH29: =IF(EH27="","",IF(EI27="",EH27,IF(OR(EI27>(EH27+6),EI27<(EH27-6)),EI27,EH27))) ->  | EI29: =IF(EI27="","",IF(OR(EI27>(EH27+6),EI27<(EH27-6)),"Agncy Repl.","")) ->  | EJ29: =IF(EJ27="","",IF(EK27="",EJ27,IF(OR(EK27>(EJ27+6),EK27<(EJ27-6)),EK27,EJ27))) ->  | EK29: =IF(EK27="","",IF(OR(EK27>(EJ27+6),EK27<(EJ27-6)),"Agncy Repl.","")) ->  | EL29: =IF(EL27="","",IF(EM27="",EL27,IF(OR(EM27>(EL27+6),EM27<(EL27-6)),EM27,EL27))) ->  | EM29: =IF(EM27="","",IF(OR(EM27>(EL27+6),EM27<(EL27-6)),"Agncy Repl.","")) ->  | EO29: Calc. % | ER29: =IF(ER27="","",IF(ES27="",ER27,IF(OR(ES27>(ER27+6),ES27<(ER27-6)),ES27,ER27))) ->  | ES29: =IF(ES27="","",IF(OR(ES27>(ER27+6),ES27<(ER27-6)),"Agncy Repl.","")) ->  | ET29: =IF(ET27="","",IF(EU27="",ET27,IF(OR(EU27>(ET27+6),EU27<(ET27-6)),EU27,ET27))) ->  | EU29: =IF(EU27="","",IF(OR(EU27>(ET27+6),EU27<(ET27-6)),"Agncy Repl.","")) ->  | EV29: =IF(EV27="","",IF(EW27="",EV27,IF(OR(EW27>(EV27+6),EW27<(EV27-6)),EW27,EV27))) ->  | EW29: =IF(EW27="","",IF(OR(EW27>(EV27+6),EW27<(EV27-6)),"Agncy Repl.","")) ->  | EX29: =IF(EX27="","",IF(EY27="",EX27,IF(OR(EY27>(EX27+6),EY27<(EX27-6)),EY27,EX27))) ->  | EY29: =IF(EY27="","",IF(OR(EY27>(EX27+6),EY27<(EX27-6)),"Agncy Repl.","")) ->  | FA29: Calc. % | FD29: =IF(FD27="","",IF(FE27="",FD27,IF(OR(FE27>(FD27+6),FE27<(FD27-6)),FE27,FD27))) ->  | FE29: =IF(FE27="","",IF(OR(FE27>(FD27+6),FE27<(FD27-6)),"Agncy Repl.","")) ->  | FF29: =IF(FF27="","",IF(FG27="",FF27,IF(OR(FG27>(FF27+6),FG27<(FF27-6)),FG27,FF27))) ->  | FG29: =IF(FG27="","",IF(OR(FG27>(FF27+6),FG27<(FF27-6)),"Agncy Repl.","")) ->  | FH29: =IF(FH27="","",IF(FI27="",FH27,IF(OR(FI27>(FH27+6),FI27<(FH27-6)),FI27,FH27))) ->  | FI29: =IF(FI27="","",IF(OR(FI27>(FH27+6),FI27<(FH27-6)),"Agncy Repl.","")) ->  | FJ29: =IF(FJ27="","",IF(FK27="",FJ27,IF(OR(FK27>(FJ27+6),FK27<(FJ27-6)),FK27,FJ27))) ->  | FK29: =IF(FK27="","",IF(OR(FK27>(FJ27+6),FK27<(FJ27-6)),"Agncy Repl.","")) ->  | FM29: Calc. % | FP29: =IF(FP27="","",IF(FQ27="",FP27,IF(OR(FQ27>(FP27+6),FQ27<(FP27-6)),FQ27,FP27))) ->  | FQ29: =IF(FQ27="","",IF(OR(FQ27>(FP27+6),FQ27<(FP27-6)),"Agncy Repl.","")) ->  | FR29: =IF(FR27="","",IF(FS27="",FR27,IF(OR(FS27>(FR27+6),FS27<(FR27-6)),FS27,FR27))) ->  | FS29: =IF(FS27="","",IF(OR(FS27>(FR27+6),FS27<(FR27-6)),"Agncy Repl.","")) ->  | FT29: =IF(FT27="","",IF(FU27="",FT27,IF(OR(FU27>(FT27+6),FU27<(FT27-6)),FU27,FT27))) ->  | FU29: =IF(FU27="","",IF(OR(FU27>(FT27+6),FU27<(FT27-6)),"Agncy Repl.","")) ->  | FV29: =IF(FV27="","",IF(FW27="",FV27,IF(OR(FW27>(FV27+6),FW27<(FV27-6)),FW27,FV27))) ->  | FW29: =IF(FW27="","",IF(OR(FW27>(FV27+6),FW27<(FV27-6)),"Agncy Repl.","")) ->  | FY29: Calc. % | GB29: =IF(GB27="","",IF(GC27="",GB27,IF(OR(GC27>(GB27+6),GC27<(GB27-6)),GC27,GB27))) ->  | GC29: =IF(GC27="","",IF(OR(GC27>(GB27+6),GC27<(GB27-6)),"Agncy Repl.","")) ->  | GD29: =IF(GD27="","",IF(GE27="",GD27,IF(OR(GE27>(GD27+6),GE27<(GD27-6)),GE27,GD27))) ->  | GE29: =IF(GE27="","",IF(OR(GE27>(GD27+6),GE27<(GD27-6)),"Agncy Repl.","")) ->  | GF29: =IF(GF27="","",IF(GG27="",GF27,IF(OR(GG27>(GF27+6),GG27<(GF27-6)),GG27,GF27))) ->  | GG29: =IF(GG27="","",IF(OR(GG27>(GF27+6),GG27<(GF27-6)),"Agncy Repl.","")) ->  | GH29: =IF(GH27="","",IF(GI27="",GH27,IF(OR(GI27>(GH27+6),GI27<(GH27-6)),GI27,GH27))) ->  | GI29: =IF(GI27="","",IF(OR(GI27>(GH27+6),GI27<(GH27-6)),"Agncy Repl.","")) ->  | GK29: Calc. % | GN29: =IF(GN27="","",IF(GO27="",GN27,IF(OR(GO27>(GN27+6),GO27<(GN27-6)),GO27,GN27))) ->  | GO29: =IF(GO27="","",IF(OR(GO27>(GN27+6),GO27<(GN27-6)),"Agncy Repl.","")) ->  | GP29: =IF(GP27="","",IF(GQ27="",GP27,IF(OR(GQ27>(GP27+6),GQ27<(GP27-6)),GQ27,GP27))) ->  | GQ29: =IF(GQ27="","",IF(OR(GQ27>(GP27+6),GQ27<(GP27-6)),"Agncy Repl.","")) ->  | GR29: =IF(GR27="","",IF(GS27="",GR27,IF(OR(GS27>(GR27+6),GS27<(GR27-6)),GS27,GR27))) ->  | GS29: =IF(GS27="","",IF(OR(GS27>(GR27+6),GS27<(GR27-6)),"Agncy Repl.","")) ->  | GT29: =IF(GT27="","",IF(GU27="",GT27,IF(OR(GU27>(GT27+6),GU27<(GT27-6)),GU27,GT27))) ->  | GU29: =IF(GU27="","",IF(OR(GU27>(GT27+6),GU27<(GT27-6)),"Agncy Repl.","")) ->  | GW29: Calc. % | GZ29: =IF(GZ27="","",IF(HA27="",GZ27,IF(OR(HA27>(GZ27+6),HA27<(GZ27-6)),HA27,GZ27))) ->  | HA29: =IF(HA27="","",IF(OR(HA27>(GZ27+6),HA27<(GZ27-6)),"Agncy Repl.","")) ->  | HB29: =IF(HB27="","",IF(HC27="",HB27,IF(OR(HC27>(HB27+6),HC27<(HB27-6)),HC27,HB27))) ->  | HC29: =IF(HC27="","",IF(OR(HC27>(HB27+6),HC27<(HB27-6)),"Agncy Repl.","")) ->  | HD29: =IF(HD27="","",IF(HE27="",HD27,IF(OR(HE27>(HD27+6),HE27<(HD27-6)),HE27,HD27))) ->  | HE29: =IF(HE27="","",IF(OR(HE27>(HD27+6),HE27<(HD27-6)),"Agncy Repl.","")) ->  | HF29: =IF(HF27="","",IF(HG27="",HF27,IF(OR(HG27>(HF27+6),HG27<(HF27-6)),HG27,HF27))) ->  | HG29: =IF(HG27="","",IF(OR(HG27>(HF27+6),HG27<(HF27-6)),"Agncy Repl.","")) ->  | HI29: Calc. % | HL29: =IF(HL27="","",IF(HM27="",HL27,IF(OR(HM27>(HL27+6),HM27<(HL27-6)),HM27,HL27))) ->  | HM29: =IF(HM27="","",IF(OR(HM27>(HL27+6),HM27<(HL27-6)),"Agncy Repl.","")) ->  | HN29: =IF(HN27="","",IF(HO27="",HN27,IF(OR(HO27>(HN27+6),HO27<(HN27-6)),HO27,HN27))) ->  | HO29: =IF(HO27="","",IF(OR(HO27>(HN27+6),HO27<(HN27-6)),"Agncy Repl.","")) ->  | HP29: =IF(HP27="","",IF(HQ27="",HP27,IF(OR(HQ27>(HP27+6),HQ27<(HP27-6)),HQ27,HP27))) ->  | HQ29: =IF(HQ27="","",IF(OR(HQ27>(HP27+6),HQ27<(HP27-6)),"Agncy Repl.","")) ->  | HR29: =IF(HR27="","",IF(HS27="",HR27,IF(OR(HS27>(HR27+6),HS27<(HR27-6)),HS27,HR27))) ->  | HS29: =IF(HS27="","",IF(OR(HS27>(HR27+6),HS27<(HR27-6)),"Agncy Repl.","")) ->  | HU29: Calc. % | HX29: =IF(HX27="","",IF(HY27="",HX27,IF(OR(HY27>(HX27+6),HY27<(HX27-6)),HY27,HX27))) ->  | HY29: =IF(HY27="","",IF(OR(HY27>(HX27+6),HY27<(HX27-6)),"Agncy Repl.","")) ->  | HZ29: =IF(HZ27="","",IF(IA27="",HZ27,IF(OR(IA27>(HZ27+6),IA27<(HZ27-6)),IA27,HZ27))) ->  | IA29: =IF(IA27="","",IF(OR(IA27>(HZ27+6),IA27<(HZ27-6)),"Agncy Repl.","")) ->  | IB29: =IF(IB27="","",IF(IC27="",IB27,IF(OR(IC27>(IB27+6),IC27<(IB27-6)),IC27,IB27))) ->  | IC29: =IF(IC27="","",IF(OR(IC27>(IB27+6),IC27<(IB27-6)),"Agncy Repl.","")) ->  | ID29: =IF(ID27="","",IF(IE27="",ID27,IF(OR(IE27>(ID27+6),IE27<(ID27-6)),IE27,ID27))) ->  | IE29: =IF(IE27="","",IF(OR(IE27>(ID27+6),IE27<(ID27-6)),"Agncy Repl.","")) ->  | IG29: Calc. % | IJ29: =IF(IJ27="","",IF(IK27="",IJ27,IF(OR(IK27>(IJ27+6),IK27<(IJ27-6)),IK27,IJ27))) ->  | IK29: =IF(IK27="","",IF(OR(IK27>(IJ27+6),IK27<(IJ27-6)),"Agncy Repl.","")) ->  | IL29: =IF(IL27="","",IF(IM27="",IL27,IF(OR(IM27>(IL27+6),IM27<(IL27-6)),IM27,IL27))) ->  | IM29: =IF(IM27="","",IF(OR(IM27>(IL27+6),IM27<(IL27-6)),"Agncy Repl.","")) ->  | IN29: =IF(IN27="","",IF(IO27="",IN27,IF(OR(IO27>(IN27+6),IO27<(IN27-6)),IO27,IN27))) ->  | IO29: =IF(IO27="","",IF(OR(IO27>(IN27+6),IO27<(IN27-6)),"Agncy Repl.","")) ->  | IP29: =IF(IP27="","",IF(IQ27="",IP27,IF(OR(IQ27>(IP27+6),IQ27<(IP27-6)),IQ27,IP27))) ->  | IQ29: =IF(IQ27="","",IF(OR(IQ27>(IP27+6),IQ27<(IP27-6)),"Agncy Repl.","")) ->  | IW29: F = PG 64-34 (PMB)
A30: #4 | M30: #4 | Y30: #4 | AK30: #4 | AW30: #4 | BI30: #4 | BU30: #4 | CG30: #4 | CS30: #4 | DE30: #4 | DQ30: #4 | EC30: #4 | EO30: #4 | FA30: #4 | FM30: #4 | FY30: #4 | GK30: #4 | GW30: #4 | HI30: #4 | HU30: #4 | IG30: #4 | IT30: 0 | IU30: Agency AFT Substituted | IW30: H = PG 70-28
A31: Mov Avg. | B31: =IF(MDR!$Y$5="YES",MDR!$BQ$48,MDR!$BV$48) -> 30 | C31: =IF(MDR!$Y$5="YES",MDR!$BR$48,MDR!$BW$48) -> 80 | E31: =IF(E30="","",IF(OR(E30>(D30+5),E30<(D30-5)),"Tolerance","")) ->  | G31: =IF(G30="","",IF(OR(G30>(F30+5),G30<(F30-5)),"Tolerance","")) ->  | I31: =IF(I30="","",IF(OR(I30>(H30+5),I30<(H30-5)),"Tolerance","")) ->  | J31: =mndot_rounding_0(IF(D30="","",IF(F30="","",IF(H30="","",IF(J30="","",Grad!K14))))) ->  | K31: =IF(K30="","",IF(OR(K30>(J30+5),K30<(J30-5)),"Tolerance","")) ->  | M31: Mov Avg. | N31: =IF(MDR!$AL$4="YES",MDR!$BQ$48,MDR!$AE16) -> 30 | O31: =IF(MDR!$AL$4="YES",MDR!$BR$48,MDR!$AF16) -> 80 | P31: =mndot_rounding_0(Grad!V15) ->  | Q31: =IF(Q30="","",IF(OR(Q30>(P30+5),Q30<(P30-5)),"Tolerance","")) ->  | R31: =mndot_rounding_0(Grad!V16) ->  | S31: =IF(S30="","",IF(OR(S30>(R30+5),S30<(R30-5)),"Tolerance","")) ->  | T31: =mndot_rounding_0(Grad!$V17) ->  | U31: =IF(U30="","",IF(OR(U30>(T30+5),U30<(T30-5)),"Tolerance","")) ->  | V31: =mndot_rounding_0(Grad!$V18) ->  | W31: =IF(W30="","",IF(OR(W30>(V30+5),W30<(V30-5)),"Tolerance","")) ->  | Y31: Mov Avg. | Z31: =IF(MDR!$AL$4="YES",MDR!$BQ$48,MDR!$AE20) -> 30 | AA31: =IF(MDR!$AL$4="YES",MDR!$BR$48,MDR!$AF20) -> 80 | AB31: =mndot_rounding_0(Grad!$V19) ->  | AC31: =IF(AC30="","",IF(OR(AC30>(AB30+5),AC30<(AB30-5)),"Tolerance","")) ->  | AD31: =mndot_rounding_0(Grad!$V20) ->  | AE31: =IF(AE30="","",IF(OR(AE30>(AD30+5),AE30<(AD30-5)),"Tolerance","")) ->  | AF31: =mndot_rounding_0(Grad!$V21) ->  | AG31: =IF(AG30="","",IF(OR(AG30>(AF30+5),AG30<(AF30-5)),"Tolerance","")) ->  | AH31: =mndot_rounding_0(Grad!$V22) ->  | AI31: =IF(AI30="","",IF(OR(AI30>(AH30+5),AI30<(AH30-5)),"Tolerance","")) ->  | AK31: Mov Avg. | AL31: =IF(MDR!$AL$4="YES",MDR!$BQ$48,MDR!$AE24) -> 30 | AM31: =IF(MDR!$AL$4="YES",MDR!$BR$48,MDR!$AF24) -> 80 | AN31: =mndot_rounding_0(Grad!$V23) ->  | AO31: =IF(AO30="","",IF(OR(AO30>(AN30+5),AO30<(AN30-5)),"Tolerance","")) ->  | AP31: =mndot_rounding_0(Grad!$V24) ->  | AQ31: =IF(AQ30="","",IF(OR(AQ30>(AP30+5),AQ30<(AP30-5)),"Tolerance","")) ->  | AR31: =mndot_rounding_0(Grad!$V25) ->  | AS31: =IF(AS30="","",IF(OR(AS30>(AR30+5),AS30<(AR30-5)),"Tolerance","")) ->  | AT31: =mndot_rounding_0(Grad!$V26) ->  | AU31: =IF(AU30="","",IF(OR(AU30>(AT30+5),AU30<(AT30-5)),"Tolerance","")) ->  | AW31: Mov Avg. | AX31: =IF(MDR!$AL$4="YES",MDR!$BQ$48,MDR!$AE28) -> 30 | AY31: =IF(MDR!$AL$4="YES",MDR!$BR$48,MDR!$AF28) -> 80 | AZ31: =mndot_rounding_0(Grad!$V27) ->  | BA31: =IF(BA30="","",IF(OR(BA30>(AZ30+5),BA30<(AZ30-5)),"Tolerance","")) ->  | BB31: =mndot_rounding_0(Grad!$V28) ->  | BC31: =IF(BC30="","",IF(OR(BC30>(BB30+5),BC30<(BB30-5)),"Tolerance","")) ->  | BD31: =mndot_rounding_0(Grad!$V29) ->  | BE31: =IF(BE30="","",IF(OR(BE30>(BD30+5),BE30<(BD30-5)),"Tolerance","")) ->  | BF31: =mndot_rounding_0(Grad!$V30) ->  | BG31: =IF(BG30="","",IF(OR(BG30>(BF30+5),BG30<(BF30-5)),"Tolerance","")) ->  | BI31: Mov Avg. | BJ31: =IF(MDR!$AL$4="YES",MDR!$BQ$48,MDR!$AE32) -> 30 | BK31: =IF(MDR!$AL$4="YES",MDR!$BR$48,MDR!$AF32) -> 80 | BL31: =mndot_rounding_0(Grad!$V31) ->  | BM31: =IF(BM30="","",IF(OR(BM30>(BL30+5),BM30<(BL30-5)),"Tolerance","")) ->  | BN31: =mndot_rounding_0(Grad!$V32) ->  | BO31: =IF(BO30="","",IF(OR(BO30>(BN30+5),BO30<(BN30-5)),"Tolerance","")) ->  | BP31: =mndot_rounding_0(Grad!$V33) ->  | BQ31: =IF(BQ30="","",IF(OR(BQ30>(BP30+5),BQ30<(BP30-5)),"Tolerance","")) ->  | BR31: =mndot_rounding_0(Grad!$V34) ->  | BS31: =IF(BS30="","",IF(OR(BS30>(BR30+5),BS30<(BR30-5)),"Tolerance","")) ->  | BU31: Mov Avg. | BV31: =IF(MDR!$AL$4="YES",MDR!$BQ$48,MDR!$AE36) -> 30 | BW31: =IF(MDR!$AL$4="YES",MDR!$BR$48,MDR!$AF36) -> 80 | BX31: =mndot_rounding_0(Grad!$V35) ->  | BY31: =IF(BY30="","",IF(OR(BY30>(BX30+5),BY30<(BX30-5)),"Tolerance","")) ->  | BZ31: =mndot_rounding_0(Grad!$V36) ->  | CA31: =IF(CA30="","",IF(OR(CA30>(BZ30+5),CA30<(BZ30-5)),"Tolerance","")) ->  | CB31: =mndot_rounding_0(Grad!$V37) ->  | CC31: =IF(CC30="","",IF(OR(CC30>(CB30+5),CC30<(CB30-5)),"Tolerance","")) ->  | CD31: =mndot_rounding_0(Grad!$V38) ->  | CE31: =IF(CE30="","",IF(OR(CE30>(CD30+5),CE30<(CD30-5)),"Tolerance","")) ->  | CG31: Mov Avg. | CH31: =IF(MDR!$AL$4="YES",MDR!$BQ$48,MDR!$AE40) -> 30 | CI31: =IF(MDR!$AL$4="YES",MDR!$BR$48,MDR!$AF40) -> 80 | CJ31: =mndot_rounding_0(Grad!$V39) ->  | CK31: =IF(CK30="","",IF(OR(CK30>(CJ30+5),CK30<(CJ30-5)),"Tolerance","")) ->  | CL31: =mndot_rounding_0(Grad!$V40) ->  | CM31: =IF(CM30="","",IF(OR(CM30>(CL30+5),CM30<(CL30-5)),"Tolerance","")) ->  | CN31: =mndot_rounding_0(Grad!$V41) ->  | CO31: =IF(CO30="","",IF(OR(CO30>(CN30+5),CO30<(CN30-5)),"Tolerance","")) ->  | CP31: =mndot_rounding_0(Grad!$V42) ->  | CQ31: =IF(CQ30="","",IF(OR(CQ30>(CP30+5),CQ30<(CP30-5)),"Tolerance","")) ->  | CS31: Mov Avg. | CT31: =IF(MDR!$AL$4="YES",MDR!$BQ$48,MDR!$AE44) -> 30 | CU31: =IF(MDR!$AL$4="YES",MDR!$BR$48,MDR!$AF44) -> 80 | CV31: =mndot_rounding_0(Grad!$V43) ->  | CW31: =IF(CW30="","",IF(OR(CW30>(CV30+5),CW30<(CV30-5)),"Tolerance","")) ->  | CX31: =mndot_rounding_0(Grad!$V44) ->  | CY31: =IF(CY30="","",IF(OR(CY30>(CX30+5),CY30<(CX30-5)),"Tolerance","")) ->  | CZ31: =mndot_rounding_0(Grad!$V45) ->  | DA31: =IF(DA30="","",IF(OR(DA30>(CZ30+5),DA30<(CZ30-5)),"Tolerance","")) ->  | DB31: =mndot_rounding_0(Grad!$V46) ->  | DC31: =IF(DC30="","",IF(OR(DC30>(DB30+5),DC30<(DB30-5)),"Tolerance","")) ->  | DE31: Mov Avg. | DF31: =IF(MDR!$AL$4="YES",MDR!$BQ$48,MDR!$AE48) -> 30 | DG31: =IF(MDR!$AL$4="YES",MDR!$BR$48,MDR!$AF48) -> 80 | DH31: =mndot_rounding_0(Grad!$V47) ->  | DI31: =IF(DI30="","",IF(OR(DI30>(DH30+5),DI30<(DH30-5)),"Tolerance","")) ->  | DJ31: =mndot_rounding_0(Grad!$V48) ->  | DK31: =IF(DK30="","",IF(OR(DK30>(DJ30+5),DK30<(DJ30-5)),"Tolerance","")) ->  | DL31: =mndot_rounding_0(Grad!$V49) ->  | DM31: =IF(DM30="","",IF(OR(DM30>(DL30+5),DM30<(DL30-5)),"Tolerance","")) ->  | DN31: =mndot_rounding_0(Grad!$V50) ->  | DO31: =IF(DO30="","",IF(OR(DO30>(DN30+5),DO30<(DN30-5)),"Tolerance","")) ->  | DQ31: Mov Avg. | DR31: =IF(MDR!$AL$4="YES",MDR!$BQ$48,MDR!$AE52) -> 30 | DS31: =IF(MDR!$AL$4="YES",MDR!$BR$48,MDR!$AF52) -> 80 | DT31: =mndot_rounding_0(Grad!$V51) ->  | DU31: =IF(DU30="","",IF(OR(DU30>(DT30+5),DU30<(DT30-5)),"Tolerance","")) ->  | DV31: =mndot_rounding_0(Grad!$V52) ->  | DW31: =IF(DW30="","",IF(OR(DW30>(DV30+5),DW30<(DV30-5)),"Tolerance","")) ->  | DX31: =mndot_rounding_0(Grad!$V53) ->  | DY31: =IF(DY30="","",IF(OR(DY30>(DX30+5),DY30<(DX30-5)),"Tolerance","")) ->  | DZ31: =mndot_rounding_0(Grad!$V54) ->  | EA31: =IF(EA30="","",IF(OR(EA30>(DZ30+5),EA30<(DZ30-5)),"Tolerance","")) ->  | EC31: Mov Avg. | ED31: =IF(MDR!$AL$4="YES",MDR!$BQ$48,MDR!$AE56) -> 30 | EE31: =IF(MDR!$AL$4="YES",MDR!$BR$48,MDR!$AF56) -> 80 | EF31: =mndot_rounding_0(Grad!$V55) ->  | EG31: =IF(EG30="","",IF(OR(EG30>(EF30+5),EG30<(EF30-5)),"Tolerance","")) ->  | EH31: =mndot_rounding_0(Grad!$V56) ->  | EI31: =IF(EI30="","",IF(OR(EI30>(EH30+5),EI30<(EH30-5)),"Tolerance","")) ->  | EJ31: =mndot_rounding_0(Grad!$V57) ->  | EK31: =IF(EK30="","",IF(OR(EK30>(EJ30+5),EK30<(EJ30-5)),"Tolerance","")) ->  | EL31: =mndot_rounding_0(Grad!$V58) ->  | EM31: =IF(EM30="","",IF(OR(EM30>(EL30+5),EM30<(EL30-5)),"Tolerance","")) ->  | EO31: Mov Avg. | EP31: =IF(MDR!$AL$4="YES",MDR!$BQ$48,MDR!$AE60) -> 30 | EQ31: =IF(MDR!$AL$4="YES",MDR!$BR$48,MDR!$AF60) -> 80 | ER31: =mndot_rounding_0(Grad!$V59) ->  | ES31: =IF(ES30="","",IF(OR(ES30>(ER30+5),ES30<(ER30-5)),"Tolerance","")) ->  | ET31: =mndot_rounding_0(Grad!$V60) ->  | EU31: =IF(EU30="","",IF(OR(EU30>(ET30+5),EU30<(ET30-5)),"Tolerance","")) ->  | EV31: =mndot_rounding_0(Grad!$V61) ->  | EW31: =IF(EW30="","",IF(OR(EW30>(EV30+5),EW30<(EV30-5)),"Tolerance","")) ->  | EX31: =mndot_rounding_0(Grad!$V62) ->  | EY31: =IF(EY30="","",IF(OR(EY30>(EX30+5),EY30<(EX30-5)),"Tolerance","")) ->  | FA31: Mov Avg. | FB31: =IF(MDR!$AL$4="YES",MDR!$BQ$48,MDR!$AE64) -> 30 | FC31: =IF(MDR!$AL$4="YES",MDR!$BR$48,MDR!$AF64) -> 80 | FD31: =mndot_rounding_0(Grad!$V63) ->  | FE31: =IF(FE30="","",IF(OR(FE30>(FD30+5),FE30<(FD30-5)),"Tolerance","")) ->  | FF31: =mndot_rounding_0(Grad!$V64) ->  | FG31: =IF(FG30="","",IF(OR(FG30>(FF30+5),FG30<(FF30-5)),"Tolerance","")) ->  | FH31: =mndot_rounding_0(Grad!$V65) ->  | FI31: =IF(FI30="","",IF(OR(FI30>(FH30+5),FI30<(FH30-5)),"Tolerance","")) ->  | FJ31: =mndot_rounding_0(Grad!$V66) ->  | FK31: =IF(FK30="","",IF(OR(FK30>(FJ30+5),FK30<(FJ30-5)),"Tolerance","")) ->  | FM31: Mov Avg. | FN31: =IF(MDR!$AL$4="YES",MDR!$BQ$48,MDR!$AE68) -> 30 | FO31: =IF(MDR!$AL$4="YES",MDR!$BR$48,MDR!$AF68) -> 80 | FP31: =mndot_rounding_0(Grad!$V67) ->  | FQ31: =IF(FQ30="","",IF(OR(FQ30>(FP30+5),FQ30<(FP30-5)),"Tolerance","")) ->  | FR31: =mndot_rounding_0(Grad!$V68) ->  | FS31: =IF(FS30="","",IF(OR(FS30>(FR30+5),FS30<(FR30-5)),"Tolerance","")) ->  | FT31: =mndot_rounding_0(Grad!$V69) ->  | FU31: =IF(FU30="","",IF(OR(FU30>(FT30+5),FU30<(FT30-5)),"Tolerance","")) ->  | FV31: =mndot_rounding_0(Grad!$V70) ->  | FW31: =IF(FW30="","",IF(OR(FW30>(FV30+5),FW30<(FV30-5)),"Tolerance","")) ->  | FY31: Mov Avg. | FZ31: =IF(MDR!$AL$4="YES",MDR!$BQ$48,MDR!$AE72) -> 30 | GA31: =IF(MDR!$AL$4="YES",MDR!$BR$48,MDR!$AF72) -> 80 | GB31: =mndot_rounding_0(Grad!$V71) ->  | GC31: =IF(GC30="","",IF(OR(GC30>(GB30+5),GC30<(GB30-5)),"Tolerance","")) ->  | GD31: =mndot_rounding_0(Grad!$V72) ->  | GE31: =IF(GE30="","",IF(OR(GE30>(GD30+5),GE30<(GD30-5)),"Tolerance","")) ->  | GF31: =mndot_rounding_0(Grad!$V73) ->  | GG31: =IF(GG30="","",IF(OR(GG30>(GF30+5),GG30<(GF30-5)),"Tolerance","")) ->  | GH31: =mndot_rounding_0(Grad!$V74) ->  | GI31: =IF(GI30="","",IF(OR(GI30>(GH30+5),GI30<(GH30-5)),"Tolerance","")) ->  | GK31: Mov Avg. | GL31: =IF(MDR!$AL$4="YES",MDR!$BQ$48,MDR!$AE76) -> 30 | GM31: =IF(MDR!$AL$4="YES",MDR!$BR$48,MDR!$AF76) -> 80 | GN31: =mndot_rounding_0(Grad!$V75) ->  | GO31: =IF(GO30="","",IF(OR(GO30>(GN30+5),GO30<(GN30-5)),"Tolerance","")) ->  | GP31: =mndot_rounding_0(Grad!$V76) ->  | GQ31: =IF(GQ30="","",IF(OR(GQ30>(GP30+5),GQ30<(GP30-5)),"Tolerance","")) ->  | GR31: =mndot_rounding_0(Grad!$V77) ->  | GS31: =IF(GS30="","",IF(OR(GS30>(GR30+5),GS30<(GR30-5)),"Tolerance","")) ->  | GT31: =mndot_rounding_0(Grad!$V78) ->  | GU31: =IF(GU30="","",IF(OR(GU30>(GT30+5),GU30<(GT30-5)),"Tolerance","")) ->  | GW31: Mov Avg. | GX31: =IF(MDR!$AL$4="YES",MDR!$BQ$48,MDR!$AE80) -> 30 | GY31: =IF(MDR!$AL$4="YES",MDR!$BR$48,MDR!$AF80) -> 80 | GZ31: =mndot_rounding_0(Grad!$V79) ->  | HA31: =IF(HA30="","",IF(OR(HA30>(GZ30+5),HA30<(GZ30-5)),"Tolerance","")) ->  | HB31: =mndot_rounding_0(Grad!$V80) ->  | HC31: =IF(HC30="","",IF(OR(HC30>(HB30+5),HC30<(HB30-5)),"Tolerance","")) ->  | HD31: =mndot_rounding_0(Grad!$V81) ->  | HE31: =IF(HE30="","",IF(OR(HE30>(HD30+5),HE30<(HD30-5)),"Tolerance","")) ->  | HF31: =mndot_rounding_0(Grad!$V82) ->  | HG31: =IF(HG30="","",IF(OR(HG30>(HF30+5),HG30<(HF30-5)),"Tolerance","")) ->  | HI31: Mov Avg. | HJ31: =IF(MDR!$AL$4="YES",MDR!$BQ$48,MDR!$AE84) -> 30 | HK31: =IF(MDR!$AL$4="YES",MDR!$BR$48,MDR!$AF84) -> 80 | HL31: =mndot_rounding_0(Grad!$V83) ->  | HM31: =IF(HM30="","",IF(OR(HM30>(HL30+5),HM30<(HL30-5)),"Tolerance","")) ->  | HN31: =mndot_rounding_0(Grad!$V84) ->  | HO31: =IF(HO30="","",IF(OR(HO30>(HN30+5),HO30<(HN30-5)),"Tolerance","")) ->  | HP31: =mndot_rounding_0(Grad!$V85) ->  | HQ31: =IF(HQ30="","",IF(OR(HQ30>(HP30+5),HQ30<(HP30-5)),"Tolerance","")) ->  | HR31: =mndot_rounding_0(Grad!$V86) ->  | HS31: =IF(HS30="","",IF(OR(HS30>(HR30+5),HS30<(HR30-5)),"Tolerance","")) ->  | HU31: Mov Avg. | HV31: =IF(MDR!$AL$4="YES",MDR!$BQ$48,MDR!$AE88) -> 30 | HW31: =IF(MDR!$AL$4="YES",MDR!$BR$48,MDR!$AF88) -> 80 | HX31: =mndot_rounding_0(Grad!$V87) ->  | HY31: =IF(HY30="","",IF(OR(HY30>(HX30+5),HY30<(HX30-5)),"Tolerance","")) ->  | HZ31: =mndot_rounding_0(Grad!$V88) ->  | IA31: =IF(IA30="","",IF(OR(IA30>(HZ30+5),IA30<(HZ30-5)),"Tolerance","")) ->  | IB31: =mndot_rounding_0(Grad!$V89) ->  | IC31: =IF(IC30="","",IF(OR(IC30>(IB30+5),IC30<(IB30-5)),"Tolerance","")) ->  | ID31: =mndot_rounding_0(Grad!$V90) ->  | IE31: =IF(IE30="","",IF(OR(IE30>(ID30+5),IE30<(ID30-5)),"Tolerance","")) ->  | IG31: Mov Avg. | IH31: =IF(MDR!$AL$4="YES",MDR!$BQ$48,MDR!$AE92) -> 30 | II31: =IF(MDR!$AL$4="YES",MDR!$BR$48,MDR!$AF92) -> 80 | IJ31: =mndot_rounding_0(Grad!$V91) ->  | IK31: =IF(IK30="","",IF(OR(IK30>(IJ30+5),IK30<(IJ30-5)),"Tolerance","")) ->  | IL31: =mndot_rounding_0(Grad!$V92) ->  | IM31: =IF(IM30="","",IF(OR(IM30>(IL30+5),IM30<(IL30-5)),"Tolerance","")) ->  | IN31: =mndot_rounding_0(Grad!$V93) ->  | IO31: =IF(IO30="","",IF(OR(IO30>(IN30+5),IO30<(IN30-5)),"Tolerance","")) ->  | IP31: =mndot_rounding_0(Grad!$V94) ->  | IQ31: =IF(IQ30="","",IF(OR(IQ30>(IP30+5),IQ30<(IP30-5)),"Tolerance","")) ->  | IT31: 0 | IU31: Agency AFT Substituted | IW31: H = PG 70-28 (PMB)
A32: #4 Calc. % | D32: =IF(D30="","",IF(E30="",D30,IF(OR(E30>(D30+5),E30<(D30-5)),E30,D30))) ->  | E32: =IF(E30="","",IF(OR(E30>(D30+5),E30<(D30-5)),"Agncy Repl.","")) ->  | F32: =IF(F30="","",IF(G30="",F30,IF(OR(G30>(F30+5),G30<(F30-5)),G30,F30))) ->  | G32: =IF(G30="","",IF(OR(G30>(F30+5),G30<(F30-5)),"Agncy Repl.","")) ->  | H32: =IF(H30="","",IF(I30="",H30,IF(OR(I30>(H30+5),I30<(H30-5)),I30,H30))) ->  | I32: =IF(I30="","",IF(OR(I30>(H30+5),I30<(H30-5)),"Agncy Repl.","")) ->  | J32: =IF(J30="","",IF(K30="",J30,IF(OR(K30>(J30+5),K30<(J30-5)),K30,J30))) ->  | K32: =IF(K30="","",IF(OR(K30>(J30+5),K30<(J30-5)),"Agncy Repl.","")) ->  | M32: Calc. % | P32: =IF(P30="","",IF(Q30="",P30,IF(OR(Q30>(P30+5),Q30<(P30-5)),Q30,P30))) ->  | Q32: =IF(Q30="","",IF(OR(Q30>(P30+5),Q30<(P30-5)),"Agncy Repl.","")) ->  | R32: =IF(R30="","",IF(S30="",R30,IF(OR(S30>(R30+5),S30<(R30-5)),S30,R30))) ->  | S32: =IF(S30="","",IF(OR(S30>(R30+5),S30<(R30-5)),"Agncy Repl.","")) ->  | T32: =IF(T30="","",IF(U30="",T30,IF(OR(U30>(T30+5),U30<(T30-5)),U30,T30))) ->  | U32: =IF(U30="","",IF(OR(U30>(T30+5),U30<(T30-5)),"Agncy Repl.","")) ->  | V32: =IF(V30="","",IF(W30="",V30,IF(OR(W30>(V30+5),W30<(V30-5)),W30,V30))) ->  | W32: =IF(W30="","",IF(OR(W30>(V30+5),W30<(V30-5)),"Agncy Repl.","")) ->  | Y32: Calc. % | AB32: =IF(AB30="","",IF(AC30="",AB30,IF(OR(AC30>(AB30+5),AC30<(AB30-5)),AC30,AB30))) ->  | AC32: =IF(AC30="","",IF(OR(AC30>(AB30+5),AC30<(AB30-5)),"Agncy Repl.","")) ->  | AD32: =IF(AD30="","",IF(AE30="",AD30,IF(OR(AE30>(AD30+5),AE30<(AD30-5)),AE30,AD30))) ->  | AE32: =IF(AE30="","",IF(OR(AE30>(AD30+5),AE30<(AD30-5)),"Agncy Repl.","")) ->  | AF32: =IF(AF30="","",IF(AG30="",AF30,IF(OR(AG30>(AF30+5),AG30<(AF30-5)),AG30,AF30))) ->  | AG32: =IF(AG30="","",IF(OR(AG30>(AF30+5),AG30<(AF30-5)),"Agncy Repl.","")) ->  | AH32: =IF(AH30="","",IF(AI30="",AH30,IF(OR(AI30>(AH30+5),AI30<(AH30-5)),AI30,AH30))) ->  | AI32: =IF(AI30="","",IF(OR(AI30>(AH30+5),AI30<(AH30-5)),"Agncy Repl.","")) ->  | AK32: Calc. % | AN32: =IF(AN30="","",IF(AO30="",AN30,IF(OR(AO30>(AN30+5),AO30<(AN30-5)),AO30,AN30))) ->  | AO32: =IF(AO30="","",IF(OR(AO30>(AN30+5),AO30<(AN30-5)),"Agncy Repl.","")) ->  | AP32: =IF(AP30="","",IF(AQ30="",AP30,IF(OR(AQ30>(AP30+5),AQ30<(AP30-5)),AQ30,AP30))) ->  | AQ32: =IF(AQ30="","",IF(OR(AQ30>(AP30+5),AQ30<(AP30-5)),"Agncy Repl.","")) ->  | AR32: =IF(AR30="","",IF(AS30="",AR30,IF(OR(AS30>(AR30+5),AS30<(AR30-5)),AS30,AR30))) ->  | AS32: =IF(AS30="","",IF(OR(AS30>(AR30+5),AS30<(AR30-5)),"Agncy Repl.","")) ->  | AT32: =IF(AT30="","",IF(AU30="",AT30,IF(OR(AU30>(AT30+5),AU30<(AT30-5)),AU30,AT30))) ->  | AU32: =IF(AU30="","",IF(OR(AU30>(AT30+5),AU30<(AT30-5)),"Agncy Repl.","")) ->  | AW32: Calc. % | AZ32: =IF(AZ30="","",IF(BA30="",AZ30,IF(OR(BA30>(AZ30+5),BA30<(AZ30-5)),BA30,AZ30))) ->  | BA32: =IF(BA30="","",IF(OR(BA30>(AZ30+5),BA30<(AZ30-5)),"Agncy Repl.","")) ->  | BB32: =IF(BB30="","",IF(BC30="",BB30,IF(OR(BC30>(BB30+5),BC30<(BB30-5)),BC30,BB30))) ->  | BC32: =IF(BC30="","",IF(OR(BC30>(BB30+5),BC30<(BB30-5)),"Agncy Repl.","")) ->  | BD32: =IF(BD30="","",IF(BE30="",BD30,IF(OR(BE30>(BD30+5),BE30<(BD30-5)),BE30,BD30))) ->  | BE32: =IF(BE30="","",IF(OR(BE30>(BD30+5),BE30<(BD30-5)),"Agncy Repl.","")) ->  | BF32: =IF(BF30="","",IF(BG30="",BF30,IF(OR(BG30>(BF30+5),BG30<(BF30-5)),BG30,BF30))) ->  | BG32: =IF(BG30="","",IF(OR(BG30>(BF30+5),BG30<(BF30-5)),"Agncy Repl.","")) ->  | BI32: Calc. % | BL32: =IF(BL30="","",IF(BM30="",BL30,IF(OR(BM30>(BL30+5),BM30<(BL30-5)),BM30,BL30))) ->  | BM32: =IF(BM30="","",IF(OR(BM30>(BL30+5),BM30<(BL30-5)),"Agncy Repl.","")) ->  | BN32: =IF(BN30="","",IF(BO30="",BN30,IF(OR(BO30>(BN30+5),BO30<(BN30-5)),BO30,BN30))) ->  | BO32: =IF(BO30="","",IF(OR(BO30>(BN30+5),BO30<(BN30-5)),"Agncy Repl.","")) ->  | BP32: =IF(BP30="","",IF(BQ30="",BP30,IF(OR(BQ30>(BP30+5),BQ30<(BP30-5)),BQ30,BP30))) ->  | BQ32: =IF(BQ30="","",IF(OR(BQ30>(BP30+5),BQ30<(BP30-5)),"Agncy Repl.","")) ->  | BR32: =IF(BR30="","",IF(BS30="",BR30,IF(OR(BS30>(BR30+5),BS30<(BR30-5)),BS30,BR30))) ->  | BS32: =IF(BS30="","",IF(OR(BS30>(BR30+5),BS30<(BR30-5)),"Agncy Repl.","")) ->  | BU32: Calc. % | BX32: =IF(BX30="","",IF(BY30="",BX30,IF(OR(BY30>(BX30+5),BY30<(BX30-5)),BY30,BX30))) ->  | BY32: =IF(BY30="","",IF(OR(BY30>(BX30+5),BY30<(BX30-5)),"Agncy Repl.","")) ->  | BZ32: =IF(BZ30="","",IF(CA30="",BZ30,IF(OR(CA30>(BZ30+5),CA30<(BZ30-5)),CA30,BZ30))) ->  | CA32: =IF(CA30="","",IF(OR(CA30>(BZ30+5),CA30<(BZ30-5)),"Agncy Repl.","")) ->  | CB32: =IF(CB30="","",IF(CC30="",CB30,IF(OR(CC30>(CB30+5),CC30<(CB30-5)),CC30,CB30))) ->  | CC32: =IF(CC30="","",IF(OR(CC30>(CB30+5),CC30<(CB30-5)),"Agncy Repl.","")) ->  | CD32: =IF(CD30="","",IF(CE30="",CD30,IF(OR(CE30>(CD30+5),CE30<(CD30-5)),CE30,CD30))) ->  | CE32: =IF(CE30="","",IF(OR(CE30>(CD30+5),CE30<(CD30-5)),"Agncy Repl.","")) ->  | CG32: Calc. % | CJ32: =IF(CJ30="","",IF(CK30="",CJ30,IF(OR(CK30>(CJ30+5),CK30<(CJ30-5)),CK30,CJ30))) ->  | CK32: =IF(CK30="","",IF(OR(CK30>(CJ30+5),CK30<(CJ30-5)),"Agncy Repl.","")) ->  | CL32: =IF(CL30="","",IF(CM30="",CL30,IF(OR(CM30>(CL30+5),CM30<(CL30-5)),CM30,CL30))) ->  | CM32: =IF(CM30="","",IF(OR(CM30>(CL30+5),CM30<(CL30-5)),"Agncy Repl.","")) ->  | CN32: =IF(CN30="","",IF(CO30="",CN30,IF(OR(CO30>(CN30+5),CO30<(CN30-5)),CO30,CN30))) ->  | CO32: =IF(CO30="","",IF(OR(CO30>(CN30+5),CO30<(CN30-5)),"Agncy Repl.","")) ->  | CP32: =IF(CP30="","",IF(CQ30="",CP30,IF(OR(CQ30>(CP30+5),CQ30<(CP30-5)),CQ30,CP30))) ->  | CQ32: =IF(CQ30="","",IF(OR(CQ30>(CP30+5),CQ30<(CP30-5)),"Agncy Repl.","")) ->  | CS32: Calc. % | CV32: =IF(CV30="","",IF(CW30="",CV30,IF(OR(CW30>(CV30+5),CW30<(CV30-5)),CW30,CV30))) ->  | CW32: =IF(CW30="","",IF(OR(CW30>(CV30+5),CW30<(CV30-5)),"Agncy Repl.","")) ->  | CX32: =IF(CX30="","",IF(CY30="",CX30,IF(OR(CY30>(CX30+5),CY30<(CX30-5)),CY30,CX30))) ->  | CY32: =IF(CY30="","",IF(OR(CY30>(CX30+5),CY30<(CX30-5)),"Agncy Repl.","")) ->  | CZ32: =IF(CZ30="","",IF(DA30="",CZ30,IF(OR(DA30>(CZ30+5),DA30<(CZ30-5)),DA30,CZ30))) ->  | DA32: =IF(DA30="","",IF(OR(DA30>(CZ30+5),DA30<(CZ30-5)),"Agncy Repl.","")) ->  | DB32: =IF(DB30="","",IF(DC30="",DB30,IF(OR(DC30>(DB30+5),DC30<(DB30-5)),DC30,DB30))) ->  | DC32: =IF(DC30="","",IF(OR(DC30>(DB30+5),DC30<(DB30-5)),"Agncy Repl.","")) ->  | DE32: Calc. % | DH32: =IF(DH30="","",IF(DI30="",DH30,IF(OR(DI30>(DH30+5),DI30<(DH30-5)),DI30,DH30))) ->  | DI32: =IF(DI30="","",IF(OR(DI30>(DH30+5),DI30<(DH30-5)),"Agncy Repl.","")) ->  | DJ32: =IF(DJ30="","",IF(DK30="",DJ30,IF(OR(DK30>(DJ30+5),DK30<(DJ30-5)),DK30,DJ30))) ->  | DK32: =IF(DK30="","",IF(OR(DK30>(DJ30+5),DK30<(DJ30-5)),"Agncy Repl.","")) ->  | DL32: =IF(DL30="","",IF(DM30="",DL30,IF(OR(DM30>(DL30+5),DM30<(DL30-5)),DM30,DL30))) ->  | DM32: =IF(DM30="","",IF(OR(DM30>(DL30+5),DM30<(DL30-5)),"Agncy Repl.","")) ->  | DN32: =IF(DN30="","",IF(DO30="",DN30,IF(OR(DO30>(DN30+5),DO30<(DN30-5)),DO30,DN30))) ->  | DO32: =IF(DO30="","",IF(OR(DO30>(DN30+5),DO30<(DN30-5)),"Agncy Repl.","")) ->  | DQ32: Calc. % | DT32: =IF(DT30="","",IF(DU30="",DT30,IF(OR(DU30>(DT30+5),DU30<(DT30-5)),DU30,DT30))) ->  | DU32: =IF(DU30="","",IF(OR(DU30>(DT30+5),DU30<(DT30-5)),"Agncy Repl.","")) ->  | DV32: =IF(DV30="","",IF(DW30="",DV30,IF(OR(DW30>(DV30+5),DW30<(DV30-5)),DW30,DV30))) ->  | DW32: =IF(DW30="","",IF(OR(DW30>(DV30+5),DW30<(DV30-5)),"Agncy Repl.","")) ->  | DX32: =IF(DX30="","",IF(DY30="",DX30,IF(OR(DY30>(DX30+5),DY30<(DX30-5)),DY30,DX30))) ->  | DY32: =IF(DY30="","",IF(OR(DY30>(DX30+5),DY30<(DX30-5)),"Agncy Repl.","")) ->  | DZ32: =IF(DZ30="","",IF(EA30="",DZ30,IF(OR(EA30>(DZ30+5),EA30<(DZ30-5)),EA30,DZ30))) ->  | EA32: =IF(EA30="","",IF(OR(EA30>(DZ30+5),EA30<(DZ30-5)),"Agncy Repl.","")) ->  | EC32: Calc. % | EF32: =IF(EF30="","",IF(EG30="",EF30,IF(OR(EG30>(EF30+5),EG30<(EF30-5)),EG30,EF30))) ->  | EG32: =IF(EG30="","",IF(OR(EG30>(EF30+5),EG30<(EF30-5)),"Agncy Repl.","")) ->  | EH32: =IF(EH30="","",IF(EI30="",EH30,IF(OR(EI30>(EH30+5),EI30<(EH30-5)),EI30,EH30))) ->  | EI32: =IF(EI30="","",IF(OR(EI30>(EH30+5),EI30<(EH30-5)),"Agncy Repl.","")) ->  | EJ32: =IF(EJ30="","",IF(EK30="",EJ30,IF(OR(EK30>(EJ30+5),EK30<(EJ30-5)),EK30,EJ30))) ->  | EK32: =IF(EK30="","",IF(OR(EK30>(EJ30+5),EK30<(EJ30-5)),"Agncy Repl.","")) ->  | EL32: =IF(EL30="","",IF(EM30="",EL30,IF(OR(EM30>(EL30+5),EM30<(EL30-5)),EM30,EL30))) ->  | EM32: =IF(EM30="","",IF(OR(EM30>(EL30+5),EM30<(EL30-5)),"Agncy Repl.","")) ->  | EO32: Calc. % | ER32: =IF(ER30="","",IF(ES30="",ER30,IF(OR(ES30>(ER30+5),ES30<(ER30-5)),ES30,ER30))) ->  | ES32: =IF(ES30="","",IF(OR(ES30>(ER30+5),ES30<(ER30-5)),"Agncy Repl.","")) ->  | ET32: =IF(ET30="","",IF(EU30="",ET30,IF(OR(EU30>(ET30+5),EU30<(ET30-5)),EU30,ET30))) ->  | EU32: =IF(EU30="","",IF(OR(EU30>(ET30+5),EU30<(ET30-5)),"Agncy Repl.","")) ->  | EV32: =IF(EV30="","",IF(EW30="",EV30,IF(OR(EW30>(EV30+5),EW30<(EV30-5)),EW30,EV30))) ->  | EW32: =IF(EW30="","",IF(OR(EW30>(EV30+5),EW30<(EV30-5)),"Agncy Repl.","")) ->  | EX32: =IF(EX30="","",IF(EY30="",EX30,IF(OR(EY30>(EX30+5),EY30<(EX30-5)),EY30,EX30))) ->  | EY32: =IF(EY30="","",IF(OR(EY30>(EX30+5),EY30<(EX30-5)),"Agncy Repl.","")) ->  | FA32: Calc. % | FD32: =IF(FD30="","",IF(FE30="",FD30,IF(OR(FE30>(FD30+5),FE30<(FD30-5)),FE30,FD30))) ->  | FE32: =IF(FE30="","",IF(OR(FE30>(FD30+5),FE30<(FD30-5)),"Agncy Repl.","")) ->  | FF32: =IF(FF30="","",IF(FG30="",FF30,IF(OR(FG30>(FF30+5),FG30<(FF30-5)),FG30,FF30))) ->  | FG32: =IF(FG30="","",IF(OR(FG30>(FF30+5),FG30<(FF30-5)),"Agncy Repl.","")) ->  | FH32: =IF(FH30="","",IF(FI30="",FH30,IF(OR(FI30>(FH30+5),FI30<(FH30-5)),FI30,FH30))) ->  | FI32: =IF(FI30="","",IF(OR(FI30>(FH30+5),FI30<(FH30-5)),"Agncy Repl.","")) ->  | FJ32: =IF(FJ30="","",IF(FK30="",FJ30,IF(OR(FK30>(FJ30+5),FK30<(FJ30-5)),FK30,FJ30))) ->  | FK32: =IF(FK30="","",IF(OR(FK30>(FJ30+5),FK30<(FJ30-5)),"Agncy Repl.","")) ->  | FM32: Calc. % | FP32: =IF(FP30="","",IF(FQ30="",FP30,IF(OR(FQ30>(FP30+5),FQ30<(FP30-5)),FQ30,FP30))) ->  | FQ32: =IF(FQ30="","",IF(OR(FQ30>(FP30+5),FQ30<(FP30-5)),"Agncy Repl.","")) ->  | FR32: =IF(FR30="","",IF(FS30="",FR30,IF(OR(FS30>(FR30+5),FS30<(FR30-5)),FS30,FR30))) ->  | FS32: =IF(FS30="","",IF(OR(FS30>(FR30+5),FS30<(FR30-5)),"Agncy Repl.","")) ->  | FT32: =IF(FT30="","",IF(FU30="",FT30,IF(OR(FU30>(FT30+5),FU30<(FT30-5)),FU30,FT30))) ->  | FU32: =IF(FU30="","",IF(OR(FU30>(FT30+5),FU30<(FT30-5)),"Agncy Repl.","")) ->  | FV32: =IF(FV30="","",IF(FW30="",FV30,IF(OR(FW30>(FV30+5),FW30<(FV30-5)),FW30,FV30))) ->  | FW32: =IF(FW30="","",IF(OR(FW30>(FV30+5),FW30<(FV30-5)),"Agncy Repl.","")) ->  | FY32: Calc. % | GB32: =IF(GB30="","",IF(GC30="",GB30,IF(OR(GC30>(GB30+5),GC30<(GB30-5)),GC30,GB30))) ->  | GC32: =IF(GC30="","",IF(OR(GC30>(GB30+5),GC30<(GB30-5)),"Agncy Repl.","")) ->  | GD32: =IF(GD30="","",IF(GE30="",GD30,IF(OR(GE30>(GD30+5),GE30<(GD30-5)),GE30,GD30))) ->  | GE32: =IF(GE30="","",IF(OR(GE30>(GD30+5),GE30<(GD30-5)),"Agncy Repl.","")) ->  | GF32: =IF(GF30="","",IF(GG30="",GF30,IF(OR(GG30>(GF30+5),GG30<(GF30-5)),GG30,GF30))) ->  | GG32: =IF(GG30="","",IF(OR(GG30>(GF30+5),GG30<(GF30-5)),"Agncy Repl.","")) ->  | GH32: =IF(GH30="","",IF(GI30="",GH30,IF(OR(GI30>(GH30+5),GI30<(GH30-5)),GI30,GH30))) ->  | GI32: =IF(GI30="","",IF(OR(GI30>(GH30+5),GI30<(GH30-5)),"Agncy Repl.","")) ->  | GK32: Calc. % | GN32: =IF(GN30="","",IF(GO30="",GN30,IF(OR(GO30>(GN30+5),GO30<(GN30-5)),GO30,GN30))) ->  | GO32: =IF(GO30="","",IF(OR(GO30>(GN30+5),GO30<(GN30-5)),"Agncy Repl.","")) ->  | GP32: =IF(GP30="","",IF(GQ30="",GP30,IF(OR(GQ30>(GP30+5),GQ30<(GP30-5)),GQ30,GP30))) ->  | GQ32: =IF(GQ30="","",IF(OR(GQ30>(GP30+5),GQ30<(GP30-5)),"Agncy Repl.","")) ->  | GR32: =IF(GR30="","",IF(GS30="",GR30,IF(OR(GS30>(GR30+5),GS30<(GR30-5)),GS30,GR30))) ->  | GS32: =IF(GS30="","",IF(OR(GS30>(GR30+5),GS30<(GR30-5)),"Agncy Repl.","")) ->  | GT32: =IF(GT30="","",IF(GU30="",GT30,IF(OR(GU30>(GT30+5),GU30<(GT30-5)),GU30,GT30))) ->  | GU32: =IF(GU30="","",IF(OR(GU30>(GT30+5),GU30<(GT30-5)),"Agncy Repl.","")) ->  | GW32: Calc. % | GZ32: =IF(GZ30="","",IF(HA30="",GZ30,IF(OR(HA30>(GZ30+5),HA30<(GZ30-5)),HA30,GZ30))) ->  | HA32: =IF(HA30="","",IF(OR(HA30>(GZ30+5),HA30<(GZ30-5)),"Agncy Repl.","")) ->  | HB32: =IF(HB30="","",IF(HC30="",HB30,IF(OR(HC30>(HB30+5),HC30<(HB30-5)),HC30,HB30))) ->  | HC32: =IF(HC30="","",IF(OR(HC30>(HB30+5),HC30<(HB30-5)),"Agncy Repl.","")) ->  | HD32: =IF(HD30="","",IF(HE30="",HD30,IF(OR(HE30>(HD30+5),HE30<(HD30-5)),HE30,HD30))) ->  | HE32: =IF(HE30="","",IF(OR(HE30>(HD30+5),HE30<(HD30-5)),"Agncy Repl.","")) ->  | HF32: =IF(HF30="","",IF(HG30="",HF30,IF(OR(HG30>(HF30+5),HG30<(HF30-5)),HG30,HF30))) ->  | HG32: =IF(HG30="","",IF(OR(HG30>(HF30+5),HG30<(HF30-5)),"Agncy Repl.","")) ->  | HI32: Calc. % | HL32: =IF(HL30="","",IF(HM30="",HL30,IF(OR(HM30>(HL30+5),HM30<(HL30-5)),HM30,HL30))) ->  | HM32: =IF(HM30="","",IF(OR(HM30>(HL30+5),HM30<(HL30-5)),"Agncy Repl.","")) ->  | HN32: =IF(HN30="","",IF(HO30="",HN30,IF(OR(HO30>(HN30+5),HO30<(HN30-5)),HO30,HN30))) ->  | HO32: =IF(HO30="","",IF(OR(HO30>(HN30+5),HO30<(HN30-5)),"Agncy Repl.","")) ->  | HP32: =IF(HP30="","",IF(HQ30="",HP30,IF(OR(HQ30>(HP30+5),HQ30<(HP30-5)),HQ30,HP30))) ->  | HQ32: =IF(HQ30="","",IF(OR(HQ30>(HP30+5),HQ30<(HP30-5)),"Agncy Repl.","")) ->  | HR32: =IF(HR30="","",IF(HS30="",HR30,IF(OR(HS30>(HR30+5),HS30<(HR30-5)),HS30,HR30))) ->  | HS32: =IF(HS30="","",IF(OR(HS30>(HR30+5),HS30<(HR30-5)),"Agncy Repl.","")) ->  | HU32: Calc. % | HX32: =IF(HX30="","",IF(HY30="",HX30,IF(OR(HY30>(HX30+5),HY30<(HX30-5)),HY30,HX30))) ->  | HY32: =IF(HY30="","",IF(OR(HY30>(HX30+5),HY30<(HX30-5)),"Agncy Repl.","")) ->  | HZ32: =IF(HZ30="","",IF(IA30="",HZ30,IF(OR(IA30>(HZ30+5),IA30<(HZ30-5)),IA30,HZ30))) ->  | IA32: =IF(IA30="","",IF(OR(IA30>(HZ30+5),IA30<(HZ30-5)),"Agncy Repl.","")) ->  | IB32: =IF(IB30="","",IF(IC30="",IB30,IF(OR(IC30>(IB30+5),IC30<(IB30-5)),IC30,IB30))) ->  | IC32: =IF(IC30="","",IF(OR(IC30>(IB30+5),IC30<(IB30-5)),"Agncy Repl.","")) ->  | ID32: =IF(ID30="","",IF(IE30="",ID30,IF(OR(IE30>(ID30+5),IE30<(ID30-5)),IE30,ID30))) ->  | IE32: =IF(IE30="","",IF(OR(IE30>(ID30+5),IE30<(ID30-5)),"Agncy Repl.","")) ->  | IG32: Calc. % | IJ32: =IF(IJ30="","",IF(IK30="",IJ30,IF(OR(IK30>(IJ30+5),IK30<(IJ30-5)),IK30,IJ30))) ->  | IK32: =IF(IK30="","",IF(OR(IK30>(IJ30+5),IK30<(IJ30-5)),"Agncy Repl.","")) ->  | IL32: =IF(IL30="","",IF(IM30="",IL30,IF(OR(IM30>(IL30+5),IM30<(IL30-5)),IM30,IL30))) ->  | IM32: =IF(IM30="","",IF(OR(IM30>(IL30+5),IM30<(IL30-5)),"Agncy Repl.","")) ->  | IN32: =IF(IN30="","",IF(IO30="",IN30,IF(OR(IO30>(IN30+5),IO30<(IN30-5)),IO30,IN30))) ->  | IO32: =IF(IO30="","",IF(OR(IO30>(IN30+5),IO30<(IN30-5)),"Agncy Repl.","")) ->  | IP32: =IF(IP30="","",IF(IQ30="",IP30,IF(OR(IQ30>(IP30+5),IQ30<(IP30-5)),IQ30,IP30))) ->  | IQ32: =IF(IQ30="","",IF(OR(IQ30>(IP30+5),IQ30<(IP30-5)),"Agncy Repl.","")) ->  | IW32: I = PG 70-34
A33: #8 | M33: #8 | Y33: #8 | AK33: #8 | AW33: #8 | BI33: #8 | BU33: #8 | CG33: #8 | CS33: #8 | DE33: #8 | DQ33: #8 | EC33: #8 | EO33: #8 | FA33: #8 | FM33: #8 | FY33: #8 | GK33: #8 | GW33: #8 | HI33: #8 | HU33: #8 | IG33: #8 | IT33: 0 | IU33: Agency AFT Substituted | IW33: L = PG 64-22
A34: Mov Avg. | B34: =IF(MDR!$Y$5="YES",MDR!$BQ$49,MDR!$BV$49) -> 25 | C34: =IF(MDR!$Y$5="YES",MDR!BR49,MDR!$BW$49) -> 65 | E34: =IF(E33="","",IF(OR(E33>(D33+4),E33<(D33-4)),"Tolerance","")) ->  | G34: =IF(G33="","",IF(OR(G33>(F33+4),G33<(F33-4)),"Tolerance","")) ->  | I34: =IF(I33="","",IF(OR(I33>(H33+4),I33<(H33-4)),"Tolerance","")) ->  | J34: =mndot_rounding_0(IF(D33="","",IF(F33="","",IF(H33="","",IF(J33="","",Grad!M14))))) ->  | K34: =IF(K33="","",IF(OR(K33>(J33+4),K33<(J33-4)),"Tolerance","")) ->  | M34: Mov Avg. | N34: =IF(MDR!$AL$4="YES",MDR!$BQ$49,MDR!$AK16) -> 25 | O34: =IF(MDR!$AL$4="YES",MDR!BR49,MDR!$AL16) -> 65 | P34: =mndot_rounding_0(Grad!$W15) ->  | Q34: =IF(Q33="","",IF(OR(Q33>(P33+4),Q33<(P33-4)),"Tolerance","")) ->  | R34: =mndot_rounding_0(Grad!$W16) ->  | S34: =IF(S33="","",IF(OR(S33>(R33+4),S33<(R33-4)),"Tolerance","")) ->  | T34: =mndot_rounding_0(Grad!$W17) ->  | U34: =IF(U33="","",IF(OR(U33>(T33+4),U33<(T33-4)),"Tolerance","")) ->  | V34: =mndot_rounding_0(Grad!$W18) ->  | W34: =IF(W33="","",IF(OR(W33>(V33+4),W33<(V33-4)),"Tolerance","")) ->  | Y34: Mov Avg. | Z34: =IF(MDR!$AL$4="YES",MDR!$BQ$49,MDR!$AK20) -> 25 | AA34: =IF(MDR!$AL$4="YES",MDR!BR49,MDR!$AL20) -> 65 | AB34: =mndot_rounding_0(Grad!$W19) ->  | AC34: =IF(AC33="","",IF(OR(AC33>(AB33+4),AC33<(AB33-4)),"Tolerance","")) ->  | AD34: =mndot_rounding_0(Grad!$W20) ->  | AE34: =IF(AE33="","",IF(OR(AE33>(AD33+4),AE33<(AD33-4)),"Tolerance","")) ->  | AF34: =mndot_rounding_0(Grad!$W21) ->  | AG34: =IF(AG33="","",IF(OR(AG33>(AF33+4),AG33<(AF33-4)),"Tolerance","")) ->  | AH34: =mndot_rounding_0(Grad!$W22) ->  | AI34: =IF(AI33="","",IF(OR(AI33>(AH33+4),AI33<(AH33-4)),"Tolerance","")) ->  | AK34: Mov Avg. | AL34: =IF(MDR!$AL$4="YES",MDR!$BQ$49,MDR!$AK24) -> 25 | AM34: =IF(MDR!$AL$4="YES",MDR!BR49,MDR!$AL24) -> 65 | AN34: =mndot_rounding_0(Grad!$W23) ->  | AO34: =IF(AO33="","",IF(OR(AO33>(AN33+4),AO33<(AN33-4)),"Tolerance","")) ->  | AP34: =mndot_rounding_0(Grad!$W24) ->  | AQ34: =IF(AQ33="","",IF(OR(AQ33>(AP33+4),AQ33<(AP33-4)),"Tolerance","")) ->  | AR34: =mndot_rounding_0(Grad!$W25) ->  | AS34: =IF(AS33="","",IF(OR(AS33>(AR33+4),AS33<(AR33-4)),"Tolerance","")) ->  | AT34: =mndot_rounding_0(Grad!$W26) ->  | AU34: =IF(AU33="","",IF(OR(AU33>(AT33+4),AU33<(AT33-4)),"Tolerance","")) ->  | AW34: Mov Avg. | AX34: =IF(MDR!$AL$4="YES",MDR!$BQ$49,MDR!$AK28) -> 25 | AY34: =IF(MDR!$AL$4="YES",MDR!BR49,MDR!$AL28) -> 65 | AZ34: =mndot_rounding_0(Grad!$W27) ->  | BA34: =IF(BA33="","",IF(OR(BA33>(AZ33+4),BA33<(AZ33-4)),"Tolerance","")) ->  | BB34: =mndot_rounding_0(Grad!$W28) ->  | BC34: =IF(BC33="","",IF(OR(BC33>(BB33+4),BC33<(BB33-4)),"Tolerance","")) ->  | BD34: =mndot_rounding_0(Grad!$W29) ->  | BE34: =IF(BE33="","",IF(OR(BE33>(BD33+4),BE33<(BD33-4)),"Tolerance","")) ->  | BF34: =mndot_rounding_0(Grad!$W30) ->  | BG34: =IF(BG33="","",IF(OR(BG33>(BF33+4),BG33<(BF33-4)),"Tolerance","")) ->  | BI34: Mov Avg. | BJ34: =IF(MDR!$AL$4="YES",MDR!$BQ$49,MDR!$AK32) -> 25 | BK34: =IF(MDR!$AL$4="YES",MDR!BR49,MDR!$AL32) -> 65 | BL34: =mndot_rounding_0(Grad!$W31) ->  | BM34: =IF(BM33="","",IF(OR(BM33>(BL33+4),BM33<(BL33-4)),"Tolerance","")) ->  | BN34: =mndot_rounding_0(Grad!$W32) ->  | BO34: =IF(BO33="","",IF(OR(BO33>(BN33+4),BO33<(BN33-4)),"Tolerance","")) ->  | BP34: =mndot_rounding_0(Grad!$W33) ->  | BQ34: =IF(BQ33="","",IF(OR(BQ33>(BP33+4),BQ33<(BP33-4)),"Tolerance","")) ->  | BR34: =mndot_rounding_0(Grad!$W34) ->  | BS34: =IF(BS33="","",IF(OR(BS33>(BR33+4),BS33<(BR33-4)),"Tolerance","")) ->  | BU34: Mov Avg. | BV34: =IF(MDR!$AL$4="YES",MDR!$BQ$49,MDR!$AK36) -> 25 | BW34: =IF(MDR!$AL$4="YES",MDR!BR49,MDR!$AL36) -> 65 | BX34: =mndot_rounding_0(Grad!$W35) ->  | BY34: =IF(BY33="","",IF(OR(BY33>(BX33+4),BY33<(BX33-4)),"Tolerance","")) ->  | BZ34: =mndot_rounding_0(Grad!$W36) ->  | CA34: =IF(CA33="","",IF(OR(CA33>(BZ33+4),CA33<(BZ33-4)),"Tolerance","")) ->  | CB34: =mndot_rounding_0(Grad!$W37) ->  | CC34: =IF(CC33="","",IF(OR(CC33>(CB33+4),CC33<(CB33-4)),"Tolerance","")) ->  | CD34: =mndot_rounding_0(Grad!$W38) ->  | CE34: =IF(CE33="","",IF(OR(CE33>(CD33+4),CE33<(CD33-4)),"Tolerance","")) ->  | CG34: Mov Avg. | CH34: =IF(MDR!$AL$4="YES",MDR!$BQ$49,MDR!$AK40) -> 25 | CI34: =IF(MDR!$AL$4="YES",MDR!BR49,MDR!$AL40) -> 65 | CJ34: =mndot_rounding_0(Grad!$W39) ->  | CK34: =IF(CK33="","",IF(OR(CK33>(CJ33+4),CK33<(CJ33-4)),"Tolerance","")) ->  | CL34: =mndot_rounding_0(Grad!$W40) ->  | CM34: =IF(CM33="","",IF(OR(CM33>(CL33+4),CM33<(CL33-4)),"Tolerance","")) ->  | CN34: =mndot_rounding_0(Grad!$W41) ->  | CO34: =IF(CO33="","",IF(OR(CO33>(CN33+4),CO33<(CN33-4)),"Tolerance","")) ->  | CP34: =mndot_rounding_0(Grad!$W42) ->  | CQ34: =IF(CQ33="","",IF(OR(CQ33>(CP33+4),CQ33<(CP33-4)),"Tolerance","")) ->  | CS34: Mov Avg. | CT34: =IF(MDR!$AL$4="YES",MDR!$BQ$49,MDR!$AK44) -> 25 | CU34: =IF(MDR!$AL$4="YES",MDR!BR49,MDR!$AL44) -> 65 | CV34: =mndot_rounding_0(Grad!$W43) ->  | CW34: =IF(CW33="","",IF(OR(CW33>(CV33+4),CW33<(CV33-4)),"Tolerance","")) ->  | CX34: =mndot_rounding_0(Grad!$W44) ->  | CY34: =IF(CY33="","",IF(OR(CY33>(CX33+4),CY33<(CX33-4)),"Tolerance","")) ->  | CZ34: =mndot_rounding_0(Grad!$W45) ->  | DA34: =IF(DA33="","",IF(OR(DA33>(CZ33+4),DA33<(CZ33-4)),"Tolerance","")) ->  | DB34: =mndot_rounding_0(Grad!$W46) ->  | DC34: =IF(DC33="","",IF(OR(DC33>(DB33+4),DC33<(DB33-4)),"Tolerance","")) ->  | DE34: Mov Avg. | DF34: =IF(MDR!$AL$4="YES",MDR!$BQ$49,MDR!$AK48) -> 25 | DG34: =IF(MDR!$AL$4="YES",MDR!BR49,MDR!$AL48) -> 65 | DH34: =mndot_rounding_0(Grad!$W47) ->  | DI34: =IF(DI33="","",IF(OR(DI33>(DH33+4),DI33<(DH33-4)),"Tolerance","")) ->  | DJ34: =mndot_rounding_0(Grad!$W48) ->  | DK34: =IF(DK33="","",IF(OR(DK33>(DJ33+4),DK33<(DJ33-4)),"Tolerance","")) ->  | DL34: =mndot_rounding_0(Grad!$W49) ->  | DM34: =IF(DM33="","",IF(OR(DM33>(DL33+4),DM33<(DL33-4)),"Tolerance","")) ->  | DN34: =mndot_rounding_0(Grad!$W50) ->  | DO34: =IF(DO33="","",IF(OR(DO33>(DN33+4),DO33<(DN33-4)),"Tolerance","")) ->  | DQ34: Mov Avg. | DR34: =IF(MDR!$AL$4="YES",MDR!$BQ$49,MDR!$AK52) -> 25 | DS34: =IF(MDR!$AL$4="YES",MDR!BR49,MDR!$AL52) -> 65 | DT34: =mndot_rounding_0(Grad!$W51) ->  | DU34: =IF(DU33="","",IF(OR(DU33>(DT33+4),DU33<(DT33-4)),"Tolerance","")) ->  | DV34: =mndot_rounding_0(Grad!$W52) ->  | DW34: =IF(DW33="","",IF(OR(DW33>(DV33+4),DW33<(DV33-4)),"Tolerance","")) ->  | DX34: =mndot_rounding_0(Grad!$W53) ->  | DY34: =IF(DY33="","",IF(OR(DY33>(DX33+4),DY33<(DX33-4)),"Tolerance","")) ->  | DZ34: =mndot_rounding_0(Grad!$W54) ->  | EA34: =IF(EA33="","",IF(OR(EA33>(DZ33+4),EA33<(DZ33-4)),"Tolerance","")) ->  | EC34: Mov Avg. | ED34: =IF(MDR!$AL$4="YES",MDR!$BQ$49,MDR!$AK56) -> 25 | EE34: =IF(MDR!$AL$4="YES",MDR!BR49,MDR!$AL56) -> 65 | EF34: =mndot_rounding_0(Grad!$W55) ->  | EG34: =IF(EG33="","",IF(OR(EG33>(EF33+4),EG33<(EF33-4)),"Tolerance","")) ->  | EH34: =mndot_rounding_0(Grad!$W56) ->  | EI34: =IF(EI33="","",IF(OR(EI33>(EH33+4),EI33<(EH33-4)),"Tolerance","")) ->  | EJ34: =mndot_rounding_0(Grad!$W57) ->  | EK34: =IF(EK33="","",IF(OR(EK33>(EJ33+4),EK33<(EJ33-4)),"Tolerance","")) ->  | EL34: =mndot_rounding_0(Grad!$W58) ->  | EM34: =IF(EM33="","",IF(OR(EM33>(EL33+4),EM33<(EL33-4)),"Tolerance","")) ->  | EO34: Mov Avg. | EP34: =IF(MDR!$AL$4="YES",MDR!$BQ$49,MDR!$AK60) -> 25 | EQ34: =IF(MDR!$AL$4="YES",MDR!BR49,MDR!$AL60) -> 65 | ER34: =mndot_rounding_0(Grad!$W59) ->  | ES34: =IF(ES33="","",IF(OR(ES33>(ER33+4),ES33<(ER33-4)),"Tolerance","")) ->  | ET34: =mndot_rounding_0(Grad!$W60) ->  | EU34: =IF(EU33="","",IF(OR(EU33>(ET33+4),EU33<(ET33-4)),"Tolerance","")) ->  | EV34: =mndot_rounding_0(Grad!$W61) ->  | EW34: =IF(EW33="","",IF(OR(EW33>(EV33+4),EW33<(EV33-4)),"Tolerance","")) ->  | EX34: =mndot_rounding_0(Grad!$W62) ->  | EY34: =IF(EY33="","",IF(OR(EY33>(EX33+4),EY33<(EX33-4)),"Tolerance","")) ->  | FA34: Mov Avg. | FB34: =IF(MDR!$AL$4="YES",MDR!$BQ$49,MDR!$AK64) -> 25 | FC34: =IF(MDR!$AL$4="YES",MDR!BR49,MDR!$AL64) -> 65 | FD34: =mndot_rounding_0(Grad!$W63) ->  | FE34: =IF(FE33="","",IF(OR(FE33>(FD33+4),FE33<(FD33-4)),"Tolerance","")) ->  | FF34: =mndot_rounding_0(Grad!$W64) ->  | FG34: =IF(FG33="","",IF(OR(FG33>(FF33+4),FG33<(FF33-4)),"Tolerance","")) ->  | FH34: =mndot_rounding_0(Grad!$W65) ->  | FI34: =IF(FI33="","",IF(OR(FI33>(FH33+4),FI33<(FH33-4)),"Tolerance","")) ->  | FJ34: =mndot_rounding_0(Grad!$W66) ->  | FK34: =IF(FK33="","",IF(OR(FK33>(FJ33+4),FK33<(FJ33-4)),"Tolerance","")) ->  | FM34: Mov Avg. | FN34: =IF(MDR!$AL$4="YES",MDR!$BQ$49,MDR!$AK68) -> 25 | FO34: =IF(MDR!$AL$4="YES",MDR!BR49,MDR!$AL68) -> 65 | FP34: =mndot_rounding_0(Grad!$W67) ->  | FQ34: =IF(FQ33="","",IF(OR(FQ33>(FP33+4),FQ33<(FP33-4)),"Tolerance","")) ->  | FR34: =mndot_rounding_0(Grad!$W68) ->  | FS34: =IF(FS33="","",IF(OR(FS33>(FR33+4),FS33<(FR33-4)),"Tolerance","")) ->  | FT34: =mndot_rounding_0(Grad!$W69) ->  | FU34: =IF(FU33="","",IF(OR(FU33>(FT33+4),FU33<(FT33-4)),"Tolerance","")) ->  | FV34: =mndot_rounding_0(Grad!$W70) ->  | FW34: =IF(FW33="","",IF(OR(FW33>(FV33+4),FW33<(FV33-4)),"Tolerance","")) ->  | FY34: Mov Avg. | FZ34: =IF(MDR!$AL$4="YES",MDR!$BQ$49,MDR!$AK72) -> 25 | GA34: =IF(MDR!$AL$4="YES",MDR!BR49,MDR!$AL72) -> 65 | GB34: =mndot_rounding_0(Grad!$W71) ->  | GC34: =IF(GC33="","",IF(OR(GC33>(GB33+4),GC33<(GB33-4)),"Tolerance","")) ->  | GD34: =mndot_rounding_0(Grad!$W72) ->  | GE34: =IF(GE33="","",IF(OR(GE33>(GD33+4),GE33<(GD33-4)),"Tolerance","")) ->  | GF34: =mndot_rounding_0(Grad!$W73) ->  | GG34: =IF(GG33="","",IF(OR(GG33>(GF33+4),GG33<(GF33-4)),"Tolerance","")) ->  | GH34: =mndot_rounding_0(Grad!$W74) ->  | GI34: =IF(GI33="","",IF(OR(GI33>(GH33+4),GI33<(GH33-4)),"Tolerance","")) ->  | GK34: Mov Avg. | GL34: =IF(MDR!$AL$4="YES",MDR!$BQ$49,MDR!$AK76) -> 25 | GM34: =IF(MDR!$AL$4="YES",MDR!BR49,MDR!$AL76) -> 65 | GN34: =mndot_rounding_0(Grad!$W75) ->  | GO34: =IF(GO33="","",IF(OR(GO33>(GN33+4),GO33<(GN33-4)),"Tolerance","")) ->  | GP34: =mndot_rounding_0(Grad!$W76) ->  | GQ34: =IF(GQ33="","",IF(OR(GQ33>(GP33+4),GQ33<(GP33-4)),"Tolerance","")) ->  | GR34: =mndot_rounding_0(Grad!$W77) ->  | GS34: =IF(GS33="","",IF(OR(GS33>(GR33+4),GS33<(GR33-4)),"Tolerance","")) ->  | GT34: =mndot_rounding_0(Grad!$W78) ->  | GU34: =IF(GU33="","",IF(OR(GU33>(GT33+4),GU33<(GT33-4)),"Tolerance","")) ->  | GW34: Mov Avg. | GX34: =IF(MDR!$AL$4="YES",MDR!$BQ$49,MDR!$AK80) -> 25 | GY34: =IF(MDR!$AL$4="YES",MDR!BR49,MDR!$AL80) -> 65 | GZ34: =mndot_rounding_0(Grad!$W79) ->  | HA34: =IF(HA33="","",IF(OR(HA33>(GZ33+4),HA33<(GZ33-4)),"Tolerance","")) ->  | HB34: =mndot_rounding_0(Grad!$W80) ->  | HC34: =IF(HC33="","",IF(OR(HC33>(HB33+4),HC33<(HB33-4)),"Tolerance","")) ->  | HD34: =mndot_rounding_0(Grad!$W81) ->  | HE34: =IF(HE33="","",IF(OR(HE33>(HD33+4),HE33<(HD33-4)),"Tolerance","")) ->  | HF34: =mndot_rounding_0(Grad!$W82) ->  | HG34: =IF(HG33="","",IF(OR(HG33>(HF33+4),HG33<(HF33-4)),"Tolerance","")) ->  | HI34: Mov Avg. | HJ34: =IF(MDR!$AL$4="YES",MDR!$BQ$49,MDR!$AK84) -> 25 | HK34: =IF(MDR!$AL$4="YES",MDR!BR49,MDR!$AL84) -> 65 | HL34: =mndot_rounding_0(Grad!$W83) ->  | HM34: =IF(HM33="","",IF(OR(HM33>(HL33+4),HM33<(HL33-4)),"Tolerance","")) ->  | HN34: =mndot_rounding_0(Grad!$W84) ->  | HO34: =IF(HO33="","",IF(OR(HO33>(HN33+4),HO33<(HN33-4)),"Tolerance","")) ->  | HP34: =mndot_rounding_0(Grad!$W85) ->  | HQ34: =IF(HQ33="","",IF(OR(HQ33>(HP33+4),HQ33<(HP33-4)),"Tolerance","")) ->  | HR34: =mndot_rounding_0(Grad!$W86) ->  | HS34: =IF(HS33="","",IF(OR(HS33>(HR33+4),HS33<(HR33-4)),"Tolerance","")) ->  | HU34: Mov Avg. | HV34: =IF(MDR!$AL$4="YES",MDR!$BQ$49,MDR!$AK88) -> 25 | HW34: =IF(MDR!$AL$4="YES",MDR!BR49,MDR!$AL88) -> 65 | HX34: =mndot_rounding_0(Grad!$W87) ->  | HY34: =IF(HY33="","",IF(OR(HY33>(HX33+4),HY33<(HX33-4)),"Tolerance","")) ->  | HZ34: =mndot_rounding_0(Grad!$W88) ->  | IA34: =IF(IA33="","",IF(OR(IA33>(HZ33+4),IA33<(HZ33-4)),"Tolerance","")) ->  | IB34: =mndot_rounding_0(Grad!$W89) ->  | IC34: =IF(IC33="","",IF(OR(IC33>(IB33+4),IC33<(IB33-4)),"Tolerance","")) ->  | ID34: =mndot_rounding_0(Grad!$W90) ->  | IE34: =IF(IE33="","",IF(OR(IE33>(ID33+4),IE33<(ID33-4)),"Tolerance","")) ->  | IG34: Mov Avg. | IH34: =IF(MDR!$AL$4="YES",MDR!$BQ$49,MDR!$AK92) -> 25 | II34: =IF(MDR!$AL$4="YES",MDR!BR49,MDR!$AL92) -> 65 | IJ34: =mndot_rounding_0(Grad!$W91) ->  | IK34: =IF(IK33="","",IF(OR(IK33>(IJ33+4),IK33<(IJ33-4)),"Tolerance","")) ->  | IL34: =mndot_rounding_0(Grad!$W92) ->  | IM34: =IF(IM33="","",IF(OR(IM33>(IL33+4),IM33<(IL33-4)),"Tolerance","")) ->  | IN34: =mndot_rounding_0(Grad!$W93) ->  | IO34: =IF(IO33="","",IF(OR(IO33>(IN33+4),IO33<(IN33-4)),"Tolerance","")) ->  | IP34: =mndot_rounding_0(Grad!$W94) ->  | IQ34: =IF(IQ33="","",IF(OR(IQ33>(IP33+4),IQ33<(IP33-4)),"Tolerance","")) ->  | IT34: 0 | IU34: Agency AFT Substituted | IW34: M = PG 49-34
A35: #8 Calc. % | D35: =IF(D33="","",IF(E33="",D33,IF(OR(E33>(D33+4),E33<(D33-4)),E33,D33))) ->  | E35: =IF(E33="","",IF(OR(E33>(D33+4),E33<(D33-4)),"Agncy Repl.","")) ->  | F35: =IF(F33="","",IF(G33="",F33,IF(OR(G33>(F33+4),G33<(F33-4)),G33,F33))) ->  | G35: =IF(G33="","",IF(OR(G33>(F33+4),G33<(F33-4)),"Agncy Repl.","")) ->  | H35: =IF(H33="","",IF(I33="",H33,IF(OR(I33>(H33+4),I33<(H33-4)),I33,H33))) ->  | I35: =IF(I33="","",IF(OR(I33>(H33+4),I33<(H33-4)),"Agncy Repl.","")) ->  | J35: =IF(J33="","",IF(K33="",J33,IF(OR(K33>(J33+4),K33<(J33-4)),K33,J33))) ->  | K35: =IF(K33="","",IF(OR(K33>(J33+4),K33<(J33-4)),"Agncy Repl.","")) ->  | M35: Calc. % | P35: =IF(P33="","",IF(Q33="",P33,IF(OR(Q33>(P33+4),Q33<(P33-4)),Q33,P33))) ->  | Q35: =IF(Q33="","",IF(OR(Q33>(P33+4),Q33<(P33-4)),"Agncy Repl.","")) ->  | R35: =IF(R33="","",IF(S33="",R33,IF(OR(S33>(R33+4),S33<(R33-4)),S33,R33))) ->  | S35: =IF(S33="","",IF(OR(S33>(R33+4),S33<(R33-4)),"Agncy Repl.","")) ->  | T35: =IF(T33="","",IF(U33="",T33,IF(OR(U33>(T33+4),U33<(T33-4)),U33,T33))) ->  | U35: =IF(U33="","",IF(OR(U33>(T33+4),U33<(T33-4)),"Agncy Repl.","")) ->  | V35: =IF(V33="","",IF(W33="",V33,IF(OR(W33>(V33+4),W33<(V33-4)),W33,V33))) ->  | W35: =IF(W33="","",IF(OR(W33>(V33+4),W33<(V33-4)),"Agncy Repl.","")) ->  | Y35: Calc. % | AB35: =IF(AB33="","",IF(AC33="",AB33,IF(OR(AC33>(AB33+4),AC33<(AB33-4)),AC33,AB33))) ->  | AC35: =IF(AC33="","",IF(OR(AC33>(AB33+4),AC33<(AB33-4)),"Agncy Repl.","")) ->  | AD35: =IF(AD33="","",IF(AE33="",AD33,IF(OR(AE33>(AD33+4),AE33<(AD33-4)),AE33,AD33))) ->  | AE35: =IF(AE33="","",IF(OR(AE33>(AD33+4),AE33<(AD33-4)),"Agncy Repl.","")) ->  | AF35: =IF(AF33="","",IF(AG33="",AF33,IF(OR(AG33>(AF33+4),AG33<(AF33-4)),AG33,AF33))) ->  | AG35: =IF(AG33="","",IF(OR(AG33>(AF33+4),AG33<(AF33-4)),"Agncy Repl.","")) ->  | AH35: =IF(AH33="","",IF(AI33="",AH33,IF(OR(AI33>(AH33+4),AI33<(AH33-4)),AI33,AH33))) ->  | AI35: =IF(AI33="","",IF(OR(AI33>(AH33+4),AI33<(AH33-4)),"Agncy Repl.","")) ->  | AK35: Calc. % | AN35: =IF(AN33="","",IF(AO33="",AN33,IF(OR(AO33>(AN33+4),AO33<(AN33-4)),AO33,AN33))) ->  | AO35: =IF(AO33="","",IF(OR(AO33>(AN33+4),AO33<(AN33-4)),"Agncy Repl.","")) ->  | AP35: =IF(AP33="","",IF(AQ33="",AP33,IF(OR(AQ33>(AP33+4),AQ33<(AP33-4)),AQ33,AP33))) ->  | AQ35: =IF(AQ33="","",IF(OR(AQ33>(AP33+4),AQ33<(AP33-4)),"Agncy Repl.","")) ->  | AR35: =IF(AR33="","",IF(AS33="",AR33,IF(OR(AS33>(AR33+4),AS33<(AR33-4)),AS33,AR33))) ->  | AS35: =IF(AS33="","",IF(OR(AS33>(AR33+4),AS33<(AR33-4)),"Agncy Repl.","")) ->  | AT35: =IF(AT33="","",IF(AU33="",AT33,IF(OR(AU33>(AT33+4),AU33<(AT33-4)),AU33,AT33))) ->  | AU35: =IF(AU33="","",IF(OR(AU33>(AT33+4),AU33<(AT33-4)),"Agncy Repl.","")) ->  | AW35: Calc. % | AZ35: =IF(AZ33="","",IF(BA33="",AZ33,IF(OR(BA33>(AZ33+4),BA33<(AZ33-4)),BA33,AZ33))) ->  | BA35: =IF(BA33="","",IF(OR(BA33>(AZ33+4),BA33<(AZ33-4)),"Agncy Repl.","")) ->  | BB35: =IF(BB33="","",IF(BC33="",BB33,IF(OR(BC33>(BB33+4),BC33<(BB33-4)),BC33,BB33))) ->  | BC35: =IF(BC33="","",IF(OR(BC33>(BB33+4),BC33<(BB33-4)),"Agncy Repl.","")) ->  | BD35: =IF(BD33="","",IF(BE33="",BD33,IF(OR(BE33>(BD33+4),BE33<(BD33-4)),BE33,BD33))) ->  | BE35: =IF(BE33="","",IF(OR(BE33>(BD33+4),BE33<(BD33-4)),"Agncy Repl.","")) ->  | BF35: =IF(BF33="","",IF(BG33="",BF33,IF(OR(BG33>(BF33+4),BG33<(BF33-4)),BG33,BF33))) ->  | BG35: =IF(BG33="","",IF(OR(BG33>(BF33+4),BG33<(BF33-4)),"Agncy Repl.","")) ->  | BI35: Calc. % | BL35: =IF(BL33="","",IF(BM33="",BL33,IF(OR(BM33>(BL33+4),BM33<(BL33-4)),BM33,BL33))) ->  | BM35: =IF(BM33="","",IF(OR(BM33>(BL33+4),BM33<(BL33-4)),"Agncy Repl.","")) ->  | BN35: =IF(BN33="","",IF(BO33="",BN33,IF(OR(BO33>(BN33+4),BO33<(BN33-4)),BO33,BN33))) ->  | BO35: =IF(BO33="","",IF(OR(BO33>(BN33+4),BO33<(BN33-4)),"Agncy Repl.","")) ->  | BP35: =IF(BP33="","",IF(BQ33="",BP33,IF(OR(BQ33>(BP33+4),BQ33<(BP33-4)),BQ33,BP33))) ->  | BQ35: =IF(BQ33="","",IF(OR(BQ33>(BP33+4),BQ33<(BP33-4)),"Agncy Repl.","")) ->  | BR35: =IF(BR33="","",IF(BS33="",BR33,IF(OR(BS33>(BR33+4),BS33<(BR33-4)),BS33,BR33))) ->  | BS35: =IF(BS33="","",IF(OR(BS33>(BR33+4),BS33<(BR33-4)),"Agncy Repl.","")) ->  | BU35: Calc. % | BX35: =IF(BX33="","",IF(BY33="",BX33,IF(OR(BY33>(BX33+4),BY33<(BX33-4)),BY33,BX33))) ->  | BY35: =IF(BY33="","",IF(OR(BY33>(BX33+4),BY33<(BX33-4)),"Agncy Repl.","")) ->  | BZ35: =IF(BZ33="","",IF(CA33="",BZ33,IF(OR(CA33>(BZ33+4),CA33<(BZ33-4)),CA33,BZ33))) ->  | CA35: =IF(CA33="","",IF(OR(CA33>(BZ33+4),CA33<(BZ33-4)),"Agncy Repl.","")) ->  | CB35: =IF(CB33="","",IF(CC33="",CB33,IF(OR(CC33>(CB33+4),CC33<(CB33-4)),CC33,CB33))) ->  | CC35: =IF(CC33="","",IF(OR(CC33>(CB33+4),CC33<(CB33-4)),"Agncy Repl.","")) ->  | CD35: =IF(CD33="","",IF(CE33="",CD33,IF(OR(CE33>(CD33+4),CE33<(CD33-4)),CE33,CD33))) ->  | CE35: =IF(CE33="","",IF(OR(CE33>(CD33+4),CE33<(CD33-4)),"Agncy Repl.","")) ->  | CG35: Calc. % | CJ35: =IF(CJ33="","",IF(CK33="",CJ33,IF(OR(CK33>(CJ33+4),CK33<(CJ33-4)),CK33,CJ33))) ->  | CK35: =IF(CK33="","",IF(OR(CK33>(CJ33+4),CK33<(CJ33-4)),"Agncy Repl.","")) ->  | CL35: =IF(CL33="","",IF(CM33="",CL33,IF(OR(CM33>(CL33+4),CM33<(CL33-4)),CM33,CL33))) ->  | CM35: =IF(CM33="","",IF(OR(CM33>(CL33+4),CM33<(CL33-4)),"Agncy Repl.","")) ->  | CN35: =IF(CN33="","",IF(CO33="",CN33,IF(OR(CO33>(CN33+4),CO33<(CN33-4)),CO33,CN33))) ->  | CO35: =IF(CO33="","",IF(OR(CO33>(CN33+4),CO33<(CN33-4)),"Agncy Repl.","")) ->  | CP35: =IF(CP33="","",IF(CQ33="",CP33,IF(OR(CQ33>(CP33+4),CQ33<(CP33-4)),CQ33,CP33))) ->  | CQ35: =IF(CQ33="","",IF(OR(CQ33>(CP33+4),CQ33<(CP33-4)),"Agncy Repl.","")) ->  | CS35: Calc. % | CV35: =IF(CV33="","",IF(CW33="",CV33,IF(OR(CW33>(CV33+4),CW33<(CV33-4)),CW33,CV33))) ->  | CW35: =IF(CW33="","",IF(OR(CW33>(CV33+4),CW33<(CV33-4)),"Agncy Repl.","")) ->  | CX35: =IF(CX33="","",IF(CY33="",CX33,IF(OR(CY33>(CX33+4),CY33<(CX33-4)),CY33,CX33))) ->  | CY35: =IF(CY33="","",IF(OR(CY33>(CX33+4),CY33<(CX33-4)),"Agncy Repl.","")) ->  | CZ35: =IF(CZ33="","",IF(DA33="",CZ33,IF(OR(DA33>(CZ33+4),DA33<(CZ33-4)),DA33,CZ33))) ->  | DA35: =IF(DA33="","",IF(OR(DA33>(CZ33+4),DA33<(CZ33-4)),"Agncy Repl.","")) ->  | DB35: =IF(DB33="","",IF(DC33="",DB33,IF(OR(DC33>(DB33+4),DC33<(DB33-4)),DC33,DB33))) ->  | DC35: =IF(DC33="","",IF(OR(DC33>(DB33+4),DC33<(DB33-4)),"Agncy Repl.","")) ->  | DE35: Calc. % | DH35: =IF(DH33="","",IF(DI33="",DH33,IF(OR(DI33>(DH33+4),DI33<(DH33-4)),DI33,DH33))) ->  | DI35: =IF(DI33="","",IF(OR(DI33>(DH33+4),DI33<(DH33-4)),"Agncy Repl.","")) ->  | DJ35: =IF(DJ33="","",IF(DK33="",DJ33,IF(OR(DK33>(DJ33+4),DK33<(DJ33-4)),DK33,DJ33))) ->  | DK35: =IF(DK33="","",IF(OR(DK33>(DJ33+4),DK33<(DJ33-4)),"Agncy Repl.","")) ->  | DL35: =IF(DL33="","",IF(DM33="",DL33,IF(OR(DM33>(DL33+4),DM33<(DL33-4)),DM33,DL33))) ->  | DM35: =IF(DM33="","",IF(OR(DM33>(DL33+4),DM33<(DL33-4)),"Agncy Repl.","")) ->  | DN35: =IF(DN33="","",IF(DO33="",DN33,IF(OR(DO33>(DN33+4),DO33<(DN33-4)),DO33,DN33))) ->  | DO35: =IF(DO33="","",IF(OR(DO33>(DN33+4),DO33<(DN33-4)),"Agncy Repl.","")) ->  | DQ35: Calc. % | DT35: =IF(DT33="","",IF(DU33="",DT33,IF(OR(DU33>(DT33+4),DU33<(DT33-4)),DU33,DT33))) ->  | DU35: =IF(DU33="","",IF(OR(DU33>(DT33+4),DU33<(DT33-4)),"Agncy Repl.","")) ->  | DV35: =IF(DV33="","",IF(DW33="",DV33,IF(OR(DW33>(DV33+4),DW33<(DV33-4)),DW33,DV33))) ->  | DW35: =IF(DW33="","",IF(OR(DW33>(DV33+4),DW33<(DV33-4)),"Agncy Repl.","")) ->  | DX35: =IF(DX33="","",IF(DY33="",DX33,IF(OR(DY33>(DX33+4),DY33<(DX33-4)),DY33,DX33))) ->  | DY35: =IF(DY33="","",IF(OR(DY33>(DX33+4),DY33<(DX33-4)),"Agncy Repl.","")) ->  | DZ35: =IF(DZ33="","",IF(EA33="",DZ33,IF(OR(EA33>(DZ33+4),EA33<(DZ33-4)),EA33,DZ33))) ->  | EA35: =IF(EA33="","",IF(OR(EA33>(DZ33+4),EA33<(DZ33-4)),"Agncy Repl.","")) ->  | EC35: Calc. % | EF35: =IF(EF33="","",IF(EG33="",EF33,IF(OR(EG33>(EF33+4),EG33<(EF33-4)),EG33,EF33))) ->  | EG35: =IF(EG33="","",IF(OR(EG33>(EF33+4),EG33<(EF33-4)),"Agncy Repl.","")) ->  | EH35: =IF(EH33="","",IF(EI33="",EH33,IF(OR(EI33>(EH33+4),EI33<(EH33-4)),EI33,EH33))) ->  | EI35: =IF(EI33="","",IF(OR(EI33>(EH33+4),EI33<(EH33-4)),"Agncy Repl.","")) ->  | EJ35: =IF(EJ33="","",IF(EK33="",EJ33,IF(OR(EK33>(EJ33+4),EK33<(EJ33-4)),EK33,EJ33))) ->  | EK35: =IF(EK33="","",IF(OR(EK33>(EJ33+4),EK33<(EJ33-4)),"Agncy Repl.","")) ->  | EL35: =IF(EL33="","",IF(EM33="",EL33,IF(OR(EM33>(EL33+4),EM33<(EL33-4)),EM33,EL33))) ->  | EM35: =IF(EM33="","",IF(OR(EM33>(EL33+4),EM33<(EL33-4)),"Agncy Repl.","")) ->  | EO35: Calc. % | ER35: =IF(ER33="","",IF(ES33="",ER33,IF(OR(ES33>(ER33+4),ES33<(ER33-4)),ES33,ER33))) ->  | ES35: =IF(ES33="","",IF(OR(ES33>(ER33+4),ES33<(ER33-4)),"Agncy Repl.","")) ->  | ET35: =IF(ET33="","",IF(EU33="",ET33,IF(OR(EU33>(ET33+4),EU33<(ET33-4)),EU33,ET33))) ->  | EU35: =IF(EU33="","",IF(OR(EU33>(ET33+4),EU33<(ET33-4)),"Agncy Repl.","")) ->  | EV35: =IF(EV33="","",IF(EW33="",EV33,IF(OR(EW33>(EV33+4),EW33<(EV33-4)),EW33,EV33))) ->  | EW35: =IF(EW33="","",IF(OR(EW33>(EV33+4),EW33<(EV33-4)),"Agncy Repl.","")) ->  | EX35: =IF(EX33="","",IF(EY33="",EX33,IF(OR(EY33>(EX33+4),EY33<(EX33-4)),EY33,EX33))) ->  | EY35: =IF(EY33="","",IF(OR(EY33>(EX33+4),EY33<(EX33-4)),"Agncy Repl.","")) ->  | FA35: Calc. % | FD35: =IF(FD33="","",IF(FE33="",FD33,IF(OR(FE33>(FD33+4),FE33<(FD33-4)),FE33,FD33))) ->  | FE35: =IF(FE33="","",IF(OR(FE33>(FD33+4),FE33<(FD33-4)),"Agncy Repl.","")) ->  | FF35: =IF(FF33="","",IF(FG33="",FF33,IF(OR(FG33>(FF33+4),FG33<(FF33-4)),FG33,FF33))) ->  | FG35: =IF(FG33="","",IF(OR(FG33>(FF33+4),FG33<(FF33-4)),"Agncy Repl.","")) ->  | FH35: =IF(FH33="","",IF(FI33="",FH33,IF(OR(FI33>(FH33+4),FI33<(FH33-4)),FI33,FH33))) ->  | FI35: =IF(FI33="","",IF(OR(FI33>(FH33+4),FI33<(FH33-4)),"Agncy Repl.","")) ->  | FJ35: =IF(FJ33="","",IF(FK33="",FJ33,IF(OR(FK33>(FJ33+4),FK33<(FJ33-4)),FK33,FJ33))) ->  | FK35: =IF(FK33="","",IF(OR(FK33>(FJ33+4),FK33<(FJ33-4)),"Agncy Repl.","")) ->  | FM35: Calc. % | FP35: =IF(FP33="","",IF(FQ33="",FP33,IF(OR(FQ33>(FP33+4),FQ33<(FP33-4)),FQ33,FP33))) ->  | FQ35: =IF(FQ33="","",IF(OR(FQ33>(FP33+4),FQ33<(FP33-4)),"Agncy Repl.","")) ->  | FR35: =IF(FR33="","",IF(FS33="",FR33,IF(OR(FS33>(FR33+4),FS33<(FR33-4)),FS33,FR33))) ->  | FS35: =IF(FS33="","",IF(OR(FS33>(FR33+4),FS33<(FR33-4)),"Agncy Repl.","")) ->  | FT35: =IF(FT33="","",IF(FU33="",FT33,IF(OR(FU33>(FT33+4),FU33<(FT33-4)),FU33,FT33))) ->  | FU35: =IF(FU33="","",IF(OR(FU33>(FT33+4),FU33<(FT33-4)),"Agncy Repl.","")) ->  | FV35: =IF(FV33="","",IF(FW33="",FV33,IF(OR(FW33>(FV33+4),FW33<(FV33-4)),FW33,FV33))) ->  | FW35: =IF(FW33="","",IF(OR(FW33>(FV33+4),FW33<(FV33-4)),"Agncy Repl.","")) ->  | FY35: Calc. % | GB35: =IF(GB33="","",IF(GC33="",GB33,IF(OR(GC33>(GB33+4),GC33<(GB33-4)),GC33,GB33))) ->  | GC35: =IF(GC33="","",IF(OR(GC33>(GB33+4),GC33<(GB33-4)),"Agncy Repl.","")) ->  | GD35: =IF(GD33="","",IF(GE33="",GD33,IF(OR(GE33>(GD33+4),GE33<(GD33-4)),GE33,GD33))) ->  | GE35: =IF(GE33="","",IF(OR(GE33>(GD33+4),GE33<(GD33-4)),"Agncy Repl.","")) ->  | GF35: =IF(GF33="","",IF(GG33="",GF33,IF(OR(GG33>(GF33+4),GG33<(GF33-4)),GG33,GF33))) ->  | GG35: =IF(GG33="","",IF(OR(GG33>(GF33+4),GG33<(GF33-4)),"Agncy Repl.","")) ->  | GH35: =IF(GH33="","",IF(GI33="",GH33,IF(OR(GI33>(GH33+4),GI33<(GH33-4)),GI33,GH33))) ->  | GI35: =IF(GI33="","",IF(OR(GI33>(GH33+4),GI33<(GH33-4)),"Agncy Repl.","")) ->  | GK35: Calc. % | GN35: =IF(GN33="","",IF(GO33="",GN33,IF(OR(GO33>(GN33+4),GO33<(GN33-4)),GO33,GN33))) ->  | GO35: =IF(GO33="","",IF(OR(GO33>(GN33+4),GO33<(GN33-4)),"Agncy Repl.","")) ->  | GP35: =IF(GP33="","",IF(GQ33="",GP33,IF(OR(GQ33>(GP33+4),GQ33<(GP33-4)),GQ33,GP33))) ->  | GQ35: =IF(GQ33="","",IF(OR(GQ33>(GP33+4),GQ33<(GP33-4)),"Agncy Repl.","")) ->  | GR35: =IF(GR33="","",IF(GS33="",GR33,IF(OR(GS33>(GR33+4),GS33<(GR33-4)),GS33,GR33))) ->  | GS35: =IF(GS33="","",IF(OR(GS33>(GR33+4),GS33<(GR33-4)),"Agncy Repl.","")) ->  | GT35: =IF(GT33="","",IF(GU33="",GT33,IF(OR(GU33>(GT33+4),GU33<(GT33-4)),GU33,GT33))) ->  | GU35: =IF(GU33="","",IF(OR(GU33>(GT33+4),GU33<(GT33-4)),"Agncy Repl.","")) ->  | GW35: Calc. % | GZ35: =IF(GZ33="","",IF(HA33="",GZ33,IF(OR(HA33>(GZ33+4),HA33<(GZ33-4)),HA33,GZ33))) ->  | HA35: =IF(HA33="","",IF(OR(HA33>(GZ33+4),HA33<(GZ33-4)),"Agncy Repl.","")) ->  | HB35: =IF(HB33="","",IF(HC33="",HB33,IF(OR(HC33>(HB33+4),HC33<(HB33-4)),HC33,HB33))) ->  | HC35: =IF(HC33="","",IF(OR(HC33>(HB33+4),HC33<(HB33-4)),"Agncy Repl.","")) ->  | HD35: =IF(HD33="","",IF(HE33="",HD33,IF(OR(HE33>(HD33+4),HE33<(HD33-4)),HE33,HD33))) ->  | HE35: =IF(HE33="","",IF(OR(HE33>(HD33+4),HE33<(HD33-4)),"Agncy Repl.","")) ->  | HF35: =IF(HF33="","",IF(HG33="",HF33,IF(OR(HG33>(HF33+4),HG33<(HF33-4)),HG33,HF33))) ->  | HG35: =IF(HG33="","",IF(OR(HG33>(HF33+4),HG33<(HF33-4)),"Agncy Repl.","")) ->  | HI35: Calc. % | HL35: =IF(HL33="","",IF(HM33="",HL33,IF(OR(HM33>(HL33+4),HM33<(HL33-4)),HM33,HL33))) ->  | HM35: =IF(HM33="","",IF(OR(HM33>(HL33+4),HM33<(HL33-4)),"Agncy Repl.","")) ->  | HN35: =IF(HN33="","",IF(HO33="",HN33,IF(OR(HO33>(HN33+4),HO33<(HN33-4)),HO33,HN33))) ->  | HO35: =IF(HO33="","",IF(OR(HO33>(HN33+4),HO33<(HN33-4)),"Agncy Repl.","")) ->  | HP35: =IF(HP33="","",IF(HQ33="",HP33,IF(OR(HQ33>(HP33+4),HQ33<(HP33-4)),HQ33,HP33))) ->  | HQ35: =IF(HQ33="","",IF(OR(HQ33>(HP33+4),HQ33<(HP33-4)),"Agncy Repl.","")) ->  | HR35: =IF(HR33="","",IF(HS33="",HR33,IF(OR(HS33>(HR33+4),HS33<(HR33-4)),HS33,HR33))) ->  | HS35: =IF(HS33="","",IF(OR(HS33>(HR33+4),HS33<(HR33-4)),"Agncy Repl.","")) ->  | HU35: Calc. % | HX35: =IF(HX33="","",IF(HY33="",HX33,IF(OR(HY33>(HX33+4),HY33<(HX33-4)),HY33,HX33))) ->  | HY35: =IF(HY33="","",IF(OR(HY33>(HX33+4),HY33<(HX33-4)),"Agncy Repl.","")) ->  | HZ35: =IF(HZ33="","",IF(IA33="",HZ33,IF(OR(IA33>(HZ33+4),IA33<(HZ33-4)),IA33,HZ33))) ->  | IA35: =IF(IA33="","",IF(OR(IA33>(HZ33+4),IA33<(HZ33-4)),"Agncy Repl.","")) ->  | IB35: =IF(IB33="","",IF(IC33="",IB33,IF(OR(IC33>(IB33+4),IC33<(IB33-4)),IC33,IB33))) ->  | IC35: =IF(IC33="","",IF(OR(IC33>(IB33+4),IC33<(IB33-4)),"Agncy Repl.","")) ->  | ID35: =IF(ID33="","",IF(IE33="",ID33,IF(OR(IE33>(ID33+4),IE33<(ID33-4)),IE33,ID33))) ->  | IE35: =IF(IE33="","",IF(OR(IE33>(ID33+4),IE33<(ID33-4)),"Agncy Repl.","")) ->  | IG35: Calc. % | IJ35: =IF(IJ33="","",IF(IK33="",IJ33,IF(OR(IK33>(IJ33+4),IK33<(IJ33-4)),IK33,IJ33))) ->  | IK35: =IF(IK33="","",IF(OR(IK33>(IJ33+4),IK33<(IJ33-4)),"Agncy Repl.","")) ->  | IL35: =IF(IL33="","",IF(IM33="",IL33,IF(OR(IM33>(IL33+4),IM33<(IL33-4)),IM33,IL33))) ->  | IM35: =IF(IM33="","",IF(OR(IM33>(IL33+4),IM33<(IL33-4)),"Agncy Repl.","")) ->  | IN35: =IF(IN33="","",IF(IO33="",IN33,IF(OR(IO33>(IN33+4),IO33<(IN33-4)),IO33,IN33))) ->  | IO35: =IF(IO33="","",IF(OR(IO33>(IN33+4),IO33<(IN33-4)),"Agncy Repl.","")) ->  | IP35: =IF(IP33="","",IF(IQ33="",IP33,IF(OR(IQ33>(IP33+4),IQ33<(IP33-4)),IQ33,IP33))) ->  | IQ35: =IF(IQ33="","",IF(OR(IQ33>(IP33+4),IQ33<(IP33-4)),"Agncy Repl.","")) -> 
A36: # 16 | M36: # 16 | Y36: # 16 | AK36: # 16 | AW36: # 16 | BI36: # 16 | BU36: # 16 | CG36: # 16 | CS36: # 16 | DE36: # 16 | DQ36: # 16 | EC36: # 16 | EO36: # 16 | FA36: # 16 | FM36: # 16 | FY36: # 16 | GK36: # 16 | GW36: # 16 | HI36: # 16 | HU36: # 16 | IG36: # 16 | IT36: 0 | IU36: Agency AFT Substituted
A37: #16 Calc. % | D37: =IF(D36="","",IF(E36="",D36,IF(OR(E36>(D36+4),E36<(D36-4)),E36,D36))) ->  | E37: =IF(E36="","",IF(OR(E36>(D36+4),E36<(D36-4)),"Agncy Repl.","")) ->  | F37: =IF(F36="","",IF(G36="",F36,IF(OR(G36>(F36+4),G36<(F36-4)),G36,F36))) ->  | G37: =IF(G36="","",IF(OR(G36>(F36+4),G36<(F36-4)),"Agncy Repl.","")) ->  | H37: =IF(H36="","",IF(I36="",H36,IF(OR(I36>(H36+4),I36<(H36-4)),I36,H36))) ->  | I37: =IF(I36="","",IF(OR(I36>(H36+4),I36<(H36-4)),"Agncy Repl.","")) ->  | J37: =IF(J36="","",IF(K36="",J36,IF(OR(K36>(J36+4),K36<(J36-4)),K36,J36))) ->  | K37: =IF(K36="","",IF(OR(K36>(J36+4),K36<(J36-4)),"Agncy Repl.","")) ->  | M37: #16 Calc. % | P37: =IF(P36="","",IF(Q36="",P36,IF(OR(Q36>(P36+4),Q36<(P36-4)),Q36,P36))) ->  | Q37: =IF(Q36="","",IF(OR(Q36>(P36+4),Q36<(P36-4)),"Agncy Repl.","")) ->  | R37: =IF(R36="","",IF(S36="",R36,IF(OR(S36>(R36+4),S36<(R36-4)),S36,R36))) ->  | S37: =IF(S36="","",IF(OR(S36>(R36+4),S36<(R36-4)),"Agncy Repl.","")) ->  | T37: =IF(T36="","",IF(U36="",T36,IF(OR(U36>(T36+4),U36<(T36-4)),U36,T36))) ->  | U37: =IF(U36="","",IF(OR(U36>(T36+4),U36<(T36-4)),"Agncy Repl.","")) ->  | V37: =IF(V36="","",IF(W36="",V36,IF(OR(W36>(V36+4),W36<(V36-4)),W36,V36))) ->  | W37: =IF(W36="","",IF(OR(W36>(V36+4),W36<(V36-4)),"Agncy Repl.","")) ->  | Y37: #16 Calc. % | AB37: =IF(AB36="","",IF(AC36="",AB36,IF(OR(AC36>(AB36+4),AC36<(AB36-4)),AC36,AB36))) ->  | AC37: =IF(AC36="","",IF(OR(AC36>(AB36+4),AC36<(AB36-4)),"Agncy Repl.","")) ->  | AD37: =IF(AD36="","",IF(AE36="",AD36,IF(OR(AE36>(AD36+4),AE36<(AD36-4)),AE36,AD36))) ->  | AE37: =IF(AE36="","",IF(OR(AE36>(AD36+4),AE36<(AD36-4)),"Agncy Repl.","")) ->  | AF37: =IF(AF36="","",IF(AG36="",AF36,IF(OR(AG36>(AF36+4),AG36<(AF36-4)),AG36,AF36))) ->  | AG37: =IF(AG36="","",IF(OR(AG36>(AF36+4),AG36<(AF36-4)),"Agncy Repl.","")) ->  | AH37: =IF(AH36="","",IF(AI36="",AH36,IF(OR(AI36>(AH36+4),AI36<(AH36-4)),AI36,AH36))) ->  | AI37: =IF(AI36="","",IF(OR(AI36>(AH36+4),AI36<(AH36-4)),"Agncy Repl.","")) ->  | AK37: #16 Calc. % | AN37: =IF(AN36="","",IF(AO36="",AN36,IF(OR(AO36>(AN36+4),AO36<(AN36-4)),AO36,AN36))) ->  | AO37: =IF(AO36="","",IF(OR(AO36>(AN36+4),AO36<(AN36-4)),"Agncy Repl.","")) ->  | AP37: =IF(AP36="","",IF(AQ36="",AP36,IF(OR(AQ36>(AP36+4),AQ36<(AP36-4)),AQ36,AP36))) ->  | AQ37: =IF(AQ36="","",IF(OR(AQ36>(AP36+4),AQ36<(AP36-4)),"Agncy Repl.","")) ->  | AR37: =IF(AR36="","",IF(AS36="",AR36,IF(OR(AS36>(AR36+4),AS36<(AR36-4)),AS36,AR36))) ->  | AS37: =IF(AS36="","",IF(OR(AS36>(AR36+4),AS36<(AR36-4)),"Agncy Repl.","")) ->  | AT37: =IF(AT36="","",IF(AU36="",AT36,IF(OR(AU36>(AT36+4),AU36<(AT36-4)),AU36,AT36))) ->  | AU37: =IF(AU36="","",IF(OR(AU36>(AT36+4),AU36<(AT36-4)),"Agncy Repl.","")) ->  | AW37: #16 Calc. % | AZ37: =IF(AZ36="","",IF(BA36="",AZ36,IF(OR(BA36>(AZ36+4),BA36<(AZ36-4)),BA36,AZ36))) ->  | BA37: =IF(BA36="","",IF(OR(BA36>(AZ36+4),BA36<(AZ36-4)),"Agncy Repl.","")) ->  | BB37: =IF(BB36="","",IF(BC36="",BB36,IF(OR(BC36>(BB36+4),BC36<(BB36-4)),BC36,BB36))) ->  | BC37: =IF(BC36="","",IF(OR(BC36>(BB36+4),BC36<(BB36-4)),"Agncy Repl.","")) ->  | BD37: =IF(BD36="","",IF(BE36="",BD36,IF(OR(BE36>(BD36+4),BE36<(BD36-4)),BE36,BD36))) ->  | BE37: =IF(BE36="","",IF(OR(BE36>(BD36+4),BE36<(BD36-4)),"Agncy Repl.","")) ->  | BF37: =IF(BF36="","",IF(BG36="",BF36,IF(OR(BG36>(BF36+4),BG36<(BF36-4)),BG36,BF36))) ->  | BG37: =IF(BG36="","",IF(OR(BG36>(BF36+4),BG36<(BF36-4)),"Agncy Repl.","")) ->  | BI37: #16 Calc. % | BL37: =IF(BL36="","",IF(BM36="",BL36,IF(OR(BM36>(BL36+4),BM36<(BL36-4)),BM36,BL36))) ->  | BM37: =IF(BM36="","",IF(OR(BM36>(BL36+4),BM36<(BL36-4)),"Agncy Repl.","")) ->  | BN37: =IF(BN36="","",IF(BO36="",BN36,IF(OR(BO36>(BN36+4),BO36<(BN36-4)),BO36,BN36))) ->  | BO37: =IF(BO36="","",IF(OR(BO36>(BN36+4),BO36<(BN36-4)),"Agncy Repl.","")) ->  | BP37: =IF(BP36="","",IF(BQ36="",BP36,IF(OR(BQ36>(BP36+4),BQ36<(BP36-4)),BQ36,BP36))) ->  | BQ37: =IF(BQ36="","",IF(OR(BQ36>(BP36+4),BQ36<(BP36-4)),"Agncy Repl.","")) ->  | BR37: =IF(BR36="","",IF(BS36="",BR36,IF(OR(BS36>(BR36+4),BS36<(BR36-4)),BS36,BR36))) ->  | BS37: =IF(BS36="","",IF(OR(BS36>(BR36+4),BS36<(BR36-4)),"Agncy Repl.","")) ->  | BU37: #16 Calc. % | BX37: =IF(BX36="","",IF(BY36="",BX36,IF(OR(BY36>(BX36+4),BY36<(BX36-4)),BY36,BX36))) ->  | BY37: =IF(BY36="","",IF(OR(BY36>(BX36+4),BY36<(BX36-4)),"Agncy Repl.","")) ->  | BZ37: =IF(BZ36="","",IF(CA36="",BZ36,IF(OR(CA36>(BZ36+4),CA36<(BZ36-4)),CA36,BZ36))) ->  | CA37: =IF(CA36="","",IF(OR(CA36>(BZ36+4),CA36<(BZ36-4)),"Agncy Repl.","")) ->  | CB37: =IF(CB36="","",IF(CC36="",CB36,IF(OR(CC36>(CB36+4),CC36<(CB36-4)),CC36,CB36))) ->  | CC37: =IF(CC36="","",IF(OR(CC36>(CB36+4),CC36<(CB36-4)),"Agncy Repl.","")) ->  | CD37: =IF(CD36="","",IF(CE36="",CD36,IF(OR(CE36>(CD36+4),CE36<(CD36-4)),CE36,CD36))) ->  | CE37: =IF(CE36="","",IF(OR(CE36>(CD36+4),CE36<(CD36-4)),"Agncy Repl.","")) ->  | CG37: #16 Calc. % | CJ37: =IF(CJ36="","",IF(CK36="",CJ36,IF(OR(CK36>(CJ36+4),CK36<(CJ36-4)),CK36,CJ36))) ->  | CK37: =IF(CK36="","",IF(OR(CK36>(CJ36+4),CK36<(CJ36-4)),"Agncy Repl.","")) ->  | CL37: =IF(CL36="","",IF(CM36="",CL36,IF(OR(CM36>(CL36+4),CM36<(CL36-4)),CM36,CL36))) ->  | CM37: =IF(CM36="","",IF(OR(CM36>(CL36+4),CM36<(CL36-4)),"Agncy Repl.","")) ->  | CN37: =IF(CN36="","",IF(CO36="",CN36,IF(OR(CO36>(CN36+4),CO36<(CN36-4)),CO36,CN36))) ->  | CO37: =IF(CO36="","",IF(OR(CO36>(CN36+4),CO36<(CN36-4)),"Agncy Repl.","")) ->  | CP37: =IF(CP36="","",IF(CQ36="",CP36,IF(OR(CQ36>(CP36+4),CQ36<(CP36-4)),CQ36,CP36))) ->  | CQ37: =IF(CQ36="","",IF(OR(CQ36>(CP36+4),CQ36<(CP36-4)),"Agncy Repl.","")) ->  | CS37: #16 Calc. % | CV37: =IF(CV36="","",IF(CW36="",CV36,IF(OR(CW36>(CV36+4),CW36<(CV36-4)),CW36,CV36))) ->  | CW37: =IF(CW36="","",IF(OR(CW36>(CV36+4),CW36<(CV36-4)),"Agncy Repl.","")) ->  | CX37: =IF(CX36="","",IF(CY36="",CX36,IF(OR(CY36>(CX36+4),CY36<(CX36-4)),CY36,CX36))) ->  | CY37: =IF(CY36="","",IF(OR(CY36>(CX36+4),CY36<(CX36-4)),"Agncy Repl.","")) ->  | CZ37: =IF(CZ36="","",IF(DA36="",CZ36,IF(OR(DA36>(CZ36+4),DA36<(CZ36-4)),DA36,CZ36))) ->  | DA37: =IF(DA36="","",IF(OR(DA36>(CZ36+4),DA36<(CZ36-4)),"Agncy Repl.","")) ->  | DB37: =IF(DB36="","",IF(DC36="",DB36,IF(OR(DC36>(DB36+4),DC36<(DB36-4)),DC36,DB36))) ->  | DC37: =IF(DC36="","",IF(OR(DC36>(DB36+4),DC36<(DB36-4)),"Agncy Repl.","")) ->  | DE37: #16 Calc. % | DH37: =IF(DH36="","",IF(DI36="",DH36,IF(OR(DI36>(DH36+4),DI36<(DH36-4)),DI36,DH36))) ->  | DI37: =IF(DI36="","",IF(OR(DI36>(DH36+4),DI36<(DH36-4)),"Agncy Repl.","")) ->  | DJ37: =IF(DJ36="","",IF(DK36="",DJ36,IF(OR(DK36>(DJ36+4),DK36<(DJ36-4)),DK36,DJ36))) ->  | DK37: =IF(DK36="","",IF(OR(DK36>(DJ36+4),DK36<(DJ36-4)),"Agncy Repl.","")) ->  | DL37: =IF(DL36="","",IF(DM36="",DL36,IF(OR(DM36>(DL36+4),DM36<(DL36-4)),DM36,DL36))) ->  | DM37: =IF(DM36="","",IF(OR(DM36>(DL36+4),DM36<(DL36-4)),"Agncy Repl.","")) ->  | DN37: =IF(DN36="","",IF(DO36="",DN36,IF(OR(DO36>(DN36+4),DO36<(DN36-4)),DO36,DN36))) ->  | DO37: =IF(DO36="","",IF(OR(DO36>(DN36+4),DO36<(DN36-4)),"Agncy Repl.","")) ->  | DQ37: #16 Calc. % | DT37: =IF(DT36="","",IF(DU36="",DT36,IF(OR(DU36>(DT36+4),DU36<(DT36-4)),DU36,DT36))) ->  | DU37: =IF(DU36="","",IF(OR(DU36>(DT36+4),DU36<(DT36-4)),"Agncy Repl.","")) ->  | DV37: =IF(DV36="","",IF(DW36="",DV36,IF(OR(DW36>(DV36+4),DW36<(DV36-4)),DW36,DV36))) ->  | DW37: =IF(DW36="","",IF(OR(DW36>(DV36+4),DW36<(DV36-4)),"Agncy Repl.","")) ->  | DX37: =IF(DX36="","",IF(DY36="",DX36,IF(OR(DY36>(DX36+4),DY36<(DX36-4)),DY36,DX36))) ->  | DY37: =IF(DY36="","",IF(OR(DY36>(DX36+4),DY36<(DX36-4)),"Agncy Repl.","")) ->  | DZ37: =IF(DZ36="","",IF(EA36="",DZ36,IF(OR(EA36>(DZ36+4),EA36<(DZ36-4)),EA36,DZ36))) ->  | EA37: =IF(EA36="","",IF(OR(EA36>(DZ36+4),EA36<(DZ36-4)),"Agncy Repl.","")) ->  | EC37: #16 Calc. % | EF37: =IF(EF36="","",IF(EG36="",EF36,IF(OR(EG36>(EF36+4),EG36<(EF36-4)),EG36,EF36))) ->  | EG37: =IF(EG36="","",IF(OR(EG36>(EF36+4),EG36<(EF36-4)),"Agncy Repl.","")) ->  | EH37: =IF(EH36="","",IF(EI36="",EH36,IF(OR(EI36>(EH36+4),EI36<(EH36-4)),EI36,EH36))) ->  | EI37: =IF(EI36="","",IF(OR(EI36>(EH36+4),EI36<(EH36-4)),"Agncy Repl.","")) ->  | EJ37: =IF(EJ36="","",IF(EK36="",EJ36,IF(OR(EK36>(EJ36+4),EK36<(EJ36-4)),EK36,EJ36))) ->  | EK37: =IF(EK36="","",IF(OR(EK36>(EJ36+4),EK36<(EJ36-4)),"Agncy Repl.","")) ->  | EL37: =IF(EL36="","",IF(EM36="",EL36,IF(OR(EM36>(EL36+4),EM36<(EL36-4)),EM36,EL36))) ->  | EM37: =IF(EM36="","",IF(OR(EM36>(EL36+4),EM36<(EL36-4)),"Agncy Repl.","")) ->  | EO37: #16 Calc. % | ER37: =IF(ER36="","",IF(ES36="",ER36,IF(OR(ES36>(ER36+4),ES36<(ER36-4)),ES36,ER36))) ->  | ES37: =IF(ES36="","",IF(OR(ES36>(ER36+4),ES36<(ER36-4)),"Agncy Repl.","")) ->  | ET37: =IF(ET36="","",IF(EU36="",ET36,IF(OR(EU36>(ET36+4),EU36<(ET36-4)),EU36,ET36))) ->  | EU37: =IF(EU36="","",IF(OR(EU36>(ET36+4),EU36<(ET36-4)),"Agncy Repl.","")) ->  | EV37: =IF(EV36="","",IF(EW36="",EV36,IF(OR(EW36>(EV36+4),EW36<(EV36-4)),EW36,EV36))) ->  | EW37: =IF(EW36="","",IF(OR(EW36>(EV36+4),EW36<(EV36-4)),"Agncy Repl.","")) ->  | EX37: =IF(EX36="","",IF(EY36="",EX36,IF(OR(EY36>(EX36+4),EY36<(EX36-4)),EY36,EX36))) ->  | EY37: =IF(EY36="","",IF(OR(EY36>(EX36+4),EY36<(EX36-4)),"Agncy Repl.","")) ->  | FA37: #16 Calc. % | FD37: =IF(FD36="","",IF(FE36="",FD36,IF(OR(FE36>(FD36+4),FE36<(FD36-4)),FE36,FD36))) ->  | FE37: =IF(FE36="","",IF(OR(FE36>(FD36+4),FE36<(FD36-4)),"Agncy Repl.","")) ->  | FF37: =IF(FF36="","",IF(FG36="",FF36,IF(OR(FG36>(FF36+4),FG36<(FF36-4)),FG36,FF36))) ->  | FG37: =IF(FG36="","",IF(OR(FG36>(FF36+4),FG36<(FF36-4)),"Agncy Repl.","")) ->  | FH37: =IF(FH36="","",IF(FI36="",FH36,IF(OR(FI36>(FH36+4),FI36<(FH36-4)),FI36,FH36))) ->  | FI37: =IF(FI36="","",IF(OR(FI36>(FH36+4),FI36<(FH36-4)),"Agncy Repl.","")) ->  | FJ37: =IF(FJ36="","",IF(FK36="",FJ36,IF(OR(FK36>(FJ36+4),FK36<(FJ36-4)),FK36,FJ36))) ->  | FK37: =IF(FK36="","",IF(OR(FK36>(FJ36+4),FK36<(FJ36-4)),"Agncy Repl.","")) ->  | FM37: #16 Calc. % | FP37: =IF(FP36="","",IF(FQ36="",FP36,IF(OR(FQ36>(FP36+4),FQ36<(FP36-4)),FQ36,FP36))) ->  | FQ37: =IF(FQ36="","",IF(OR(FQ36>(FP36+4),FQ36<(FP36-4)),"Agncy Repl.","")) ->  | FR37: =IF(FR36="","",IF(FS36="",FR36,IF(OR(FS36>(FR36+4),FS36<(FR36-4)),FS36,FR36))) ->  | FS37: =IF(FS36="","",IF(OR(FS36>(FR36+4),FS36<(FR36-4)),"Agncy Repl.","")) ->  | FT37: =IF(FT36="","",IF(FU36="",FT36,IF(OR(FU36>(FT36+4),FU36<(FT36-4)),FU36,FT36))) ->  | FU37: =IF(FU36="","",IF(OR(FU36>(FT36+4),FU36<(FT36-4)),"Agncy Repl.","")) ->  | FV37: =IF(FV36="","",IF(FW36="",FV36,IF(OR(FW36>(FV36+4),FW36<(FV36-4)),FW36,FV36))) ->  | FW37: =IF(FW36="","",IF(OR(FW36>(FV36+4),FW36<(FV36-4)),"Agncy Repl.","")) ->  | FY37: #16 Calc. % | GB37: =IF(GB36="","",IF(GC36="",GB36,IF(OR(GC36>(GB36+4),GC36<(GB36-4)),GC36,GB36))) ->  | GC37: =IF(GC36="","",IF(OR(GC36>(GB36+4),GC36<(GB36-4)),"Agncy Repl.","")) ->  | GD37: =IF(GD36="","",IF(GE36="",GD36,IF(OR(GE36>(GD36+4),GE36<(GD36-4)),GE36,GD36))) ->  | GE37: =IF(GE36="","",IF(OR(GE36>(GD36+4),GE36<(GD36-4)),"Agncy Repl.","")) ->  | GF37: =IF(GF36="","",IF(GG36="",GF36,IF(OR(GG36>(GF36+4),GG36<(GF36-4)),GG36,GF36))) ->  | GG37: =IF(GG36="","",IF(OR(GG36>(GF36+4),GG36<(GF36-4)),"Agncy Repl.","")) ->  | GH37: =IF(GH36="","",IF(GI36="",GH36,IF(OR(GI36>(GH36+4),GI36<(GH36-4)),GI36,GH36))) ->  | GI37: =IF(GI36="","",IF(OR(GI36>(GH36+4),GI36<(GH36-4)),"Agncy Repl.","")) ->  | GK37: #16 Calc. % | GN37: =IF(GN36="","",IF(GO36="",GN36,IF(OR(GO36>(GN36+4),GO36<(GN36-4)),GO36,GN36))) ->  | GO37: =IF(GO36="","",IF(OR(GO36>(GN36+4),GO36<(GN36-4)),"Agncy Repl.","")) ->  | GP37: =IF(GP36="","",IF(GQ36="",GP36,IF(OR(GQ36>(GP36+4),GQ36<(GP36-4)),GQ36,GP36))) ->  | GQ37: =IF(GQ36="","",IF(OR(GQ36>(GP36+4),GQ36<(GP36-4)),"Agncy Repl.","")) ->  | GR37: =IF(GR36="","",IF(GS36="",GR36,IF(OR(GS36>(GR36+4),GS36<(GR36-4)),GS36,GR36))) ->  | GS37: =IF(GS36="","",IF(OR(GS36>(GR36+4),GS36<(GR36-4)),"Agncy Repl.","")) ->  | GT37: =IF(GT36="","",IF(GU36="",GT36,IF(OR(GU36>(GT36+4),GU36<(GT36-4)),GU36,GT36))) ->  | GU37: =IF(GU36="","",IF(OR(GU36>(GT36+4),GU36<(GT36-4)),"Agncy Repl.","")) ->  | GW37: #16 Calc. % | GZ37: =IF(GZ36="","",IF(HA36="",GZ36,IF(OR(HA36>(GZ36+4),HA36<(GZ36-4)),HA36,GZ36))) ->  | HA37: =IF(HA36="","",IF(OR(HA36>(GZ36+4),HA36<(GZ36-4)),"Agncy Repl.","")) ->  | HB37: =IF(HB36="","",IF(HC36="",HB36,IF(OR(HC36>(HB36+4),HC36<(HB36-4)),HC36,HB36))) ->  | HC37: =IF(HC36="","",IF(OR(HC36>(HB36+4),HC36<(HB36-4)),"Agncy Repl.","")) ->  | HD37: =IF(HD36="","",IF(HE36="",HD36,IF(OR(HE36>(HD36+4),HE36<(HD36-4)),HE36,HD36))) ->  | HE37: =IF(HE36="","",IF(OR(HE36>(HD36+4),HE36<(HD36-4)),"Agncy Repl.","")) ->  | HF37: =IF(HF36="","",IF(HG36="",HF36,IF(OR(HG36>(HF36+4),HG36<(HF36-4)),HG36,HF36))) ->  | HG37: =IF(HG36="","",IF(OR(HG36>(HF36+4),HG36<(HF36-4)),"Agncy Repl.","")) ->  | HI37: #16 Calc. % | HL37: =IF(HL36="","",IF(HM36="",HL36,IF(OR(HM36>(HL36+4),HM36<(HL36-4)),HM36,HL36))) ->  | HM37: =IF(HM36="","",IF(OR(HM36>(HL36+4),HM36<(HL36-4)),"Agncy Repl.","")) ->  | HN37: =IF(HN36="","",IF(HO36="",HN36,IF(OR(HO36>(HN36+4),HO36<(HN36-4)),HO36,HN36))) ->  | HO37: =IF(HO36="","",IF(OR(HO36>(HN36+4),HO36<(HN36-4)),"Agncy Repl.","")) ->  | HP37: =IF(HP36="","",IF(HQ36="",HP36,IF(OR(HQ36>(HP36+4),HQ36<(HP36-4)),HQ36,HP36))) ->  | HQ37: =IF(HQ36="","",IF(OR(HQ36>(HP36+4),HQ36<(HP36-4)),"Agncy Repl.","")) ->  | HR37: =IF(HR36="","",IF(HS36="",HR36,IF(OR(HS36>(HR36+4),HS36<(HR36-4)),HS36,HR36))) ->  | HS37: =IF(HS36="","",IF(OR(HS36>(HR36+4),HS36<(HR36-4)),"Agncy Repl.","")) ->  | HU37: #16 Calc. % | HX37: =IF(HX36="","",IF(HY36="",HX36,IF(OR(HY36>(HX36+4),HY36<(HX36-4)),HY36,HX36))) ->  | HY37: =IF(HY36="","",IF(OR(HY36>(HX36+4),HY36<(HX36-4)),"Agncy Repl.","")) ->  | HZ37: =IF(HZ36="","",IF(IA36="",HZ36,IF(OR(IA36>(HZ36+4),IA36<(HZ36-4)),IA36,HZ36))) ->  | IA37: =IF(IA36="","",IF(OR(IA36>(HZ36+4),IA36<(HZ36-4)),"Agncy Repl.","")) ->  | IB37: =IF(IB36="","",IF(IC36="",IB36,IF(OR(IC36>(IB36+4),IC36<(IB36-4)),IC36,IB36))) ->  | IC37: =IF(IC36="","",IF(OR(IC36>(IB36+4),IC36<(IB36-4)),"Agncy Repl.","")) ->  | ID37: =IF(ID36="","",IF(IE36="",ID36,IF(OR(IE36>(ID36+4),IE36<(ID36-4)),IE36,ID36))) ->  | IE37: =IF(IE36="","",IF(OR(IE36>(ID36+4),IE36<(ID36-4)),"Agncy Repl.","")) ->  | IG37: #16 Calc. % | IJ37: =IF(IJ36="","",IF(IK36="",IJ36,IF(OR(IK36>(IJ36+4),IK36<(IJ36-4)),IK36,IJ36))) ->  | IK37: =IF(IK36="","",IF(OR(IK36>(IJ36+4),IK36<(IJ36-4)),"Agncy Repl.","")) ->  | IL37: =IF(IL36="","",IF(IM36="",IL36,IF(OR(IM36>(IL36+4),IM36<(IL36-4)),IM36,IL36))) ->  | IM37: =IF(IM36="","",IF(OR(IM36>(IL36+4),IM36<(IL36-4)),"Agncy Repl.","")) ->  | IN37: =IF(IN36="","",IF(IO36="",IN36,IF(OR(IO36>(IN36+4),IO36<(IN36-4)),IO36,IN36))) ->  | IO37: =IF(IO36="","",IF(OR(IO36>(IN36+4),IO36<(IN36-4)),"Agncy Repl.","")) ->  | IP37: =IF(IP36="","",IF(IQ36="",IP36,IF(OR(IQ36>(IP36+4),IQ36<(IP36-4)),IQ36,IP36))) ->  | IQ37: =IF(IQ36="","",IF(OR(IQ36>(IP36+4),IQ36<(IP36-4)),"Agncy Repl.","")) -> 
A38: # 30 | M38: # 30 | Y38: # 30 | AK38: # 30 | AW38: # 30 | BI38: # 30 | BU38: # 30 | CG38: # 30 | CS38: # 30 | DE38: # 30 | DQ38: # 30 | EC38: # 30 | EO38: # 30 | FA38: # 30 | FM38: # 30 | FY38: # 30 | GK38: # 30 | GW38: # 30 | HI38: # 30 | HU38: # 30 | IG38: # 30 | IT38: 0 | IU38: Agency AFT Substituted
A39: #30 Calc. % | D39: =IF(D38="","",IF(E38="",D38,IF(OR(E38>(D38+4),E38<(D38-4)),E38,D38))) ->  | E39: =IF(E38="","",IF(OR(E38>(D38+4),E38<(D38-4)),"Agncy Repl.","")) ->  | F39: =IF(F38="","",IF(G38="",F38,IF(OR(G38>(F38+4),G38<(F38-4)),G38,F38))) ->  | G39: =IF(G38="","",IF(OR(G38>(F38+4),G38<(F38-4)),"Agncy Repl.","")) ->  | H39: =IF(H38="","",IF(I38="",H38,IF(OR(I38>(H38+4),I38<(H38-4)),I38,H38))) ->  | I39: =IF(I38="","",IF(OR(I38>(H38+4),I38<(H38-4)),"Agncy Repl.","")) ->  | J39: =IF(J38="","",IF(K38="",J38,IF(OR(K38>(J38+4),K38<(J38-4)),K38,J38))) ->  | K39: =IF(K38="","",IF(OR(K38>(J38+4),K38<(J38-4)),"Agncy Repl.","")) ->  | M39: #30 Calc. % | P39: =IF(P38="","",IF(Q38="",P38,IF(OR(Q38>(P38+4),Q38<(P38-4)),Q38,P38))) ->  | Q39: =IF(Q38="","",IF(OR(Q38>(P38+4),Q38<(P38-4)),"Agncy Repl.","")) ->  | R39: =IF(R38="","",IF(S38="",R38,IF(OR(S38>(R38+4),S38<(R38-4)),S38,R38))) ->  | S39: =IF(S38="","",IF(OR(S38>(R38+4),S38<(R38-4)),"Agncy Repl.","")) ->  | T39: =IF(T38="","",IF(U38="",T38,IF(OR(U38>(T38+4),U38<(T38-4)),U38,T38))) ->  | U39: =IF(U38="","",IF(OR(U38>(T38+4),U38<(T38-4)),"Agncy Repl.","")) ->  | V39: =IF(V38="","",IF(W38="",V38,IF(OR(W38>(V38+4),W38<(V38-4)),W38,V38))) ->  | W39: =IF(W38="","",IF(OR(W38>(V38+4),W38<(V38-4)),"Agncy Repl.","")) ->  | Y39: #30 Calc. % | AB39: =IF(AB38="","",IF(AC38="",AB38,IF(OR(AC38>(AB38+4),AC38<(AB38-4)),AC38,AB38))) ->  | AC39: =IF(AC38="","",IF(OR(AC38>(AB38+4),AC38<(AB38-4)),"Agncy Repl.","")) ->  | AD39: =IF(AD38="","",IF(AE38="",AD38,IF(OR(AE38>(AD38+4),AE38<(AD38-4)),AE38,AD38))) ->  | AE39: =IF(AE38="","",IF(OR(AE38>(AD38+4),AE38<(AD38-4)),"Agncy Repl.","")) ->  | AF39: =IF(AF38="","",IF(AG38="",AF38,IF(OR(AG38>(AF38+4),AG38<(AF38-4)),AG38,AF38))) ->  | AG39: =IF(AG38="","",IF(OR(AG38>(AF38+4),AG38<(AF38-4)),"Agncy Repl.","")) ->  | AH39: =IF(AH38="","",IF(AI38="",AH38,IF(OR(AI38>(AH38+4),AI38<(AH38-4)),AI38,AH38))) ->  | AI39: =IF(AI38="","",IF(OR(AI38>(AH38+4),AI38<(AH38-4)),"Agncy Repl.","")) ->  | AK39: #30 Calc. % | AN39: =IF(AN38="","",IF(AO38="",AN38,IF(OR(AO38>(AN38+4),AO38<(AN38-4)),AO38,AN38))) ->  | AO39: =IF(AO38="","",IF(OR(AO38>(AN38+4),AO38<(AN38-4)),"Agncy Repl.","")) ->  | AP39: =IF(AP38="","",IF(AQ38="",AP38,IF(OR(AQ38>(AP38+4),AQ38<(AP38-4)),AQ38,AP38))) ->  | AQ39: =IF(AQ38="","",IF(OR(AQ38>(AP38+4),AQ38<(AP38-4)),"Agncy Repl.","")) ->  | AR39: =IF(AR38="","",IF(AS38="",AR38,IF(OR(AS38>(AR38+4),AS38<(AR38-4)),AS38,AR38))) ->  | AS39: =IF(AS38="","",IF(OR(AS38>(AR38+4),AS38<(AR38-4)),"Agncy Repl.","")) ->  | AT39: =IF(AT38="","",IF(AU38="",AT38,IF(OR(AU38>(AT38+4),AU38<(AT38-4)),AU38,AT38))) ->  | AU39: =IF(AU38="","",IF(OR(AU38>(AT38+4),AU38<(AT38-4)),"Agncy Repl.","")) ->  | AW39: #30 Calc. % | AZ39: =IF(AZ38="","",IF(BA38="",AZ38,IF(OR(BA38>(AZ38+4),BA38<(AZ38-4)),BA38,AZ38))) ->  | BA39: =IF(BA38="","",IF(OR(BA38>(AZ38+4),BA38<(AZ38-4)),"Agncy Repl.","")) ->  | BB39: =IF(BB38="","",IF(BC38="",BB38,IF(OR(BC38>(BB38+4),BC38<(BB38-4)),BC38,BB38))) ->  | BC39: =IF(BC38="","",IF(OR(BC38>(BB38+4),BC38<(BB38-4)),"Agncy Repl.","")) ->  | BD39: =IF(BD38="","",IF(BE38="",BD38,IF(OR(BE38>(BD38+4),BE38<(BD38-4)),BE38,BD38))) ->  | BE39: =IF(BE38="","",IF(OR(BE38>(BD38+4),BE38<(BD38-4)),"Agncy Repl.","")) ->  | BF39: =IF(BF38="","",IF(BG38="",BF38,IF(OR(BG38>(BF38+4),BG38<(BF38-4)),BG38,BF38))) ->  | BG39: =IF(BG38="","",IF(OR(BG38>(BF38+4),BG38<(BF38-4)),"Agncy Repl.","")) ->  | BI39: #30 Calc. % | BL39: =IF(BL38="","",IF(BM38="",BL38,IF(OR(BM38>(BL38+4),BM38<(BL38-4)),BM38,BL38))) ->  | BM39: =IF(BM38="","",IF(OR(BM38>(BL38+4),BM38<(BL38-4)),"Agncy Repl.","")) ->  | BN39: =IF(BN38="","",IF(BO38="",BN38,IF(OR(BO38>(BN38+4),BO38<(BN38-4)),BO38,BN38))) ->  | BO39: =IF(BO38="","",IF(OR(BO38>(BN38+4),BO38<(BN38-4)),"Agncy Repl.","")) ->  | BP39: =IF(BP38="","",IF(BQ38="",BP38,IF(OR(BQ38>(BP38+4),BQ38<(BP38-4)),BQ38,BP38))) ->  | BQ39: =IF(BQ38="","",IF(OR(BQ38>(BP38+4),BQ38<(BP38-4)),"Agncy Repl.","")) ->  | BR39: =IF(BR38="","",IF(BS38="",BR38,IF(OR(BS38>(BR38+4),BS38<(BR38-4)),BS38,BR38))) ->  | BS39: =IF(BS38="","",IF(OR(BS38>(BR38+4),BS38<(BR38-4)),"Agncy Repl.","")) ->  | BU39: #30 Calc. % | BX39: =IF(BX38="","",IF(BY38="",BX38,IF(OR(BY38>(BX38+4),BY38<(BX38-4)),BY38,BX38))) ->  | BY39: =IF(BY38="","",IF(OR(BY38>(BX38+4),BY38<(BX38-4)),"Agncy Repl.","")) ->  | BZ39: =IF(BZ38="","",IF(CA38="",BZ38,IF(OR(CA38>(BZ38+4),CA38<(BZ38-4)),CA38,BZ38))) ->  | CA39: =IF(CA38="","",IF(OR(CA38>(BZ38+4),CA38<(BZ38-4)),"Agncy Repl.","")) ->  | CB39: =IF(CB38="","",IF(CC38="",CB38,IF(OR(CC38>(CB38+4),CC38<(CB38-4)),CC38,CB38))) ->  | CC39: =IF(CC38="","",IF(OR(CC38>(CB38+4),CC38<(CB38-4)),"Agncy Repl.","")) ->  | CD39: =IF(CD38="","",IF(CE38="",CD38,IF(OR(CE38>(CD38+4),CE38<(CD38-4)),CE38,CD38))) ->  | CE39: =IF(CE38="","",IF(OR(CE38>(CD38+4),CE38<(CD38-4)),"Agncy Repl.","")) ->  | CG39: #30 Calc. % | CJ39: =IF(CJ38="","",IF(CK38="",CJ38,IF(OR(CK38>(CJ38+4),CK38<(CJ38-4)),CK38,CJ38))) ->  | CK39: =IF(CK38="","",IF(OR(CK38>(CJ38+4),CK38<(CJ38-4)),"Agncy Repl.","")) ->  | CL39: =IF(CL38="","",IF(CM38="",CL38,IF(OR(CM38>(CL38+4),CM38<(CL38-4)),CM38,CL38))) ->  | CM39: =IF(CM38="","",IF(OR(CM38>(CL38+4),CM38<(CL38-4)),"Agncy Repl.","")) ->  | CN39: =IF(CN38="","",IF(CO38="",CN38,IF(OR(CO38>(CN38+4),CO38<(CN38-4)),CO38,CN38))) ->  | CO39: =IF(CO38="","",IF(OR(CO38>(CN38+4),CO38<(CN38-4)),"Agncy Repl.","")) ->  | CP39: =IF(CP38="","",IF(CQ38="",CP38,IF(OR(CQ38>(CP38+4),CQ38<(CP38-4)),CQ38,CP38))) ->  | CQ39: =IF(CQ38="","",IF(OR(CQ38>(CP38+4),CQ38<(CP38-4)),"Agncy Repl.","")) ->  | CS39: #30 Calc. % | CV39: =IF(CV38="","",IF(CW38="",CV38,IF(OR(CW38>(CV38+4),CW38<(CV38-4)),CW38,CV38))) ->  | CW39: =IF(CW38="","",IF(OR(CW38>(CV38+4),CW38<(CV38-4)),"Agncy Repl.","")) ->  | CX39: =IF(CX38="","",IF(CY38="",CX38,IF(OR(CY38>(CX38+4),CY38<(CX38-4)),CY38,CX38))) ->  | CY39: =IF(CY38="","",IF(OR(CY38>(CX38+4),CY38<(CX38-4)),"Agncy Repl.","")) ->  | CZ39: =IF(CZ38="","",IF(DA38="",CZ38,IF(OR(DA38>(CZ38+4),DA38<(CZ38-4)),DA38,CZ38))) ->  | DA39: =IF(DA38="","",IF(OR(DA38>(CZ38+4),DA38<(CZ38-4)),"Agncy Repl.","")) ->  | DB39: =IF(DB38="","",IF(DC38="",DB38,IF(OR(DC38>(DB38+4),DC38<(DB38-4)),DC38,DB38))) ->  | DC39: =IF(DC38="","",IF(OR(DC38>(DB38+4),DC38<(DB38-4)),"Agncy Repl.","")) ->  | DE39: #30 Calc. % | DH39: =IF(DH38="","",IF(DI38="",DH38,IF(OR(DI38>(DH38+4),DI38<(DH38-4)),DI38,DH38))) ->  | DI39: =IF(DI38="","",IF(OR(DI38>(DH38+4),DI38<(DH38-4)),"Agncy Repl.","")) ->  | DJ39: =IF(DJ38="","",IF(DK38="",DJ38,IF(OR(DK38>(DJ38+4),DK38<(DJ38-4)),DK38,DJ38))) ->  | DK39: =IF(DK38="","",IF(OR(DK38>(DJ38+4),DK38<(DJ38-4)),"Agncy Repl.","")) ->  | DL39: =IF(DL38="","",IF(DM38="",DL38,IF(OR(DM38>(DL38+4),DM38<(DL38-4)),DM38,DL38))) ->  | DM39: =IF(DM38="","",IF(OR(DM38>(DL38+4),DM38<(DL38-4)),"Agncy Repl.","")) ->  | DN39: =IF(DN38="","",IF(DO38="",DN38,IF(OR(DO38>(DN38+4),DO38<(DN38-4)),DO38,DN38))) ->  | DO39: =IF(DO38="","",IF(OR(DO38>(DN38+4),DO38<(DN38-4)),"Agncy Repl.","")) ->  | DQ39: #30 Calc. % | DT39: =IF(DT38="","",IF(DU38="",DT38,IF(OR(DU38>(DT38+4),DU38<(DT38-4)),DU38,DT38))) ->  | DU39: =IF(DU38="","",IF(OR(DU38>(DT38+4),DU38<(DT38-4)),"Agncy Repl.","")) ->  | DV39: =IF(DV38="","",IF(DW38="",DV38,IF(OR(DW38>(DV38+4),DW38<(DV38-4)),DW38,DV38))) ->  | DW39: =IF(DW38="","",IF(OR(DW38>(DV38+4),DW38<(DV38-4)),"Agncy Repl.","")) ->  | DX39: =IF(DX38="","",IF(DY38="",DX38,IF(OR(DY38>(DX38+4),DY38<(DX38-4)),DY38,DX38))) ->  | DY39: =IF(DY38="","",IF(OR(DY38>(DX38+4),DY38<(DX38-4)),"Agncy Repl.","")) ->  | DZ39: =IF(DZ38="","",IF(EA38="",DZ38,IF(OR(EA38>(DZ38+4),EA38<(DZ38-4)),EA38,DZ38))) ->  | EA39: =IF(EA38="","",IF(OR(EA38>(DZ38+4),EA38<(DZ38-4)),"Agncy Repl.","")) ->  | EC39: #30 Calc. % | EF39: =IF(EF38="","",IF(EG38="",EF38,IF(OR(EG38>(EF38+4),EG38<(EF38-4)),EG38,EF38))) ->  | EG39: =IF(EG38="","",IF(OR(EG38>(EF38+4),EG38<(EF38-4)),"Agncy Repl.","")) ->  | EH39: =IF(EH38="","",IF(EI38="",EH38,IF(OR(EI38>(EH38+4),EI38<(EH38-4)),EI38,EH38))) ->  | EI39: =IF(EI38="","",IF(OR(EI38>(EH38+4),EI38<(EH38-4)),"Agncy Repl.","")) ->  | EJ39: =IF(EJ38="","",IF(EK38="",EJ38,IF(OR(EK38>(EJ38+4),EK38<(EJ38-4)),EK38,EJ38))) ->  | EK39: =IF(EK38="","",IF(OR(EK38>(EJ38+4),EK38<(EJ38-4)),"Agncy Repl.","")) ->  | EL39: =IF(EL38="","",IF(EM38="",EL38,IF(OR(EM38>(EL38+4),EM38<(EL38-4)),EM38,EL38))) ->  | EM39: =IF(EM38="","",IF(OR(EM38>(EL38+4),EM38<(EL38-4)),"Agncy Repl.","")) ->  | EO39: #30 Calc. % | ER39: =IF(ER38="","",IF(ES38="",ER38,IF(OR(ES38>(ER38+4),ES38<(ER38-4)),ES38,ER38))) ->  | ES39: =IF(ES38="","",IF(OR(ES38>(ER38+4),ES38<(ER38-4)),"Agncy Repl.","")) ->  | ET39: =IF(ET38="","",IF(EU38="",ET38,IF(OR(EU38>(ET38+4),EU38<(ET38-4)),EU38,ET38))) ->  | EU39: =IF(EU38="","",IF(OR(EU38>(ET38+4),EU38<(ET38-4)),"Agncy Repl.","")) ->  | EV39: =IF(EV38="","",IF(EW38="",EV38,IF(OR(EW38>(EV38+4),EW38<(EV38-4)),EW38,EV38))) ->  | EW39: =IF(EW38="","",IF(OR(EW38>(EV38+4),EW38<(EV38-4)),"Agncy Repl.","")) ->  | EX39: =IF(EX38="","",IF(EY38="",EX38,IF(OR(EY38>(EX38+4),EY38<(EX38-4)),EY38,EX38))) ->  | EY39: =IF(EY38="","",IF(OR(EY38>(EX38+4),EY38<(EX38-4)),"Agncy Repl.","")) ->  | FA39: #30 Calc. % | FD39: =IF(FD38="","",IF(FE38="",FD38,IF(OR(FE38>(FD38+4),FE38<(FD38-4)),FE38,FD38))) ->  | FE39: =IF(FE38="","",IF(OR(FE38>(FD38+4),FE38<(FD38-4)),"Agncy Repl.","")) ->  | FF39: =IF(FF38="","",IF(FG38="",FF38,IF(OR(FG38>(FF38+4),FG38<(FF38-4)),FG38,FF38))) ->  | FG39: =IF(FG38="","",IF(OR(FG38>(FF38+4),FG38<(FF38-4)),"Agncy Repl.","")) ->  | FH39: =IF(FH38="","",IF(FI38="",FH38,IF(OR(FI38>(FH38+4),FI38<(FH38-4)),FI38,FH38))) ->  | FI39: =IF(FI38="","",IF(OR(FI38>(FH38+4),FI38<(FH38-4)),"Agncy Repl.","")) ->  | FJ39: =IF(FJ38="","",IF(FK38="",FJ38,IF(OR(FK38>(FJ38+4),FK38<(FJ38-4)),FK38,FJ38))) ->  | FK39: =IF(FK38="","",IF(OR(FK38>(FJ38+4),FK38<(FJ38-4)),"Agncy Repl.","")) ->  | FM39: #30 Calc. % | FP39: =IF(FP38="","",IF(FQ38="",FP38,IF(OR(FQ38>(FP38+4),FQ38<(FP38-4)),FQ38,FP38))) ->  | FQ39: =IF(FQ38="","",IF(OR(FQ38>(FP38+4),FQ38<(FP38-4)),"Agncy Repl.","")) ->  | FR39: =IF(FR38="","",IF(FS38="",FR38,IF(OR(FS38>(FR38+4),FS38<(FR38-4)),FS38,FR38))) ->  | FS39: =IF(FS38="","",IF(OR(FS38>(FR38+4),FS38<(FR38-4)),"Agncy Repl.","")) ->  | FT39: =IF(FT38="","",IF(FU38="",FT38,IF(OR(FU38>(FT38+4),FU38<(FT38-4)),FU38,FT38))) ->  | FU39: =IF(FU38="","",IF(OR(FU38>(FT38+4),FU38<(FT38-4)),"Agncy Repl.","")) ->  | FV39: =IF(FV38="","",IF(FW38="",FV38,IF(OR(FW38>(FV38+4),FW38<(FV38-4)),FW38,FV38))) ->  | FW39: =IF(FW38="","",IF(OR(FW38>(FV38+4),FW38<(FV38-4)),"Agncy Repl.","")) ->  | FY39: #30 Calc. % | GB39: =IF(GB38="","",IF(GC38="",GB38,IF(OR(GC38>(GB38+4),GC38<(GB38-4)),GC38,GB38))) ->  | GC39: =IF(GC38="","",IF(OR(GC38>(GB38+4),GC38<(GB38-4)),"Agncy Repl.","")) ->  | GD39: =IF(GD38="","",IF(GE38="",GD38,IF(OR(GE38>(GD38+4),GE38<(GD38-4)),GE38,GD38))) ->  | GE39: =IF(GE38="","",IF(OR(GE38>(GD38+4),GE38<(GD38-4)),"Agncy Repl.","")) ->  | GF39: =IF(GF38="","",IF(GG38="",GF38,IF(OR(GG38>(GF38+4),GG38<(GF38-4)),GG38,GF38))) ->  | GG39: =IF(GG38="","",IF(OR(GG38>(GF38+4),GG38<(GF38-4)),"Agncy Repl.","")) ->  | GH39: =IF(GH38="","",IF(GI38="",GH38,IF(OR(GI38>(GH38+4),GI38<(GH38-4)),GI38,GH38))) ->  | GI39: =IF(GI38="","",IF(OR(GI38>(GH38+4),GI38<(GH38-4)),"Agncy Repl.","")) ->  | GK39: #30 Calc. % | GN39: =IF(GN38="","",IF(GO38="",GN38,IF(OR(GO38>(GN38+4),GO38<(GN38-4)),GO38,GN38))) ->  | GO39: =IF(GO38="","",IF(OR(GO38>(GN38+4),GO38<(GN38-4)),"Agncy Repl.","")) ->  | GP39: =IF(GP38="","",IF(GQ38="",GP38,IF(OR(GQ38>(GP38+4),GQ38<(GP38-4)),GQ38,GP38))) ->  | GQ39: =IF(GQ38="","",IF(OR(GQ38>(GP38+4),GQ38<(GP38-4)),"Agncy Repl.","")) ->  | GR39: =IF(GR38="","",IF(GS38="",GR38,IF(OR(GS38>(GR38+4),GS38<(GR38-4)),GS38,GR38))) ->  | GS39: =IF(GS38="","",IF(OR(GS38>(GR38+4),GS38<(GR38-4)),"Agncy Repl.","")) ->  | GT39: =IF(GT38="","",IF(GU38="",GT38,IF(OR(GU38>(GT38+4),GU38<(GT38-4)),GU38,GT38))) ->  | GU39: =IF(GU38="","",IF(OR(GU38>(GT38+4),GU38<(GT38-4)),"Agncy Repl.","")) ->  | GW39: #30 Calc. % | GZ39: =IF(GZ38="","",IF(HA38="",GZ38,IF(OR(HA38>(GZ38+4),HA38<(GZ38-4)),HA38,GZ38))) ->  | HA39: =IF(HA38="","",IF(OR(HA38>(GZ38+4),HA38<(GZ38-4)),"Agncy Repl.","")) ->  | HB39: =IF(HB38="","",IF(HC38="",HB38,IF(OR(HC38>(HB38+4),HC38<(HB38-4)),HC38,HB38))) ->  | HC39: =IF(HC38="","",IF(OR(HC38>(HB38+4),HC38<(HB38-4)),"Agncy Repl.","")) ->  | HD39: =IF(HD38="","",IF(HE38="",HD38,IF(OR(HE38>(HD38+4),HE38<(HD38-4)),HE38,HD38))) ->  | HE39: =IF(HE38="","",IF(OR(HE38>(HD38+4),HE38<(HD38-4)),"Agncy Repl.","")) ->  | HF39: =IF(HF38="","",IF(HG38="",HF38,IF(OR(HG38>(HF38+4),HG38<(HF38-4)),HG38,HF38))) ->  | HG39: =IF(HG38="","",IF(OR(HG38>(HF38+4),HG38<(HF38-4)),"Agncy Repl.","")) ->  | HI39: #30 Calc. % | HL39: =IF(HL38="","",IF(HM38="",HL38,IF(OR(HM38>(HL38+4),HM38<(HL38-4)),HM38,HL38))) ->  | HM39: =IF(HM38="","",IF(OR(HM38>(HL38+4),HM38<(HL38-4)),"Agncy Repl.","")) ->  | HN39: =IF(HN38="","",IF(HO38="",HN38,IF(OR(HO38>(HN38+4),HO38<(HN38-4)),HO38,HN38))) ->  | HO39: =IF(HO38="","",IF(OR(HO38>(HN38+4),HO38<(HN38-4)),"Agncy Repl.","")) ->  | HP39: =IF(HP38="","",IF(HQ38="",HP38,IF(OR(HQ38>(HP38+4),HQ38<(HP38-4)),HQ38,HP38))) ->  | HQ39: =IF(HQ38="","",IF(OR(HQ38>(HP38+4),HQ38<(HP38-4)),"Agncy Repl.","")) ->  | HR39: =IF(HR38="","",IF(HS38="",HR38,IF(OR(HS38>(HR38+4),HS38<(HR38-4)),HS38,HR38))) ->  | HS39: =IF(HS38="","",IF(OR(HS38>(HR38+4),HS38<(HR38-4)),"Agncy Repl.","")) ->  | HU39: #30 Calc. % | HX39: =IF(HX38="","",IF(HY38="",HX38,IF(OR(HY38>(HX38+4),HY38<(HX38-4)),HY38,HX38))) ->  | HY39: =IF(HY38="","",IF(OR(HY38>(HX38+4),HY38<(HX38-4)),"Agncy Repl.","")) ->  | HZ39: =IF(HZ38="","",IF(IA38="",HZ38,IF(OR(IA38>(HZ38+4),IA38<(HZ38-4)),IA38,HZ38))) ->  | IA39: =IF(IA38="","",IF(OR(IA38>(HZ38+4),IA38<(HZ38-4)),"Agncy Repl.","")) ->  | IB39: =IF(IB38="","",IF(IC38="",IB38,IF(OR(IC38>(IB38+4),IC38<(IB38-4)),IC38,IB38))) ->  | IC39: =IF(IC38="","",IF(OR(IC38>(IB38+4),IC38<(IB38-4)),"Agncy Repl.","")) ->  | ID39: =IF(ID38="","",IF(IE38="",ID38,IF(OR(IE38>(ID38+4),IE38<(ID38-4)),IE38,ID38))) ->  | IE39: =IF(IE38="","",IF(OR(IE38>(ID38+4),IE38<(ID38-4)),"Agncy Repl.","")) ->  | IG39: #30 Calc. % | IJ39: =IF(IJ38="","",IF(IK38="",IJ38,IF(OR(IK38>(IJ38+4),IK38<(IJ38-4)),IK38,IJ38))) ->  | IK39: =IF(IK38="","",IF(OR(IK38>(IJ38+4),IK38<(IJ38-4)),"Agncy Repl.","")) ->  | IL39: =IF(IL38="","",IF(IM38="",IL38,IF(OR(IM38>(IL38+4),IM38<(IL38-4)),IM38,IL38))) ->  | IM39: =IF(IM38="","",IF(OR(IM38>(IL38+4),IM38<(IL38-4)),"Agncy Repl.","")) ->  | IN39: =IF(IN38="","",IF(IO38="",IN38,IF(OR(IO38>(IN38+4),IO38<(IN38-4)),IO38,IN38))) ->  | IO39: =IF(IO38="","",IF(OR(IO38>(IN38+4),IO38<(IN38-4)),"Agncy Repl.","")) ->  | IP39: =IF(IP38="","",IF(IQ38="",IP38,IF(OR(IQ38>(IP38+4),IQ38<(IP38-4)),IQ38,IP38))) ->  | IQ39: =IF(IQ38="","",IF(OR(IQ38>(IP38+4),IQ38<(IP38-4)),"Agncy Repl.","")) -> 
A40: # 50 | M40: # 50 | Y40: # 50 | AK40: # 50 | AW40: # 50 | BI40: # 50 | BU40: # 50 | CG40: # 50 | CS40: # 50 | DE40: # 50 | DQ40: # 50 | EC40: # 50 | EO40: # 50 | FA40: # 50 | FM40: # 50 | FY40: # 50 | GK40: # 50 | GW40: # 50 | HI40: # 50 | HU40: # 50 | IG40: # 50 | IT40: 0 | IU40: Agency AFT Substituted
A41: #50 Calc. % | D41: =IF(D40="","",IF(E40="",D40,IF(OR(E40>(D40+3),E40<(D40-3)),E40,D40))) ->  | E41: =IF(E40="","",IF(OR(E40>(D40+3),E40<(D40-3)),"Agncy Repl.","")) ->  | F41: =IF(F40="","",IF(G40="",F40,IF(OR(G40>(F40+3),G40<(F40-3)),G40,F40))) ->  | G41: =IF(G40="","",IF(OR(G40>(F40+3),G40<(F40-3)),"Agncy Repl.","")) ->  | H41: =IF(H40="","",IF(I40="",H40,IF(OR(I40>(H40+3),I40<(H40-3)),I40,H40))) ->  | I41: =IF(I40="","",IF(OR(I40>(H40+3),I40<(H40-3)),"Agncy Repl.","")) ->  | J41: =IF(J40="","",IF(K40="",J40,IF(OR(K40>(J40+3),K40<(J40-3)),K40,J40))) ->  | K41: =IF(K40="","",IF(OR(K40>(J40+3),K40<(J40-3)),"Agncy Repl.","")) ->  | M41: #50 Calc. % | P41: =IF(P40="","",IF(Q40="",P40,IF(OR(Q40>(P40+3),Q40<(P40-3)),Q40,P40))) ->  | Q41: =IF(Q40="","",IF(OR(Q40>(P40+3),Q40<(P40-3)),"Agncy Repl.","")) ->  | R41: =IF(R40="","",IF(S40="",R40,IF(OR(S40>(R40+3),S40<(R40-3)),S40,R40))) ->  | S41: =IF(S40="","",IF(OR(S40>(R40+3),S40<(R40-3)),"Agncy Repl.","")) ->  | T41: =IF(T40="","",IF(U40="",T40,IF(OR(U40>(T40+3),U40<(T40-3)),U40,T40))) ->  | U41: =IF(U40="","",IF(OR(U40>(T40+3),U40<(T40-3)),"Agncy Repl.","")) ->  | V41: =IF(V40="","",IF(W40="",V40,IF(OR(W40>(V40+3),W40<(V40-3)),W40,V40))) ->  | W41: =IF(W40="","",IF(OR(W40>(V40+3),W40<(V40-3)),"Agncy Repl.","")) ->  | Y41: #50 Calc. % | AB41: =IF(AB40="","",IF(AC40="",AB40,IF(OR(AC40>(AB40+3),AC40<(AB40-3)),AC40,AB40))) ->  | AC41: =IF(AC40="","",IF(OR(AC40>(AB40+3),AC40<(AB40-3)),"Agncy Repl.","")) ->  | AD41: =IF(AD40="","",IF(AE40="",AD40,IF(OR(AE40>(AD40+3),AE40<(AD40-3)),AE40,AD40))) ->  | AE41: =IF(AE40="","",IF(OR(AE40>(AD40+3),AE40<(AD40-3)),"Agncy Repl.","")) ->  | AF41: =IF(AF40="","",IF(AG40="",AF40,IF(OR(AG40>(AF40+3),AG40<(AF40-3)),AG40,AF40))) ->  | AG41: =IF(AG40="","",IF(OR(AG40>(AF40+3),AG40<(AF40-3)),"Agncy Repl.","")) ->  | AH41: =IF(AH40="","",IF(AI40="",AH40,IF(OR(AI40>(AH40+3),AI40<(AH40-3)),AI40,AH40))) ->  | AI41: =IF(AI40="","",IF(OR(AI40>(AH40+3),AI40<(AH40-3)),"Agncy Repl.","")) ->  | AK41: #50 Calc. % | AN41: =IF(AN40="","",IF(AO40="",AN40,IF(OR(AO40>(AN40+3),AO40<(AN40-3)),AO40,AN40))) ->  | AO41: =IF(AO40="","",IF(OR(AO40>(AN40+3),AO40<(AN40-3)),"Agncy Repl.","")) ->  | AP41: =IF(AP40="","",IF(AQ40="",AP40,IF(OR(AQ40>(AP40+3),AQ40<(AP40-3)),AQ40,AP40))) ->  | AQ41: =IF(AQ40="","",IF(OR(AQ40>(AP40+3),AQ40<(AP40-3)),"Agncy Repl.","")) ->  | AR41: =IF(AR40="","",IF(AS40="",AR40,IF(OR(AS40>(AR40+3),AS40<(AR40-3)),AS40,AR40))) ->  | AS41: =IF(AS40="","",IF(OR(AS40>(AR40+3),AS40<(AR40-3)),"Agncy Repl.","")) ->  | AT41: =IF(AT40="","",IF(AU40="",AT40,IF(OR(AU40>(AT40+3),AU40<(AT40-3)),AU40,AT40))) ->  | AU41: =IF(AU40="","",IF(OR(AU40>(AT40+3),AU40<(AT40-3)),"Agncy Repl.","")) ->  | AW41: #50 Calc. % | AZ41: =IF(AZ40="","",IF(BA40="",AZ40,IF(OR(BA40>(AZ40+3),BA40<(AZ40-3)),BA40,AZ40))) ->  | BA41: =IF(BA40="","",IF(OR(BA40>(AZ40+3),BA40<(AZ40-3)),"Agncy Repl.","")) ->  | BB41: =IF(BB40="","",IF(BC40="",BB40,IF(OR(BC40>(BB40+3),BC40<(BB40-3)),BC40,BB40))) ->  | BC41: =IF(BC40="","",IF(OR(BC40>(BB40+3),BC40<(BB40-3)),"Agncy Repl.","")) ->  | BD41: =IF(BD40="","",IF(BE40="",BD40,IF(OR(BE40>(BD40+3),BE40<(BD40-3)),BE40,BD40))) ->  | BE41: =IF(BE40="","",IF(OR(BE40>(BD40+3),BE40<(BD40-3)),"Agncy Repl.","")) ->  | BF41: =IF(BF40="","",IF(BG40="",BF40,IF(OR(BG40>(BF40+3),BG40<(BF40-3)),BG40,BF40))) ->  | BG41: =IF(BG40="","",IF(OR(BG40>(BF40+3),BG40<(BF40-3)),"Agncy Repl.","")) ->  | BI41: #50 Calc. % | BL41: =IF(BL40="","",IF(BM40="",BL40,IF(OR(BM40>(BL40+3),BM40<(BL40-3)),BM40,BL40))) ->  | BM41: =IF(BM40="","",IF(OR(BM40>(BL40+3),BM40<(BL40-3)),"Agncy Repl.","")) ->  | BN41: =IF(BN40="","",IF(BO40="",BN40,IF(OR(BO40>(BN40+3),BO40<(BN40-3)),BO40,BN40))) ->  | BO41: =IF(BO40="","",IF(OR(BO40>(BN40+3),BO40<(BN40-3)),"Agncy Repl.","")) ->  | BP41: =IF(BP40="","",IF(BQ40="",BP40,IF(OR(BQ40>(BP40+3),BQ40<(BP40-3)),BQ40,BP40))) ->  | BQ41: =IF(BQ40="","",IF(OR(BQ40>(BP40+3),BQ40<(BP40-3)),"Agncy Repl.","")) ->  | BR41: =IF(BR40="","",IF(BS40="",BR40,IF(OR(BS40>(BR40+3),BS40<(BR40-3)),BS40,BR40))) ->  | BS41: =IF(BS40="","",IF(OR(BS40>(BR40+3),BS40<(BR40-3)),"Agncy Repl.","")) ->  | BU41: #50 Calc. % | BX41: =IF(BX40="","",IF(BY40="",BX40,IF(OR(BY40>(BX40+3),BY40<(BX40-3)),BY40,BX40))) ->  | BY41: =IF(BY40="","",IF(OR(BY40>(BX40+3),BY40<(BX40-3)),"Agncy Repl.","")) ->  | BZ41: =IF(BZ40="","",IF(CA40="",BZ40,IF(OR(CA40>(BZ40+3),CA40<(BZ40-3)),CA40,BZ40))) ->  | CA41: =IF(CA40="","",IF(OR(CA40>(BZ40+3),CA40<(BZ40-3)),"Agncy Repl.","")) ->  | CB41: =IF(CB40="","",IF(CC40="",CB40,IF(OR(CC40>(CB40+3),CC40<(CB40-3)),CC40,CB40))) ->  | CC41: =IF(CC40="","",IF(OR(CC40>(CB40+3),CC40<(CB40-3)),"Agncy Repl.","")) ->  | CD41: =IF(CD40="","",IF(CE40="",CD40,IF(OR(CE40>(CD40+3),CE40<(CD40-3)),CE40,CD40))) ->  | CE41: =IF(CE40="","",IF(OR(CE40>(CD40+3),CE40<(CD40-3)),"Agncy Repl.","")) ->  | CG41: #50 Calc. % | CJ41: =IF(CJ40="","",IF(CK40="",CJ40,IF(OR(CK40>(CJ40+3),CK40<(CJ40-3)),CK40,CJ40))) ->  | CK41: =IF(CK40="","",IF(OR(CK40>(CJ40+3),CK40<(CJ40-3)),"Agncy Repl.","")) ->  | CL41: =IF(CL40="","",IF(CM40="",CL40,IF(OR(CM40>(CL40+3),CM40<(CL40-3)),CM40,CL40))) ->  | CM41: =IF(CM40="","",IF(OR(CM40>(CL40+3),CM40<(CL40-3)),"Agncy Repl.","")) ->  | CN41: =IF(CN40="","",IF(CO40="",CN40,IF(OR(CO40>(CN40+3),CO40<(CN40-3)),CO40,CN40))) ->  | CO41: =IF(CO40="","",IF(OR(CO40>(CN40+3),CO40<(CN40-3)),"Agncy Repl.","")) ->  | CP41: =IF(CP40="","",IF(CQ40="",CP40,IF(OR(CQ40>(CP40+3),CQ40<(CP40-3)),CQ40,CP40))) ->  | CQ41: =IF(CQ40="","",IF(OR(CQ40>(CP40+3),CQ40<(CP40-3)),"Agncy Repl.","")) ->  | CS41: #50 Calc. % | CV41: =IF(CV40="","",IF(CW40="",CV40,IF(OR(CW40>(CV40+3),CW40<(CV40-3)),CW40,CV40))) ->  | CW41: =IF(CW40="","",IF(OR(CW40>(CV40+3),CW40<(CV40-3)),"Agncy Repl.","")) ->  | CX41: =IF(CX40="","",IF(CY40="",CX40,IF(OR(CY40>(CX40+3),CY40<(CX40-3)),CY40,CX40))) ->  | CY41: =IF(CY40="","",IF(OR(CY40>(CX40+3),CY40<(CX40-3)),"Agncy Repl.","")) ->  | CZ41: =IF(CZ40="","",IF(DA40="",CZ40,IF(OR(DA40>(CZ40+3),DA40<(CZ40-3)),DA40,CZ40))) ->  | DA41: =IF(DA40="","",IF(OR(DA40>(CZ40+3),DA40<(CZ40-3)),"Agncy Repl.","")) ->  | DB41: =IF(DB40="","",IF(DC40="",DB40,IF(OR(DC40>(DB40+3),DC40<(DB40-3)),DC40,DB40))) ->  | DC41: =IF(DC40="","",IF(OR(DC40>(DB40+3),DC40<(DB40-3)),"Agncy Repl.","")) ->  | DE41: #50 Calc. % | DH41: =IF(DH40="","",IF(DI40="",DH40,IF(OR(DI40>(DH40+3),DI40<(DH40-3)),DI40,DH40))) ->  | DI41: =IF(DI40="","",IF(OR(DI40>(DH40+3),DI40<(DH40-3)),"Agncy Repl.","")) ->  | DJ41: =IF(DJ40="","",IF(DK40="",DJ40,IF(OR(DK40>(DJ40+3),DK40<(DJ40-3)),DK40,DJ40))) ->  | DK41: =IF(DK40="","",IF(OR(DK40>(DJ40+3),DK40<(DJ40-3)),"Agncy Repl.","")) ->  | DL41: =IF(DL40="","",IF(DM40="",DL40,IF(OR(DM40>(DL40+3),DM40<(DL40-3)),DM40,DL40))) ->  | DM41: =IF(DM40="","",IF(OR(DM40>(DL40+3),DM40<(DL40-3)),"Agncy Repl.","")) ->  | DN41: =IF(DN40="","",IF(DO40="",DN40,IF(OR(DO40>(DN40+3),DO40<(DN40-3)),DO40,DN40))) ->  | DO41: =IF(DO40="","",IF(OR(DO40>(DN40+3),DO40<(DN40-3)),"Agncy Repl.","")) ->  | DQ41: #50 Calc. % | DT41: =IF(DT40="","",IF(DU40="",DT40,IF(OR(DU40>(DT40+3),DU40<(DT40-3)),DU40,DT40))) ->  | DU41: =IF(DU40="","",IF(OR(DU40>(DT40+3),DU40<(DT40-3)),"Agncy Repl.","")) ->  | DV41: =IF(DV40="","",IF(DW40="",DV40,IF(OR(DW40>(DV40+3),DW40<(DV40-3)),DW40,DV40))) ->  | DW41: =IF(DW40="","",IF(OR(DW40>(DV40+3),DW40<(DV40-3)),"Agncy Repl.","")) ->  | DX41: =IF(DX40="","",IF(DY40="",DX40,IF(OR(DY40>(DX40+3),DY40<(DX40-3)),DY40,DX40))) ->  | DY41: =IF(DY40="","",IF(OR(DY40>(DX40+3),DY40<(DX40-3)),"Agncy Repl.","")) ->  | DZ41: =IF(DZ40="","",IF(EA40="",DZ40,IF(OR(EA40>(DZ40+3),EA40<(DZ40-3)),EA40,DZ40))) ->  | EA41: =IF(EA40="","",IF(OR(EA40>(DZ40+3),EA40<(DZ40-3)),"Agncy Repl.","")) ->  | EC41: #50 Calc. % | EF41: =IF(EF40="","",IF(EG40="",EF40,IF(OR(EG40>(EF40+3),EG40<(EF40-3)),EG40,EF40))) ->  | EG41: =IF(EG40="","",IF(OR(EG40>(EF40+3),EG40<(EF40-3)),"Agncy Repl.","")) ->  | EH41: =IF(EH40="","",IF(EI40="",EH40,IF(OR(EI40>(EH40+3),EI40<(EH40-3)),EI40,EH40))) ->  | EI41: =IF(EI40="","",IF(OR(EI40>(EH40+3),EI40<(EH40-3)),"Agncy Repl.","")) ->  | EJ41: =IF(EJ40="","",IF(EK40="",EJ40,IF(OR(EK40>(EJ40+3),EK40<(EJ40-3)),EK40,EJ40))) ->  | EK41: =IF(EK40="","",IF(OR(EK40>(EJ40+3),EK40<(EJ40-3)),"Agncy Repl.","")) ->  | EL41: =IF(EL40="","",IF(EM40="",EL40,IF(OR(EM40>(EL40+3),EM40<(EL40-3)),EM40,EL40))) ->  | EM41: =IF(EM40="","",IF(OR(EM40>(EL40+3),EM40<(EL40-3)),"Agncy Repl.","")) ->  | EO41: #50 Calc. % | ER41: =IF(ER40="","",IF(ES40="",ER40,IF(OR(ES40>(ER40+3),ES40<(ER40-3)),ES40,ER40))) ->  | ES41: =IF(ES40="","",IF(OR(ES40>(ER40+3),ES40<(ER40-3)),"Agncy Repl.","")) ->  | ET41: =IF(ET40="","",IF(EU40="",ET40,IF(OR(EU40>(ET40+3),EU40<(ET40-3)),EU40,ET40))) ->  | EU41: =IF(EU40="","",IF(OR(EU40>(ET40+3),EU40<(ET40-3)),"Agncy Repl.","")) ->  | EV41: =IF(EV40="","",IF(EW40="",EV40,IF(OR(EW40>(EV40+3),EW40<(EV40-3)),EW40,EV40))) ->  | EW41: =IF(EW40="","",IF(OR(EW40>(EV40+3),EW40<(EV40-3)),"Agncy Repl.","")) ->  | EX41: =IF(EX40="","",IF(EY40="",EX40,IF(OR(EY40>(EX40+3),EY40<(EX40-3)),EY40,EX40))) ->  | EY41: =IF(EY40="","",IF(OR(EY40>(EX40+3),EY40<(EX40-3)),"Agncy Repl.","")) ->  | FA41: #50 Calc. % | FD41: =IF(FD40="","",IF(FE40="",FD40,IF(OR(FE40>(FD40+3),FE40<(FD40-3)),FE40,FD40))) ->  | FE41: =IF(FE40="","",IF(OR(FE40>(FD40+3),FE40<(FD40-3)),"Agncy Repl.","")) ->  | FF41: =IF(FF40="","",IF(FG40="",FF40,IF(OR(FG40>(FF40+3),FG40<(FF40-3)),FG40,FF40))) ->  | FG41: =IF(FG40="","",IF(OR(FG40>(FF40+3),FG40<(FF40-3)),"Agncy Repl.","")) ->  | FH41: =IF(FH40="","",IF(FI40="",FH40,IF(OR(FI40>(FH40+3),FI40<(FH40-3)),FI40,FH40))) ->  | FI41: =IF(FI40="","",IF(OR(FI40>(FH40+3),FI40<(FH40-3)),"Agncy Repl.","")) ->  | FJ41: =IF(FJ40="","",IF(FK40="",FJ40,IF(OR(FK40>(FJ40+3),FK40<(FJ40-3)),FK40,FJ40))) ->  | FK41: =IF(FK40="","",IF(OR(FK40>(FJ40+3),FK40<(FJ40-3)),"Agncy Repl.","")) ->  | FM41: #50 Calc. % | FP41: =IF(FP40="","",IF(FQ40="",FP40,IF(OR(FQ40>(FP40+3),FQ40<(FP40-3)),FQ40,FP40))) ->  | FQ41: =IF(FQ40="","",IF(OR(FQ40>(FP40+3),FQ40<(FP40-3)),"Agncy Repl.","")) ->  | FR41: =IF(FR40="","",IF(FS40="",FR40,IF(OR(FS40>(FR40+3),FS40<(FR40-3)),FS40,FR40))) ->  | FS41: =IF(FS40="","",IF(OR(FS40>(FR40+3),FS40<(FR40-3)),"Agncy Repl.","")) ->  | FT41: =IF(FT40="","",IF(FU40="",FT40,IF(OR(FU40>(FT40+3),FU40<(FT40-3)),FU40,FT40))) ->  | FU41: =IF(FU40="","",IF(OR(FU40>(FT40+3),FU40<(FT40-3)),"Agncy Repl.","")) ->  | FV41: =IF(FV40="","",IF(FW40="",FV40,IF(OR(FW40>(FV40+3),FW40<(FV40-3)),FW40,FV40))) ->  | FW41: =IF(FW40="","",IF(OR(FW40>(FV40+3),FW40<(FV40-3)),"Agncy Repl.","")) ->  | FY41: #50 Calc. % | GB41: =IF(GB40="","",IF(GC40="",GB40,IF(OR(GC40>(GB40+3),GC40<(GB40-3)),GC40,GB40))) ->  | GC41: =IF(GC40="","",IF(OR(GC40>(GB40+3),GC40<(GB40-3)),"Agncy Repl.","")) ->  | GD41: =IF(GD40="","",IF(GE40="",GD40,IF(OR(GE40>(GD40+3),GE40<(GD40-3)),GE40,GD40))) ->  | GE41: =IF(GE40="","",IF(OR(GE40>(GD40+3),GE40<(GD40-3)),"Agncy Repl.","")) ->  | GF41: =IF(GF40="","",IF(GG40="",GF40,IF(OR(GG40>(GF40+3),GG40<(GF40-3)),GG40,GF40))) ->  | GG41: =IF(GG40="","",IF(OR(GG40>(GF40+3),GG40<(GF40-3)),"Agncy Repl.","")) ->  | GH41: =IF(GH40="","",IF(GI40="",GH40,IF(OR(GI40>(GH40+3),GI40<(GH40-3)),GI40,GH40))) ->  | GI41: =IF(GI40="","",IF(OR(GI40>(GH40+3),GI40<(GH40-3)),"Agncy Repl.","")) ->  | GK41: #50 Calc. % | GN41: =IF(GN40="","",IF(GO40="",GN40,IF(OR(GO40>(GN40+3),GO40<(GN40-3)),GO40,GN40))) ->  | GO41: =IF(GO40="","",IF(OR(GO40>(GN40+3),GO40<(GN40-3)),"Agncy Repl.","")) ->  | GP41: =IF(GP40="","",IF(GQ40="",GP40,IF(OR(GQ40>(GP40+3),GQ40<(GP40-3)),GQ40,GP40))) ->  | GQ41: =IF(GQ40="","",IF(OR(GQ40>(GP40+3),GQ40<(GP40-3)),"Agncy Repl.","")) ->  | GR41: =IF(GR40="","",IF(GS40="",GR40,IF(OR(GS40>(GR40+3),GS40<(GR40-3)),GS40,GR40))) ->  | GS41: =IF(GS40="","",IF(OR(GS40>(GR40+3),GS40<(GR40-3)),"Agncy Repl.","")) ->  | GT41: =IF(GT40="","",IF(GU40="",GT40,IF(OR(GU40>(GT40+3),GU40<(GT40-3)),GU40,GT40))) ->  | GU41: =IF(GU40="","",IF(OR(GU40>(GT40+3),GU40<(GT40-3)),"Agncy Repl.","")) ->  | GW41: #50 Calc. % | GZ41: =IF(GZ40="","",IF(HA40="",GZ40,IF(OR(HA40>(GZ40+3),HA40<(GZ40-3)),HA40,GZ40))) ->  | HA41: =IF(HA40="","",IF(OR(HA40>(GZ40+3),HA40<(GZ40-3)),"Agncy Repl.","")) ->  | HB41: =IF(HB40="","",IF(HC40="",HB40,IF(OR(HC40>(HB40+3),HC40<(HB40-3)),HC40,HB40))) ->  | HC41: =IF(HC40="","",IF(OR(HC40>(HB40+3),HC40<(HB40-3)),"Agncy Repl.","")) ->  | HD41: =IF(HD40="","",IF(HE40="",HD40,IF(OR(HE40>(HD40+3),HE40<(HD40-3)),HE40,HD40))) ->  | HE41: =IF(HE40="","",IF(OR(HE40>(HD40+3),HE40<(HD40-3)),"Agncy Repl.","")) ->  | HF41: =IF(HF40="","",IF(HG40="",HF40,IF(OR(HG40>(HF40+3),HG40<(HF40-3)),HG40,HF40))) ->  | HG41: =IF(HG40="","",IF(OR(HG40>(HF40+3),HG40<(HF40-3)),"Agncy Repl.","")) ->  | HI41: #50 Calc. % | HL41: =IF(HL40="","",IF(HM40="",HL40,IF(OR(HM40>(HL40+3),HM40<(HL40-3)),HM40,HL40))) ->  | HM41: =IF(HM40="","",IF(OR(HM40>(HL40+3),HM40<(HL40-3)),"Agncy Repl.","")) ->  | HN41: =IF(HN40="","",IF(HO40="",HN40,IF(OR(HO40>(HN40+3),HO40<(HN40-3)),HO40,HN40))) ->  | HO41: =IF(HO40="","",IF(OR(HO40>(HN40+3),HO40<(HN40-3)),"Agncy Repl.","")) ->  | HP41: =IF(HP40="","",IF(HQ40="",HP40,IF(OR(HQ40>(HP40+3),HQ40<(HP40-3)),HQ40,HP40))) ->  | HQ41: =IF(HQ40="","",IF(OR(HQ40>(HP40+3),HQ40<(HP40-3)),"Agncy Repl.","")) ->  | HR41: =IF(HR40="","",IF(HS40="",HR40,IF(OR(HS40>(HR40+3),HS40<(HR40-3)),HS40,HR40))) ->  | HS41: =IF(HS40="","",IF(OR(HS40>(HR40+3),HS40<(HR40-3)),"Agncy Repl.","")) ->  | HU41: #50 Calc. % | HX41: =IF(HX40="","",IF(HY40="",HX40,IF(OR(HY40>(HX40+3),HY40<(HX40-3)),HY40,HX40))) ->  | HY41: =IF(HY40="","",IF(OR(HY40>(HX40+3),HY40<(HX40-3)),"Agncy Repl.","")) ->  | HZ41: =IF(HZ40="","",IF(IA40="",HZ40,IF(OR(IA40>(HZ40+3),IA40<(HZ40-3)),IA40,HZ40))) ->  | IA41: =IF(IA40="","",IF(OR(IA40>(HZ40+3),IA40<(HZ40-3)),"Agncy Repl.","")) ->  | IB41: =IF(IB40="","",IF(IC40="",IB40,IF(OR(IC40>(IB40+3),IC40<(IB40-3)),IC40,IB40))) ->  | IC41: =IF(IC40="","",IF(OR(IC40>(IB40+3),IC40<(IB40-3)),"Agncy Repl.","")) ->  | ID41: =IF(ID40="","",IF(IE40="",ID40,IF(OR(IE40>(ID40+3),IE40<(ID40-3)),IE40,ID40))) ->  | IE41: =IF(IE40="","",IF(OR(IE40>(ID40+3),IE40<(ID40-3)),"Agncy Repl.","")) ->  | IG41: #50 Calc. % | IJ41: =IF(IJ40="","",IF(IK40="",IJ40,IF(OR(IK40>(IJ40+3),IK40<(IJ40-3)),IK40,IJ40))) ->  | IK41: =IF(IK40="","",IF(OR(IK40>(IJ40+3),IK40<(IJ40-3)),"Agncy Repl.","")) ->  | IL41: =IF(IL40="","",IF(IM40="",IL40,IF(OR(IM40>(IL40+3),IM40<(IL40-3)),IM40,IL40))) ->  | IM41: =IF(IM40="","",IF(OR(IM40>(IL40+3),IM40<(IL40-3)),"Agncy Repl.","")) ->  | IN41: =IF(IN40="","",IF(IO40="",IN40,IF(OR(IO40>(IN40+3),IO40<(IN40-3)),IO40,IN40))) ->  | IO41: =IF(IO40="","",IF(OR(IO40>(IN40+3),IO40<(IN40-3)),"Agncy Repl.","")) ->  | IP41: =IF(IP40="","",IF(IQ40="",IP40,IF(OR(IQ40>(IP40+3),IQ40<(IP40-3)),IQ40,IP40))) ->  | IQ41: =IF(IQ40="","",IF(OR(IQ40>(IP40+3),IQ40<(IP40-3)),"Agncy Repl.","")) -> 
A42: # 100 | M42: # 100 | Y42: # 100 | AK42: # 100 | AW42: # 100 | BI42: # 100 | BU42: # 100 | CG42: # 100 | CS42: # 100 | DE42: # 100 | DQ42: # 100 | EC42: # 100 | EO42: # 100 | FA42: # 100 | FM42: # 100 | FY42: # 100 | GK42: # 100 | GW42: # 100 | HI42: # 100 | HU42: # 100 | IG42: # 100 | IT42: 0 | IU42: Agency AFT Substituted
A43: #100 Calc. % | D43: =IF(D42="","",IF(E42="",D42,IF(OR(E42>(D42+2),E42<(D42-2)),E42,D42))) ->  | E43: =IF(E42="","",IF(OR(E42>(D42+2),E42<(D42-2)),"Agncy Repl.","")) ->  | F43: =IF(F42="","",IF(G42="",F42,IF(OR(G42>(F42+2),G42<(F42-2)),G42,F42))) ->  | G43: =IF(G42="","",IF(OR(G42>(F42+2),G42<(F42-2)),"Agncy Repl.","")) ->  | H43: =IF(H42="","",IF(I42="",H42,IF(OR(I42>(H42+2),I42<(H42-2)),I42,H42))) ->  | I43: =IF(I42="","",IF(OR(I42>(H42+2),I42<(H42-2)),"Agncy Repl.","")) ->  | J43: =IF(J42="","",IF(K42="",J42,IF(OR(K42>(J42+2),K42<(J42-2)),K42,J42))) ->  | K43: =IF(K42="","",IF(OR(K42>(J42+2),K42<(J42-2)),"Agncy Repl.","")) ->  | M43: #100 Calc. % | P43: =IF(P42="","",IF(Q42="",P42,IF(OR(Q42>(P42+2),Q42<(P42-2)),Q42,P42))) ->  | Q43: =IF(Q42="","",IF(OR(Q42>(P42+2),Q42<(P42-2)),"Agncy Repl.","")) ->  | R43: =IF(R42="","",IF(S42="",R42,IF(OR(S42>(R42+2),S42<(R42-2)),S42,R42))) ->  | S43: =IF(S42="","",IF(OR(S42>(R42+2),S42<(R42-2)),"Agncy Repl.","")) ->  | T43: =IF(T42="","",IF(U42="",T42,IF(OR(U42>(T42+2),U42<(T42-2)),U42,T42))) ->  | U43: =IF(U42="","",IF(OR(U42>(T42+2),U42<(T42-2)),"Agncy Repl.","")) ->  | V43: =IF(V42="","",IF(W42="",V42,IF(OR(W42>(V42+2),W42<(V42-2)),W42,V42))) ->  | W43: =IF(W42="","",IF(OR(W42>(V42+2),W42<(V42-2)),"Agncy Repl.","")) ->  | Y43: #100 Calc. % | AB43: =IF(AB42="","",IF(AC42="",AB42,IF(OR(AC42>(AB42+2),AC42<(AB42-2)),AC42,AB42))) ->  | AC43: =IF(AC42="","",IF(OR(AC42>(AB42+2),AC42<(AB42-2)),"Agncy Repl.","")) ->  | AD43: =IF(AD42="","",IF(AE42="",AD42,IF(OR(AE42>(AD42+2),AE42<(AD42-2)),AE42,AD42))) ->  | AE43: =IF(AE42="","",IF(OR(AE42>(AD42+2),AE42<(AD42-2)),"Agncy Repl.","")) ->  | AF43: =IF(AF42="","",IF(AG42="",AF42,IF(OR(AG42>(AF42+2),AG42<(AF42-2)),AG42,AF42))) ->  | AG43: =IF(AG42="","",IF(OR(AG42>(AF42+2),AG42<(AF42-2)),"Agncy Repl.","")) ->  | AH43: =IF(AH42="","",IF(AI42="",AH42,IF(OR(AI42>(AH42+2),AI42<(AH42-2)),AI42,AH42))) ->  | AI43: =IF(AI42="","",IF(OR(AI42>(AH42+2),AI42<(AH42-2)),"Agncy Repl.","")) ->  | AK43: #100 Calc. % | AN43: =IF(AN42="","",IF(AO42="",AN42,IF(OR(AO42>(AN42+2),AO42<(AN42-2)),AO42,AN42))) ->  | AO43: =IF(AO42="","",IF(OR(AO42>(AN42+2),AO42<(AN42-2)),"Agncy Repl.","")) ->  | AP43: =IF(AP42="","",IF(AQ42="",AP42,IF(OR(AQ42>(AP42+2),AQ42<(AP42-2)),AQ42,AP42))) ->  | AQ43: =IF(AQ42="","",IF(OR(AQ42>(AP42+2),AQ42<(AP42-2)),"Agncy Repl.","")) ->  | AR43: =IF(AR42="","",IF(AS42="",AR42,IF(OR(AS42>(AR42+2),AS42<(AR42-2)),AS42,AR42))) ->  | AS43: =IF(AS42="","",IF(OR(AS42>(AR42+2),AS42<(AR42-2)),"Agncy Repl.","")) ->  | AT43: =IF(AT42="","",IF(AU42="",AT42,IF(OR(AU42>(AT42+2),AU42<(AT42-2)),AU42,AT42))) ->  | AU43: =IF(AU42="","",IF(OR(AU42>(AT42+2),AU42<(AT42-2)),"Agncy Repl.","")) ->  | AW43: #100 Calc. % | AZ43: =IF(AZ42="","",IF(BA42="",AZ42,IF(OR(BA42>(AZ42+2),BA42<(AZ42-2)),BA42,AZ42))) ->  | BA43: =IF(BA42="","",IF(OR(BA42>(AZ42+2),BA42<(AZ42-2)),"Agncy Repl.","")) ->  | BB43: =IF(BB42="","",IF(BC42="",BB42,IF(OR(BC42>(BB42+2),BC42<(BB42-2)),BC42,BB42))) ->  | BC43: =IF(BC42="","",IF(OR(BC42>(BB42+2),BC42<(BB42-2)),"Agncy Repl.","")) ->  | BD43: =IF(BD42="","",IF(BE42="",BD42,IF(OR(BE42>(BD42+2),BE42<(BD42-2)),BE42,BD42))) ->  | BE43: =IF(BE42="","",IF(OR(BE42>(BD42+2),BE42<(BD42-2)),"Agncy Repl.","")) ->  | BF43: =IF(BF42="","",IF(BG42="",BF42,IF(OR(BG42>(BF42+2),BG42<(BF42-2)),BG42,BF42))) ->  | BG43: =IF(BG42="","",IF(OR(BG42>(BF42+2),BG42<(BF42-2)),"Agncy Repl.","")) ->  | BI43: #100 Calc. % | BL43: =IF(BL42="","",IF(BM42="",BL42,IF(OR(BM42>(BL42+2),BM42<(BL42-2)),BM42,BL42))) ->  | BM43: =IF(BM42="","",IF(OR(BM42>(BL42+2),BM42<(BL42-2)),"Agncy Repl.","")) ->  | BN43: =IF(BN42="","",IF(BO42="",BN42,IF(OR(BO42>(BN42+2),BO42<(BN42-2)),BO42,BN42))) ->  | BO43: =IF(BO42="","",IF(OR(BO42>(BN42+2),BO42<(BN42-2)),"Agncy Repl.","")) ->  | BP43: =IF(BP42="","",IF(BQ42="",BP42,IF(OR(BQ42>(BP42+2),BQ42<(BP42-2)),BQ42,BP42))) ->  | BQ43: =IF(BQ42="","",IF(OR(BQ42>(BP42+2),BQ42<(BP42-2)),"Agncy Repl.","")) ->  | BR43: =IF(BR42="","",IF(BS42="",BR42,IF(OR(BS42>(BR42+2),BS42<(BR42-2)),BS42,BR42))) ->  | BS43: =IF(BS42="","",IF(OR(BS42>(BR42+2),BS42<(BR42-2)),"Agncy Repl.","")) ->  | BU43: #100 Calc. % | BX43: =IF(BX42="","",IF(BY42="",BX42,IF(OR(BY42>(BX42+2),BY42<(BX42-2)),BY42,BX42))) ->  | BY43: =IF(BY42="","",IF(OR(BY42>(BX42+2),BY42<(BX42-2)),"Agncy Repl.","")) ->  | BZ43: =IF(BZ42="","",IF(CA42="",BZ42,IF(OR(CA42>(BZ42+2),CA42<(BZ42-2)),CA42,BZ42))) ->  | CA43: =IF(CA42="","",IF(OR(CA42>(BZ42+2),CA42<(BZ42-2)),"Agncy Repl.","")) ->  | CB43: =IF(CB42="","",IF(CC42="",CB42,IF(OR(CC42>(CB42+2),CC42<(CB42-2)),CC42,CB42))) ->  | CC43: =IF(CC42="","",IF(OR(CC42>(CB42+2),CC42<(CB42-2)),"Agncy Repl.","")) ->  | CD43: =IF(CD42="","",IF(CE42="",CD42,IF(OR(CE42>(CD42+2),CE42<(CD42-2)),CE42,CD42))) ->  | CE43: =IF(CE42="","",IF(OR(CE42>(CD42+2),CE42<(CD42-2)),"Agncy Repl.","")) ->  | CG43: #100 Calc. % | CJ43: =IF(CJ42="","",IF(CK42="",CJ42,IF(OR(CK42>(CJ42+2),CK42<(CJ42-2)),CK42,CJ42))) ->  | CK43: =IF(CK42="","",IF(OR(CK42>(CJ42+2),CK42<(CJ42-2)),"Agncy Repl.","")) ->  | CL43: =IF(CL42="","",IF(CM42="",CL42,IF(OR(CM42>(CL42+2),CM42<(CL42-2)),CM42,CL42))) ->  | CM43: =IF(CM42="","",IF(OR(CM42>(CL42+2),CM42<(CL42-2)),"Agncy Repl.","")) ->  | CN43: =IF(CN42="","",IF(CO42="",CN42,IF(OR(CO42>(CN42+2),CO42<(CN42-2)),CO42,CN42))) ->  | CO43: =IF(CO42="","",IF(OR(CO42>(CN42+2),CO42<(CN42-2)),"Agncy Repl.","")) ->  | CP43: =IF(CP42="","",IF(CQ42="",CP42,IF(OR(CQ42>(CP42+2),CQ42<(CP42-2)),CQ42,CP42))) ->  | CQ43: =IF(CQ42="","",IF(OR(CQ42>(CP42+2),CQ42<(CP42-2)),"Agncy Repl.","")) ->  | CS43: #100 Calc. % | CV43: =IF(CV42="","",IF(CW42="",CV42,IF(OR(CW42>(CV42+2),CW42<(CV42-2)),CW42,CV42))) ->  | CW43: =IF(CW42="","",IF(OR(CW42>(CV42+2),CW42<(CV42-2)),"Agncy Repl.","")) ->  | CX43: =IF(CX42="","",IF(CY42="",CX42,IF(OR(CY42>(CX42+2),CY42<(CX42-2)),CY42,CX42))) ->  | CY43: =IF(CY42="","",IF(OR(CY42>(CX42+2),CY42<(CX42-2)),"Agncy Repl.","")) ->  | CZ43: =IF(CZ42="","",IF(DA42="",CZ42,IF(OR(DA42>(CZ42+2),DA42<(CZ42-2)),DA42,CZ42))) ->  | DA43: =IF(DA42="","",IF(OR(DA42>(CZ42+2),DA42<(CZ42-2)),"Agncy Repl.","")) ->  | DB43: =IF(DB42="","",IF(DC42="",DB42,IF(OR(DC42>(DB42+2),DC42<(DB42-2)),DC42,DB42))) ->  | DC43: =IF(DC42="","",IF(OR(DC42>(DB42+2),DC42<(DB42-2)),"Agncy Repl.","")) ->  | DE43: #100 Calc. % | DH43: =IF(DH42="","",IF(DI42="",DH42,IF(OR(DI42>(DH42+2),DI42<(DH42-2)),DI42,DH42))) ->  | DI43: =IF(DI42="","",IF(OR(DI42>(DH42+2),DI42<(DH42-2)),"Agncy Repl.","")) ->  | DJ43: =IF(DJ42="","",IF(DK42="",DJ42,IF(OR(DK42>(DJ42+2),DK42<(DJ42-2)),DK42,DJ42))) ->  | DK43: =IF(DK42="","",IF(OR(DK42>(DJ42+2),DK42<(DJ42-2)),"Agncy Repl.","")) ->  | DL43: =IF(DL42="","",IF(DM42="",DL42,IF(OR(DM42>(DL42+2),DM42<(DL42-2)),DM42,DL42))) ->  | DM43: =IF(DM42="","",IF(OR(DM42>(DL42+2),DM42<(DL42-2)),"Agncy Repl.","")) ->  | DN43: =IF(DN42="","",IF(DO42="",DN42,IF(OR(DO42>(DN42+2),DO42<(DN42-2)),DO42,DN42))) ->  | DO43: =IF(DO42="","",IF(OR(DO42>(DN42+2),DO42<(DN42-2)),"Agncy Repl.","")) ->  | DQ43: #100 Calc. % | DT43: =IF(DT42="","",IF(DU42="",DT42,IF(OR(DU42>(DT42+2),DU42<(DT42-2)),DU42,DT42))) ->  | DU43: =IF(DU42="","",IF(OR(DU42>(DT42+2),DU42<(DT42-2)),"Agncy Repl.","")) ->  | DV43: =IF(DV42="","",IF(DW42="",DV42,IF(OR(DW42>(DV42+2),DW42<(DV42-2)),DW42,DV42))) ->  | DW43: =IF(DW42="","",IF(OR(DW42>(DV42+2),DW42<(DV42-2)),"Agncy Repl.","")) ->  | DX43: =IF(DX42="","",IF(DY42="",DX42,IF(OR(DY42>(DX42+2),DY42<(DX42-2)),DY42,DX42))) ->  | DY43: =IF(DY42="","",IF(OR(DY42>(DX42+2),DY42<(DX42-2)),"Agncy Repl.","")) ->  | DZ43: =IF(DZ42="","",IF(EA42="",DZ42,IF(OR(EA42>(DZ42+2),EA42<(DZ42-2)),EA42,DZ42))) ->  | EA43: =IF(EA42="","",IF(OR(EA42>(DZ42+2),EA42<(DZ42-2)),"Agncy Repl.","")) ->  | EC43: #100 Calc. % | EF43: =IF(EF42="","",IF(EG42="",EF42,IF(OR(EG42>(EF42+2),EG42<(EF42-2)),EG42,EF42))) ->  | EG43: =IF(EG42="","",IF(OR(EG42>(EF42+2),EG42<(EF42-2)),"Agncy Repl.","")) ->  | EH43: =IF(EH42="","",IF(EI42="",EH42,IF(OR(EI42>(EH42+2),EI42<(EH42-2)),EI42,EH42))) ->  | EI43: =IF(EI42="","",IF(OR(EI42>(EH42+2),EI42<(EH42-2)),"Agncy Repl.","")) ->  | EJ43: =IF(EJ42="","",IF(EK42="",EJ42,IF(OR(EK42>(EJ42+2),EK42<(EJ42-2)),EK42,EJ42))) ->  | EK43: =IF(EK42="","",IF(OR(EK42>(EJ42+2),EK42<(EJ42-2)),"Agncy Repl.","")) ->  | EL43: =IF(EL42="","",IF(EM42="",EL42,IF(OR(EM42>(EL42+2),EM42<(EL42-2)),EM42,EL42))) ->  | EM43: =IF(EM42="","",IF(OR(EM42>(EL42+2),EM42<(EL42-2)),"Agncy Repl.","")) ->  | EO43: #100 Calc. % | ER43: =IF(ER42="","",IF(ES42="",ER42,IF(OR(ES42>(ER42+2),ES42<(ER42-2)),ES42,ER42))) ->  | ES43: =IF(ES42="","",IF(OR(ES42>(ER42+2),ES42<(ER42-2)),"Agncy Repl.","")) ->  | ET43: =IF(ET42="","",IF(EU42="",ET42,IF(OR(EU42>(ET42+2),EU42<(ET42-2)),EU42,ET42))) ->  | EU43: =IF(EU42="","",IF(OR(EU42>(ET42+2),EU42<(ET42-2)),"Agncy Repl.","")) ->  | EV43: =IF(EV42="","",IF(EW42="",EV42,IF(OR(EW42>(EV42+2),EW42<(EV42-2)),EW42,EV42))) ->  | EW43: =IF(EW42="","",IF(OR(EW42>(EV42+2),EW42<(EV42-2)),"Agncy Repl.","")) ->  | EX43: =IF(EX42="","",IF(EY42="",EX42,IF(OR(EY42>(EX42+2),EY42<(EX42-2)),EY42,EX42))) ->  | EY43: =IF(EY42="","",IF(OR(EY42>(EX42+2),EY42<(EX42-2)),"Agncy Repl.","")) ->  | FA43: #100 Calc. % | FD43: =IF(FD42="","",IF(FE42="",FD42,IF(OR(FE42>(FD42+2),FE42<(FD42-2)),FE42,FD42))) ->  | FE43: =IF(FE42="","",IF(OR(FE42>(FD42+2),FE42<(FD42-2)),"Agncy Repl.","")) ->  | FF43: =IF(FF42="","",IF(FG42="",FF42,IF(OR(FG42>(FF42+2),FG42<(FF42-2)),FG42,FF42))) ->  | FG43: =IF(FG42="","",IF(OR(FG42>(FF42+2),FG42<(FF42-2)),"Agncy Repl.","")) ->  | FH43: =IF(FH42="","",IF(FI42="",FH42,IF(OR(FI42>(FH42+2),FI42<(FH42-2)),FI42,FH42))) ->  | FI43: =IF(FI42="","",IF(OR(FI42>(FH42+2),FI42<(FH42-2)),"Agncy Repl.","")) ->  | FJ43: =IF(FJ42="","",IF(FK42="",FJ42,IF(OR(FK42>(FJ42+2),FK42<(FJ42-2)),FK42,FJ42))) ->  | FK43: =IF(FK42="","",IF(OR(FK42>(FJ42+2),FK42<(FJ42-2)),"Agncy Repl.","")) ->  | FM43: #100 Calc. % | FP43: =IF(FP42="","",IF(FQ42="",FP42,IF(OR(FQ42>(FP42+2),FQ42<(FP42-2)),FQ42,FP42))) ->  | FQ43: =IF(FQ42="","",IF(OR(FQ42>(FP42+2),FQ42<(FP42-2)),"Agncy Repl.","")) ->  | FR43: =IF(FR42="","",IF(FS42="",FR42,IF(OR(FS42>(FR42+2),FS42<(FR42-2)),FS42,FR42))) ->  | FS43: =IF(FS42="","",IF(OR(FS42>(FR42+2),FS42<(FR42-2)),"Agncy Repl.","")) ->  | FT43: =IF(FT42="","",IF(FU42="",FT42,IF(OR(FU42>(FT42+2),FU42<(FT42-2)),FU42,FT42))) ->  | FU43: =IF(FU42="","",IF(OR(FU42>(FT42+2),FU42<(FT42-2)),"Agncy Repl.","")) ->  | FV43: =IF(FV42="","",IF(FW42="",FV42,IF(OR(FW42>(FV42+2),FW42<(FV42-2)),FW42,FV42))) ->  | FW43: =IF(FW42="","",IF(OR(FW42>(FV42+2),FW42<(FV42-2)),"Agncy Repl.","")) ->  | FY43: #100 Calc. % | GB43: =IF(GB42="","",IF(GC42="",GB42,IF(OR(GC42>(GB42+2),GC42<(GB42-2)),GC42,GB42))) ->  | GC43: =IF(GC42="","",IF(OR(GC42>(GB42+2),GC42<(GB42-2)),"Agncy Repl.","")) ->  | GD43: =IF(GD42="","",IF(GE42="",GD42,IF(OR(GE42>(GD42+2),GE42<(GD42-2)),GE42,GD42))) ->  | GE43: =IF(GE42="","",IF(OR(GE42>(GD42+2),GE42<(GD42-2)),"Agncy Repl.","")) ->  | GF43: =IF(GF42="","",IF(GG42="",GF42,IF(OR(GG42>(GF42+2),GG42<(GF42-2)),GG42,GF42))) ->  | GG43: =IF(GG42="","",IF(OR(GG42>(GF42+2),GG42<(GF42-2)),"Agncy Repl.","")) ->  | GH43: =IF(GH42="","",IF(GI42="",GH42,IF(OR(GI42>(GH42+2),GI42<(GH42-2)),GI42,GH42))) ->  | GI43: =IF(GI42="","",IF(OR(GI42>(GH42+2),GI42<(GH42-2)),"Agncy Repl.","")) ->  | GK43: #100 Calc. % | GN43: =IF(GN42="","",IF(GO42="",GN42,IF(OR(GO42>(GN42+2),GO42<(GN42-2)),GO42,GN42))) ->  | GO43: =IF(GO42="","",IF(OR(GO42>(GN42+2),GO42<(GN42-2)),"Agncy Repl.","")) ->  | GP43: =IF(GP42="","",IF(GQ42="",GP42,IF(OR(GQ42>(GP42+2),GQ42<(GP42-2)),GQ42,GP42))) ->  | GQ43: =IF(GQ42="","",IF(OR(GQ42>(GP42+2),GQ42<(GP42-2)),"Agncy Repl.","")) ->  | GR43: =IF(GR42="","",IF(GS42="",GR42,IF(OR(GS42>(GR42+2),GS42<(GR42-2)),GS42,GR42))) ->  | GS43: =IF(GS42="","",IF(OR(GS42>(GR42+2),GS42<(GR42-2)),"Agncy Repl.","")) ->  | GT43: =IF(GT42="","",IF(GU42="",GT42,IF(OR(GU42>(GT42+2),GU42<(GT42-2)),GU42,GT42))) ->  | GU43: =IF(GU42="","",IF(OR(GU42>(GT42+2),GU42<(GT42-2)),"Agncy Repl.","")) ->  | GW43: #100 Calc. % | GZ43: =IF(GZ42="","",IF(HA42="",GZ42,IF(OR(HA42>(GZ42+2),HA42<(GZ42-2)),HA42,GZ42))) ->  | HA43: =IF(HA42="","",IF(OR(HA42>(GZ42+2),HA42<(GZ42-2)),"Agncy Repl.","")) ->  | HB43: =IF(HB42="","",IF(HC42="",HB42,IF(OR(HC42>(HB42+2),HC42<(HB42-2)),HC42,HB42))) ->  | HC43: =IF(HC42="","",IF(OR(HC42>(HB42+2),HC42<(HB42-2)),"Agncy Repl.","")) ->  | HD43: =IF(HD42="","",IF(HE42="",HD42,IF(OR(HE42>(HD42+2),HE42<(HD42-2)),HE42,HD42))) ->  | HE43: =IF(HE42="","",IF(OR(HE42>(HD42+2),HE42<(HD42-2)),"Agncy Repl.","")) ->  | HF43: =IF(HF42="","",IF(HG42="",HF42,IF(OR(HG42>(HF42+2),HG42<(HF42-2)),HG42,HF42))) ->  | HG43: =IF(HG42="","",IF(OR(HG42>(HF42+2),HG42<(HF42-2)),"Agncy Repl.","")) ->  | HI43: #100 Calc. % | HL43: =IF(HL42="","",IF(HM42="",HL42,IF(OR(HM42>(HL42+2),HM42<(HL42-2)),HM42,HL42))) ->  | HM43: =IF(HM42="","",IF(OR(HM42>(HL42+2),HM42<(HL42-2)),"Agncy Repl.","")) ->  | HN43: =IF(HN42="","",IF(HO42="",HN42,IF(OR(HO42>(HN42+2),HO42<(HN42-2)),HO42,HN42))) ->  | HO43: =IF(HO42="","",IF(OR(HO42>(HN42+2),HO42<(HN42-2)),"Agncy Repl.","")) ->  | HP43: =IF(HP42="","",IF(HQ42="",HP42,IF(OR(HQ42>(HP42+2),HQ42<(HP42-2)),HQ42,HP42))) ->  | HQ43: =IF(HQ42="","",IF(OR(HQ42>(HP42+2),HQ42<(HP42-2)),"Agncy Repl.","")) ->  | HR43: =IF(HR42="","",IF(HS42="",HR42,IF(OR(HS42>(HR42+2),HS42<(HR42-2)),HS42,HR42))) ->  | HS43: =IF(HS42="","",IF(OR(HS42>(HR42+2),HS42<(HR42-2)),"Agncy Repl.","")) ->  | HU43: #100 Calc. % | HX43: =IF(HX42="","",IF(HY42="",HX42,IF(OR(HY42>(HX42+2),HY42<(HX42-2)),HY42,HX42))) ->  | HY43: =IF(HY42="","",IF(OR(HY42>(HX42+2),HY42<(HX42-2)),"Agncy Repl.","")) ->  | HZ43: =IF(HZ42="","",IF(IA42="",HZ42,IF(OR(IA42>(HZ42+2),IA42<(HZ42-2)),IA42,HZ42))) ->  | IA43: =IF(IA42="","",IF(OR(IA42>(HZ42+2),IA42<(HZ42-2)),"Agncy Repl.","")) ->  | IB43: =IF(IB42="","",IF(IC42="",IB42,IF(OR(IC42>(IB42+2),IC42<(IB42-2)),IC42,IB42))) ->  | IC43: =IF(IC42="","",IF(OR(IC42>(IB42+2),IC42<(IB42-2)),"Agncy Repl.","")) ->  | ID43: =IF(ID42="","",IF(IE42="",ID42,IF(OR(IE42>(ID42+2),IE42<(ID42-2)),IE42,ID42))) ->  | IE43: =IF(IE42="","",IF(OR(IE42>(ID42+2),IE42<(ID42-2)),"Agncy Repl.","")) ->  | IG43: #100 Calc. % | IJ43: =IF(IJ42="","",IF(IK42="",IJ42,IF(OR(IK42>(IJ42+2),IK42<(IJ42-2)),IK42,IJ42))) ->  | IK43: =IF(IK42="","",IF(OR(IK42>(IJ42+2),IK42<(IJ42-2)),"Agncy Repl.","")) ->  | IL43: =IF(IL42="","",IF(IM42="",IL42,IF(OR(IM42>(IL42+2),IM42<(IL42-2)),IM42,IL42))) ->  | IM43: =IF(IM42="","",IF(OR(IM42>(IL42+2),IM42<(IL42-2)),"Agncy Repl.","")) ->  | IN43: =IF(IN42="","",IF(IO42="",IN42,IF(OR(IO42>(IN42+2),IO42<(IN42-2)),IO42,IN42))) ->  | IO43: =IF(IO42="","",IF(OR(IO42>(IN42+2),IO42<(IN42-2)),"Agncy Repl.","")) ->  | IP43: =IF(IP42="","",IF(IQ42="",IP42,IF(OR(IQ42>(IP42+2),IQ42<(IP42-2)),IQ42,IP42))) ->  | IQ43: =IF(IQ42="","",IF(OR(IQ42>(IP42+2),IQ42<(IP42-2)),"Agncy Repl.","")) -> 
A44: #200 | M44: #200 | Y44: #200 | AK44: #200 | AW44: #200 | BI44: #200 | BU44: #200 | CG44: #200 | CS44: #200 | DE44: #200 | DQ44: #200 | EC44: #200 | EO44: #200 | FA44: #200 | FM44: #200 | FY44: #200 | GK44: #200 | GW44: #200 | HI44: #200 | HU44: #200 | IG44: #200 | IT44: 0 | IU44: Agency AFT Substituted
